Workbook

Sheet Inputs
F1: INPUTS
B3: Prepared By : | C3: PacifiCorp | I3: Capital | J3: Embedded | K3: Weighted
B4: Jurisdiction : | C4: State of Washington | F4: Effective Tot Tax % | G4: =+G5+G7 -> 0.35 | I4: Structure | J4: Costs | K4: Costs
B5: Test Period : | C5: 12 Months Ending June 2012 | F5: Effective Fed Tax % | G5: =+G6*(1-G7) -> 0.35 | H5: Debt | I5: 0.4721376361 | J5: 0.05372 | K5: =(I5*J5) -> 0.02536323381 | N5: 3 | O5: FuncFactors | P5: 2 | Q5: DistFuncFactors | R5: 3 | S5: COSFactors | T5: 3 | U5: Peak Method | V5: 5 | W5: Dist Peak Method | X5: 1 | Y5: Calculate | Z5: 3 | AA5: Print | AB5: 2 | AC5: ROR - WorkArea
B6: Method : | C6: =IF(COSFacVal=1,$S$6,IF(COSFacVal=2,$S$7,IF(COSFacVal=3,$S$8,IF(COSFacVal=4,$S$9,IF(COSFacVal=5,$S$10,$S$11))))) -> WCA Method | F6: Federal Tax Rate | G6: 0.35 | H6: Preferred | I6: 0.002798396464 | J6: 0.05427 | K6: =(I6*J6) -> 0.0001518689761 | O6: Base Case Option | Q6: Base Case Option | S6: Commission Method | U6: Coincident Peaks | W6: Distibution Peaks | Y6: Entire Model | AA6: Input Table
F7: State Tax Rate | G7: 0 | H7: Common | I7: 0.5250639675 | J7: 0.1 | K7: =(I7*J7) -> 0.05250639675 | O7: MSP option | Q7: WCA Method | S7: MSP allocation | U7: 200 Total Hours | W7: Non Coin Peaks - 12 months | Y7: 5 Functions | AA7: Operating Results - @ earned ROR | AC7: Target ROR - % | AD7: 0.0851
B8: Factor 10: | C8: Demand % = | D8: 0.38 | F8: Net to Gross Factor | G8: 0.61881 | I8: =SUM(I5:I7) -> 1 | K8: =SUM(K5:K7) -> 0.07802149953 | O8: WCA Method | Q8: Option 3 | S8: WCA Method | U8: 100 Summer / 100 Winter Hours | W8: Non Coin Peaks - maximum | Y8: Generation | AA8: Operating Results - @ target ROR | AC8: Target Increase - $ | AD8: ='Summary Table'!$M$64 -> 42800673
C9: Energy % = | D9: =1-Demand -> 0.62 | O9: Option 4 | Q9: Option 4 | S9: Option 4 | W9: Schedule Peaks - 12 months | Y9: Gen - Demand | AA9: Unit Cost Summary - @ earned ROR
F10: Allocation Options: | I10: System Peak Method | O10: Option 5 | Q10: Option 5 | S10: Option 5 | W10: Schedule Peaks - maximum | Y10: Gen - Energy | AA10: Unit Cost Summary - @ target ROR | AC10: Target ROR - % | AD10: =ActualROR+((AD11*Net_to_Gross_Factor))/TotalRateBase -> 0.07799999713
B11: Factor 11: | C11: Demand % = | D11: 0.5 | S11: Option 6 | Y11: Transmission | AA11: Print Func Summaries (12 sheets) | AC11: Target Increase - $ | AD11: 42800673
C12: Energy % = | D12: 0.5 | F12: Functional Factors - | Y12: Tran - Demand | AA12: Factor Summaries (Func, Dist, COS)
I13: Select CP months: 1 = include month | Y13: Tran - Energy | AA13: Demand Factors (F10-F17)
F14: Dist Func Factors - | I14: 0 = exclude month | Y14: Distribution | AA14: Distribution Factors (F20-F22)
B15: Demand | C15: Sec voltage = | D15: 1.10957 | I15: =('Demand Factors'!D$94) -> 2011-07-01 | J15: 1 | Y15: Dist - subs | AA15: Energy Factor (F30+F34)
B16: Loss Factors | C16: Pri voltage = | D16: 1.08377 | F16: COS Factors - | I16: =('Demand Factors'!E$94) -> 2011-08-01 | J16: 1 | Y16: Dist - poles | AA16: Customer Factors (F40-F48)
C17: Trn voltage = | D17: 1.04259 | I17: =('Demand Factors'!F$94) -> 2011-09-01 | J17: 1 | Y17: Dist - xfmr | AA17: Customer Advances Factor(F50)
I18: =('Demand Factors'!G$94) -> 2011-10-01 | J18: 1 | Y18: Dist - service | AA18: Meters & Services Factors (F60,F70)
F19: Calculate COS Results | I19: =('Demand Factors'!H$94) -> 2011-11-01 | J19: 1 | Y19: Dist - meter | AA19: Uncollectables Factor (F80)
B20: Energy | C20: Sec voltage = | D20: 1.0967 | I20: =('Demand Factors'!I$94) -> 2011-12-01 | J20: 1 | Y20: Retail | AA20: CustSrv / DSM Factor (F90)
B21: Loss Factors | C21: Pri voltage = | D21: 1.0708 | F21: Select "Calc" option - | I21: =('Demand Factors'!J$94) -> 2012-01-01 | J21: 1 | Y21: Misc | AA21: Sales Expense Factor (F91)
C22: Trn voltage = | D22: 1.04527 | I22: =('Demand Factors'!K$94) -> 2012-02-01 | J22: 1 | AA22: Revenues
I23: =('Demand Factors'!L$94) -> 2012-03-01 | J23: 1 | AA23: Transmission Direct Assigments
F24: Select Print Option: | I24: =('Demand Factors'!M$94) -> 2012-04-01 | J24: 1 | AA24: Distribution Direct Assigments
I25: =('Demand Factors'!N$94) -> 2012-05-01 | J25: 1 | AA25: G+T+D+R+M Study
B26: Dist Plant - split: | C26: Pri | D26: Sec | I26: =('Demand Factors'!O$94) -> 2012-06-01 | J26: 1 | AA26: Generation Study
B27: Acct 364 = | C27: 0.9759048469 | D27: =1-C27 -> 0.02409515311 | AA27: Transmission Study
B28: Acct 365 = | C28: 0.5746702361 | D28: =1-C28 -> 0.4253297639 | F28: Target Return - RESULTS | I28: Distribution Peak Method | AA28: Distribution Study
B29: Acct 366 = | C29: 0.5038383302 | D29: =1-C29 -> 0.4961616698 | F29: Target ROR - % | G29: =ActualROR+((G30*Net_to_Gross_Factor))/TotalRateBase -> 0.07799999713 | AA29: Retail Study
B30: Acct 367 = | C30: 0.4255250738 | D30: =1-C30 -> 0.5744749262 | F30: Target Increase - $ | G30: 42800673 | I30: Select method - | AA30: Misc Study
B31: Acct 368 = | C31: 0 | D31: =1-C31 -> 1 | AA31: Hot Sheet Study
AA32: JAM Inputs - Functional Allocations
AA33: JAM Inputs - Distribution Allocations

Sheet Summary Table
A1: Summary
A2: =Inputs!$C$3 -> PacifiCorp
A3: Cost Of Service By Rate Schedule
A4: =Inputs!$C$4 -> State of Washington
A5: =Inputs!$C$5 -> 12 Months Ending June 2012
A6: =+Method&" - "&IF(PeakMethod=1,"(Coincident Peaks)",IF(PeakMethod=2,"(200 Top Hours)","(100 Summer, 100 Winter Hours)"))&" - "&TEXT(Demand,"0%")&"D"&" / "&TEXT(Engy,"0%")&"E" -> WCA Method - (100 Summer, 100 Winter Hours) - 38%D / 62%E
A7: =TEXT(ActualROR,"0.00%")&" = Earned Return on Rate Base" -> 4.60% = Earned Return on Rate Base
B9: A | C9: B | D9: C | E9: D | F9: E | G9: F | H9: G | I9: H | J9: I | K9: J | L9: K | M9: L | N9: M
E10: Return on | F10: Rate of | G10: Total | H10: Generation | I10: Transmission | J10: Distribution | K10: Retail | L10: Misc | M10: Increase | N10: Percentage
A11: Line | B11: Schedule | C11: Description | D11: Annual | E11: Rate | F11: Return | G11: Cost of | H11: Cost of | I11: Cost of | J11: Cost of | K11: Cost of | L11: Cost of | M11: (Decrease) | N11: Change from
A12: No. | B12: No. | D12: Revenue | E12: Base | F12: Index | G12: Service | H12: Service | I12: Service | J12: Service | K12: Service | L12: Service | M12: to = ROR | N12: Current Revenues
A13: 1 | B13: 16 | C13: Residential | D13: ='G+T+D+R+M'!I$102 -> 134571287.3 | E13: ='G+T+D+R+M'!I$61 -> 0.03380419218 | F13: =(E13/E$23) -> 0.7344066852 | G13: =SUM(H13:L13) -> 139266511.7 | H13: =Generation!$I101 -> 84227231.35 | I13: =Transmission!$I$101 -> 20583352.86 | J13: =Distribution!$I$101 -> 25458119.8 | K13: =Retail!$I$101 -> 6907230.994 | L13: =Misc!$I$101 -> 2090576.668 | M13: =G13-D13 -> 4695224.367 | N13: ='G+T+D+R+M'!I$111 -> 0.03489023893
A14: =A13+1 -> 2 | B14: 24 | C14: Small General Service | D14: ='G+T+D+R+M'!J$102 -> 45261337.33 | E14: ='G+T+D+R+M'!J$61 -> 0.07994219177 | F14: 1.736769208 | G14: =SUM(H14:L14) -> 41360461.81 | H14: =Generation!$J101 -> 26818105.36 | I14: =Transmission!$J$101 -> 6552924.836 | J14: =Distribution!$J$101 -> 6359405.662 | K14: =Retail!$J$101 -> 950656.2438 | L14: =Misc!$J$101 -> 679369.711 | M14: -3900875.516 | N14: ='G+T+D+R+M'!J$111 -> -0.08618560004
A15: =A14+1 -> 3 | B15: 36 | C15: Large General Service <1,000 kW | D15: ='G+T+D+R+M'!K$102 -> 61297410.54 | E15: ='G+T+D+R+M'!K$61 -> 0.05455550551 | F15: 1.185235481 | G15: 59909802.47 | H15: =Generation!$K101 -> 42522559.32 | I15: =Transmission!$K$101 -> 10375749.25 | J15: =Distribution!$K$101 -> 5872326.84 | K15: =Retail!$K$101 -> 121887.4625 | L15: =Misc!$K$101 -> 1017279.609 | M15: -1387608.07 | N15: ='G+T+D+R+M'!K$111 -> -0.02263730324
A16: =A15+1 -> 4 | B16: 48T | C16: Large General Service >1,000 kW | D16: ='G+T+D+R+M'!L$102 -> 23069501.57 | E16: ='G+T+D+R+M'!L$61 -> 0.04026553062 | F16: 0.8747812909 | G16: 23432657.02 | H16: =Generation!$L101 -> 16801576.54 | I16: =Transmission!$L$101 -> 4098721.771 | J16: =Distribution!$L$101 -> 2094417.942 | K16: =Retail!$L$101 -> 42648.591 | L16: =Misc!$L$101 -> 395292.1733 | M16: 363155.4446 | N16: ='G+T+D+R+M'!L$111 -> 0.01574179847
A17: 5 | B17: 48T | C17: Dedicated Facilities | D17: ='G+T+D+R+M'!M$102 -> 25058234.39 | E17: ='G+T+D+R+M'!M$61 -> 0.02065344646 | F17: 0.448702607 | G17: =SUM(H17:L17) -> 26781574.58 | H17: =Generation!$M101 -> 20760759.04 | I17: =Transmission!$M$101 -> 5060748.796 | J17: =Distribution!$M$101 -> 450114.6454 | K17: =Retail!$M$101 -> 40871.37473 | L17: =Misc!$M$101 -> 469080.7187 | M17: =G17-D17 -> 1723340.189 | N17: ='G+T+D+R+M'!M$111 -> 0.06877340848
A18: 6 | B18: 40 | C18: Agricultural Pumping Service | D18: ='G+T+D+R+M'!N$102 -> 12299348 | E18: ='G+T+D+R+M'!N$61 -> 0.08459087232 | F18: 1.837763252 | G18: 11071541.69 | H18: =Generation!$N101 -> 7078019.072 | I18: =Transmission!$N$101 -> 1729372.573 | J18: =Distribution!$N$101 -> 1897900.571 | K18: =Retail!$N$101 -> 184180.3729 | L18: =Misc!$N$101 -> 182069.1021 | M18: -1227806.309 | N18: ='G+T+D+R+M'!N$111 -> -0.09982694279
A19: 7 | B19: 15,52,54,57 | C19: Street Lighting | D19: ='G+T+D+R+M'!O$102 -> 1670476.734 | E19: ='G+T+D+R+M'!O$61 -> 0.1152987443 | F19: 2.504901408 | G19: 1405046.629 | H19: =Generation!$O101 -> 473955.803 | I19: =Transmission!$O$101 -> 116948.5319 | J19: =Distribution!$O$101 -> 693838.1243 | K19: =Retail!$O$101 -> 103339.61 | L19: =Misc!$O$101 -> 16964.55968 | M19: -265430.1049 | N19: ='G+T+D+R+M'!O$111 -> -0.158894823
D20: ='G+T+D+R+M'!P$102 -> 0 | E20: ='G+T+D+R+M'!P$61 -> 0 | F20: 0 | G20: 0 | H20: =Generation!$P101 -> 0 | I20: =Transmission!$P$101 -> 0 | J20: =Distribution!$P$101 -> 0 | K20: =Retail!$P$101 -> 0 | L20: =Misc!$P$101 -> 0 | M20: 0 | N20: ='G+T+D+R+M'!P$111 -> 0
D21: ='G+T+D+R+M'!Q$102 -> 0 | E21: ='G+T+D+R+M'!Q$61 -> 0 | F21: 0 | G21: 0 | H21: =Generation!$Q101 -> 0 | I21: =Transmission!$Q$101 -> 0 | J21: =Distribution!$Q$101 -> 0 | K21: =Retail!$Q$101 -> 0 | L21: =Misc!$Q$101 -> 0 | M21: 0 | N21: ='G+T+D+R+M'!Q$111 -> 0
A23: 8 | C23: Total Washington Jurisdiction | D23: =SUM(D13:D21) -> 303227595.9 | E23: ='G+T+D+R+M'!H61 -> 0.04602925444 | F23: =(E23/E$23) -> 1 | G23: =SUM(G13:G21) -> 303227595.9 | H23: 198682206.5 | I23: 48517818.61 | J23: 42826123.58 | K23: 8350814.649 | L23: 4850632.542 | M23: 1.103617251e-07 | N23: ='G+T+D+R+M'!H$111 -> 0
A27: Footnotes :
B28: Column C : | C28: Annual revenues based on July 2011 through June 2012 usage priced at current Washington Tariff.
B29: Column D : | C29: Calculated Return on Ratebase per July 2011 through June 2012 Embedded Cost of Service Study
B30: Column E : | C30: Rate of Return Index. Rate of return by rate schedule, divided by Washington Jurisdiction's normalized rate of return.
B31: Column F : | C31: Calculated Full Cost of Service at Jurisdictional Rate of Return per the July 2011 through June 2012 Embedded COS Study
B32: Column G : | C32: Calculated Generation Cost of Service at Jurisdictional Rate of Return per July 2011 through June 2012 Embedded COS Study.
B33: Column H : | C33: Calculated Transmission Cost of Service at Jurisdictional Rate of Return per July 2011 through June 2012 Embedded COS Study.
B34: Column I : | C34: Calculated Distribution Cost of Service at Jurisdictional Rate of Return per the July 2011 through June 2012 Embedded COS Study.
B35: Column J : | C35: Calculated Retail Cost of Service at Jurisdictional Rate of Return per the July 2011 through June 2012 Embedded COS Study.
B36: Column K : | C36: Calculated Miscellaneous Cost of Service at Jurisdictional Rate of Return per the July 2011 through June 2012 Embedded COS Study.
B37: Column L : | C37: Increase or Decrease Required to Move From Annual Revenue to Full Cost of Service dollars.
B38: Column M : | C38: Increase or Decrease Required to Move From Annual Revenue to Full Cost of Service percent.
A42: =Inputs!C3 -> PacifiCorp
A43: Cost Of Service By Rate Schedule
A44: =Inputs!$C$4 -> State of Washington
A45: =Inputs!$C$5 -> 12 Months Ending June 2012
A46: =+Method&" - "&IF(PeakMethod=1,"(Coincident Peaks)",IF(PeakMethod=2,"(200 Top Hours)","(100 Summer, 100 Winter Hours)"))&" - "&TEXT(Demand,"0%")&"D"&" / "&TEXT(Engy,"0%")&"E" -> WCA Method - (100 Summer, 100 Winter Hours) - 38%D / 62%E
A47: =TEXT(TargetROR,"0.00%")&" = Target Return on Rate Base" -> 7.80% = Target Return on Rate Base
B50: A | C50: B | D50: C | E50: D | F50: E | G50: F | H50: G | I50: H | J50: I | K50: J | L50: K | M50: L | N50: M
E51: Return on | F51: Rate of | G51: Total | H51: Generation | I51: Transmission | J51: Distribution | K51: Retail | L51: Misc | M51: Increase | N51: Percentage
A52: Line | B52: Schedule | C52: Description | D52: Annual | E52: Rate | F52: Return | G52: Cost of | H52: Cost of | I52: Cost of | J52: Cost of | K52: Cost of | L52: Cost of | M52: (Decrease) | N52: Change from
A53: No. | B53: No. | D53: Revenue | E53: Base | F53: Index | G53: Service | H53: Service | I53: Service | J53: Service | K53: Service | L53: Service | M53: to = ROR | N53: Current Revenues
A54: 1 | B54: 16 | C54: Residential | D54: ='Class Summary'!F$80 -> 134571287.3 | E54: ='G+T+D+R+M'!I$61 -> 0.03380419218 | F54: =(E54/E$23) -> 0.7344066852 | G54: =SUM(H54:L54) -> 159109207.4 | H54: ='Generation Summary'!F$68 -> 94981319.71 | I54: ='Transmission Summary'!$F$68 -> 23664031.68 | J54: ='Distribution Summary'!$F$68 -> 31481652.33 | K54: ='Retail Summary'!$F$68 -> 6843598.482 | L54: ='Misc Summary'!$F$68 -> 2138605.17 | M54: =G54-D54 -> 24537920.08 | N54: ='Class Summary'!F$85 -> 0.1823414234
A55: =A54+1 -> 2 | B55: 24 | C55: Small General Service | D55: ='Class Summary'!G$80 -> 45261337.33 | E55: ='G+T+D+R+M'!J$61 -> 0.07994219177 | F55: 1.736769208 | G55: =SUM(H55:L55) -> 47303275.1 | H55: ='Generation Summary'!G$68 -> 30244198.38 | I55: ='Transmission Summary'!$G$68 -> 7533502.83 | J55: ='Distribution Summary'!$G$68 -> 7884488.155 | K55: ='Retail Summary'!$G$68 -> 946340.4154 | L55: ='Misc Summary'!$G$68 -> 694745.3243 | M55: 2041937.774 | N55: ='Class Summary'!G$85 -> 0.04511439331
A56: =A55+1 -> 3 | B56: 36 | C56: Large General Service <1,000 kW | D56: ='Class Summary'!H$80 -> 61297410.54 | E56: ='G+T+D+R+M'!K$61 -> 0.05455550551 | F56: 1.185235481 | G56: 68318023.16 | H56: ='Generation Summary'!H$68 -> 47960531.95 | I56: ='Transmission Summary'!$H$68 -> 11929076.72 | J56: ='Distribution Summary'!$H$68 -> 7268107.498 | K56: ='Retail Summary'!$H$68 -> 119063.9666 | L56: ='Misc Summary'!$H$68 -> 1041243.02 | M56: 7020612.613 | N56: ='Class Summary'!H$85 -> 0.114533592
A57: =A56+1 -> 4 | B57: 48T | C57: Large General Service >1,000 kW | D57: ='Class Summary'!I$80 -> 23069501.57 | E57: ='G+T+D+R+M'!L$61 -> 0.04026553062 | F57: 0.8747812909 | G57: 26687910.4 | H57: ='Generation Summary'!I$68 -> 18950539.9 | I57: ='Transmission Summary'!$I$68 -> 4712566.35 | J57: ='Distribution Summary'!$I$68 -> 2577251.264 | K57: ='Retail Summary'!$I$68 -> 42836.63911 | L57: ='Misc Summary'!$I$68 -> 404716.2394 | M57: 3618408.826 | N57: ='Class Summary'!I$85 -> 0.1568481579
A58: 5 | B58: 48T | C58: Dedicated Facilities | D58: ='Class Summary'!J$80 -> 25058234.39 | E58: ='G+T+D+R+M'!M$61 -> 0.02065344646 | F58: =(E58/E$23) -> 0.448702607 | G58: =SUM(H58:L58) -> 30290277.01 | H58: ='Generation Summary'!J$68 -> 23417960.23 | I58: ='Transmission Summary'!$J$68 -> 5819977.394 | J58: ='Distribution Summary'!$J$68 -> 530829.9927 | K58: ='Retail Summary'!$J$68 -> 40910.10984 | L58: ='Misc Summary'!$J$68 -> 480599.283 | M58: =G58-D58 -> 5232042.627 | N58: ='Class Summary'!J$85 -> 0.2087953423
A59: 6 | B59: 40 | C59: Agricultural Pumping Service | D59: ='Class Summary'!K$80 -> 12299348 | E59: ='G+T+D+R+M'!N$61 -> 0.08459087232 | F59: 1.837763252 | G59: 12716557.27 | H59: ='Generation Summary'!K$68 -> 7982318.721 | I59: ='Transmission Summary'!$K$68 -> 1987920.794 | J59: ='Distribution Summary'!$K$68 -> 2377075.529 | K59: ='Retail Summary'!$K$68 -> 183097.7473 | L59: ='Misc Summary'!$K$68 -> 186144.4804 | M59: 417209.2718 | N59: ='Class Summary'!K$85 -> 0.03392125109
A60: 7 | B60: 15,52,54,57 | C60: Street Lighting | D60: ='Class Summary'!L$80 -> 1670476.734 | E60: ='G+T+D+R+M'!O$61 -> 0.1152987443 | F60: 2.504901408 | G60: 1603018.547 | H60: ='Generation Summary'!L$68 -> 533970.726 | I60: ='Transmission Summary'!$L$68 -> 134310.0731 | J60: ='Distribution Summary'!$L$68 -> 812556.6418 | K60: ='Retail Summary'!$L$68 -> 104910.3541 | L60: ='Misc Summary'!$L$68 -> 17270.7524 | M60: -67458.18654 | N60: ='Class Summary'!L$85 -> -0.04038259568
D61: ='Class Summary'!M$80 -> 0 | E61: ='G+T+D+R+M'!P$61 -> 0 | F61: 0 | G61: 0 | H61: ='Generation Summary'!M$68 -> 0 | I61: ='Transmission Summary'!$M$68 -> 0 | J61: ='Distribution Summary'!$M$68 -> 0 | K61: ='Retail Summary'!$M$68 -> 0 | L61: ='Misc Summary'!$M$68 -> 0 | M61: 0 | N61: 0
D62: ='Class Summary'!N$80 -> 0 | E62: ='G+T+D+R+M'!Q$61 -> 0 | F62: 0 | G62: 0 | H62: ='Generation Summary'!N$68 -> 0 | I62: ='Transmission Summary'!$N$68 -> 0 | J62: ='Distribution Summary'!$N$68 -> 0 | K62: ='Retail Summary'!$N$68 -> 0 | L62: ='Misc Summary'!$N$68 -> 0 | M62: 0 | N62: 0
A64: 8 | C64: Total Washington Jurisdiction | D64: =SUM(D54:D62) -> 303227595.9 | E64: =ActualROR -> 0.04602925444 | F64: =(E64/E$23) -> 1 | G64: =SUM(G54:G62) -> 346028268.9 | H64: 224070839.6 | I64: 55781385.84 | J64: 52931961.41 | K64: 8280757.714 | L64: 4963324.27 | M64: 42800673 | N64: ='Class Summary'!E$85 -> 0.1411503227
A67: Footnotes :
B68: =+$B28 -> Column C : | C68: =+$C28 -> Annual revenues based on July 2011 through June 2012 usage priced at current Washington Tariff.
B69: Column D : | C69: Calculated Return on Ratebase per July 2011 through June 2012 Embedded Cost of Service Study
B70: Column E : | C70: Rate of Return Index. Rate of return by rate schedule, divided by Washington Jurisdiction's normalized rate of return.
B71: Column F : | C71: Calculated Full Cost of Service at Jurisdictional Rate of Return per the July 2011 through June 2012 Embedded COS Study
B72: Column G : | C72: Calculated Generation Cost of Service at Jurisdictional Rate of Return per July 2011 through June 2012 Embedded COS Study.
B73: Column H : | C73: Calculated Transmission Cost of Service at Jurisdictional Rate of Return per July 2011 through June 2012 Embedded COS Study.
B74: Column I : | C74: Calculated Distribution Cost of Service at Jurisdictional Rate of Return per the July 2011 through June 2012 Embedded COS Study.
B75: Column J : | C75: Calculated Retail Cost of Service at Jurisdictional Rate of Return per the July 2011 through June 2012 Embedded COS Study.
B76: Column K : | C76: Calculated Miscellaneous Cost of Service at Jurisdictional Rate of Return per the July 2011 through June 2012 Embedded COS Study.
B77: Column L : | C77: Increase or Decrease Required to Move From Annual Revenue to Full Cost of Service dollars.
B78: Column M : | C78: Increase or Decrease Required to Move From Annual Revenue to Full Cost of Service percent.

Sheet Unit Costs-earned
B1: Unit Costs @ Earned ROR
B2: =Inputs!$C$3 -> PacifiCorp
B3: Cost Of Service By Rate Schedule
B4: =Inputs!$C$4 -> State of Washington
B5: =Inputs!$C$5 -> 12 Months Ending June 2012
B6: =+Method&" - "&IF(PeakMethod=1,"(Coincident Peaks)",IF(PeakMethod=2,"(200 Top Hours)","(100 Summer, 100 Winter Hours)"))&" - "&TEXT(Demand,"0%")&"D"&" / "&TEXT(Engy,"0%")&"E" -> WCA Method - (100 Summer, 100 Winter Hours) - 38%D / 62%E
B7: =TEXT(ActualROR,"0.00%")&" Actual Return on Rate Base" -> 4.60% Actual Return on Rate Base
C9: ='Hot Sheet'!$H$10 -> Washington | E9: ='Hot Sheet'!$J$10 -> Small General | F9: ='Hot Sheet'!$K$10 -> Large General | G9: ='Hot Sheet'!$L$10 -> Large General | H9: ='Hot Sheet'!$M$10 -> Large General | I9: ='Hot Sheet'!$N$10 -> Agricultural | J9: ='Hot Sheet'!$O$10 -> Street & Area
B10: Description | C10: ='Hot Sheet'!$H$11 -> Jurisdiction | D10: ='Hot Sheet'!$I$11 -> Residential | E10: ='Hot Sheet'!$J$11 -> Service | F10: ='Hot Sheet'!$K$11 -> Service <1,000 kW | G10: ='Hot Sheet'!$L$11 -> Service >1,000 kW | H10: ='Hot Sheet'!$M$11 -> Dedicated Facilities | I10: ='Hot Sheet'!$N$11 -> Pumping | J10: ='Hot Sheet'!$O$11 -> Lighting | K10: ='Hot Sheet'!P$11 -> - | L10: ='Hot Sheet'!Q$11 -> -
C11: ='Hot Sheet'!$H$12 -> Normalized | D11: ='Hot Sheet'!$I$12 -> Schedule 16 | E11: ='Hot Sheet'!$J$12 -> Schedule 24 | F11: ='Hot Sheet'!$K$12 -> Schedule 36 | G11: ='Hot Sheet'!$L$12 -> Schedule 48T | H11: ='Hot Sheet'!$M$12 -> Schedule 48T | I11: ='Hot Sheet'!$N$12 -> Schedule 40 | J11: ='Hot Sheet'!$O$12 -> Sch. 15,51-54,57 | K11: ='Hot Sheet'!P$12 -> - | L11: ='Hot Sheet'!Q$12 -> -
A13: 14 | B13: UNITS
A14: =+A13+1 -> 15 | B14: NCP KW | C14: =SUM(D14:L14) -> 19104106.17 | D14: ='Dist. Factors'!$P$189 -> 13034017.51 | E14: ='Dist. Factors'!$P$192 -> 2526803.372 | F14: ='Dist. Factors'!$P$193+'Dist. Factors'!$P$194 -> 2323118.689 | G14: =+'Dist. Factors'!$P$196+'Dist. Factors'!$P$197 -> 810142.8188 | H14: ='Dist. Factors'!$P$204 -> 36636 | I14: ='Dist. Factors'!$P$201 -> 336751.7788 | J14: ='Dist. Factors'!$P$204 -> 36636 | K14: 0 | L14: 0
A15: 16 | B15: Annual KWH | C15: =SUM(D15:L15) -> 3998877844 | D15: ='Energy Factor'!C27*1000 -> 1601807791 | E15: ='Energy Factor'!D27*1000 -> 537395792 | F15: =('Energy Factor'!E27)*1000 -> 860704393 | G15: ='Energy Factor'!F27*1000 -> 358354770 | H15: ='Energy Factor'!G27*1000 -> 473928141 | I15: ='Energy Factor'!H27*1000 -> 153555066 | J15: ='Energy Factor'!I27*1000 -> 13131891 | K15: 0 | L15: 0
A16: 17 | B16: Average Customers | C16: =SUM(D16:L16) -> 132377.5088 | D16: ='Cust Factors'!D17 -> 104296.9778 | E16: ='Cust Factors'!E17 -> 18646.79167 | F16: ='Cust Factors'!F17 -> 1044.494444 | G16: ='Cust Factors'!G17 -> 57.91161616 | H16: ='Cust Factors'!H17 -> 1 | I16: ='Cust Factors'!I17 -> 5260 | J16: ='Cust Factors'!J17 -> 3070.333333 | K16: 0 | L16: 0
A17: 18 | K17: 0 | L17: 0
A18: 19
A19: 20 | B19: GTDRM TOTAL | C19: =+C20/$C20 -> 1 | D19: 0.4592804664 | E19: 0.1364007181 | F19: 0.1975737146 | G19: 0.0772774554 | H19: =+H20/$C20 -> 0.08832169282 | I19: 0.03651231564 | J19: 0.00463363707 | K19: =+K20/$C20 -> 0 | L19: =+L20/$C20 -> 0
A20: 21 | B20: Revenue Requirement | C20: =C98+C104+C32+C38+C50+C56+C68+C74+C80+C86+C92 -> 303227595.9 | D20: 139266511.7 | E20: 41360461.81 | F20: 59909802.47 | G20: 23432657.02 | H20: =H98+H104+H32+H38+H50+H56+H68+H74+H80+H86+H92 -> 26781574.58 | I20: 11071541.69 | J20: 1405046.629 | K20: 0 | L20: 0
A21: 22 | B21: NCP KW | C21: =C20/C$14 -> 15.87237807 | D21: 10.68484921 | E21: 16.36869029 | F21: 25.78852417 | G21: 28.92410631 | H21: =H20/H$14 -> 731.0179762 | I21: 32.8774557 | J21: 38.35152934 | K21: 0 | L21: 0
A22: 23 | B22: Per KWH | C22: =C20/C$15 -> 0.07582817173 | D22: 0.08694333518 | E22: 0.07696461794 | F22: 0.06960554978 | G22: 0.06538954962 | H22: =H20/H$15 -> 0.05650977914 | I22: 0.07210144204 | J22: 0.1069949963 | K22: 0 | L22: 0
A23: 24 | B23: Per Customer | C23: =C20/C$16 -> 2290.627755 | D23: 1335.288084 | E23: 2218.100709 | F23: 57357.70333 | G23: 404627.9239 | H23: =H20/H$16 -> 26781574.58 | I23: 2104.855835 | J23: 457.6202244 | K23: 0 | L23: 0
A24: 25
A25: 26 | B25: GENERATION-TOTAL | C25: =+C26/$C26 -> 1 | D25: 0.4239294139 | E25: 0.134979905 | F25: 0.2140229871 | G25: 0.08456507926 | H25: =+H26/$C26 -> 0.1044922915 | I25: 0.03562482619 | J25: 0.002385496978 | K25: 0 | L25: 0
A26: 27 | B26: Revenue Requirement | C26: =+C32+C38 -> 198682206.5 | D26: 84227231.35 | E26: 26818105.36 | F26: 42522559.32 | G26: 16801576.54 | H26: =+H32+H38 -> 20760759.04 | I26: 7078019.072 | J26: 473955.803 | K26: 0 | L26: 0
A27: 28 | B27: NCP KW | C27: =C26/C$14 -> 10.39997395 | D27: 6.462108192 | E27: 10.61345163 | F27: 18.30408386 | G27: 20.73903039 | H27: =H26/H$14 -> 566.6764669 | I27: 21.01850537 | J27: 12.9368873 | K27: 0 | L27: 0
A28: 29 | B28: Per KWH | C28: =C26/C$15 -> 0.04968449006 | D28: 0.05258260811 | E28: 0.04990382463 | F28: 0.04940437119 | G28: 0.04688531574 | H28: =H26/H$15 -> 0.04380571071 | I28: 0.04609433773 | J28: 0.03609196901 | K28: 0 | L28: 0
A29: 30 | B29: Per Customer | C29: =C26/C$16 -> 1500.875853 | D29: 807.5711602 | E29: 1438.21553 | F29: 40711.13977 | G29: 290124.463 | H29: =H26/H$16 -> 20760759.04 | I29: 1345.631002 | J29: 154.366237 | K29: 0 | L29: 0
A30: 31
A31: 32 | B31: GENERATION-DEMAND | C31: =+C32/$C32 -> 1 | D31: 0.437239821 | E31: 0.1350530069 | F31: 0.2128170298 | G31: 0.08157166512 | H31: =+H32/$C32 -> 0.09757917737 | I31: 0.03388610193 | J31: 0.001853197805 | K31: 0 | L31: 0
A32: 33 | B32: Revenue Requirement | C32: ='Generation Summary'!E$129 -> 75499238.46 | D32: ='Generation Summary'!F$129 -> 33011273.51 | E32: ='Generation Summary'!G$129 -> 10196399.17 | F32: ='Generation Summary'!H$129 -> 16067523.68 | G32: ='Generation Summary'!I$129 -> 6158598.596 | H32: ='Generation Summary'!J$129 -> 7367153.581 | I32: ='Generation Summary'!K$129 -> 2558374.89 | J32: ='Generation Summary'!L$129 -> 139915.023 | K32: 0 | L32: 0
A33: 34 | B33: NCP KW | C33: =C32/C$14 -> 3.9519901 | D33: 2.532701332 | E33: 4.035295855 | F33: 6.916359357 | G33: 7.601867786 | H33: =H32/H$14 -> 201.0905552 | I33: 7.597212698 | J33: 3.819058385 | K33: 0 | L33: 0
A34: 35 | B34: Per KWH | C34: =C32/C$15 -> 0.01888010622 | D34: 0.02060876074 | E34: 0.01897372351 | F34: 0.01866787693 | G34: 0.01718575867 | H34: =H32/H$15 -> 0.01554487473 | I34: 0.01666096051 | J34: 0.01065459826 | K34: 0 | L34: 0
A35: 36 | B35: Per Customer | C35: =C32/C$16 -> 570.3328241 | D35: 316.5122731 | E35: 546.8178845 | F35: 15383.06285 | G35: 106344.7889 | H35: =H32/H$16 -> 7367153.581 | I35: 486.383059 | J35: 45.56997818 | K35: 0 | L35: 0
A36: 37
A37: 38 | B37: GENERATION-ENERGY | C37: =+C38/$C38 -> 1 | D37: 0.4157714224 | E37: 0.1349351007 | F37: 0.2147621222 | G37: 0.08639975244 | H37: =+H38/$C38 -> 0.1087293615 | I37: 0.03669049589 | J37: 0.002711744857 | K37: 0 | L37: 0
A38: 39 | B38: Revenue Requirement | C38: ='Generation Summary'!E$197 -> 123182968 | D38: ='Generation Summary'!F$197 -> 51215957.83 | E38: ='Generation Summary'!G$197 -> 16621706.19 | F38: ='Generation Summary'!H$197 -> 26455035.63 | G38: ='Generation Summary'!I$197 -> 10642977.94 | H38: ='Generation Summary'!J$197 -> 13393605.46 | I38: ='Generation Summary'!K$197 -> 4519644.181 | J38: ='Generation Summary'!L$197 -> 334040.78 | K38: 0 | L38: 0
A39: 40 | B39: NCP KW | C39: =C38/C$14 -> 6.447983848 | D39: 3.92940686 | E39: 6.578155774 | F39: 11.38772451 | G39: 13.1371626 | H39: =H38/H$14 -> 365.5859117 | I39: 13.42129267 | J39: 9.117828912 | K39: 0 | L39: 0
A40: 41 | B40: Per KWH | C40: =C38/C$15 -> 0.03080438384 | D40: 0.03197384737 | E40: 0.03093010112 | F40: 0.03073649425 | G40: 0.02969955707 | H40: =H38/H$15 -> 0.02826083598 | I40: 0.02943337722 | J40: 0.02543737075 | K40: 0 | L40: 0
A41: 42 | B41: Per Customer | C41: =C38/C$16 -> 930.5430288 | D41: 491.0588871 | E41: 891.3976456 | F41: 25328.07692 | G41: 183779.674 | H41: =H38/H$16 -> 13393605.46 | I41: 859.2479432 | J41: 108.7962588 | K41: 0 | L41: 0
A42: 43
A43: 44 | B43: TRANSMISSION-TOTAL | C43: =+C44/$C44 -> 1 | D43: 0.4242431636 | E43: 0.1350622312 | F43: 0.2138544053 | G43: 0.08447869026 | H43: =+H44/$C44 -> 0.1043070142 | I43: 0.03564407103 | J43: 0.002410424361 | K43: 0 | L43: 0
A44: 45 | B44: Revenue Requirement | C44: =+C50+C56 -> 48517818.61 | D44: 20583352.86 | E44: 6552924.836 | F44: 10375749.25 | G44: 4098721.771 | H44: =+H50+H56 -> 5060748.796 | I44: 1729372.573 | J44: 116948.5319 | K44: 0 | L44: 0
A45: 46 | B45: NCP KW | C45: =C44/C$14 -> 2.539653945 | D45: 1.579202486 | E45: 2.593365558 | F45: 4.466301827 | G45: 5.059258288 | H45: =H44/H$14 -> 138.1359536 | I45: 5.135451931 | J45: 3.192175236 | K45: 0 | L45: 0
A46: =+A45+1 -> 47 | B46: Per KWH | C46: =C44/C$15 -> 0.01213285839 | D46: 0.01285007663 | E46: 0.01219385215 | F46: 0.01205495096 | G46: 0.01143760908 | H46: =H44/H$15 -> 0.01067830407 | I46: 0.01126223067 | J46: 0.008905688597 | K46: 0 | L46: 0
A47: 48 | B47: Per Customer | C47: =C44/C$16 -> 366.5110413 | D47: 197.3533011 | E47: 351.4237169 | F47: 9933.752449 | G47: 70775.46859 | H47: =H44/H$16 -> 5060748.796 | I47: 328.7780557 | J47: 38.08984864 | K47: 0 | L47: 0
A48: 49
A49: 50 | B49: TRANSMISSION-DEMAND | C49: =+C50/$C50 -> 1 | D49: 0.4312388437 | E49: 0.1351006521 | F49: 0.2132205786 | G49: 0.08290541249 | H49: =+H50/$C50 -> 0.1006736216 | I49: 0.03473023283 | J49: 0.002130658711 | K49: 0 | L49: 0
A50: 51 | B50: Revenue Requirement | C50: ='Transmission Summary'!E$129 -> 18436770.67 | D50: ='Transmission Summary'!F$129 -> 7950651.664 | E50: ='Transmission Summary'!G$129 -> 2490819.739 | F50: ='Transmission Summary'!H$129 -> 3931098.91 | G50: ='Transmission Summary'!I$129 -> 1528508.077 | H50: ='Transmission Summary'!J$129 -> 1856096.474 | I50: ='Transmission Summary'!K$129 -> 640313.338 | J50: ='Transmission Summary'!L$129 -> 39282.46604 | K50: 0 | L50: 0
A51: 52 | B51: NCP KW | C51: =C50/C$14 -> 0.9650684781 | D51: 0.6099924031 | E51: 0.9857592273 | F51: 1.692164472 | G51: 1.886714344 | H51: =H50/H$14 -> 50.66318577 | I51: 1.901440106 | J51: 1.072236763 | K51: 0 | L51: 0
A52: 53 | B52: Per KWH | C52: =C50/C$15 -> 0.004610486088 | D52: 0.004963549128 | E52: 0.004634981845 | F52: 0.00456730434 | G52: 0.00426534877 | H52: =H50/H$15 -> 0.003916409079 | I52: 0.004169926494 | J52: 0.002991379234 | K52: 0 | L52: 0
A53: 54 | B53: Per Customer | C53: =C50/C$16 -> 139.2741927 | D53: 76.23089215 | E53: 133.5789976 | F53: 3763.637931 | G53: 26393.80799 | H53: =H50/H$16 -> 1856096.474 | I53: 121.7325738 | J53: 12.79420238 | K53: 0 | L53: 0
A54: 55
A55: 56 | B55: TRANSMISSION-ENERGY | C55: =+C56/$C56 -> 1 | D55: 0.4199554889 | E55: 0.1350386829 | F55: 0.2142428797 | G55: 0.08544295724 | H55: =+H56/$C56 -> 0.1065339322 | I55: 0.0362041654 | J55: 0.002581893624 | K55: 0 | L55: 0
A56: 57 | B56: Revenue Requirement | C56: ='Transmission Summary'!E$197 -> 30081047.94 | D56: ='Transmission Summary'!F$197 -> 12632701.2 | E56: ='Transmission Summary'!G$197 -> 4062105.096 | F56: ='Transmission Summary'!H$197 -> 6444650.336 | G56: ='Transmission Summary'!I$197 -> 2570213.693 | H56: ='Transmission Summary'!J$197 -> 3204652.322 | I56: ='Transmission Summary'!K$197 -> 1089059.235 | J56: ='Transmission Summary'!L$197 -> 77666.0659 | K56: ='Transmission Summary'!M$197 -> 0 | L56: ='Transmission Summary'!N$197 -> 0
A57: 58 | B57: NCP KW | C57: =C56/C$14 -> 1.574585467 | D57: 0.969210083 | E57: 1.60760633 | F57: 2.774137355 | G57: 3.172543944 | H57: =H56/H$14 -> 87.47276781 | I57: 3.234011826 | J57: 2.119938473 | K57: 0 | L57: 0
A58: 59 | B58: Per KWH | C58: =C56/C$15 -> 0.007522372305 | D58: 0.007886527501 | E58: 0.007558870308 | F58: 0.007487646616 | G58: 0.007172260309 | H58: =H56/H$15 -> 0.006761894989 | I58: 0.007092304171 | J58: 0.005914309363 | K58: 0 | L58: 0
A59: 60 | B59: Per Customer | C59: =C56/C$16 -> 227.2368487 | D59: 121.122409 | E59: 217.8447193 | F59: 6170.114518 | G59: 44381.6606 | H59: =H56/H$16 -> 3204652.322 | I59: 207.045482 | J59: 25.29564626 | K59: 0 | L59: 0
A60: 61 | K60: 0 | L60: 0
A61: 62 | B61: DISTRIBUTION-TOTAL | C61: =+C62/$C62 -> 1 | D61: 0.5944530503 | E61: 0.1484936093 | F61: 0.1371202049 | G61: 0.0489051487 | H61: =+H62/$C62 -> 0.01051028222 | I61: 0.04431642213 | J61: 0.01620128245 | K61: 0 | L61: 0
A62: 63 | B62: Revenue Requirement | C62: =+C68+C74+C80+C86+C92 -> 42826123.58 | D62: 25458119.8 | E62: 6359405.662 | F62: 5872326.84 | G62: 2094417.942 | H62: =+H68+H74+H80+H86+H92 -> 450114.6454 | I62: 1897900.571 | J62: 693838.1243 | K62: 0 | L62: 0
A63: 64 | B63: NCP KW | C63: =C62/C$14 -> 2.241723491 | D63: 1.953205892 | E63: 2.516779 | F63: 2.527777365 | G63: 2.585245334 | H63: =H62/H$14 -> 12.28612964 | I63: 5.635903624 | J63: 18.93869757 | K63: 0 | L63: 0
A64: 65 | B64: Per KWH | C64: =C62/C$15 -> 0.01070953534 | D64: 0.01589336744 | E64: 0.01183374667 | F64: 0.006822698813 | G64: 0.005844537641 | H64: =H62/H$15 -> 0.0009497529402 | I64: 0.01235973921 | J64: 0.05283611662 | K64: 0 | L64: 0
A65: 66 | B65: Per Customer | C65: =C62/C$16 -> 323.5151043 | D65: 244.0925935 | E65: 341.0455684 | F65: 5622.171445 | G65: 36165.76571 | H65: =H62/H$16 -> 450114.6454 | I65: 360.817599 | J65: 225.9813672 | K65: 0 | L65: 0
A66: 67
A67: 68 | B67: DISTRIBUTION-SUBSTATION | C67: =+C68/$C68 -> 1 | D67: 0.5126783069 | E67: 0.1337843372 | F67: 0.1768345538 | G67: 0.06746346139 | H67: =+H68/$C68 -> 0.04493341126 | I67: 0.05794896136 | J67: 0.006356968085 | K67: 0 | L67: 0
A68: 69 | B68: Revenue Requirement | C68: ='Distribution Summary'!E$129 -> 5865769.265 | D68: ='Distribution Summary'!F$129 -> 3007252.655 | E68: ='Distribution Summary'!G$129 -> 784748.0532 | F68: ='Distribution Summary'!H$129 -> 1037270.69 | G68: ='Distribution Summary'!I$129 -> 395725.0983 | H68: ='Distribution Summary'!J$129 -> 263569.0227 | I68: ='Distribution Summary'!K$129 -> 339915.2364 | J68: ='Distribution Summary'!L$129 -> 37288.50801 | K68: 0 | L68: 0
A69: 70 | B69: NCP KW | C69: =C68/C$14 -> 0.3070423296 | D69: 0.2307233861 | E69: 0.3105694974 | F69: 0.4464992233 | G69: 0.4884633784 | H69: =H68/H$14 -> 7.194263094 | I69: 1.009394034 | J69: 1.017810569 | K69: 0 | L69: 0
A70: 71 | B70: Per KWH | C70: =C68/C$15 -> 0.001466853826 | D70: 0.00187741168 | E70: 0.00146027949 | F70: 0.001205141625 | G70: 0.00110428305 | H70: =H68/H$15 -> 0.0005561371017 | I70: 0.002213637396 | J70: 0.002839538343 | K70: 0 | L70: 0
A71: 72 | B71: Per Customer | C71: =C68/C$16 -> 44.31092046 | D71: 28.8335551 | E71: 42.08488341 | F71: 993.0839709 | G71: 6833.259448 | H71: =H68/H$16 -> 263569.0227 | I71: 64.62266852 | J71: 12.14477516 | K71: 0 | L71: 0
A72: 73
A73: 74 | B73: DISTRIBUTION- P & C | C73: =+C74/$C74 -> 1 | D73: 0.5827025658 | E73: 0.147929707 | F73: 0.1402767324 | G73: 0.0528417554 | H73: =+H74/$C74 -> 0.005848347078 | I73: 0.04520866589 | J73: 0.02519222645 | K73: 0 | L73: 0
A74: 75 | B74: Revenue Requirement | C74: ='Distribution Summary'!E$197 -> 22573948.34 | D74: ='Distribution Summary'!F$197 -> 13153897.62 | E74: ='Distribution Summary'!G$197 -> 3339357.563 | F74: ='Distribution Summary'!H$197 -> 3166599.71 | G74: ='Distribution Summary'!I$197 -> 1192847.057 | H74: ='Distribution Summary'!J$197 -> 132020.2848 | I74: ='Distribution Summary'!K$197 -> 1020538.088 | J74: ='Distribution Summary'!L$197 -> 568688.0185 | K74: 0 | L74: 0
A75: 76 | B75: NCP KW | C75: =C74/C$14 -> 1.181628082 | D75: 1.009197479 | E75: 1.32157397 | F75: 1.363081329 | G75: 1.472391076 | H75: =H74/H$14 -> 3.603567115 | I75: 3.030535108 | J75: 15.52265582 | K75: 0 | L75: 0
A76: 77 | B76: Per KWH | C76: =C74/C$15 -> 0.005645070748 | D76: 0.008211907629 | E76: 0.006213962991 | F76: 0.003679079294 | G76: 0.003328676374 | H76: =H74/H$15 -> 0.0002785660386 | I76: 0.006646072415 | J76: 0.04330587411 | K76: 0 | L76: 0
A77: 78 | B77: Per Customer | C77: =C74/C$16 -> 170.5270672 | D77: 126.1196431 | E77: 179.0848325 | F77: 3031.705652 | G77: 20597.71658 | H77: =H74/H$16 -> 132020.2848 | I77: 194.018648 | J77: 185.2202861 | K77: 0 | L77: 0
A78: =+A77+1 -> 79
A79: 80 | B79: DISTRIBUTION-TRANSFORMER | C79: =+C80/$C80 -> 1 | D79: 0.6099659929 | E79: 0.1400131946 | F79: 0.1470934018 | G79: 0.04651475242 | H79: =+H80/$C80 -> 0.002669421028 | I79: 0.04759029197 | J79: 0.006152945313 | K79: 0 | L79: 0
A80: 81 | B80: Revenue Requirement | C80: ='Distribution Summary'!E$265 -> 7909732.056 | D80: ='Distribution Summary'!F$265 -> 4824667.567 | E80: ='Distribution Summary'!G$265 -> 1107466.854 | F80: ='Distribution Summary'!H$265 -> 1163469.395 | G80: ='Distribution Summary'!I$265 -> 367919.2283 | H80: ='Distribution Summary'!J$265 -> 21114.40508 | I80: ='Distribution Summary'!K$265 -> 376426.458 | J80: ='Distribution Summary'!L$265 -> 48668.14878 | K80: 0 | L80: 0
A81: 82 | B81: NCP KW | C81: =C80/C$14 -> 0.4140330872 | D81: 0.3701596659 | E81: 0.4382877061 | F81: 0.5008221924 | G81: 0.4541411955 | H81: =H80/H$14 -> 0.5763294322 | I81: 1.117815797 | J81: 1.328424194 | K81: 0 | L81: 0
A82: 83 | B82: Per KWH | C82: =C80/C$15 -> 0.001977987917 | D82: 0.003012014047 | E82: 0.002060802988 | F82: 0.001351764212 | G82: 0.001026689915 | H82: =H80/H$15 -> 4.455191252e-05 | I82: 0.002451410219 | J82: 0.003706103621 | K82: 0 | L82: 0
A83: 84 | B83: Per Customer | C83: =C80/C$16 -> 59.7513288 | D83: 46.25893933 | E83: 59.39181782 | F83: 1113.906734 | G83: 6353.116226 | H83: =H80/H$16 -> 21114.40508 | I83: 71.5639654 | J83: 15.85109612 | K83: 0 | L83: 0
A84: 85
A85: 86 | B85: DISTRIBUTION-METER | C85: =+C86/$C86 -> 1 | D85: 0.6698201933 | E85: 0.1585141664 | F85: 0.08272779087 | G85: 0.017191135 | H85: =+H86/$C86 -> 0.009541713114 | I85: 0.05386424534 | J85: 0.008340755965 | K85: 0 | L85: 0
A86: 87 | B86: Revenue Requirement | C86: ='Distribution Summary'!E$333 -> 2295342.822 | D86: ='Distribution Summary'!F$333 -> 1537466.973 | E86: ='Distribution Summary'!G$333 -> 363844.3539 | F86: ='Distribution Summary'!H$333 -> 189888.6409 | G86: ='Distribution Summary'!I$333 -> 39459.54833 | H86: ='Distribution Summary'!J$333 -> 21901.5027 | I86: ='Distribution Summary'!K$333 -> 123636.9089 | J86: ='Distribution Summary'!L$333 -> 19144.89433 | K86: 0 | L86: 0
A87: 88 | B87: NCP KW | C87: =C86/C$14 -> 0.1201491868 | D87: 0.1179580257 | E87: 0.1439939324 | F87: 0.08173867387 | G87: 0.04870690378 | H87: =H86/H$14 -> 0.5978136997 | I87: 0.3671455257 | J87: 0.5225705408 | K87: 0 | L87: 0
A88: 89 | B88: Per KWH | C88: =C86/C$15 -> 0.0005739967339 | D88: 0.0009598323727 | E88: 0.0006770509917 | F88: 0.0002206200438 | G88: 0.0001101130824 | H88: =H86/H$15 -> 4.621270781e-05 | I88: 0.000805163334 | J88: 0.00145789318 | K88: 0 | L88: 0
A89: 90 | B89: Per Customer | C89: =C86/C$16 -> 17.33937163 | D89: 14.74124184 | E89: 19.51243733 | F89: 181.79957 | G89: 681.3753603 | H89: =H86/H$16 -> 21901.5027 | I89: 23.50511576 | J89: 6.235444902 | K89: 0 | L89: 0
A90: 91
A91: 92 | B91: DISTRIBUTION-SERVICE | C91: =+C92/$C92 -> 1 | D91: 0.7018901192 | E91: 0.1827142649 | F91: 0.0753583956 | G91: 0.02354920196 | H91: =+H92/$C92 -> 0.002752575615 | I91: 0.008940664644 | J91: 0.004794778077 | K91: 0 | L91: 0
A92: 93 | B92: Revenue Requirement | C92: ='Distribution Summary'!E$401 -> 4181331.1 | D92: ='Distribution Summary'!F$401 -> 2934834.984 | E92: ='Distribution Summary'!G$401 -> 763988.8385 | F92: ='Distribution Summary'!H$401 -> 315098.4032 | G92: ='Distribution Summary'!I$401 -> 98467.01054 | H92: ='Distribution Summary'!J$401 -> 11509.43002 | I92: ='Distribution Summary'!K$401 -> 37383.87913 | J92: ='Distribution Summary'!L$401 -> 20048.55469 | K92: 0 | L92: 0
A93: 94 | B93: NCP KW | C93: =C92/C$14 -> 0.2188708052 | D93: 0.2251673347 | E93: 0.3023538939 | F93: 0.1356359469 | G93: 0.1215427802 | H93: =H92/H$14 -> 0.314156295 | I93: 0.1110131601 | J93: 0.547236453 | K93: 0 | L93: 0
A94: 95 | B94: Per KWH | C94: =C92/C$15 -> 0.001045626114 | D94: 0.001832201717 | E94: 0.001421650206 | F94: 0.0003660936388 | G94: 0.0002747752194 | H94: =H92/H$15 -> 2.428517961e-05 | I94: 0.0002434558501 | J94: 0.001526707364 | K94: 0 | L94: 0
A95: 96 | B95: Per Customer | C95: =C92/C$16 -> 31.58641628 | D95: 28.13921407 | E95: 40.97159727 | F95: 301.6755186 | G95: 1700.298093 | H95: =H92/H$16 -> 11509.43002 | I95: 7.107201356 | J95: 6.529764854 | K95: 0 | L95: 0
A96: 97
A97: 98 | B97: RETAIL-TOTAL | C97: =+C98/$C98 -> 1 | D97: 0.8271325954 | E97: 0.1138399406 | F97: 0.01459587689 | G97: 0.005107117425 | H97: =+H98/$C98 -> 0.004894297915 | I97: 0.02205537791 | J97: 0.01237479388 | K97: 0 | L97: 0
A98: 99 | B98: Revenue Requirement | C98: ='Retail Summary'!E$61 -> 8350814.649 | D98: ='Retail Summary'!F$61 -> 6907230.994 | E98: ='Retail Summary'!G$61 -> 950656.2438 | F98: ='Retail Summary'!H$61 -> 121887.4625 | G98: ='Retail Summary'!I$61 -> 42648.591 | H98: ='Retail Summary'!J$61 -> 40871.37473 | I98: ='Retail Summary'!K$61 -> 184180.3729 | J98: ='Retail Summary'!L$61 -> 103339.61 | K98: 0 | L98: 0
A99: 100 | B99: NCP KW | C99: =C98/C$14 -> 0.4371214531 | D99: 0.5299387535 | E99: 0.3762288171 | F99: 0.05246716971 | G99: 0.05264329944 | H99: =H98/H$14 -> 1.115606909 | I99: 0.5469321456 | J99: 2.820712142 | K99: 0 | L99: 0
A100: 101 | B100: Per KWH | C100: =C98/C$15 -> 0.002088289509 | D100: 0.004312147208 | E100: 0.001769005746 | F100: 0.0001416136173 | G100: 0.000119012204 | H100: =H98/H$15 -> 8.623960299e-05 | I100: 0.001199441853 | J100: 0.007869362457 | K100: 0 | L100: 0
A101: 102 | B101: Per Customer | C101: =C98/C$16 -> 63.08333434 | D101: 66.22656899 | E101: 50.98229555 | F101: 116.6951755 | G101: 736.4427697 | H101: =H98/H$16 -> 40871.37473 | I101: 35.01528003 | J101: 33.65745631 | K101: 0 | L101: 0
A102: 103
A103: 104 | B103: MISC - Total | C103: =+C104/$C104 -> 1 | D103: 0.4309905254 | E103: 0.1400579626 | F103: 0.209721021 | G103: 0.0814929125 | H103: =+H104/$C104 -> 0.09670506158 | I103: 0.03753512569 | J103: 0.003497391223 | K103: 0 | L103: 0
A104: 105 | B104: Revenue Requirement | C104: ='Misc Summary'!E$61 -> 4850632.542 | D104: ='Misc Summary'!F$61 -> 2090576.668 | E104: ='Misc Summary'!G$61 -> 679369.711 | F104: ='Misc Summary'!H$61 -> 1017279.609 | G104: ='Misc Summary'!I$61 -> 395292.1733 | H104: ='Misc Summary'!J$61 -> 469080.7187 | I104: ='Misc Summary'!K$61 -> 182069.1021 | J104: ='Misc Summary'!L$61 -> 16964.55968 | K104: 0 | L104: 0
A105: 106 | B105: NCP KW | C105: =C104/C$14 -> 0.2539052337 | D105: 0.160393882 | E105: 0.2688652859 | F105: 0.4378939457 | G105: 0.4879289973 | H105: =H104/H$14 -> 12.80381916 | I105: 0.5406626291 | J105: 0.4630570935 | K105: 0 | L105: 0
A106: 107 | B106: Per KWH | C106: =C104/C$15 -> 0.001212998429 | D106: 0.001305135784 | E106: 0.001264188743 | F106: 0.001181915205 | G106: 0.001103074959 | H106: =H104/H$15 -> 0.00098977182 | I106: 0.001185692578 | J106: 0.001291859617 | K106: 0 | L106: 0
A107: 108 | B107: Per Customer | C107: =C104/C$16 -> 36.642422 | D107: 20.04446066 | E107: 36.43359797 | F107: 973.9444903 | G107: 6825.783832 | H107: =H104/H$16 -> 469080.7187 | I107: 34.61389774 | J107: 5.525315279 | K107: 0 | L107: 0
A108: 109
A109: 110 | B109: Classification Revenue Requirement
A110: 111 | B110: Generation - Demand | C110: =C32 -> 75499238.46 | D110: =D32 -> 33011273.51 | E110: 10196399.17 | F110: 16067523.68 | G110: 6158598.596 | H110: =H32 -> 7367153.581 | I110: 2558374.89 | J110: 139915.023
A111: 112 | B111: Transmission - Demand | C111: =C50 -> 18436770.67 | D111: =D50 -> 7950651.664 | E111: 2490819.739 | F111: 3931098.91 | G111: 1528508.077 | H111: =H50 -> 1856096.474 | I111: 640313.338 | J111: 39282.46604
A112: 113 | B112: Distribution - Substation | C112: =C68 -> 5865769.265 | D112: =D68 -> 3007252.655 | E112: 784748.0532 | F112: 1037270.69 | G112: 395725.0983 | H112: =H68 -> 263569.0227 | I112: 339915.2364 | J112: 37288.50801
A113: 114 | B113: Demand - TOTAL Revenue Requirement | C113: =SUM(C110:C112) -> 99801778.4 | D113: 43969177.83 | E113: 13471966.96 | F113: 21035893.28 | G113: 8082831.772 | H113: =SUM(H110:H112) -> 9486819.078 | I113: 3538603.465 | J113: 216485.9971
A114: 115
A115: 116 | B115: Generation - Energy | C115: =C38 -> 123182968 | D115: =D38 -> 51215957.83 | E115: 16621706.19 | F115: 26455035.63 | G115: 10642977.94 | H115: =H38 -> 13393605.46 | I115: 4519644.181 | J115: 334040.78
A116: 117 | B116: Transmission - Energy | C116: =C56 -> 30081047.94 | D116: =D56 -> 12632701.2 | E116: 4062105.096 | F116: 6444650.336 | G116: 2570213.693 | H116: =H56 -> 3204652.322 | I116: 1089059.235 | J116: 77666.0659
A117: 118 | B117: MISC - Total | C117: =C104 -> 4850632.542 | D117: =D104 -> 2090576.668 | E117: 679369.711 | F117: 1017279.609 | G117: 395292.1733 | H117: =H104 -> 469080.7187 | I117: 182069.1021 | J117: 16964.55968
A118: 119 | B118: Energy - TOTAL Revenue Requirement | C118: =SUM(C115:C117) -> 158114648.5 | D118: =SUM(D115:D117) -> 65939235.7 | E118: 21363181 | F118: 33916965.58 | G118: 13608483.81 | H118: =SUM(H115:H117) -> 17067338.5 | I118: 5790772.519 | J118: 428671.4056
A119: 120
A120: 121 | B120: Distribution - Meter | C120: =C86 -> 2295342.822 | D120: =D86 -> 1537466.973 | E120: 363844.3539 | F120: 189888.6409 | G120: 39459.54833 | H120: =H86 -> 21901.5027 | I120: 123636.9089 | J120: 19144.89433
A121: 122 | B121: Distribution - Service | C121: =C92 -> 4181331.1 | D121: =D92 -> 2934834.984 | E121: 763988.8385 | F121: 315098.4032 | G121: 98467.01054 | H121: =H92 -> 11509.43002 | I121: 37383.87913 | J121: 20048.55469
A122: 123 | B122: Retail Total | C122: =C98 -> 8350814.649 | D122: =D98 -> 6907230.994 | E122: 950656.2438 | F122: 121887.4625 | G122: 42648.591 | H122: =H98 -> 40871.37473 | I122: 184180.3729 | J122: 103339.61
A123: 124 | B123: Customer - TOTAL Revenue Requirement | C123: =SUM(C120:C122) -> 14827488.57 | D123: =SUM(D120:D122) -> 11379532.95 | E123: 2078489.436 | F123: 626874.5066 | G123: 180575.1499 | H123: =SUM(H120:H122) -> 74282.30745 | I123: 345201.161 | J123: 142533.059
A124: 125
A125: 126 | B125: Distribution - P&C | C125: =C74 -> 22573948.34 | D125: =D74 -> 13153897.62 | E125: 3339357.563 | F125: 3166599.71 | G125: 1192847.057 | H125: =H74 -> 132020.2848 | I125: 1020538.088 | J125: 568688.0185
A126: 127 | B126: Distribution - Transformer | C126: =C80 -> 7909732.056 | D126: =D80 -> 4824667.567 | E126: 1107466.854 | F126: 1163469.395 | G126: 367919.2283 | H126: =H80 -> 21114.40508 | I126: 376426.458 | J126: 48668.14878
A127: 128 | B127: Load Size - TOTAL Revenue Requirement | C127: =SUM(C125:C126) -> 30483680.4 | D127: =SUM(D125:D126) -> 17978565.19 | E127: 4446824.417 | F127: 4330069.106 | G127: 1560766.285 | H127: =SUM(H125:H126) -> 153134.6899 | I127: 1396964.546 | J127: 617356.1673
A128: 129
A129: 130
A130: 131 | B130: Total Classification Revenue Requirement | C130: =C113+C118+C123+C127 -> 303227595.9 | D130: =D113+D118+D123+D127 -> 139266511.7 | E130: 41360461.81 | F130: 59909802.47 | G130: 23432657.02 | H130: =H113+H118+H123+H127 -> 26781574.58 | I130: 11071541.69 | J130: 1405046.629
A131: 132 | B131: GTDRM Revenue Requirement | C131: =C20 -> 303227595.9 | D131: =D20 -> 139266511.7 | E131: 41360461.81 | F131: 59909802.47 | G131: 23432657.02 | H131: =H20 -> 26781574.58 | I131: 11071541.69 | J131: 1405046.629
A132: 133 | B132: Check | C132: =C130-C131 -> 0 | D132: =D130-D131 -> 0 | E132: 0 | F132: 0 | G132: 0 | H132: =H130-H131 -> 0 | I132: 0 | J132: 0
A133: 134
A134: 135 | B134: UNITS
A135: 136 | B135: NCP KW | C135: =C14 -> 19104106.17 | D135: =D14 -> 13034017.51 | E135: 2526803.372 | F135: 2323118.689 | G135: 810142.8188 | H135: =H14 -> 36636 | I135: 336751.7788 | J135: 36636
A136: 137 | B136: Annual KWH | C136: =C15 -> 3998877844 | D136: 1601807791 | E136: 537395792 | F136: 860704393 | G136: 358354770 | H136: =H15 -> 473928141 | I136: 153555066 | J136: 13131891
A137: 138 | B137: Average Customers | C137: 132377.5088 | D137: 104296.9778 | E137: 18646.79167 | F137: 1044.494444 | G137: 57.91161616 | H137: =H16 -> 1 | I137: 5260 | J137: 3070.333333
A138: 139 | B138: Load Factor | C138: 0 | D138: 0 | E138: 0 | F138: 0 | G138: 0 | H138: =H17 -> 0 | I138: 0 | J138: 0
A139: 140
A140: 141 | B140: 100% Cost Based Rates
A141: 142 | B141: Demand Charge | C141: =C$113/C135 -> 5.224100908 | D141: =D$113/D135 -> 3.373417121 | E141: 5.331624579 | F141: 9.055023052 | G141: 9.977045509 | H141: =H$113/H135 -> 258.9480041 | I141: 10.50804684 | J141: 5.909105717
A142: 143 | B142: Energy Charge | C142: =C$118/C136 -> 0.03953975457 | D142: =D$118/D136 -> 0.04116551066 | E142: 0.03975316017 | F142: 0.03940605608 | G142: 0.03797489233 | H142: =H$118/H136 -> 0.03601250279 | I142: 0.03771137397 | J142: 0.03264353973
A143: 144 | B143: Customer Charge | C143: =C$123/C137/12 -> 9.334093521 | D143: =D$123/D137/12 -> 9.092252075 | E143: 9.288860846 | F143: 50.01418868 | G143: 259.8430186 | H143: =H$123/H137/12 -> 6190.192288 | I143: 5.468966428 | J143: 3.868555506
A144: 145 | B144: Load Size Charge | C144: =C127/C135 -> 1.59566117 | D144: =D127/D135 -> 1.379357145 | E144: 1.759861676 | F144: 1.863903521 | G144: 1.926532271 | H144: =H127/H135 -> 4.179896547 | I144: 4.148350904 | J144: 16.85108001
A145: 146
A146: 147 | B146: Check
A147: =+A146+1 -> 148 | B147: Demand Revenue Requirement | C147: =C141*C135 -> 99801778.4 | D147: =D141*D135 -> 43969177.83 | E147: 13471966.96 | F147: 21035893.28 | G147: 8082831.772 | H147: =H141*H135 -> 9486819.078 | I147: 3538603.465 | J147: 216485.9971
A148: =+A147+1 -> 149 | B148: Energy Revenue Requirement | C148: =C142*C136 -> 158114648.5 | D148: 65939235.7 | E148: 21363181 | F148: 33916965.58 | G148: 13608483.81 | H148: =H142*H136 -> 17067338.5 | I148: 5790772.519 | J148: 428671.4056
A149: =+A148+1 -> 150 | B149: Customer Revenue Requirement | C149: =C143*C137*12 -> 14827488.57 | D149: =D143*D137*12 -> 11379532.95 | E149: 2078489.436 | F149: 626874.5066 | G149: 180575.1499 | H149: =H143*H137*12 -> 74282.30745 | I149: 345201.161 | J149: 142533.059
A150: =+A149+1 -> 151 | B150: Load Size Revenue Requirement | C150: =C144*C135 -> 30483680.4 | D150: =D144*D135 -> 17978565.19 | E150: 4446824.417 | F150: 4330069.106 | G150: 1560766.285 | H150: =H144*H135 -> 153134.6899 | I150: 1396964.546 | J150: 617356.1673
A151: =+A150+1 -> 152 | B151: Total Revenue Requirement | C151: =SUM(C147:C150) -> 303227595.9 | D151: =SUM(D147:D150) -> 139266511.7 | E151: 41360461.81 | F151: 59909802.47 | G151: 23432657.02 | H151: =SUM(H147:H150) -> 26781574.58 | I151: 11071541.69 | J151: 1405046.629

Sheet Unit Costs-target
B1: Unit Costs @ Target ROR
B2: =Inputs!$C$3 -> PacifiCorp
B3: Cost Of Service By Rate Schedule
B4: =Inputs!$C$4 -> State of Washington
B5: =Inputs!$C$5 -> 12 Months Ending June 2012
B6: =+Method&" - "&IF(PeakMethod=1,"(Coincident Peaks)",IF(PeakMethod=2,"(200 Top Hours)","(100 Summer, 100 Winter Hours)"))&" - "&TEXT(Demand,"0%")&"D"&" / "&TEXT(Engy,"0%")&"E" -> WCA Method - (100 Summer, 100 Winter Hours) - 38%D / 62%E
B7: =TEXT(TargetROR,"0.00%")&" Target Return on Rate Base" -> 7.80% Target Return on Rate Base
C9: ='Hot Sheet'!$H$10 -> Washington | E9: ='Hot Sheet'!$J$10 -> Small General | F9: ='Hot Sheet'!$K$10 -> Large General | G9: ='Hot Sheet'!$L$10 -> Large General | H9: ='Hot Sheet'!$M$10 -> Large General | I9: ='Hot Sheet'!$N$10 -> Agricultural | J9: ='Hot Sheet'!$O$10 -> Street & Area
B10: Description | C10: ='Hot Sheet'!$H$11 -> Jurisdiction | D10: ='Hot Sheet'!$I$11 -> Residential | E10: ='Hot Sheet'!$J$11 -> Service | F10: ='Hot Sheet'!$K$11 -> Service <1,000 kW | G10: ='Hot Sheet'!$L$11 -> Service >1,000 kW | H10: ='Hot Sheet'!$M$11 -> Dedicated Facilities | I10: ='Hot Sheet'!$N$11 -> Pumping | J10: ='Hot Sheet'!$O$11 -> Lighting
C11: ='Hot Sheet'!$H$12 -> Normalized | D11: ='Hot Sheet'!$I$12 -> Schedule 16 | E11: ='Hot Sheet'!$J$12 -> Schedule 24 | F11: ='Hot Sheet'!$K$12 -> Schedule 36 | G11: ='Hot Sheet'!$L$12 -> Schedule 48T | H11: ='Hot Sheet'!$M$12 -> Schedule 48T | I11: ='Hot Sheet'!$N$12 -> Schedule 40 | J11: ='Hot Sheet'!$O$12 -> Sch. 15,51-54,57
A13: 14 | B13: UNITS
A14: =+A13+1 -> 15 | B14: NCP KW | C14: =SUM(D14:J14) -> 19104106.17 | D14: ='Dist. Factors'!$P$189 -> 13034017.51 | E14: ='Dist. Factors'!$P$192 -> 2526803.372 | F14: ='Dist. Factors'!$P$193+'Dist. Factors'!$P$194 -> 2323118.689 | G14: =+'Dist. Factors'!$P$196+'Dist. Factors'!$P$197 -> 810142.8188 | H14: ='Dist. Factors'!$P$204 -> 36636 | I14: ='Dist. Factors'!$P$201 -> 336751.7788 | J14: ='Dist. Factors'!$P$204 -> 36636
A15: =+A14+1 -> 16 | B15: Annual KWH | C15: =SUM(D15:J15) -> 3998877844 | D15: ='Energy Factor'!C27*1000 -> 1601807791 | E15: ='Energy Factor'!D27*1000 -> 537395792 | F15: ='Energy Factor'!E27*1000 -> 860704393 | G15: ='Energy Factor'!F27*1000 -> 358354770 | H15: ='Energy Factor'!G27*1000 -> 473928141 | I15: ='Energy Factor'!H27*1000 -> 153555066 | J15: ='Energy Factor'!I27*1000 -> 13131891
A16: =+A15+1 -> 17 | B16: Average Customers | C16: =SUM(D16:J16) -> 132377.5088 | D16: ='Cust Factors'!D17 -> 104296.9778 | E16: ='Cust Factors'!E17 -> 18646.79167 | F16: ='Cust Factors'!F17 -> 1044.494444 | G16: ='Cust Factors'!G17 -> 57.91161616 | H16: ='Cust Factors'!H17 -> 1 | I16: ='Cust Factors'!I17 -> 5260 | J16: ='Cust Factors'!J17 -> 3070.333333
A17: =+A16+1 -> 18
B18: CP Load Factor | D18: ='Demand Factors'!D27*1000/730/'Demand Factors'!D25 -> 0.03807398869 | E18: ='Demand Factors'!E27*1000/730/'Demand Factors'!E25 -> 0.0435530105 | F18: ='Demand Factors'!F27*1000/730/'Demand Factors'!F25 -> 0.04476498969 | G18: ='Demand Factors'!G27*1000/730/'Demand Factors'!G25 -> 0.05124392712 | H18: ='Demand Factors'!H27*1000/730/'Demand Factors'!H25 -> 0.05928995124 | I18: ='Demand Factors'!I27*1000/730/'Demand Factors'!I25 -> 0.05456065657 | J18: ='Demand Factors'!J27*1000/730/'Demand Factors'!J25 -> 0.1533846292
A19: =+A17+1 -> 19
A20: =+A19+1 -> 20 | B20: GTDRM TOTAL | C20: =+C21/$C21 -> 1 | D20: 0.4598156327 | E20: 0.136703499 | F20: 0.1974348032 | G20: 0.07712638763 | H20: =+H21/$C21 -> 0.08753700128 | I20: 0.03675005315 | J20: 0.004632623088
A21: =+A20+1 -> 21 | B21: Revenue Requirement | C21: =C99+C105+C33+C39+C51+C57+C69+C75+C81+C87+C93 -> 346028268.9 | D21: =D99+D105+D33+D39+D51+D57+D69+D75+D81+D87+D93 -> 159109207.4 | E21: 47303275.1 | F21: 68318023.16 | G21: 26687910.4 | H21: =H99+H105+H33+H39+H51+H57+H69+H75+H81+H87+H93 -> 30290277.01 | I21: 12716557.27 | J21: 1603018.547
A22: 22 | B22: NCP KW | C22: =C21/C$14 -> 18.11276936 | D22: 12.20722676 | E22: 18.72059996 | F22: 29.40789184 | G22: 32.94222917 | H22: =H21/H$14 -> 826.7899611 | I22: 37.76240564 | J22: 43.75528298
A23: 23 | B23: Per KWH | C23: =C21/C$15 -> 0.08653134263 | D23: 0.09933102353 | E23: 0.08802315874 | F23: 0.07937454916 | G23: 0.07447343423 | H23: =H21/H$15 -> 0.06391322733 | I23: 0.08281431283 | J23: 0.1220706559
A24: 24 | B24: Per Customer | C24: =C21/C$16 -> 2613.950602 | D24: 1525.539961 | E24: 2536.805041 | F24: 65407.74201 | G24: 460838.6394 | H24: =H21/H$16 -> 30290277.01 | I24: 2417.59644 | J24: 522.0991903
A25: 25
A26: 26 | B26: GENERATION-TOTAL | C26: =+C27/$C27 -> 1 | D26: 0.4238896943 | E26: 0.1349760568 | F26: 0.2140418273 | G26: 0.08457387822 | H26: =+H27/$C27 -> 0.1045114138 | I26: 0.03562408538 | J26: 0.00238304425
A27: 27 | B27: Revenue Requirement | C27: =+C33+C39 -> 224070839.6 | D27: 94981319.71 | E27: 30244198.38 | F27: 47960531.95 | G27: 18950539.9 | H27: =+H33+H39 -> 23417960.23 | I27: 7982318.721 | J27: 533970.726
A28: 28 | B28: NCP KW | C28: =C27/C$14 -> 11.72893605 | D28: 7.28718675 | E28: 11.96935176 | F28: 20.64489093 | G28: 23.39160388 | H28: =H27/H$14 -> 639.2062516 | I28: 23.70386505 | J28: 14.57502801
A29: 29 | B29: Per KWH | C29: =C27/C$15 -> 0.05603342947 | D29: 0.05929632772 | E29: 0.0562791872 | F29: 0.05572242031 | G29: 0.05288206406 | H29: =H27/H$15 -> 0.04941247039 | I29: 0.05198342802 | J29: 0.0406621351
A30: 30 | B30: Per Customer | C30: =C27/C$16 -> 1692.665481 | D30: 910.6814189 | E30: 1621.951857 | F30: 45917.46008 | G30: 327232.1023 | H30: =H27/H$16 -> 23417960.23 | I30: 1517.551088 | J30: 173.9129495
A31: 31
A32: 32 | B32: GENERATION-DEMAND | C32: =+C33/$C33 -> 1 | D32: 0.4401295924 | E32: 0.1350652477 | F32: 0.2125704506 | G32: 0.08092164277 | H32: =+H33/$C33 -> 0.0960767905 | I32: 0.03350268485 | J32: 0.001733591213
A33: 33 | B33: Revenue Requirement | C33: ='Generation Summary'!E$136 -> 85146919.06 | D33: ='Generation Summary'!F$136 -> 37475678.78 | E33: ='Generation Summary'!G$136 -> 11500389.71 | F33: ='Generation Summary'!H$136 -> 18099718.95 | G33: ='Generation Summary'!I$136 -> 6890228.567 | H33: ='Generation Summary'!J$136 -> 8180642.704 | I33: ='Generation Summary'!K$136 -> 2852650.395 | J33: ='Generation Summary'!L$136 -> 147609.9507
A34: 34 | B34: NCP KW | C34: =C33/C$14 -> 4.4569957 | D34: 2.87522084 | E34: 4.551359176 | F34: 7.79112967 | G34: 8.504955432 | H34: =H33/H$14 -> 223.2951934 | I34: 8.471077435 | J34: 4.029095718
A35: 35 | B35: Per KWH | C35: =C33/C$15 -> 0.0212927032 | D35: 0.02339586497 | E35: 0.02140022286 | F35: 0.02102896081 | G35: 0.01922739459 | H35: =H33/H$15 -> 0.01726135673 | I35: 0.01857737728 | J35: 0.01124057081
A36: 36 | B36: Per Customer | C36: =C33/C$16 -> 643.2128827 | D36: 359.3170155 | E36: 616.7489784 | F36: 17328.68858 | G36: 118978.3505 | H36: =H33/H$16 -> 8180642.704 | I36: 542.3289724 | J36: 48.07619717
A37: 37
A38: 38 | B38: GENERATION-ENERGY | C38: =+C39/$C39 -> 1 | D38: 0.4139362084 | E38: 0.1349213914 | F38: 0.2149436388 | G38: 0.08681234511 | H38: =+H39/$C39 -> 0.1096810216 | I38: 0.0369242986 | J38: 0.002781096111
A39: 39 | B39: Revenue Requirement | C39: ='Generation Summary'!E$204 -> 138923920.6 | D39: ='Generation Summary'!F$204 -> 57505640.93 | E39: ='Generation Summary'!G$204 -> 18743808.67 | F39: ='Generation Summary'!H$204 -> 29860813 | G39: ='Generation Summary'!I$204 -> 12060311.34 | H39: ='Generation Summary'!J$204 -> 15237317.53 | I39: ='Generation Summary'!K$204 -> 5129668.326 | J39: ='Generation Summary'!L$204 -> 386360.7753
A40: 40 | B40: NCP KW | C40: =C39/C$14 -> 7.271940353 | D40: 4.41196591 | E40: 7.417992582 | F40: 12.85376126 | G40: 14.88664845 | H40: =H39/H$14 -> 415.9110582 | I40: 15.23278761 | J40: 10.54593229
A41: 41 | B41: Per KWH | C41: =C39/C$15 -> 0.03474072627 | D41: 0.03590046275 | E41: 0.03487896434 | F41: 0.03469345951 | G41: 0.03365466947 | H41: =H39/H$15 -> 0.03215111366 | I41: 0.03340605074 | J41: 0.02942156429
A42: 42 | B42: Per Customer | C42: =C39/C$16 -> 1049.452598 | D42: 551.3644034 | E42: 1005.202879 | F42: 28588.7715 | G42: 208253.7518 | H42: =H39/H$16 -> 15237317.53 | I42: 975.2221152 | J42: 125.8367523
A43: 43
A44: 44 | B44: TRANSMISSION-TOTAL | C44: =+C45/$C45 -> 1 | D44: 0.4242281062 | E44: 0.1350540636 | F44: 0.2138540759 | G44: 0.08448277645 | H44: =+H45/$C45 -> 0.1043354751 | I44: 0.03563770897 | J44: 0.002407793766
A45: 45 | B45: Revenue Requirement | C45: =+C51+C57 -> 55781385.84 | D45: 23664031.68 | E45: 7533502.83 | F45: 11929076.72 | G45: 4712566.35 | H45: =+H51+H57 -> 5819977.394 | I45: 1987920.794 | J45: 134310.0731
A46: 46 | B46: NCP KW | C46: =C45/C$14 -> 2.919863685 | D46: 1.815559297 | E46: 2.981436116 | F46: 5.134940704 | G46: 5.816957505 | H46: =H45/H$14 -> 158.8595205 | I46: 5.903222846 | J46: 3.66606816
A47: 47 | B47: Per KWH | C47: =C45/C$15 -> 0.01394925977 | D47: 0.01477332787 | E47: 0.01401853707 | F47: 0.01385966752 | G47: 0.01315056124 | H47: =H45/H$15 -> 0.01228029503 | I47: 0.01294597988 | J47: 0.01022777855
A48: 48 | B48: Per Customer | C48: =C45/C$16 -> 421.3811419 | D48: 226.8908667 | E48: 404.0106719 | F48: 11420.90969 | G48: 81375.14824 | H48: =H45/H$16 -> 5819977.394 | I48: 377.93171 | J48: 43.74445981
A49: 49
A50: 50 | B50: TRANSMISSION-DEMAND | C50: =+C51/$C51 -> 1 | D50: 0.4395869144 | E50: 0.1351384154 | F50: 0.2124625282 | G50: 0.08102869175 | H50: =+H51/$C51 -> 0.09635846937 | I50: 0.03363140428 | J50: 0.001793576575
A51: 51 | B51: Revenue Requirement | C51: ='Transmission Summary'!E$136 -> 21196925.76 | D51: ='Transmission Summary'!F$136 -> 9317891.191 | E51: ='Transmission Summary'!G$136 -> 2864518.96 | F51: ='Transmission Summary'!H$136 -> 4503552.437 | G51: ='Transmission Summary'!I$136 -> 1717559.164 | H51: ='Transmission Summary'!J$136 -> 2042503.322 | I51: ='Transmission Summary'!K$136 -> 712882.3798 | J51: ='Transmission Summary'!L$136 -> 38018.30952
A52: 52 | B52: NCP KW | C52: =C51/C$14 -> 1.109548155 | D52: 0.714890185 | E52: 1.133653292 | F52: 1.938580434 | G52: 2.120069602 | H52: =H51/H$14 -> 55.75126438 | I52: 2.116937236 | J52: 1.037730907
A53: 53 | B53: Per KWH | C53: =C51/C$15 -> 0.005300718499 | D53: 0.00581710942 | E53: 0.005330371027 | F53: 0.005232403219 | G53: 0.004792901637 | H53: =H51/H$15 -> 0.004309732099 | I53: 0.004642519445 | J53: 0.002895113089
A54: 54 | B54: Per Customer | C54: =C51/C$16 -> 160.1248275 | D54: 89.33999229 | E54: 153.6199369 | F54: 4311.705496 | G54: 29658.28408 | H54: =H51/H$16 -> 2042503.322 | I54: 135.5289695 | J54: 12.38246972
A55: 55
A56: 56 | B56: TRANSMISSION-ENERGY | C56: =+C57/$C57 -> 1 | D56: 0.4148146438 | E56: 0.1350023641 | F56: 0.2147069599 | G56: 0.08659979597 | H56: =+H57/$C57 -> 0.1092246074 | I56: 0.0368673795 | J56: 0.002784249439
A57: 57 | B57: Revenue Requirement | C57: ='Transmission Summary'!E$204 -> 34584460.08 | D57: ='Transmission Summary'!F$204 -> 14346140.49 | E57: ='Transmission Summary'!G$204 -> 4668983.87 | F57: ='Transmission Summary'!H$204 -> 7425524.282 | G57: ='Transmission Summary'!I$204 -> 2995007.186 | H57: ='Transmission Summary'!J$204 -> 3777474.073 | I57: ='Transmission Summary'!K$204 -> 1275038.415 | J57: ='Transmission Summary'!L$204 -> 96291.76357
A58: 58 | B58: NCP KW | C58: =C57/C$14 -> 1.810315529 | D58: 1.100669112 | E58: 1.847782824 | F58: 3.19636027 | G58: 3.696887903 | H58: =H57/H$14 -> 103.1082562 | I58: 3.78628561 | J58: 2.628337252
A59: 59 | B59: Per KWH | C59: =C57/C$15 -> 0.008648541272 | D59: 0.008956218447 | E59: 0.00868816604 | F59: 0.008627264299 | G59: 0.008357659607 | H59: =H57/H$15 -> 0.007970562931 | I59: 0.008303460431 | J59: 0.007332665461
A60: 60 | B60: Per Customer | C60: =C57/C$16 -> 261.2563145 | D60: 137.5508744 | E60: 250.390735 | F60: 7109.204191 | G60: 51716.86416 | H60: =H57/H$16 -> 3777474.073 | I60: 242.4027404 | J60: 31.36199009
A61: 61
A62: 62 | B62: DISTRIBUTION-TOTAL | C62: =+C63/$C63 -> 1 | D62: 0.5947569576 | E62: 0.1489551482 | F62: 0.1373103755 | G62: 0.04868988783 | H62: =+H63/$C63 -> 0.01002853434 | I62: 0.04490813235 | J62: 0.01535096415
A63: 63 | B63: Revenue Requirement | C63: =+C69+C75+C81+C87+C93 -> 52931961.41 | D63: 31481652.33 | E63: 7884488.155 | F63: 7268107.498 | G63: 2577251.264 | H63: =+H69+H75+H81+H87+H93 -> 530829.9927 | I63: 2377075.529 | J63: 812556.6418
A64: 64 | B64: NCP KW | C64: =C63/C$14 -> 2.770711225 | D64: 2.415345253 | E64: 3.120340998 | F64: 3.128599297 | G64: 3.181230771 | H64: =H63/H$14 -> 14.48929994 | I64: 7.058835849 | J64: 22.17918555
A65: 65 | B65: Per KWH | C65: =C63/C$15 -> 0.01323670376 | D65: 0.01965382645 | E65: 0.01467165965 | F65: 0.008444371328 | G65: 0.007191898866 | H65: =H63/H$15 -> 0.001120064303 | I65: 0.01548028073 | J65: 0.06187659049
A66: 66 | B66: Per Customer | C66: =C63/C$16 -> 399.8561529 | D66: 301.8462567 | E66: 422.8334984 | F66: 6958.493209 | G66: 44503.18321 | H66: =H63/H$16 -> 530829.9927 | I66: 451.9154998 | J66: 264.6476957
A67: 67
A68: 68 | B68: DISTRIBUTION-SUBSTATION | C68: =+C69/$C69 -> 1 | D68: 0.5033415206 | E68: 0.1327098819 | F68: 0.1812042742 | G68: 0.06930488427 | H68: =+H69/$C69 -> 0.04749208587 | I68: 0.06028359874 | J68: 0.005663754449
A69: 69 | B69: Revenue Requirement | C69: ='Distribution Summary'!E$136 -> 7368826.571 | D69: ='Distribution Summary'!F$136 -> 3709036.372 | E69: ='Distribution Summary'!G$136 -> 977916.1039 | F69: ='Distribution Summary'!H$136 -> 1335262.87 | G69: ='Distribution Summary'!I$136 -> 510695.6727 | H69: ='Distribution Summary'!J$136 -> 349960.9443 | I69: ='Distribution Summary'!K$136 -> 444219.3842 | J69: ='Distribution Summary'!L$136 -> 41735.22428
A70: 70 | B70: NCP KW | C70: =C69/C$14 -> 0.3857195152 | D70: 0.2845658576 | E70: 0.3870170963 | F70: 0.5747716964 | G70: 0.630377337 | H70: =H69/H$14 -> 9.552378651 | I70: 1.31913003 | J70: 1.139186163
A71: 71 | B71: Per KWH | C71: =C69/C$15 -> 0.001842723599 | D71: 0.002315531484 | E71: 0.001819731599 | F71: 0.001551360584 | G71: 0.001425111971 | H71: =H69/H$15 -> 0.0007384261748 | I71: 0.002892899569 | J71: 0.003178157988
A72: 72 | B72: Per Customer | C72: =C69/C$16 -> 55.66524582 | D72: 35.56226125 | E72: 52.44420174 | F72: 1278.381974 | G72: 8818.536013 | H72: =H69/H$16 -> 349960.9443 | I72: 84.45235442 | J72: 13.59305969
A73: 73
A74: 74 | B74: DISTRIBUTION- P & C | C74: =+C75/$C75 -> 1 | D74: 0.5805422442 | E74: 0.1476314796 | F74: 0.1415986606 | G74: 0.0536282269 | H74: =+H75/$C75 -> 0.00480303931 | I74: 0.04630536579 | J74: 0.02549098365
A75: 75 | B75: Revenue Requirement | C75: ='Distribution Summary'!E$204 -> 26780868.44 | D75: ='Distribution Summary'!F$204 -> 15547425.47 | E75: ='Distribution Summary'!G$204 -> 3953699.233 | F75: ='Distribution Summary'!H$204 -> 3792135.101 | G75: ='Distribution Summary'!I$204 -> 1436210.489 | H75: ='Distribution Summary'!J$204 -> 128629.5639 | I75: ='Distribution Summary'!K$204 -> 1240097.909 | J75: ='Distribution Summary'!L$204 -> 682670.6797
A76: 76 | B76: NCP KW | C76: =C75/C$14 -> 1.401838338 | D76: 1.192834477 | E76: 1.564703956 | F76: 1.632346689 | G76: 1.772786793 | H76: =H75/H$14 -> 3.511015501 | I76: 3.682528163 | J76: 18.63387596
A77: 77 | B77: Per KWH | C77: =C75/C$15 -> 0.006697095907 | D77: 0.009706174207 | E77: 0.007357145873 | F77: 0.004405850756 | G77: 0.004007789513 | H77: =H75/H$15 -> 0.0002714115343 | I77: 0.008075916619 | J77: 0.05198571018
A78: 78 | B78: Per Customer | C78: =C75/C$16 -> 202.3067867 | D78: 149.0688014 | E78: 212.0310724 | F78: 3630.593844 | G78: 24800.04159 | H78: =H75/H$16 -> 128629.5639 | I78: 235.7600588 | J78: 222.344158
A79: 79
A80: 80 | B80: DISTRIBUTION-TRANSFORMER | C80: =+C81/$C81 -> 1 | D80: 0.6087607224 | E80: 0.1388281068 | F80: 0.1497018119 | G80: 0.04628502343 | H80: =+H81/$C81 -> 0.001630203338 | I80: 0.049832766 | J80: 0.004961366172
A81: 81 | B81: Revenue Requirement | C81: ='Distribution Summary'!E$272 -> 10323832.41 | D81: ='Distribution Summary'!F$272 -> 6284743.677 | E81: ='Distribution Summary'!G$272 -> 1433238.109 | F81: ='Distribution Summary'!H$272 -> 1545496.418 | G81: ='Distribution Summary'!I$272 -> 477838.8252 | H81: ='Distribution Summary'!J$272 -> 16829.94606 | I81: ='Distribution Summary'!K$272 -> 514465.1249 | J81: ='Distribution Summary'!L$272 -> 51220.3129
A82: =+A81+1 -> 82 | B82: NCP KW | C82: =C81/C$14 -> 0.5403986096 | D82: 0.4821800854 | E82: 0.5672139451 | F82: 0.6652679541 | G82: 0.5898204786 | H82: =H81/H$14 -> 0.4593827401 | I82: 1.52772801 | J82: 1.398086934
A83: 83 | B83: Per KWH | C83: =C81/C$15 -> 0.002581682366 | D83: 0.00392353172 | E83: 0.002667006572 | F83: 0.001795618136 | G83: 0.001333423928 | H83: =H81/H$15 -> 3.551159893e-05 | I83: 0.003350362435 | J83: 0.003900452181
A84: 84 | B84: Per Customer | C84: =C81/C$16 -> 77.98781307 | D84: 60.25815715 | E84: 76.86245091 | F84: 1479.659778 | G84: 8251.174062 | H84: =H81/H$16 -> 16829.94606 | I84: 97.80705796 | J84: 16.68232968
A85: 85
A86: 86 | B86: DISTRIBUTION-METER | C86: =+C87/$C87 -> 1 | D86: 0.6729127653 | E86: 0.1592725344 | F86: 0.08068241762 | G86: 0.01580773781 | H86: =+H87/$C87 -> 0.009544602877 | I86: 0.05494459247 | J86: 0.006835349598
A87: 87 | B87: Revenue Requirement | C87: ='Distribution Summary'!E$340 -> 2741191.592 | D87: ='Distribution Summary'!F$340 -> 1844582.814 | E87: ='Distribution Summary'!G$340 -> 436596.532 | F87: ='Distribution Summary'!H$340 -> 221165.9648 | G87: ='Distribution Summary'!I$340 -> 43332.03798 | H87: ='Distribution Summary'!J$340 -> 26163.58515 | I87: ='Distribution Summary'!K$340 -> 150613.6549 | J87: ='Distribution Summary'!L$340 -> 18737.00285
A88: 88 | B88: NCP KW | C88: =C87/C$14 -> 0.1434870371 | D88: 0.1415206641 | E88: 0.1727861126 | F88: 0.09520218051 | G88: 0.0534869124 | H88: =H87/H$14 -> 0.7141496112 | I88: 0.4472542221 | J88: 0.5114369158
A89: 89 | B89: Per KWH | C89: =C87/C$15 -> 0.0006854902047 | D89: 0.001151563143 | E89: 0.0008124301279 | F89: 0.0002569592611 | G89: 0.0001209193838 | H89: =H87/H$15 -> 5.52058063e-05 | I89: 0.0009808445845 | J89: 0.001426832042
A90: 90 | B90: Per Customer | C90: =C87/C$16 -> 20.70738161 | D90: 17.68587023 | E90: 23.4140296 | F90: 211.7445105 | G90: 748.2443222 | H90: =H87/H$16 -> 26163.58515 | I90: 28.6337747 | J90: 6.102595651
A91: 91
A92: 92 | B92: DISTRIBUTION-SERVICE | C92: =+C93/$C93 -> 1 | D92: 0.7164055187 | E92: 0.1894336644 | F92: 0.06542439854 | G92: 0.01909561137 | H92: =+H93/$C93 -> 0.001617205065 | I92: 0.004841399632 | J92: 0.003182202344
A93: 93 | B93: Revenue Requirement | C93: ='Distribution Summary'!E$408 -> 5717242.395 | D93: ='Distribution Summary'!F$408 -> 4095864.003 | E93: ='Distribution Summary'!G$408 -> 1083038.177 | F93: ='Distribution Summary'!H$408 -> 374047.145 | G93: ='Distribution Summary'!I$408 -> 109174.2389 | H93: ='Distribution Summary'!J$408 -> 9245.953357 | I93: ='Distribution Summary'!K$408 -> 27679.45522 | J93: ='Distribution Summary'!L$408 -> 18193.42215
A94: 94 | B94: NCP KW | C94: =C93/C$14 -> 0.2992677251 | D94: 0.3142441691 | E94: 0.4286198875 | F94: 0.1610107769 | G94: 0.1347592502 | H94: =H93/H$14 -> 0.2523734402 | I94: 0.08219542394 | J94: 0.4965995783
A95: 95 | B95: Per KWH | C95: =C93/C$15 -> 0.001429711689 | D95: 0.002557025897 | E95: 0.002015345474 | F95: 0.0004345825907 | G95: 0.0003046540691 | H95: =H93/H$15 -> 1.950918833e-05 | I95: 0.000180257519 | J95: 0.001385438102
A96: 96 | B96: Per Customer | C96: =C93/C$16 -> 43.18892571 | D96: 39.27116673 | E96: 58.08174384 | F96: 358.1131015 | G96: 1885.187223 | H96: =H93/H$16 -> 9245.953357 | I96: 5.262253845 | J96: 5.925552757
A97: 97
A98: 98 | B98: RETAIL-TOTAL | C98: =+C99/$C99 -> 1 | D98: 0.8264459266 | E98: 0.1142818626 | F98: 0.01437839032 | G98: 0.005173033748 | H98: =+H99/$C99 -> 0.00494038242 | I98: 0.02211123108 | J98: 0.01266917324
A99: 99 | B99: Revenue Requirement | C99: ='Retail Summary'!E$68 -> 8280757.714 | D99: ='Retail Summary'!F$68 -> 6843598.482 | E99: ='Retail Summary'!G$68 -> 946340.4154 | F99: ='Retail Summary'!H$68 -> 119063.9666 | G99: ='Retail Summary'!I$68 -> 42836.63911 | H99: ='Retail Summary'!J$68 -> 40910.10984 | I99: ='Retail Summary'!K$68 -> 183097.7473 | J99: ='Retail Summary'!L$68 -> 104910.3541
A100: 100 | B100: NCP KW | C100: =C99/C$14 -> 0.4334543391 | D100: 0.5250567199 | E100: 0.3745207981 | F100: 0.0512517794 | G100: 0.05287541668 | H100: =H99/H$14 -> 1.116664206 | I100: 0.5437172386 | J100: 2.863586474
A101: 101 | B101: Per KWH | C101: =C99/C$15 -> 0.00207077036 | D101: 0.004272421773 | E101: 0.001760974741 | F101: 0.0001383331694 | G101: 0.0001195369581 | H101: =H99/H$15 -> 8.632133503e-05 | I101: 0.001192391447 | J101: 0.007988975394
A102: 102 | B102: Per Customer | C102: =C99/C$16 -> 62.55411351 | D102: 65.61646011 | E102: 50.75084402 | F102: 113.9919578 | G102: 739.6899267 | H102: =H99/H$16 -> 40910.10984 | I102: 34.80945766 | J102: 34.16904378
A103: 103
A104: 104 | B104: MISC - Total | C104: =+C105/$C105 -> 1 | D104: 0.4308816136 | E104: 0.1399758079 | F104: 0.2097874255 | G104: 0.0815413657 | H104: =+H105/$C105 -> 0.09683011967 | I104: 0.03750399334 | J104: 0.003479674401
A105: 105 | B105: Revenue Requirement | C105: ='Misc Summary'!E$68 -> 4963324.27 | D105: ='Misc Summary'!F$68 -> 2138605.17 | E105: ='Misc Summary'!G$68 -> 694745.3243 | F105: ='Misc Summary'!H$68 -> 1041243.02 | G105: ='Misc Summary'!I$68 -> 404716.2394 | H105: ='Misc Summary'!J$68 -> 480599.283 | I105: ='Misc Summary'!K$68 -> 186144.4804 | J105: ='Misc Summary'!L$68 -> 17270.7524
A106: 106 | B106: NCP KW | C106: =C105/C$14 -> 0.259804056 | D106: 0.1640787399 | E106: 0.2749502918 | F106: 0.4482091358 | G106: 0.4995615958 | H106: =H105/H$14 -> 13.11822478 | I106: 0.5527646535 | J106: 0.4714147943
A107: 107 | B107: Per KWH | C107: =C105/C$15 -> 0.001241179267 | D107: 0.00133511972 | E107: 0.001292800083 | F107: 0.001209756833 | G107: 0.001129373105 | H107: =H105/H$15 -> 0.001014076273 | I107: 0.001212232753 | J107: 0.001315176345
A108: 108 | B108: Per Customer | C108: =C105/C$16 -> 37.49371259 | D108: 20.5049582 | E108: 37.25816949 | F108: 996.8870833 | G108: 6988.51571 | H108: =H105/H$16 -> 480599.283 | I108: 35.38868448 | J108: 5.625041495
A109: 109
A110: 110 | B110: Classification Revenue Requirement
A111: 111 | B111: Generation - Demand | C111: =C33 -> 85146919.06 | D111: =D33 -> 37475678.78 | E111: 11500389.71 | F111: 18099718.95 | G111: 6890228.567 | H111: =H33 -> 8180642.704 | I111: 2852650.395 | J111: 147609.9507
A112: 112 | B112: Transmission - Demand | C112: =C51 -> 21196925.76 | D112: =D51 -> 9317891.191 | E112: 2864518.96 | F112: 4503552.437 | G112: 1717559.164 | H112: =H51 -> 2042503.322 | I112: 712882.3798 | J112: 38018.30952
A113: 113 | B113: Distribution - Substation | C113: =C69 -> 7368826.571 | D113: =D69 -> 3709036.372 | E113: 977916.1039 | F113: 1335262.87 | G113: 510695.6727 | H113: =H69 -> 349960.9443 | I113: 444219.3842 | J113: 41735.22428
A114: 114 | B114: Demand - TOTAL Revenue Requirement | C114: =SUM(C111:C113) -> 113712671.4 | D114: 50502606.35 | E114: 15342824.78 | F114: 23938534.25 | G114: 9118483.404 | H114: =SUM(H111:H113) -> 10573106.97 | I114: 4009752.159 | J114: 227363.4845
A115: 115
A116: 116 | B116: Generation - Energy | C116: =C39 -> 138923920.6 | D116: =D39 -> 57505640.93 | E116: 18743808.67 | F116: 29860813 | G116: 12060311.34 | H116: =H39 -> 15237317.53 | I116: 5129668.326 | J116: 386360.7753
A117: 117 | B117: Transmission - Energy | C117: =C57 -> 34584460.08 | D117: =D57 -> 14346140.49 | E117: 4668983.87 | F117: 7425524.282 | G117: 2995007.186 | H117: =H57 -> 3777474.073 | I117: 1275038.415 | J117: 96291.76357
A118: 118 | B118: Misc - Total | C118: =C105 -> 4963324.27 | D118: =D105 -> 2138605.17 | E118: 694745.3243 | F118: 1041243.02 | G118: 404716.2394 | H118: =H105 -> 480599.283 | I118: 186144.4804 | J118: 17270.7524
A119: 119 | B119: Energy - TOTAL Revenue Requirement | C119: =SUM(C116:C118) -> 178471704.9 | D119: =SUM(D116:D118) -> 73990386.59 | E119: 24107537.86 | F119: 38327580.31 | G119: 15460034.76 | H119: =SUM(H116:H118) -> 19495390.88 | I119: 6590851.221 | J119: 499923.2913
A120: 120
A121: 121 | B121: Distribution - Meter | C121: =C87 -> 2741191.592 | D121: =D87 -> 1844582.814 | E121: 436596.532 | F121: 221165.9648 | G121: 43332.03798 | H121: =H87 -> 26163.58515 | I121: 150613.6549 | J121: 18737.00285
A122: 122 | B122: Distribution - Service | C122: =C93 -> 5717242.395 | D122: =D93 -> 4095864.003 | E122: 1083038.177 | F122: 374047.145 | G122: 109174.2389 | H122: =H93 -> 9245.953357 | I122: 27679.45522 | J122: 18193.42215
A123: 123 | B123: Retail Total | C123: =C99 -> 8280757.714 | D123: =D99 -> 6843598.482 | E123: 946340.4154 | F123: 119063.9666 | G123: 42836.63911 | H123: =H99 -> 40910.10984 | I123: 183097.7473 | J123: 104910.3541
A124: 124 | B124: Customer - TOTAL Revenue Requirement | C124: =SUM(C121:C123) -> 16739191.7 | D124: =SUM(D121:D123) -> 12784045.3 | E124: 2465975.124 | F124: 714277.0764 | G124: 195342.9159 | H124: =SUM(H121:H123) -> 76319.64835 | I124: 361390.8574 | J124: 141840.7791
A125: 125
A126: 126 | B126: Distribution - P&C | C126: =C75 -> 26780868.44 | D126: =D75 -> 15547425.47 | E126: 3953699.233 | F126: 3792135.101 | G126: 1436210.489 | H126: =H75 -> 128629.5639 | I126: 1240097.909 | J126: 682670.6797
A127: 127 | B127: Distribution - Transformer | C127: =C81 -> 10323832.41 | D127: =D81 -> 6284743.677 | E127: 1433238.109 | F127: 1545496.418 | G127: 477838.8252 | H127: =H81 -> 16829.94606 | I127: 514465.1249 | J127: 51220.3129
A128: 128 | B128: Load Size - TOTAL Revenue Requirement | C128: =SUM(C126:C127) -> 37104700.85 | D128: =SUM(D126:D127) -> 21832169.14 | E128: 5386937.342 | F128: 5337631.518 | G128: 1914049.314 | H128: =SUM(H126:H127) -> 145459.5099 | I128: 1754563.034 | J128: 733890.9926
A129: 129
A130: 130 | B130: Total Classification Revenue Requirement | C130: =C114+C119+C124+C128 -> 346028268.9 | D130: =D114+D119+D124+D128 -> 159109207.4 | E130: 47303275.1 | F130: 68318023.16 | G130: 26687910.4 | H130: =H114+H119+H124+H128 -> 30290277.01 | I130: 12716557.27 | J130: 1603018.547
A131: 131 | B131: GTDRM Revenue Requirement | C131: =C21 -> 346028268.9 | D131: =D21 -> 159109207.4 | E131: 47303275.1 | F131: 68318023.16 | G131: 26687910.4 | H131: =H21 -> 30290277.01 | I131: 12716557.27 | J131: 1603018.547
A132: 132 | B132: Check | C132: =C130-C131 -> 0 | D132: =D130-D131 -> 0 | E132: 0 | F132: 0 | G132: 0 | H132: =H130-H131 -> 0 | I132: 0 | J132: 0
A133: 133
A134: 134 | B134: UNITS
A135: 135 | B135: NCP KW | C135: =C14 -> 19104106.17 | D135: =D14 -> 13034017.51 | E135: 2526803.372 | F135: 2323118.689 | G135: 810142.8188 | H135: =H14 -> 36636 | I135: 336751.7788 | J135: 36636
A136: 136 | B136: Annual KWH | C136: =C15 -> 3998877844 | D136: 1601807791 | E136: 537395792 | F136: 860704393 | G136: 358354770 | H136: =H15 -> 473928141 | I136: 153555066 | J136: 13131891
A137: 137 | B137: Average Customers | C137: 132377.5088 | D137: 104296.9778 | E137: 18646.79167 | F137: 1044.494444 | G137: 57.91161616 | H137: =H16 -> 1 | I137: 5260 | J137: 3070.333333
A138: 138 | B138: Load Factor | C138: 0 | D138: 0 | E138: 0 | F138: 0 | G138: 0 | H138: =H17 -> 0 | I138: 0 | J138: 0
A139: 139
A140: 140 | B140: 100% Cost Based Rates
A141: 141 | B141: Demand Charge | C141: =C114/C135 -> 5.952263371 | D141: =D114/D135 -> 3.874676883 | E141: 6.072029563 | F141: 10.3044818 | G141: 11.25540237 | H141: =H114/H135 -> 288.5988364 | I141: 11.9071447 | J141: 6.206012788
A142: 142 | B142: Energy Charge | C142: =C119/C136 -> 0.04463044681 | D142: =D119/D136 -> 0.04619180092 | E142: 0.04485993047 | F142: 0.04453048064 | G142: 0.04314170218 | H142: =H119/H136 -> 0.04113575287 | I142: 0.04292174392 | J142: 0.03806940609
A143: 143 | B143: Customer Charge | C143: =C124/C137/12 -> 10.53753507 | D143: =D124/D137/12 -> 10.21445809 | E143: 11.02055145 | F143: 56.98746414 | G143: 281.093456 | H143: =H124/H137/12 -> 6359.970696 | I143: 5.725457184 | J143: 3.849766015
A144: 144 | B144: Load Size Charge | C144: =C128/C135 -> 1.942236947 | D144: =D128/D135 -> 1.675014563 | E144: 2.131917902 | F144: 2.297614643 | G144: 2.362607271 | H144: =H128/H135 -> 3.970398241 | I144: 5.210256172 | J144: 20.03196289
A145: 145
A146: 146 | B146: Check
A147: 147 | B147: Demand Revenue Requirement | C147: =C141*C135 -> 113712671.4 | D147: =D141*D135 -> 50502606.35 | E147: 15342824.78 | F147: 23938534.25 | G147: 9118483.404 | H147: =H141*H135 -> 10573106.97 | I147: 4009752.159 | J147: 227363.4845
A148: 148 | B148: Energy Revenue Requirement | C148: =C142*C136 -> 178471704.9 | D148: =D142*D136 -> 73990386.59 | E148: 24107537.86 | F148: 38327580.31 | G148: 15460034.76 | H148: =H142*H136 -> 19495390.88 | I148: 6590851.221 | J148: 499923.2913
A149: 149 | B149: Customer Revenue Requirement | C149: =C143*C137*12 -> 16739191.7 | D149: =D143*D137*12 -> 12784045.3 | E149: 2465975.124 | F149: 714277.0764 | G149: 195342.9159 | H149: =H143*H137*12 -> 76319.64835 | I149: 361390.8574 | J149: 141840.7791
A150: =+A149+1 -> 150 | B150: Load Size Revenue Requirement | C150: =C144*C135 -> 37104700.85 | D150: =D144*D135 -> 21832169.14 | E150: 5386937.342 | F150: 5337631.518 | G150: 1914049.314 | H150: =H144*H135 -> 145459.5099 | I150: 1754563.034 | J150: 733890.9926
A151: =+A150+1 -> 151 | B151: Total Revenue Requirement | C151: =SUM(C147:C150) -> 346028268.9 | D151: =SUM(D147:D150) -> 159109207.4 | E151: 47303275.1 | F151: 68318023.16 | G151: 26687910.4 | H151: =SUM(H147:H150) -> 30290277.01 | I151: 12716557.27 | J151: 1603018.547

Sheet Class Summary
C1: Class Summary
C2: =Inputs!$C$3 -> PacifiCorp
C3: Cost Of Service By Rate Schedule - All Functions
C4: =Inputs!$C$4 -> State of Washington
C5: =+Method&" - "&IF(PeakMethod=1,"(Coincident Peaks)",IF(PeakMethod=2,"(200 Top Hours)","(100 Summer, 100 Winter Hours)"))&" - "&TEXT(Demand,"0%")&"D"&" / "&TEXT(Engy,"0%")&"E" -> WCA Method - (100 Summer, 100 Winter Hours) - 38%D / 62%E
C6: =Inputs!$C$5 -> 12 Months Ending June 2012
C9: A | D9: B | E9: C | F9: D | G9: F | H9: G | I9: H | J9: I | K9: J | L9: K | M9: L | N9: M
E10: ='Hot Sheet'!$H$10 -> Washington | G10: ='Hot Sheet'!$J$10 -> Small General | H10: ='Hot Sheet'!$K$10 -> Large General | I10: ='Hot Sheet'!$L$10 -> Large General | J10: ='Hot Sheet'!$M$10 -> Large General | K10: ='Hot Sheet'!$N$10 -> Agricultural | L10: ='Hot Sheet'!$O$10 -> Street & Area | O10: Chk Total
E11: ='Hot Sheet'!$H$11 -> Jurisdiction | F11: ='Hot Sheet'!$I$11 -> Residential | G11: ='Hot Sheet'!$J$11 -> Service | H11: ='Hot Sheet'!$K$11 -> Service <1,000 kW | I11: ='Hot Sheet'!$L$11 -> Service >1,000 kW | J11: ='Hot Sheet'!$M$11 -> Dedicated Facilities | K11: ='Hot Sheet'!$N$11 -> Pumping | L11: ='Hot Sheet'!$O$11 -> Lighting
C12: DESCRIPTION | E12: ='Hot Sheet'!$H$12 -> Normalized | F12: ='Hot Sheet'!$I$12 -> Schedule 16 | G12: ='Hot Sheet'!$J$12 -> Schedule 24 | H12: ='Hot Sheet'!$K$12 -> Schedule 36 | I12: ='Hot Sheet'!$L$12 -> Schedule 48T | J12: ='Hot Sheet'!$M$12 -> Schedule 48T | K12: ='Hot Sheet'!$N$12 -> Schedule 40 | L12: ='Hot Sheet'!$O$12 -> Sch. 15,51-54,57 | O12: =ROUND(SUM(O14:O68),0) -> 0
A14: 14 | C14: Operating Revenues | E14: ='G+T+D+R+M'!H$14 -> 327860485.1 | F14: ='G+T+D+R+M'!I$14 -> 145225650 | G14: ='G+T+D+R+M'!J$14 -> 48615379.58 | H14: ='G+T+D+R+M'!K$14 -> 66437492.11 | I14: ='G+T+D+R+M'!L$14 -> 25046773.6 | J14: ='G+T+D+R+M'!M$14 -> 27426673.61 | K14: ='G+T+D+R+M'!N$14 -> 13360573.23 | L14: ='G+T+D+R+M'!O$14 -> 1747942.991 | M14: ='G+T+D+R+M'!P$14 -> 0 | N14: ='G+T+D+R+M'!Q$14 -> 0 | O14: =ROUND(SUM(F14:N14)-E14,0) -> 0
A15: =A14+1 -> 15
A16: =A15+1 -> 16 | C16: Operating Expenses
A17: =A16+1 -> 17 | C17: Operation & Maintenance Expenses | E17: ='G+T+D+R+M'!$H17 -> 217526010.2 | F17: ='G+T+D+R+M'!$I17 -> 97622759.81 | G17: ='G+T+D+R+M'!$J17 -> 29373033.78 | H17: ='G+T+D+R+M'!$K17 -> 43886720.01 | I17: ='G+T+D+R+M'!$L17 -> 17255424.61 | J17: ='G+T+D+R+M'!$M17 -> 20641897.31 | K17: ='G+T+D+R+M'!$N17 -> 7853711.577 | L17: ='G+T+D+R+M'!$O17 -> 892463.063 | M17: ='G+T+D+R+M'!$P17 -> 0 | N17: ='G+T+D+R+M'!$Q17 -> 0 | O17: =ROUND(SUM(F17:N17)-E17,0) -> 0
A18: 18 | C18: Depreciation Expense | E18: ='G+T+D+R+M'!$H18 -> 41310105.54 | F18: ='G+T+D+R+M'!$I18 -> 19709818.07 | G18: ='G+T+D+R+M'!$J18 -> 5764107.579 | H18: ='G+T+D+R+M'!$K18 -> 7865055.452 | I18: ='G+T+D+R+M'!$L18 -> 3024586.256 | J18: ='G+T+D+R+M'!$M18 -> 3064682.956 | K18: ='G+T+D+R+M'!$N18 -> 1623768.801 | L18: ='G+T+D+R+M'!$O18 -> 258086.4278 | M18: ='G+T+D+R+M'!$P18 -> 0 | N18: ='G+T+D+R+M'!$Q18 -> 0 | O18: 0
A19: 19 | C19: Amortization Expense | E19: ='G+T+D+R+M'!$H19 -> 5547662.16 | F19: ='G+T+D+R+M'!$I19 -> 2595895.935 | G19: ='G+T+D+R+M'!$J19 -> 755292.8139 | H19: ='G+T+D+R+M'!$K19 -> 1062360.499 | I19: ='G+T+D+R+M'!$L19 -> 416648.5653 | J19: ='G+T+D+R+M'!$M19 -> 494160.5163 | K19: ='G+T+D+R+M'!$N19 -> 196867.7111 | L19: ='G+T+D+R+M'!$O19 -> 26436.1193 | M19: ='G+T+D+R+M'!$P19 -> 0 | N19: ='G+T+D+R+M'!$Q19 -> 0 | O19: 0
A20: 20 | C20: Taxes Other Than Income | E20: ='G+T+D+R+M'!$H20 -> 19982776.42 | F20: ='G+T+D+R+M'!$I20 -> 9476973.997 | G20: ='G+T+D+R+M'!$J20 -> 2774839.01 | H20: ='G+T+D+R+M'!$K20 -> 3838240.719 | I20: ='G+T+D+R+M'!$L20 -> 1477002.421 | J20: ='G+T+D+R+M'!$M20 -> 1546342.237 | K20: ='G+T+D+R+M'!$N20 -> 773770.1284 | L20: ='G+T+D+R+M'!$O20 -> 95607.9089 | M20: ='G+T+D+R+M'!$P20 -> 0 | N20: ='G+T+D+R+M'!$Q20 -> 0 | O20: 0
A21: 21 | C21: Income Taxes - Federal | E21: ='G+T+D+R+M'!$H21 -> -10210352.28 | F21: ='G+T+D+R+M'!$I21 -> -3923967.649 | G21: ='G+T+D+R+M'!$J21 -> -1362083.78 | H21: ='G+T+D+R+M'!$K21 -> -2356542.439 | I21: ='G+T+D+R+M'!$L21 -> -947011.4123 | J21: ='G+T+D+R+M'!$M21 -> -1263276.424 | K21: ='G+T+D+R+M'!$N21 -> -345877.9578 | L21: ='G+T+D+R+M'!$O21 -> -11592.62047 | M21: ='G+T+D+R+M'!$P21 -> 0 | N21: ='G+T+D+R+M'!$Q21 -> 0 | O21: 0
A22: 22 | C22: Income Taxes - State | E22: ='G+T+D+R+M'!$H22 -> 0 | F22: ='G+T+D+R+M'!$I22 -> 0 | G22: ='G+T+D+R+M'!$J22 -> 0 | H22: ='G+T+D+R+M'!$K22 -> 0 | I22: ='G+T+D+R+M'!$L22 -> 0 | J22: ='G+T+D+R+M'!$M22 -> 0 | K22: ='G+T+D+R+M'!$N22 -> 0 | L22: ='G+T+D+R+M'!$O22 -> 0 | M22: ='G+T+D+R+M'!$P22 -> 0 | N22: ='G+T+D+R+M'!$Q22 -> 0 | O22: 0
A23: 23 | C23: Income Taxes Deferred | E23: ='G+T+D+R+M'!$H23 -> 16414669.74 | F23: ='G+T+D+R+M'!$I23 -> 7115555.078 | G23: ='G+T+D+R+M'!$J23 -> 2229070.842 | H23: ='G+T+D+R+M'!$K23 -> 3444214.169 | I23: ='G+T+D+R+M'!$L23 -> 1354724.364 | J23: ='G+T+D+R+M'!$M23 -> 1628797.704 | K23: ='G+T+D+R+M'!$N23 -> 595135.5824 | L23: ='G+T+D+R+M'!$O23 -> 47171.99918 | M23: ='G+T+D+R+M'!$P23 -> 0 | N23: ='G+T+D+R+M'!$Q23 -> 0 | O23: 0
A24: 24 | C24: Investment Tax Credit Adj | E24: ='G+T+D+R+M'!$H24 -> 0 | F24: ='G+T+D+R+M'!$I24 -> 0 | G24: ='G+T+D+R+M'!$J24 -> 0 | H24: ='G+T+D+R+M'!$K24 -> 0 | I24: ='G+T+D+R+M'!$L24 -> 0 | J24: ='G+T+D+R+M'!$M24 -> 0 | K24: ='G+T+D+R+M'!$N24 -> 0 | L24: ='G+T+D+R+M'!$O24 -> 0 | M24: ='G+T+D+R+M'!$P24 -> 0 | N24: ='G+T+D+R+M'!$Q24 -> 0 | O24: 0
A25: 25 | C25: Misc Revenues & Expense | E25: ='G+T+D+R+M'!$H25 -> -842347.3027 | F25: ='G+T+D+R+M'!$I25 -> -354408.4205 | G25: ='G+T+D+R+M'!$J25 -> -114325.3302 | H25: ='G+T+D+R+M'!$K25 -> -181213.4134 | I25: ='G+T+D+R+M'!$L25 -> -71614.97084 | J25: ='G+T+D+R+M'!$M25 -> -88562.45166 | K25: ='G+T+D+R+M'!$N25 -> -30185.63176 | L25: ='G+T+D+R+M'!$O25 -> -2037.084284 | M25: ='G+T+D+R+M'!$P25 -> 0 | N25: ='G+T+D+R+M'!$Q25 -> 0 | O25: 0
A26: 26
A27: 27 | C27: Total Operating Expenses | E27: =SUM(E17:E25) -> 289728524.4 | F27: =SUM(F17:F25) -> 132242626.8 | G27: 39419934.91 | H27: 57558835 | I27: 22509759.83 | J27: =SUM(J17:J25) -> 26024041.85 | K27: 10667190.21 | L27: 1306135.814 | M27: 0 | N27: 0 | O27: =ROUND(SUM(F27:N27)-E27,0) -> 0
A28: 28
A29: 29 | C29: Operating Revenue For Return | E29: =E14-E27 -> 38131960.68 | F29: =F14-F27 -> 12983023.18 | G29: 9195444.663 | H29: 8878657.113 | I29: 2537013.764 | J29: =J14-J27 -> 1402631.765 | K29: 2693383.018 | L29: 441807.1776 | M29: 0 | N29: 0 | O29: =ROUND(SUM(F29:N29)-E29,0) -> 0
A30: 30
A31: 31
A32: 32 | C32: Rate Base :
A33: =A32+1 -> 33 | C33: Electric Plant In Service | E33: ='G+T+D+R+M'!H33 -> 1655504559 | F33: ='G+T+D+R+M'!I33 -> 783253335.2 | G33: ='G+T+D+R+M'!J33 -> 230405466.6 | H33: ='G+T+D+R+M'!K33 -> 318245233.6 | I33: ='G+T+D+R+M'!L33 -> 122764804.2 | J33: ='G+T+D+R+M'!M33 -> 127075789.2 | K33: ='G+T+D+R+M'!N33 -> 64536359.71 | L33: ='G+T+D+R+M'!O33 -> 9223570.449 | M33: ='G+T+D+R+M'!P33 -> 0 | N33: ='G+T+D+R+M'!Q33 -> 0 | O33: =ROUND(SUM(F33:N33)-E33,0) -> 0
A34: 34 | C34: Plant Held For Future Use | E34: ='G+T+D+R+M'!H34 -> 43755.27334 | F34: ='G+T+D+R+M'!I34 -> 18564.26956 | G34: ='G+T+D+R+M'!J34 -> 5904.810833 | H34: ='G+T+D+R+M'!K34 -> 9355.662991 | I34: ='G+T+D+R+M'!L34 -> 3696.994324 | J34: ='G+T+D+R+M'!M34 -> 4570.873252 | K34: ='G+T+D+R+M'!N34 -> 1557.691456 | L34: ='G+T+D+R+M'!O34 -> 104.9709202 | M34: ='G+T+D+R+M'!P34 -> 0 | N34: ='G+T+D+R+M'!Q34 -> 0 | O34: 0
A35: 35 | C35: Electric Plant Acquisition Adj | E35: ='G+T+D+R+M'!H35 -> 0 | F35: ='G+T+D+R+M'!I35 -> 0 | G35: ='G+T+D+R+M'!J35 -> 0 | H35: ='G+T+D+R+M'!K35 -> 0 | I35: ='G+T+D+R+M'!L35 -> 0 | J35: ='G+T+D+R+M'!M35 -> 0 | K35: ='G+T+D+R+M'!N35 -> 0 | L35: ='G+T+D+R+M'!O35 -> 0 | M35: ='G+T+D+R+M'!P35 -> 0 | N35: ='G+T+D+R+M'!Q35 -> 0 | O35: 0
A36: 36 | C36: Nuclear Fuel | E36: ='G+T+D+R+M'!H36 -> 0 | F36: ='G+T+D+R+M'!I36 -> 0 | G36: ='G+T+D+R+M'!J36 -> 0 | H36: ='G+T+D+R+M'!K36 -> 0 | I36: ='G+T+D+R+M'!L36 -> 0 | J36: ='G+T+D+R+M'!M36 -> 0 | K36: ='G+T+D+R+M'!N36 -> 0 | L36: ='G+T+D+R+M'!O36 -> 0 | M36: ='G+T+D+R+M'!P36 -> 0 | N36: ='G+T+D+R+M'!Q36 -> 0 | O36: 0
A37: 37 | C37: Prepayments | E37: ='G+T+D+R+M'!H37 -> -1.037260517e-07 | F37: ='G+T+D+R+M'!I37 -> -5.291632929e-08 | G37: ='G+T+D+R+M'!J37 -> -1.404664492e-08 | H37: ='G+T+D+R+M'!K37 -> -1.739393749e-08 | I37: ='G+T+D+R+M'!L37 -> -6.836575715e-09 | J37: ='G+T+D+R+M'!M37 -> -8.404123647e-09 | K37: ='G+T+D+R+M'!N37 -> -3.432187456e-09 | L37: ='G+T+D+R+M'!O37 -> -6.962532338e-10 | M37: ='G+T+D+R+M'!P37 -> 0 | N37: ='G+T+D+R+M'!Q37 -> 0 | O37: 0
A38: 38 | C38: Fuel Stock | E38: ='G+T+D+R+M'!H38 -> -1.51747372e-07 | F38: ='G+T+D+R+M'!I38 -> -6.43826196e-08 | G38: ='G+T+D+R+M'!J38 -> -2.047843512e-08 | H38: ='G+T+D+R+M'!K38 -> -3.24463125e-08 | I38: ='G+T+D+R+M'!L38 -> -1.282152139e-08 | J38: ='G+T+D+R+M'!M38 -> -1.585221508e-08 | K38: ='G+T+D+R+M'!N38 -> -5.402219363e-09 | L38: ='G+T+D+R+M'!O38 -> -3.640489492e-10 | M38: ='G+T+D+R+M'!P38 -> 0 | N38: ='G+T+D+R+M'!Q38 -> 0 | O38: 0
A39: 39 | C39: Materials & Supplies | E39: ='G+T+D+R+M'!H39 -> 0.0001456063546 | F39: ='G+T+D+R+M'!I39 -> 6.696134884e-05 | G39: ='G+T+D+R+M'!J39 -> 2.011948177e-05 | H39: ='G+T+D+R+M'!K39 -> 2.88676815e-05 | I39: ='G+T+D+R+M'!L39 -> 1.120679142e-05 | J39: ='G+T+D+R+M'!M39 -> 1.219247757e-05 | K39: ='G+T+D+R+M'!N39 -> 5.568663686e-06 | L39: ='G+T+D+R+M'!O39 -> 6.899098426e-07 | M39: ='G+T+D+R+M'!P39 -> 0 | N39: ='G+T+D+R+M'!Q39 -> 0 | O39: 0
A40: 40 | C40: Misc Deferred Debits | E40: ='G+T+D+R+M'!H40 -> 14766733.28 | F40: ='G+T+D+R+M'!I40 -> 6265156.089 | G40: ='G+T+D+R+M'!J40 -> 1992783.041 | H40: ='G+T+D+R+M'!K40 -> 3157392.687 | I40: ='G+T+D+R+M'!L40 -> 1247678.85 | J40: ='G+T+D+R+M'!M40 -> 1542599.578 | K40: ='G+T+D+R+M'!N40 -> 525696.9621 | L40: ='G+T+D+R+M'!O40 -> 35426.07469 | M40: ='G+T+D+R+M'!P40 -> 0 | N40: ='G+T+D+R+M'!Q40 -> 0 | O40: 0
A41: 41 | C41: Cash Working Capital | E41: ='G+T+D+R+M'!H41 -> 28493963.91 | F41: ='G+T+D+R+M'!I41 -> 12900301.86 | G41: ='G+T+D+R+M'!J41 -> 3858212.911 | H41: ='G+T+D+R+M'!K41 -> 5692411.962 | I41: ='G+T+D+R+M'!L41 -> 2234162.895 | J41: ='G+T+D+R+M'!M41 -> 2634999.223 | K41: ='G+T+D+R+M'!N41 -> 1041207.754 | L41: ='G+T+D+R+M'!O41 -> 132667.3054 | M41: ='G+T+D+R+M'!P41 -> 0 | N41: ='G+T+D+R+M'!Q41 -> 0 | O41: 0
A42: 42 | C42: Weatherization Loans | E42: ='G+T+D+R+M'!H42 -> 1957722.325 | F42: ='G+T+D+R+M'!I42 -> 830612.6828 | G42: ='G+T+D+R+M'!J42 -> 264196.2697 | H42: ='G+T+D+R+M'!K42 -> 418596.1808 | I42: ='G+T+D+R+M'!L42 -> 165412.9382 | J42: ='G+T+D+R+M'!M42 -> 204512.5063 | K42: ='G+T+D+R+M'!N42 -> 69695.08147 | L42: ='G+T+D+R+M'!O42 -> 4696.666216 | M42: ='G+T+D+R+M'!P42 -> 0 | N42: ='G+T+D+R+M'!Q42 -> 0 | O42: 0
A43: 43 | C43: Miscellaneous Rate Base | E43: ='G+T+D+R+M'!H43 -> 0 | F43: ='G+T+D+R+M'!I43 -> 0 | G43: ='G+T+D+R+M'!J43 -> 0 | H43: ='G+T+D+R+M'!K43 -> 0 | I43: ='G+T+D+R+M'!L43 -> 0 | J43: ='G+T+D+R+M'!M43 -> 0 | K43: ='G+T+D+R+M'!N43 -> 0 | L43: ='G+T+D+R+M'!O43 -> 0 | M43: ='G+T+D+R+M'!P43 -> 0 | N43: ='G+T+D+R+M'!Q43 -> 0 | O43: 0
A44: 44
A45: 45 | C45: Total Rate Base Additions | E45: =SUM(E33:E43) -> 1700766734 | F45: 803267970.1 | G45: 236526563.6 | H45: 327522990.1 | I45: 126415755.9 | J45: =SUM(J33:J43) -> 131462471.4 | K45: 66174517.2 | L45: 9396465.466 | M45: 0 | N45: 0 | O45: =ROUND(SUM(F45:N45)-E45,0) -> 0
A46: 46
A47: 47 | C47: Rate Base Deductions :
A48: 48 | C48: Accum Provision For Depreciation | E48: ='G+T+D+R+M'!H48 -> -589326216.1 | F48: ='G+T+D+R+M'!I48 -> -282586511.2 | G48: ='G+T+D+R+M'!J48 -> -82264799.76 | H48: ='G+T+D+R+M'!K48 -> -111943878.7 | I48: ='G+T+D+R+M'!L48 -> -43026737.24 | J48: ='G+T+D+R+M'!M48 -> -41797664.29 | K48: ='G+T+D+R+M'!N48 -> -23626273.47 | L48: ='G+T+D+R+M'!O48 -> -4080351.423 | M48: ='G+T+D+R+M'!P48 -> 0 | N48: ='G+T+D+R+M'!Q48 -> 0 | O48: =ROUND(SUM(F48:N48)-E48,0) -> 0
A49: =A48+1 -> 49 | C49: Accum Provision For Amortization | E49: ='G+T+D+R+M'!H49 -> -43465840.66 | F49: ='G+T+D+R+M'!I49 -> -22284184.6 | G49: ='G+T+D+R+M'!J49 -> -5978405.913 | H49: ='G+T+D+R+M'!K49 -> -7337537.69 | I49: ='G+T+D+R+M'!L49 -> -2846429.798 | J49: ='G+T+D+R+M'!M49 -> -3158922.494 | K49: ='G+T+D+R+M'!N49 -> -1546428.959 | L49: ='G+T+D+R+M'!O49 -> -313931.2033 | M49: ='G+T+D+R+M'!P49 -> 0 | N49: ='G+T+D+R+M'!Q49 -> 0 | O49: 0
A50: 50 | C50: Accum Deferred Income Taxes | E50: ='G+T+D+R+M'!H50 -> -232193930.2 | F50: ='G+T+D+R+M'!I50 -> -109745158.5 | G50: ='G+T+D+R+M'!J50 -> -32320010.05 | H50: ='G+T+D+R+M'!K50 -> -44603233.55 | I50: ='G+T+D+R+M'!L50 -> -17212790.76 | J50: ='G+T+D+R+M'!M50 -> -18212937.87 | K50: ='G+T+D+R+M'!N50 -> -8944996.805 | L50: ='G+T+D+R+M'!O50 -> -1154802.568 | M50: ='G+T+D+R+M'!P50 -> 0 | N50: ='G+T+D+R+M'!Q50 -> 0 | O50: 0
A51: 51 | C51: Unamortized ITC | E51: ='G+T+D+R+M'!H51 -> -523327.7734 | F51: ='G+T+D+R+M'!I51 -> -248490.8104 | G51: ='G+T+D+R+M'!J51 -> -73139.9501 | H51: ='G+T+D+R+M'!K51 -> -100224.4673 | I51: ='G+T+D+R+M'!L51 -> -38555.22941 | J51: ='G+T+D+R+M'!M51 -> -39803.74526 | K51: ='G+T+D+R+M'!N51 -> -20442.81181 | L51: ='G+T+D+R+M'!O51 -> -2670.759157 | M51: ='G+T+D+R+M'!P51 -> 0 | N51: ='G+T+D+R+M'!Q51 -> 0 | O51: 0
A52: 52 | C52: Customer Advance For Construction | E52: ='G+T+D+R+M'!H52 -> -143878.9987 | F52: ='G+T+D+R+M'!I52 -> -52992.55235 | G52: ='G+T+D+R+M'!J52 -> -82336.35931 | H52: ='G+T+D+R+M'!K52 -> 0 | I52: ='G+T+D+R+M'!L52 -> 0 | J52: ='G+T+D+R+M'!M52 -> 0 | K52: ='G+T+D+R+M'!N52 -> -8550.087022 | L52: ='G+T+D+R+M'!O52 -> 0 | M52: ='G+T+D+R+M'!P52 -> 0 | N52: ='G+T+D+R+M'!Q52 -> 0 | O52: 0
A53: 53 | C53: Customer Service Deposits | E53: ='G+T+D+R+M'!H53 -> -3236612.086 | F53: ='G+T+D+R+M'!I53 -> -2788224.775 | G53: ='G+T+D+R+M'!J53 -> -313289.8175 | H53: ='G+T+D+R+M'!K53 -> -70306.17488 | I53: ='G+T+D+R+M'!L53 -> 0 | J53: ='G+T+D+R+M'!M53 -> 0 | K53: ='G+T+D+R+M'!N53 -> -62433.83552 | L53: ='G+T+D+R+M'!O53 -> -2357.483613 | M53: ='G+T+D+R+M'!P53 -> 0 | N53: ='G+T+D+R+M'!Q53 -> 0 | O53: 0
A54: 54 | C54: Misc Rate Base Deductions | E54: ='G+T+D+R+M'!H54 -> -3448113.694 | F54: ='G+T+D+R+M'!I54 -> -1496930.903 | G54: ='G+T+D+R+M'!J54 -> -468405.247 | H54: ='G+T+D+R+M'!K54 -> -722417.839 | I54: ='G+T+D+R+M'!L54 -> -284156.5565 | J54: ='G+T+D+R+M'!M54 -> -340421.1468 | K54: ='G+T+D+R+M'!N54 -> -125277.2348 | L54: ='G+T+D+R+M'!O54 -> -10504.76729 | M54: ='G+T+D+R+M'!P54 -> 0 | N54: ='G+T+D+R+M'!Q54 -> 0 | O54: 0
A55: 55
A56: 56 | C56: Total Rate Base Deductions | E56: =SUM(E48:E54) -> -872337919.4 | F56: -419202493.4 | G56: -121500387.1 | H56: -164777598.4 | I56: -63408669.58 | J56: =SUM(J48:J54) -> -63549749.55 | K56: -34334403.2 | L56: -5564618.204 | M56: 0 | N56: 0 | O56: =ROUND(SUM(F56:N56)-E56,0) -> 0
A57: 57
A58: 58 | C58: Total Rate Base | E58: =E45+E56 -> 828428814.4 | F58: =F45+F56 -> 384065476.7 | G58: 115026176.5 | H58: 162745391.7 | I58: 63007086.34 | J58: =J45+J56 -> 67912721.86 | K58: 31840114 | L58: 3831847.262 | M58: 0 | N58: 0 | O58: =ROUND(SUM(F58:N58)-E58,0) -> 0
A59: 59
A60: 60 | C60: Calculated Return On Rate Base | E60: ='G+T+D+R+M'!H61 -> 0.04602925444 | F60: ='G+T+D+R+M'!I61 -> 0.03380419218 | G60: ='G+T+D+R+M'!J61 -> 0.07994219177 | H60: ='G+T+D+R+M'!K61 -> 0.05455550551 | I60: ='G+T+D+R+M'!L61 -> 0.04026553062 | J60: ='G+T+D+R+M'!M61 -> 0.02065344646 | K60: ='G+T+D+R+M'!N61 -> 0.08459087232 | L60: ='G+T+D+R+M'!O61 -> 0.1152987443 | M60: ='G+T+D+R+M'!P61 -> 0 | N60: ='G+T+D+R+M'!Q61 -> 0
A61: 61
A62: 62 | C62: Return On Rate Base @ Jurisdictional Ave. | D62: =ActualROR -> 0.04602925444 | E62: =$D$62*E58 -> 38131960.68 | F62: =$D$62*F58 -> 17678247.55 | G62: =$D$62*G58 -> 5294569.147 | H62: 7491049.043 | I62: 2900169.209 | J62: =$D$62*J58 -> 3125971.954 | K62: 1465576.709 | L62: 176377.0726 | M62: 0 | N62: 0 | O62: =ROUND(SUM(F62:N62)-E62,0) -> 0
A63: 63 | C63: Total Operating Expenses | E63: =E27 -> 289728524.4 | F63: 132242626.8 | G63: 39419934.91 | H63: 57558835 | I63: 22509759.83 | J63: =J27 -> 26024041.85 | K63: 10667190.21 | L63: 1306135.814 | M63: 0 | N63: 0 | O63: =ROUND(SUM(F63:N63)-E63,0) -> 0
A64: 64 | C64: Revenue Credits | E64: ='G+T+D+R+M'!H$99 -> -24632889.25 | F64: ='G+T+D+R+M'!I$99 -> -10654362.7 | G64: ='G+T+D+R+M'!J$99 -> -3354042.246 | H64: ='G+T+D+R+M'!K$99 -> -5140081.57 | I64: ='G+T+D+R+M'!L$99 -> -1977272.025 | J64: ='G+T+D+R+M'!M$99 -> -2368439.225 | K64: ='G+T+D+R+M'!N$99 -> -1061225.228 | L64: ='G+T+D+R+M'!O$99 -> -77466.25712 | M64: ='G+T+D+R+M'!P$99 -> 0 | N64: ='G+T+D+R+M'!Q$99 -> 0 | O64: =ROUND(SUM(F64:N64)-E64,0) -> 0
A65: =A64+1 -> 65
A66: 66 | C66: Total Revenue Requirements | E66: ='G+T+D+R+M'!H$101 -> 303227595.9 | F66: ='G+T+D+R+M'!I$101 -> 139266511.7 | G66: ='G+T+D+R+M'!J$101 -> 41360461.81 | H66: ='G+T+D+R+M'!K$101 -> 59909802.47 | I66: ='G+T+D+R+M'!L$101 -> 23432657.02 | J66: ='G+T+D+R+M'!M$101 -> 26781574.58 | K66: ='G+T+D+R+M'!N$101 -> 11071541.69 | L66: ='G+T+D+R+M'!O$101 -> 1405046.629 | M66: ='G+T+D+R+M'!P$101 -> 0 | N66: ='G+T+D+R+M'!Q$101 -> 0 | O66: =ROUND(SUM(F66:N66)-E66,0) -> 0
A67: 67 | C67: Class Revenue | E67: ='G+T+D+R+M'!H$102 -> 303227595.9 | F67: ='G+T+D+R+M'!I$102 -> 134571287.3 | G67: ='G+T+D+R+M'!J$102 -> 45261337.33 | H67: ='G+T+D+R+M'!K$102 -> 61297410.54 | I67: ='G+T+D+R+M'!L$102 -> 23069501.57 | J67: ='G+T+D+R+M'!M$102 -> 25058234.39 | K67: ='G+T+D+R+M'!N$102 -> 12299348 | L67: ='G+T+D+R+M'!O$102 -> 1670476.734 | M67: ='G+T+D+R+M'!P$102 -> 0 | N67: ='G+T+D+R+M'!Q$102 -> 0 | O67: =ROUND(SUM(F67:N67)-E67,0) -> 0
A68: 68 | O68: =ROUND(SUM(-I68,K68:N68),0) -> 0
A69: 69 | C69: Increase / (Decrease) Required to
A70: 70 | C70: Earn Equal Rates of Return | E70: ='G+T+D+R+M'!H$105 -> 0 | F70: ='G+T+D+R+M'!I$105 -> 4695224.367 | G70: ='G+T+D+R+M'!J$105 -> -3900875.516 | H70: ='G+T+D+R+M'!K$105 -> -1387608.07 | I70: ='G+T+D+R+M'!L$105 -> 363155.4446 | J70: ='G+T+D+R+M'!M$105 -> 1723340.189 | K70: ='G+T+D+R+M'!N$105 -> -1227806.309 | L70: ='G+T+D+R+M'!O$105 -> -265430.1049 | M70: ='G+T+D+R+M'!P$105 -> 0 | N70: ='G+T+D+R+M'!Q$105 -> 0 | O70: =ROUND(SUM(F70:N70)-E70,0) -> 0
A71: 71
A72: 72 | C72: Percent % | E72: ='G+T+D+R+M'!H$111 -> 0 | F72: ='G+T+D+R+M'!I$111 -> 0.03489023893 | G72: ='G+T+D+R+M'!J$111 -> -0.08618560004 | H72: ='G+T+D+R+M'!K$111 -> -0.02263730324 | I72: ='G+T+D+R+M'!L$111 -> 0.01574179847 | J72: ='G+T+D+R+M'!M$111 -> 0.06877340848 | K72: ='G+T+D+R+M'!N$111 -> -0.09982694279 | L72: ='G+T+D+R+M'!O$111 -> -0.158894823 | M72: ='G+T+D+R+M'!P$111 -> 0 | N72: ='G+T+D+R+M'!Q$111 -> 0
A73: 73
A74: 74
A75: 75 | C75: Return On Rate Base @ Target ROR | D75: =TargetROR -> 0.07799999713 | E75: =$D75*E58 -> 64617445.14 | F75: =$D75*F58 -> 29957106.08 | G75: 8972041.439 | H75: 12694140.08 | I75: 4914552.553 | J75: =$D75*J58 -> 5297192.11 | K75: 2483528.8 | L75: 298884.0754 | M75: 0 | N75: 0 | O75: =ROUND(SUM(F75:N75)-E75,0) -> 0
A76: 76 | C76: Total Operating Expenses Adjusted for Taxes | E76: =E63+((E75-E62)*(1/Net_to_Gross_Factor))-(E75-E62) -> 306043713 | F76: =F63+((F75-F62)*(1/Net_to_Gross_Factor))-(F75-F62) -> 139806464 | G76: 41685275.91 | H76: 60763964.64 | I76: 23750629.87 | J76: =J63+((J75-J62)*(1/Net_to_Gross_Factor))-(J75-J62) -> 27361524.13 | K76: 11294253.7 | L76: 1381600.729 | M76: 0 | N76: 0 | O76: =ROUND(SUM(F76:N76)-E76,0) -> 0
A77: 77 | C77: Revenue Credits | E77: =E64 -> -24632889.25 | F77: =F64 -> -10654362.7 | G77: -3354042.246 | H77: -5140081.57 | I77: -1977272.025 | J77: =J64 -> -2368439.225 | K77: -1061225.228 | L77: -77466.25712 | M77: 0 | N77: 0 | O77: =ROUND(SUM(F77:N77)-E77,0) -> 0
A78: 78
A79: 79 | C79: Total Target Revenue Requirements | E79: =SUM(E75:E77) -> 346028268.9 | F79: =SUM(F75:F77) -> 159109207.4 | G79: =SUM(G75:G77) -> 47303275.1 | H79: 68318023.16 | I79: 26687910.4 | J79: =SUM(J75:J77) -> 30290277.01 | K79: 12716557.27 | L79: 1603018.547 | M79: 0 | N79: 0 | O79: =ROUND(SUM(F79:N79)-E79,0) -> 0
A80: 80 | C80: Class Revenue | E80: =E67 -> 303227595.9 | F80: =F67 -> 134571287.3 | G80: 45261337.33 | H80: 61297410.54 | I80: 23069501.57 | J80: =J67 -> 25058234.39 | K80: 12299348 | L80: 1670476.734 | M80: 0 | N80: 0 | O80: =ROUND(SUM(F80:N80)-E80,0) -> 0
A81: 81
A82: 82 | C82: Increase / (Decrease) Required to
A83: 83 | C83: Earn Target Rate of Return | E83: =E79-E80 -> 42800673 | F83: =F79-F80 -> 24537920.08 | G83: 2041937.774 | H83: 7020612.613 | I83: 3618408.826 | J83: =J79-J80 -> 5232042.627 | K83: 417209.2718 | L83: -67458.18654 | M83: 0 | N83: 0 | O83: =ROUND(SUM(F83:N83)-E83,0) -> 0
A84: 84
A85: 85 | C85: Percent % | E85: =E83/E80 -> 0.1411503227 | F85: =F83/F80 -> 0.1823414234 | G85: 0.04511439331 | H85: 0.114533592 | I85: 0.1568481579 | J85: =J83/J80 -> 0.2087953423 | K85: 0.03392125109 | L85: -0.04038259568

Sheet Function Summary
C1: Function Summary
C2: =Inputs!$C$3 -> PacifiCorp
C3: Cost Of Service - Function Summary
C4: =Inputs!$C$4 -> State of Washington
C5: =+Method&" - "&IF(PeakMethod=1,"(Coincident Peaks)",IF(PeakMethod=2,"(200 Top Hours)","(100 Summer, 100 Winter Hours)"))&" - "&TEXT(Demand,"0%")&"D"&" / "&TEXT(Engy,"0%")&"E" -> WCA Method - (100 Summer, 100 Winter Hours) - 38%D / 62%E
C6: =Inputs!$C$5 -> 12 Months Ending June 2012
C9: A | D9: B | E9: C | F9: D | G9: E | H9: F | I9: G | J9: H | L9: I | M9: J | N9: K | O9: L | P9: M
E10: ='Hot Sheet'!$H$10 -> Washington | L10: Distribution | M10: Distribution | N10: Distribution | O10: Distribution | P10: Distribution | Q10: Chk Total
E11: ='Hot Sheet'!$H$11 -> Jurisdiction | F11: Generation | G11: Transmission | H11: Distribution | I11: Retail | J11: MISC. | L11: Substations | M11: Poles & Wires | N11: Transformers | O11: Meters | P11: Services
C12: DESCRIPTION | E12: ='Hot Sheet'!$H$12 -> Normalized | F12: Function | G12: Function | H12: Function | I12: Function | J12: Function | L12: Function | M12: Function | N12: Function | O12: Function | P12: Function | Q12: =SUM(Q14:Q68) -> 0
A14: 14 | C14: Operating Expenses
A15: =A14+1 -> 15 | C15: Operation & Maintenance Expenses | E15: ='Class Summary'!E17 -> 217526010.2 | F15: ='Func Study'!$G13 -> 160399072.8 | G15: ='Func Study'!$H13 -> 32671390.56 | H15: ='Func Study'!$I13 -> 14391948.89 | I15: ='Func Study'!$J13 -> 8378177.356 | J15: ='Func Study'!$K13 -> 1685420.531 | L15: ='Func Study'!$T13 -> 2499193.049 | M15: ='Func Study'!$U13 -> 9273227.578 | N15: ='Func Study'!$V13 -> 942194.692 | O15: ='Func Study'!$W13 -> 1209694.961 | P15: ='Func Study'!$X13 -> 467638.6126 | Q15: =ROUND(SUM(-E15,F15:J15),0) -> 0
A16: =A15+1 -> 16 | C16: Depreciation Expense | E16: ='Class Summary'!E18 -> 41310105.54 | F16: ='Func Study'!$G14 -> 23157034.25 | G16: ='Func Study'!$H14 -> 5516357.651 | H16: ='Func Study'!$I14 -> 12516369.43 | I16: ='Func Study'!$J14 -> 120344.2141 | J16: ='Func Study'!$K14 -> 0 | L16: ='Func Study'!$T14 -> 1177339.819 | M16: ='Func Study'!$U14 -> 6315400.812 | N16: ='Func Study'!$V14 -> 3125717.812 | O16: ='Func Study'!$W14 -> 477826.3978 | P16: ='Func Study'!$X14 -> 1420084.592 | Q16: =ROUND(SUM(-E16,F16:J16),0) -> 0
A17: 17 | C17: Amortization Expense | E17: ='Class Summary'!E19 -> 5547662.16 | F17: ='Func Study'!$G15 -> 3860505.588 | G17: ='Func Study'!$H15 -> 808907.7505 | H17: ='Func Study'!$I15 -> 442417.0888 | I17: ='Func Study'!$J15 -> 435831.733 | J17: ='Func Study'!$K15 -> 0 | L17: ='Func Study'!$T15 -> 51974.97264 | M17: ='Func Study'!$U15 -> 212916.0274 | N17: ='Func Study'!$V15 -> 107975.4776 | O17: ='Func Study'!$W15 -> 12506.5547 | P17: ='Func Study'!$X15 -> 57044.05653 | Q17: 0
A18: 18 | C18: Taxes Other Than Income | E18: ='Class Summary'!E20 -> 19982776.42 | F18: ='Func Study'!$G16 -> 10113138.54 | G18: ='Func Study'!$H16 -> 4248894.659 | H18: ='Func Study'!$I16 -> 5489522.201 | I18: ='Func Study'!$J16 -> 131221.0196 | J18: ='Func Study'!$K16 -> 0 | L18: ='Func Study'!$T16 -> 644906.7484 | M18: ='Func Study'!$U16 -> 2641867.344 | N18: ='Func Study'!$V16 -> 1339762.401 | O18: ='Func Study'!$W16 -> 155181.6406 | P18: ='Func Study'!$X16 -> 707804.0669 | Q18: 0
A19: 19 | C19: Income Taxes - Federal | E19: ='Class Summary'!E21 -> -10210352.28 | F19: ='Func Study'!$G17 -> -11934722.09 | G19: ='Func Study'!$H17 -> -368427.971 | H19: ='Func Study'!$I17 -> 1813833.165 | I19: ='Func Study'!$J17 -> 181641.4115 | J19: ='Func Study'!$K17 -> 97323.20035 | L19: ='Func Study'!$T17 -> 269774.2867 | M19: ='Func Study'!$U17 -> 755073.5852 | N19: ='Func Study'!$V17 -> 433291.6642 | O19: ='Func Study'!$W17 -> 80022.58693 | P19: ='Func Study'!$X17 -> 275671.042 | Q19: 0
A20: 20 | C20: Income Taxes - State | E20: ='Class Summary'!E22 -> 0 | F20: ='Func Study'!$G18 -> 0 | G20: ='Func Study'!$H18 -> 0 | H20: ='Func Study'!$I18 -> 0 | I20: ='Func Study'!$J18 -> 0 | J20: ='Func Study'!$K18 -> 0 | L20: ='Func Study'!$T18 -> 0 | M20: ='Func Study'!$U18 -> 0 | N20: ='Func Study'!$V18 -> 0 | O20: ='Func Study'!$W18 -> 0 | P20: ='Func Study'!$X18 -> 0 | Q20: 0
A21: 21 | C21: Income Taxes Deferred | E21: ='Class Summary'!E23 -> 16414669.74 | F21: ='Func Study'!$G19 -> 12810565.38 | G21: ='Func Study'!$H19 -> 2686209.424 | H21: ='Func Study'!$I19 -> 908708.6078 | I21: ='Func Study'!$J19 -> 9186.324475 | J21: ='Func Study'!$K19 -> 0 | L21: ='Func Study'!$T19 -> 106179.3855 | M21: ='Func Study'!$U19 -> 426922.375 | N21: ='Func Study'!$V19 -> 231696.1771 | O21: ='Func Study'!$W19 -> 21352.15192 | P21: ='Func Study'!$X19 -> 122558.5183 | Q21: 0
A22: 22 | C22: Investment Tax Credit Adj | E22: ='Class Summary'!E24 -> 0 | F22: ='Func Study'!$G20 -> 0 | G22: ='Func Study'!$H20 -> 0 | H22: ='Func Study'!$I20 -> 0 | I22: ='Func Study'!$J20 -> 0 | J22: ='Func Study'!$K20 -> 0 | L22: ='Func Study'!$T20 -> 0 | M22: ='Func Study'!$U20 -> 0 | N22: ='Func Study'!$V20 -> 0 | O22: ='Func Study'!$W20 -> 0 | P22: ='Func Study'!$X20 -> 0 | Q22: 0
A23: 23 | C23: Misc Revenues & Expense | E23: ='Class Summary'!E25 -> -842347.3027 | F23: ='Func Study'!$G21 -> -853313.32 | G23: ='Func Study'!$H21 -> 516.4751828 | H23: ='Func Study'!$I21 -> 3674.254873 | I23: ='Func Study'!$J21 -> 6775.287273 | J23: ='Func Study'!$K21 -> 0 | L23: ='Func Study'!$T21 -> 431.6499098 | M23: ='Func Study'!$U21 -> 1768.25844 | N23: ='Func Study'!$V21 -> 896.7316921 | O23: ='Func Study'!$W21 -> 103.8663982 | P23: ='Func Study'!$X21 -> 473.7484333 | Q23: 0
A24: 24
A25: 25 | C25: Total Operating Expenses | E25: =SUM(E15:E23) -> 289728524.4 | F25: 197552281.2 | G25: 45563848.55 | H25: 35566473.64 | I25: 9263177.346 | J25: 1782743.732 | L25: =SUM(L15:L23) -> 4749799.911 | M25: =SUM(M15:M23) -> 19627175.98 | N25: =SUM(N15:N23) -> 6181534.956 | O25: =SUM(O15:O23) -> 1956688.16 | P25: =SUM(P15:P23) -> 3051274.636 | Q25: =ROUND(SUM(-E25,F25:J25),0) -> 0
A26: 26
A27: 27
A28: 28 | C28: Rate Base :
A29: 29 | C29: Electric Plant In Service | E29: ='Class Summary'!E33 -> 1655504559 | F29: ='Func Study'!$G29 -> 883089392.4 | G29: ='Func Study'!$H29 -> 303513053.3 | H29: ='Func Study'!$I29 -> 458649616.6 | I29: ='Func Study'!$J29 -> 10252496.87 | J29: ='Func Study'!$K29 -> 0 | L29: ='Func Study'!$T29 -> 54262544.63 | M29: ='Func Study'!$U29 -> 222287090.3 | N29: ='Func Study'!$V29 -> 110757425.1 | O29: ='Func Study'!$W29 -> 12828781.37 | P29: ='Func Study'!$X29 -> 58513775.15 | Q29: =ROUND(SUM(-E29,F29:J29),0) -> 0
A30: 30 | C30: Plant Held For Future Use | E30: ='Class Summary'!E34 -> 43755.27334 | F30: ='Func Study'!$G30 -> 43755.27334 | G30: ='Func Study'!$H30 -> 0 | H30: ='Func Study'!$I30 -> 0 | I30: ='Func Study'!$J30 -> 0 | J30: ='Func Study'!$K30 -> 0 | L30: ='Func Study'!$T30 -> 0 | M30: ='Func Study'!$U30 -> 0 | N30: ='Func Study'!$V30 -> 0 | O30: ='Func Study'!$W30 -> 0 | P30: ='Func Study'!$X30 -> 0 | Q30: 0
A31: =A30+1 -> 31 | C31: Electric Plant Acquisition Adj | E31: ='Class Summary'!E35 -> 0 | F31: ='Func Study'!$G31 -> 0 | G31: ='Func Study'!$H31 -> 0 | H31: ='Func Study'!$I31 -> 0 | I31: ='Func Study'!$J31 -> 0 | J31: ='Func Study'!$K31 -> 0 | L31: ='Func Study'!$T31 -> 0 | M31: ='Func Study'!$U31 -> 0 | N31: ='Func Study'!$V31 -> 0 | O31: ='Func Study'!$W31 -> 0 | P31: ='Func Study'!$X31 -> 0 | Q31: 0
A32: 32 | C32: Nuclear Fuel | E32: ='Class Summary'!E36 -> 0 | F32: ='Func Study'!$G32 -> 0 | G32: ='Func Study'!$H32 -> 0 | H32: ='Func Study'!$I32 -> 0 | I32: ='Func Study'!$J32 -> 0 | J32: ='Func Study'!$K32 -> 0 | L32: ='Func Study'!$T32 -> 0 | M32: ='Func Study'!$U32 -> 0 | N32: ='Func Study'!$V32 -> 0 | O32: ='Func Study'!$W32 -> 0 | P32: ='Func Study'!$X32 -> 0 | Q32: 0
A33: 33 | C33: Prepayments | E33: ='Class Summary'!E37 -> -1.037260517e-07 | F33: ='Func Study'!$G33 -> -6.976322149e-08 | G33: ='Func Study'!$H33 -> -2.740341034e-08 | H33: ='Func Study'!$I33 -> -6.406284694e-09 | I33: ='Func Study'!$J33 -> -1.531352235e-10 | J33: ='Func Study'!$K33 -> 0 | L33: ='Func Study'!$T33 -> -7.526076187e-10 | M33: ='Func Study'!$U33 -> -3.083065103e-09 | N33: ='Func Study'!$V33 -> -1.563505721e-09 | O33: ='Func Study'!$W33 -> -1.810973218e-10 | P33: ='Func Study'!$X33 -> -8.260089302e-10 | Q33: 0
A34: 34 | C34: Fuel Stock | E34: ='Class Summary'!E38 -> -1.51747372e-07 | F34: ='Func Study'!$G34 -> -1.51747372e-07 | G34: ='Func Study'!$H34 -> 0 | H34: ='Func Study'!$I34 -> 0 | I34: ='Func Study'!$J34 -> 0 | J34: ='Func Study'!$K34 -> 0 | L34: ='Func Study'!$T34 -> 0 | M34: ='Func Study'!$U34 -> 0 | N34: ='Func Study'!$V34 -> 0 | O34: ='Func Study'!$W34 -> 0 | P34: ='Func Study'!$X34 -> 0 | Q34: 0
A35: 35 | C35: Materials & Supplies | E35: ='Class Summary'!E39 -> 0.0001456063546 | F35: ='Func Study'!$G35 -> 0.0001138354927 | G35: ='Func Study'!$H35 -> 8.838735256e-07 | H35: ='Func Study'!$I35 -> 3.088698838e-05 | I35: ='Func Study'!$J35 -> 0 | J35: ='Func Study'!$K35 -> 0 | L35: ='Func Study'!$T35 -> 3.628590342e-06 | M35: ='Func Study'!$U35 -> 1.486455887e-05 | N35: ='Func Study'!$V35 -> 7.538219941e-06 | O35: ='Func Study'!$W35 -> 8.731349201e-07 | P35: ='Func Study'!$X35 -> 3.982484301e-06 | Q35: 0
A36: 36 | C36: Misc Deferred Debits | E36: ='Class Summary'!E40 -> 14766733.28 | F36: ='Func Study'!$G36 -> 14711337.48 | G36: ='Func Study'!$H36 -> 55395.80267 | H36: ='Func Study'!$I36 -> 0 | I36: ='Func Study'!$J36 -> 0 | J36: ='Func Study'!$K36 -> 0 | L36: ='Func Study'!$T36 -> 0 | M36: ='Func Study'!$U36 -> 0 | N36: ='Func Study'!$V36 -> 0 | O36: ='Func Study'!$W36 -> 0 | P36: ='Func Study'!$X36 -> 0 | Q36: 0
A37: 37 | C37: Cash Working Capital | E37: ='Class Summary'!E41 -> 28493963.91 | F37: ='Func Study'!$G37 -> 19879156.98 | G37: ='Func Study'!$H37 -> 4582113.839 | H37: ='Func Study'!$I37 -> 2719707.324 | I37: ='Func Study'!$J37 -> 1089502.331 | J37: ='Func Study'!$K37 -> 223483.438 | L37: ='Func Study'!$T37 -> 319510.0672 | M37: ='Func Study'!$U37 -> 1308876.383 | N37: ='Func Study'!$V37 -> 663766.6235 | O37: ='Func Study'!$W37 -> 76882.58268 | P37: ='Func Study'!$X37 -> 350671.6677 | Q37: 0
A38: 38 | C38: Weatherization Loans | E38: ='Class Summary'!E42 -> 1957722.325 | F38: ='Func Study'!$G38 -> 0 | G38: ='Func Study'!$H38 -> 0 | H38: ='Func Study'!$I38 -> 0 | I38: ='Func Study'!$J38 -> 0 | J38: ='Func Study'!$K38 -> 1957722.325 | L38: ='Func Study'!$T38 -> 0 | M38: ='Func Study'!$U38 -> 0 | N38: ='Func Study'!$V38 -> 0 | O38: ='Func Study'!$W38 -> 0 | P38: ='Func Study'!$X38 -> 0 | Q38: 0
A39: 39 | C39: Miscellaneous Rate Base | E39: ='Class Summary'!E43 -> 0 | F39: ='Func Study'!$G39 -> 0 | G39: ='Func Study'!$H39 -> 0 | H39: ='Func Study'!$I39 -> 0 | I39: ='Func Study'!$J39 -> 0 | J39: ='Func Study'!$K39 -> 0 | L39: ='Func Study'!$T39 -> 0 | M39: ='Func Study'!$U39 -> 0 | N39: ='Func Study'!$V39 -> 0 | O39: ='Func Study'!$W39 -> 0 | P39: ='Func Study'!$X39 -> 0 | Q39: 0
A40: 40
A41: 41 | C41: Total Rate Base Additions | E41: =SUM(E29:E39) -> 1700766734 | F41: =SUM(F29:F39) -> 917723642.1 | G41: =SUM(G29:G39) -> 308150562.9 | H41: =SUM(H29:H39) -> 461369323.9 | I41: =SUM(I29:I39) -> 11341999.2 | J41: =SUM(J29:J39) -> 2181205.764 | L41: 54582054.7 | M41: 223595966.7 | N41: 111421191.7 | O41: 12905663.95 | P41: 58864446.82 | Q41: =ROUND(SUM(-E41,F41:J41),0) -> 0
A42: 42
A43: 43 | C43: Rate Base Deductions :
A44: 44 | C44: Accum Provision For Depreciation | E44: ='Class Summary'!E48 -> -589326216.1 | F44: ='Func Study'!$G44 -> -276191532.9 | G44: ='Func Study'!$H44 -> -114462702.4 | H44: ='Func Study'!$I44 -> -198063450.8 | I44: ='Func Study'!$J44 -> -608529.9448 | J44: ='Func Study'!$K44 -> 0 | L44: ='Func Study'!$T44 -> -17535884.91 | M44: ='Func Study'!$U44 -> -109584944.3 | N44: ='Func Study'!$V44 -> -48173498.24 | O44: ='Func Study'!$W44 -> -2361424.674 | P44: ='Func Study'!$X44 -> -20407698.75 | Q44: =ROUND(SUM(-E44,F44:J44),0) -> 0
A45: 45 | C45: Accum Provision For Amortization | E45: ='Class Summary'!E49 -> -43465840.66 | F45: ='Func Study'!$G45 -> -22439940.16 | G45: ='Func Study'!$H45 -> -6435065.1 | H45: ='Func Study'!$I45 -> -7175315.132 | I45: ='Func Study'!$J45 -> -7415520.268 | J45: ='Func Study'!$K45 -> 0 | L45: ='Func Study'!$T45 -> -842952.9896 | M45: ='Func Study'!$U45 -> -3453165.874 | N45: ='Func Study'!$V45 -> -1751193.834 | O45: ='Func Study'!$W45 -> -202836.8104 | P45: ='Func Study'!$X45 -> -925165.6239 | Q45: 0
A46: 46 | C46: Accum Deferred Income Taxes | E46: ='Class Summary'!E50 -> -232193930.2 | F46: ='Func Study'!$G46 -> -124306012.7 | G46: ='Func Study'!$H46 -> -46442324.71 | H46: ='Func Study'!$I46 -> -60008268.2 | I46: ='Func Study'!$J46 -> -1437324.541 | J46: ='Func Study'!$K46 -> 0 | L46: ='Func Study'!$T46 -> -7049846.211 | M46: ='Func Study'!$U46 -> -28881170.91 | N46: ='Func Study'!$V46 -> -14643776.58 | O46: ='Func Study'!$W46 -> -1697110.875 | P46: ='Func Study'!$X46 -> -7736363.628 | Q46: 0
A47: =A46+1 -> 47 | C47: Unamortized ITC | E47: ='Class Summary'!E51 -> -523327.7734 | F47: ='Func Study'!$G47 -> -266330.5484 | G47: ='Func Study'!$H47 -> -103068.5295 | H47: ='Func Study'!$I47 -> -153928.6955 | I47: ='Func Study'!$J47 -> 0 | J47: ='Func Study'!$K47 -> 0 | L47: ='Func Study'!$T47 -> -18083.4781 | M47: ='Func Study'!$U47 -> -74079.16008 | N47: ='Func Study'!$V47 -> -37567.54617 | O47: ='Func Study'!$W47 -> -4351.363675 | P47: ='Func Study'!$X47 -> -19847.14747 | Q47: 0
A48: 48 | C48: Customer Advance For Construction | E48: ='Class Summary'!E52 -> -143878.9987 | F48: ='Func Study'!$G48 -> 0 | G48: ='Func Study'!$H48 -> 18276.84174 | H48: ='Func Study'!$I48 -> -162155.8404 | I48: ='Func Study'!$J48 -> 0 | J48: ='Func Study'!$K48 -> 0 | L48: ='Func Study'!$T48 -> -19049.99961 | M48: ='Func Study'!$U48 -> -78038.5257 | N48: ='Func Study'!$V48 -> -39575.44759 | O48: ='Func Study'!$W48 -> -4583.934343 | P48: ='Func Study'!$X48 -> -20907.93317 | Q48: 0
A49: 49 | C49: Customer Service Deposits | E49: ='Class Summary'!E53 -> -3236612.086 | F49: ='Func Study'!$G49 -> 0 | G49: ='Func Study'!$H49 -> 0 | H49: ='Func Study'!$I49 -> 0 | I49: ='Func Study'!$J49 -> -3236612.086 | J49: ='Func Study'!$K49 -> 0 | L49: ='Func Study'!$T49 -> 0 | M49: ='Func Study'!$U49 -> 0 | N49: ='Func Study'!$V49 -> 0 | O49: ='Func Study'!$W49 -> 0 | P49: ='Func Study'!$X49 -> 0 | Q49: 0
A50: 50 | C50: Misc Rate Base Deductions | E50: ='Class Summary'!E54 -> -3448113.694 | F50: ='Func Study'!$G50 -> -3109906.532 | G50: ='Func Study'!$H50 -> -135637.7092 | H50: ='Func Study'!$I50 -> -202569.4529 | I50: ='Func Study'!$J50 -> 0 | J50: ='Func Study'!$K50 -> 0 | L50: ='Func Study'!$T50 -> -23797.77372 | M50: ='Func Study'!$U50 -> -97487.83278 | N50: ='Func Study'!$V50 -> -49438.71738 | O50: ='Func Study'!$W50 -> -5726.374514 | P50: ='Func Study'!$X50 -> -26118.75448 | Q50: 0
A51: 51
A52: 52 | C52: Total Rate Base Deductions | E52: =SUM(E44:E50) -> -872337919.4 | F52: =SUM(F44:F50) -> -426313722.9 | G52: =SUM(G44:G50) -> -167560521.6 | H52: =SUM(H44:H50) -> -265765688.1 | I52: =SUM(I44:I50) -> -12697986.84 | J52: =SUM(J44:J50) -> 0 | L52: -25489615.37 | M52: -142168886.6 | N52: -64695050.36 | O52: -4276034.032 | P52: -29136101.83 | Q52: =ROUND(SUM(-E52,F52:J52),0) -> 0
A53: 53
A54: 54 | C54: Total Rate Base | E54: =E41+E52 -> 828428814.4 | F54: 491409919.2 | G54: 140590041.3 | H54: =H41+H52 -> 195603635.7 | I54: =I41+I52 -> -1355987.638 | J54: =J41+J52 -> 2181205.764 | L54: 29092439.33 | M54: 81427080.16 | N54: 46726141.35 | O54: 8629629.917 | P54: 29728344.99 | Q54: =ROUND(SUM(-E54,F54:J54),0) -> 0
A55: 55
A56: 56
A57: 57 | C57: Return On Rate Base | D57: =ActualROR -> 0.04602925444 | E57: =$D$57*E54 -> 38131960.68 | F57: 22619232.21 | G57: 6471254.783 | H57: 9003489.519 | I57: -62415.09999 | J57: 100399.2751 | L57: =$D$57*L54 -> 1339103.292 | M57: =$D$57*M54 -> 3748027.791 | N57: =$D$57*N54 -> 2150769.449 | O57: =$D$57*O54 -> 397215.4312 | P57: =$D$57*P54 -> 1368373.556 | Q57: =ROUND(SUM(-E57,F57:J57),0) -> 0
A58: 58 | C58: Total Operating Expenses | E58: =E25 -> 289728524.4 | F58: 197552281.2 | G58: 45563848.55 | H58: 35566473.64 | I58: 9263177.346 | J58: 1782743.732 | L58: =L25 -> 4749799.911 | M58: =M25 -> 19627175.98 | N58: =N25 -> 6181534.956 | O58: =O25 -> 1956688.16 | P58: =P25 -> 3051274.636 | Q58: =ROUND(SUM(-E58,F58:J58),0) -> 0
A59: 59 | C59: Revenue Credits | E59: ='Class Summary'!E64 -> -24632889.25 | F59: ='Func Study'!$G79 -> -21489306.89 | G59: ='Func Study'!$H79 -> -3517284.723 | H59: ='Func Study'!$I79 -> -1743839.578 | I59: ='Func Study'!$J79 -> -849947.5974 | J59: ='Func Study'!$K79 -> 2967489.535 | L59: ='Func Study'!$T79 -> -223133.9387 | M59: ='Func Study'!$U79 -> -801255.43 | N59: ='Func Study'!$V79 -> -422572.349 | O59: ='Func Study'!$W79 -> -58560.76907 | P59: ='Func Study'!$X79 -> -238317.0916 | Q59: =ROUND(SUM(-E59,F59:J59),0) -> 0
A60: 60
A61: 61 | C61: Total Revenue Requirements | E61: =E57+E58+E59 -> 303227595.9 | F61: 198682206.5 | G61: 48517818.61 | H61: =H57+H58+H59 -> 42826123.58 | I61: =I57+I58+I59 -> 8350814.649 | J61: =J57+J58+J59 -> 4850632.542 | L61: 5865769.265 | M61: 22573948.34 | N61: 7909732.056 | O61: 2295342.822 | P61: 4181331.1 | Q61: =ROUND(SUM(-E61,F61:J61),0) -> 0
A62: 62
A63: 63
A64: 64 | C64: Return On Rate Base @ Target ROR | D64: =TargetROR -> 0.07799999713 | E64: =$D64*E54 -> 64617445.14 | F64: =$D64*F54 -> 38329972.29 | G64: 10966022.82 | H64: 15257083.03 | I64: =$D64*I54 -> -105767.0318 | J64: =$D64*J54 -> 170134.0433 | L64: 2269210.184 | M64: 6351312.019 | N64: 3644638.891 | O64: 673111.1087 | P64: 2318810.824 | Q64: =ROUND(SUM(-E64,F64:J64),0) -> 0
A65: 65 | C65: Total Operating Expenses Adjusted for Taxes | E65: =E58+((E64-E57)*(1/Net_to_Gross_Factor))-(E64-E57) -> 306043713 | F65: =F58+((F64-F57)*(1/Net_to_Gross_Factor))-(F64-F57) -> 207230174.2 | G65: 48332647.74 | H65: 39418717.96 | I65: 9236472.343 | J65: 1825700.691 | L65: 5322750.326 | M65: 21230811.85 | N65: 7101765.871 | O65: 2126641.252 | P65: 3636748.663 | Q65: =ROUND(SUM(-E65,F65:J65),0) -> 0
A66: 66 | C66: Revenue Credits | E66: =E59 -> -24632889.25 | F66: =F59 -> -21489306.89 | G66: -3517284.723 | H66: -1743839.578 | I66: =I59 -> -849947.5974 | J66: =J59 -> 2967489.535 | L66: -223133.9387 | M66: -801255.43 | N66: -422572.349 | O66: -58560.76907 | P66: -238317.0916 | Q66: =ROUND(SUM(-E66,F66:J66),0) -> 0
A67: 67
A68: 68 | C68: Total Target Revenue Requirements | E68: =SUM(E64:E66) -> 346028268.9 | F68: =SUM(F64:F66) -> 224070839.6 | G68: 55781385.84 | H68: 52931961.41 | I68: =SUM(I64:I66) -> 8280757.714 | J68: =SUM(J64:J66) -> 4963324.27 | L68: 7368826.571 | M68: 26780868.44 | N68: 10323832.41 | O68: 2741191.592 | P68: 5717242.395 | Q68: =ROUND(SUM(-E68,F68:J68),0) -> 0

Sheet Generation Summary
C1: Generation Summary
C2: =Inputs!$C$3 -> PacifiCorp
C3: Cost Of Service By Rate Schedule - Generation Function
C4: =Inputs!$C$4 -> State of Washington
C5: =+Method&" - "&IF(PeakMethod=1,"(Coincident Peaks)",IF(PeakMethod=2,"(200 Top Hours)","(100 Summer, 100 Winter Hours)"))&" - "&TEXT(Demand,"0%")&"D"&" / "&TEXT(Engy,"0%")&"E" -> WCA Method - (100 Summer, 100 Winter Hours) - 38%D / 62%E
C6: =Inputs!$C$5 -> 12 Months Ending June 2012
C9: A | D9: B | E9: C | F9: D | G9: E | H9: F | I9: G | J9: H | K9: I | L9: J | M9: K | N9: L
E10: ='Hot Sheet'!$H$10 -> Washington | G10: ='Hot Sheet'!$J$10 -> Small General | H10: ='Hot Sheet'!$K$10 -> Large General | I10: ='Hot Sheet'!$L$10 -> Large General | J10: ='Hot Sheet'!$M$10 -> Large General | K10: ='Hot Sheet'!$N$10 -> Agricultural | L10: ='Hot Sheet'!$O$10 -> Street & Area | O10: Chk Total
E11: ='Hot Sheet'!$H$11 -> Jurisdiction | F11: ='Hot Sheet'!$I$11 -> Residential | G11: ='Hot Sheet'!$J$11 -> Service | H11: ='Hot Sheet'!$K$11 -> Service <1,000 kW | I11: ='Hot Sheet'!$L$11 -> Service >1,000 kW | J11: ='Hot Sheet'!$M$11 -> Dedicated Facilities | K11: ='Hot Sheet'!$N$11 -> Pumping | L11: ='Hot Sheet'!$O$11 -> Lighting | M11: ='Hot Sheet'!P$11 -> - | N11: ='Hot Sheet'!Q$11 -> -
C12: DESCRIPTION | E12: ='Hot Sheet'!$H$12 -> Normalized | F12: ='Hot Sheet'!$I$12 -> Schedule 16 | G12: ='Hot Sheet'!$J$12 -> Schedule 24 | H12: ='Hot Sheet'!$K$12 -> Schedule 36 | I12: ='Hot Sheet'!$L$12 -> Schedule 48T | J12: ='Hot Sheet'!$M$12 -> Schedule 48T | K12: ='Hot Sheet'!$N$12 -> Schedule 40 | L12: ='Hot Sheet'!$O$12 -> Sch. 15,51-54,57 | M12: ='Hot Sheet'!P$12 -> - | N12: ='Hot Sheet'!Q$12 -> - | O12: =ROUND(SUM(O15:O68),0) -> 0
A14: 14 | C14: Operating Expenses
A15: =A14+1 -> 15 | C15: Operation & Maintenance Expenses | E15: ='Function Summary'!$F15 -> 160399072.8 | F15: =Generation!$I$17 -> 68034893.11 | G15: =Generation!$J$17 -> 21652087.01 | H15: =Generation!$K$17 -> 34308135.08 | I15: =Generation!$L$17 -> 13555375.96 | J15: =Generation!$M$17 -> 16748700.6 | K15: =Generation!$N$17 -> 5715006.593 | L15: =Generation!$O$17 -> 384874.4466 | M15: =Generation!$P$17 -> 0 | N15: =Generation!$Q$17 -> 0 | O15: =ROUND(SUM(F15:N15)-E15,0) -> 0
A16: =A15+1 -> 16 | C16: Depreciation Expense | E16: ='Function Summary'!$F16 -> 23157034.25 | F16: =Generation!$I$18 -> 9824951.216 | G16: =Generation!$J$18 -> 3125061.193 | H16: =Generation!$K$18 -> 4951389.667 | I16: =Generation!$L$18 -> 1956596.717 | J16: =Generation!$M$18 -> 2419088.269 | K16: =Generation!$N$18 -> 824392.3908 | L16: =Generation!$O$18 -> 55554.79395 | M16: =Generation!$P$18 -> 0 | N16: =Generation!$Q$18 -> 0 | O16: 0
A17: 17 | C17: Amortization Expense | E17: ='Function Summary'!$F17 -> 3860505.588 | F17: =Generation!$I$19 -> 1656732.016 | G17: =Generation!$J$19 -> 521568.6208 | H17: =Generation!$K$19 -> 815911.9466 | I17: =Generation!$L$19 -> 322141.135 | J17: =Generation!$M$19 -> 396380.2691 | K17: =Generation!$N$19 -> 137476.488 | L17: =Generation!$O$19 -> 10295.11229 | M17: =Generation!$P$19 -> 0 | N17: =Generation!$Q$19 -> 0 | O17: 0
A18: 18 | C18: Taxes Other Than Income | E18: ='Function Summary'!$F18 -> 10113138.54 | F18: =Generation!$I$20 -> 4283711.726 | G18: =Generation!$J$20 -> 1364727.008 | H18: =Generation!$K$20 -> 2166125.696 | I18: =Generation!$L$20 -> 856003.7126 | J18: =Generation!$M$20 -> 1058451.774 | K18: =Generation!$N$20 -> 360212.6818 | L18: =Generation!$O$20 -> 23905.94353 | M18: =Generation!$P$20 -> 0 | N18: =Generation!$Q$20 -> 0 | O18: 0
A19: 19 | C19: Income Taxes - Federal | E19: ='Function Summary'!$F19 -> -11934722.09 | F19: =Generation!$I$21 -> -5055296.014 | G19: =Generation!$J$21 -> -1610542.315 | H19: =Generation!$K$21 -> -2556289.335 | I19: =Generation!$L$21 -> -1010187.527 | J19: =Generation!$M$21 -> -1249100.634 | K19: =Generation!$N$21 -> -425094.3693 | L19: =Generation!$O$21 -> -28211.89398 | M19: =Generation!$P$21 -> 0 | N19: =Generation!$Q$21 -> 0 | O19: 0
A20: 20 | C20: Income Taxes - State | E20: ='Function Summary'!$F20 -> 0 | F20: =Generation!$I$22 -> 0 | G20: =Generation!$J$22 -> 0 | H20: =Generation!$K$22 -> 0 | I20: =Generation!$L$22 -> 0 | J20: =Generation!$M$22 -> 0 | K20: =Generation!$N$22 -> 0 | L20: =Generation!$O$22 -> 0 | M20: =Generation!$P$22 -> 0 | N20: =Generation!$Q$22 -> 0 | O20: 0
A21: 21 | C21: Income Taxes Deferred | E21: ='Function Summary'!$F21 -> 12810565.38 | F21: =Generation!$I$23 -> 5426284.72 | G21: =Generation!$J$23 -> 1728733.814 | H21: =Generation!$K$23 -> 2743885.565 | I21: =Generation!$L$23 -> 1084321.3 | J21: =Generation!$M$23 -> 1340767.319 | K21: =Generation!$N$23 -> 456290.408 | L21: =Generation!$O$23 -> 30282.25623 | M21: =Generation!$P$23 -> 0 | N21: =Generation!$Q$23 -> 0 | O21: 0
A22: 22 | C22: Investment Tax Credit Adj | E22: ='Function Summary'!$F22 -> 0 | F22: =Generation!$I$24 -> 0 | G22: =Generation!$J$24 -> 0 | H22: =Generation!$K$24 -> 0 | I22: =Generation!$L$24 -> 0 | J22: =Generation!$M$24 -> 0 | K22: =Generation!$N$24 -> 0 | L22: =Generation!$O$24 -> 0 | M22: =Generation!$P$24 -> 0 | N22: =Generation!$Q$24 -> 0 | O22: 0
A23: 23 | C23: Misc Revenues & Expense | E23: ='Function Summary'!$F23 -> -853313.32 | F23: =Generation!$I$25 -> -362039.5277 | G23: =Generation!$J$25 -> -115155.3482 | H23: =Generation!$K$25 -> -182453.7076 | I23: =Generation!$L$25 -> -72098.61258 | J23: =Generation!$M$25 -> -89140.95907 | K23: =Generation!$N$25 -> -30378.02684 | L23: =Generation!$O$25 -> -2047.138039 | M23: =Generation!$P$25 -> 0 | N23: =Generation!$Q$25 -> 0 | O23: 0
A24: 24
A25: 25 | C25: Total Operating Expenses | E25: =SUM(E15:E23) -> 197552281.2 | F25: =SUM(F15:F23) -> 83809237.25 | G25: 26666479.99 | H25: 42246704.91 | I25: 16692152.69 | J25: =SUM(J15:J23) -> 20625146.64 | K25: 7037906.166 | L25: 474653.5206 | M25: 0 | N25: 0 | O25: =ROUND(SUM(F25:N25)-E25,0) -> 0
A26: 26
A27: 27
A28: 28 | C28: Rate Base :
A29: 29 | C29: Electric Plant In Service | E29: ='Function Summary'!$F29 -> 883089392.4 | F29: =Generation!$I$33 -> 374672771.4 | G29: =Generation!$J$33 -> 119173654.1 | H29: =Generation!$K$33 -> 188820366.5 | I29: =Generation!$L$33 -> 74614468.66 | J29: =Generation!$M$33 -> 92251501.93 | K29: =Generation!$N$33 -> 31438057.55 | L29: =Generation!$O$33 -> 2118572.211 | M29: =Generation!$P$33 -> 0 | N29: =Generation!$Q$33 -> 0 | O29: =ROUND(SUM(F29:N29)-E29,0) -> 0
A30: 30 | C30: Plant Held For Future Use | E30: ='Function Summary'!$F30 -> 43755.27334 | F30: =Generation!$I$34 -> 18564.26956 | G30: =Generation!$J$34 -> 5904.810833 | H30: =Generation!$K$34 -> 9355.662991 | I30: =Generation!$L$34 -> 3696.994324 | J30: =Generation!$M$34 -> 4570.873252 | K30: =Generation!$N$34 -> 1557.691456 | L30: =Generation!$O$34 -> 104.9709202 | M30: =Generation!$P$34 -> 0 | N30: =Generation!$Q$34 -> 0 | O30: 0
A31: =A30+1 -> 31 | C31: Electric Plant Acquisition Adj | E31: ='Function Summary'!$F31 -> 0 | F31: =Generation!$I$35 -> 0 | G31: =Generation!$J$35 -> 0 | H31: =Generation!$K$35 -> 0 | I31: =Generation!$L$35 -> 0 | J31: =Generation!$M$35 -> 0 | K31: =Generation!$N$35 -> 0 | L31: =Generation!$O$35 -> 0 | M31: =Generation!$P$35 -> 0 | N31: =Generation!$Q$35 -> 0 | O31: 0
A32: 32 | C32: Nuclear Fuel | E32: ='Function Summary'!$F32 -> 0 | F32: =Generation!$I$36 -> 0 | G32: =Generation!$J$36 -> 0 | H32: =Generation!$K$36 -> 0 | I32: =Generation!$L$36 -> 0 | J32: =Generation!$M$36 -> 0 | K32: =Generation!$N$36 -> 0 | L32: =Generation!$O$36 -> 0 | M32: =Generation!$P$36 -> 0 | N32: =Generation!$Q$36 -> 0 | O32: 0
A33: 33 | C33: Prepayments | E33: ='Function Summary'!$F33 -> -6.976322149e-08 | F33: =Generation!$I$37 -> -3.410007546e-08 | G33: =Generation!$J$37 -> -9.439227632e-09 | H33: =Generation!$K$37 -> -1.249894398e-08 | I33: =Generation!$L$37 -> -4.920485077e-09 | J33: =Generation!$M$37 -> -6.059084385e-09 | K33: =Generation!$N$37 -> -2.351959019e-09 | L33: =Generation!$O$37 -> -3.934459424e-10 | M33: =Generation!$P$37 -> 0 | N33: =Generation!$Q$37 -> 0 | O33: 0
A34: 34 | C34: Fuel Stock | E34: ='Function Summary'!$F34 -> -1.51747372e-07 | F34: =Generation!$I$38 -> -6.43826196e-08 | G34: =Generation!$J$38 -> -2.047843512e-08 | H34: =Generation!$K$38 -> -3.24463125e-08 | I34: =Generation!$L$38 -> -1.282152139e-08 | J34: =Generation!$M$38 -> -1.585221508e-08 | K34: =Generation!$N$38 -> -5.402219363e-09 | L34: =Generation!$O$38 -> -3.640489492e-10 | M34: =Generation!$P$38 -> 0 | N34: =Generation!$Q$38 -> 0 | O34: 0
A35: 35 | C35: Materials & Supplies | E35: ='Function Summary'!$F35 -> 0.0001138354927 | F35: =Generation!$I$39 -> 4.829755619e-05 | G35: =Generation!$J$39 -> 1.536219521e-05 | H35: =Generation!$K$39 -> 2.434007207e-05 | I35: =Generation!$L$39 -> 9.618250291e-06 | J35: =Generation!$M$39 -> 1.189176913e-05 | K35: =Generation!$N$39 -> 4.052553233e-06 | L35: =Generation!$O$39 -> 2.73096601e-07 | M35: =Generation!$P$39 -> 0 | N35: =Generation!$Q$39 -> 0 | O35: 0
A36: 36 | C36: Misc Deferred Debits | E36: ='Function Summary'!$F36 -> 14711337.48 | F36: =Generation!$I$40 -> 6241653.034 | G36: =Generation!$J$40 -> 1985307.331 | H36: =Generation!$K$40 -> 3145548.07 | I36: =Generation!$L$40 -> 1242998.318 | J36: =Generation!$M$40 -> 1536812.682 | K36: =Generation!$N$40 -> 523724.8668 | L36: =Generation!$O$40 -> 35293.1776 | M36: =Generation!$P$40 -> 0 | N36: =Generation!$Q$40 -> 0 | O36: 0
A37: 37 | C37: Cash Working Capital | E37: ='Function Summary'!$F37 -> 19879156.98 | F37: =Generation!$I$41 -> 8431945.999 | G37: =Generation!$J$41 -> 2683464.618 | H37: =Generation!$K$41 -> 4251999.659 | I37: =Generation!$L$41 -> 1679993.792 | J37: =Generation!$M$41 -> 2075760.431 | K37: =Generation!$N$41 -> 708292.8299 | L37: =Generation!$O$41 -> 47699.64943 | M37: =Generation!$P$41 -> 0 | N37: =Generation!$Q$41 -> 0 | O37: 0
A38: 38 | C38: Weatherization Loans | E38: ='Function Summary'!$F38 -> 0 | F38: =Generation!$I$42 -> 0 | G38: =Generation!$J$42 -> 0 | H38: =Generation!$K$42 -> 0 | I38: =Generation!$L$42 -> 0 | J38: =Generation!$M$42 -> 0 | K38: =Generation!$N$42 -> 0 | L38: =Generation!$O$42 -> 0 | M38: =Generation!$P$42 -> 0 | N38: =Generation!$Q$42 -> 0 | O38: 0
A39: 39 | C39: Miscellaneous Rate Base | E39: ='Function Summary'!$F39 -> 0 | F39: =Generation!$I$43 -> 0 | G39: =Generation!$J$43 -> 0 | H39: =Generation!$K$43 -> 0 | I39: =Generation!$L$43 -> 0 | J39: =Generation!$M$43 -> 0 | K39: =Generation!$N$43 -> 0 | L39: =Generation!$O$43 -> 0 | M39: =Generation!$P$43 -> 0 | N39: =Generation!$Q$43 -> 0 | O39: 0
A40: 40
A41: 41 | C41: Total Rate Base Additions | E41: =SUM(E29:E39) -> 917723642.1 | F41: 389364934.7 | G41: 123848330.9 | H41: 196227269.9 | I41: 77541157.77 | J41: =SUM(J29:J39) -> 95868645.91 | K41: 32671632.94 | L41: 2201670.008 | M41: 0 | N41: 0 | O41: =ROUND(SUM(F41:N41)-E41,0) -> 0
A42: 42
A43: 43 | C43: Rate Base Deductions :
A44: 44 | C44: Accum Provision For Depreciation | E44: ='Function Summary'!$F44 -> -276191532.9 | F44: =Generation!$I$48 -> -117181168.7 | G44: =Generation!$J$48 -> -37272279 | H44: =Generation!$K$48 -> -59054708.29 | I44: =Generation!$L$48 -> -23336125.04 | J44: =Generation!$M$48 -> -28852213.55 | K44: =Generation!$N$48 -> -9832442.087 | L44: =Generation!$O$48 -> -662596.2349 | M44: =Generation!$P$48 -> 0 | N44: =Generation!$Q$48 -> 0 | O44: =ROUND(SUM(F44:N44)-E44,0) -> 0
A45: 45 | C45: Accum Provision For Amortization | E45: ='Function Summary'!$F45 -> -22439940.16 | F45: =Generation!$I$49 -> -9542039.105 | G45: =Generation!$J$49 -> -3030058.504 | H45: =Generation!$K$49 -> -4788547.185 | I45: =Generation!$L$49 -> -1891488.57 | J45: =Generation!$M$49 -> -2332350.811 | K45: =Generation!$N$49 -> -800249.682 | L45: =Generation!$O$49 -> -55206.30256 | M45: =Generation!$P$49 -> 0 | N45: =Generation!$Q$49 -> 0 | O45: 0
A46: 46 | C46: Accum Deferred Income Taxes | E46: ='Function Summary'!$F46 -> -124306012.7 | F46: =Generation!$I$50 -> -53058428.65 | G46: =Generation!$J$50 -> -16776593.68 | H46: =Generation!$K$50 -> -26407381.24 | I46: =Generation!$L$50 -> -10433995.34 | J46: =Generation!$M$50 -> -12899897.43 | K46: =Generation!$N$50 -> -4415567.417 | L46: =Generation!$O$50 -> -314148.9619 | M46: =Generation!$P$50 -> 0 | N46: =Generation!$Q$50 -> 0 | O46: 0
A47: =A46+1 -> 47 | C47: Unamortized ITC | E47: ='Function Summary'!$F47 -> -266330.5484 | F47: =Generation!$I$51 -> -112987.6781 | G47: =Generation!$J$51 -> -35940.72441 | H47: =Generation!$K$51 -> -56950.58858 | I47: =Generation!$L$51 -> -22505.00465 | J47: =Generation!$M$51 -> -27827.47984 | K47: =Generation!$N$51 -> -9480.758658 | L47: =Generation!$O$51 -> -638.3141418 | M47: =Generation!$P$51 -> 0 | N47: =Generation!$Q$51 -> 0 | O47: 0
A48: 48 | C48: Customer Advance For Construction | E48: ='Function Summary'!$F48 -> 0 | F48: =Generation!$I$52 -> 0 | G48: =Generation!$J$52 -> 0 | H48: =Generation!$K$52 -> 0 | I48: =Generation!$L$52 -> 0 | J48: =Generation!$M$52 -> 0 | K48: =Generation!$N$52 -> 0 | L48: =Generation!$O$52 -> 0 | M48: =Generation!$P$52 -> 0 | N48: =Generation!$Q$52 -> 0 | O48: 0
A49: 49 | C49: Customer Service Deposits | E49: ='Function Summary'!$F49 -> 0 | F49: =Generation!$I$53 -> 0 | G49: =Generation!$J$53 -> 0 | H49: =Generation!$K$53 -> 0 | I49: =Generation!$L$53 -> 0 | J49: =Generation!$M$53 -> 0 | K49: =Generation!$N$53 -> 0 | L49: =Generation!$O$53 -> 0 | M49: =Generation!$P$53 -> 0 | N49: =Generation!$Q$53 -> 0 | O49: 0
A50: 50 | C50: Misc Rate Base Deductions | E50: ='Function Summary'!$F50 -> -3109906.532 | F50: =Generation!$I$54 -> -1319455.662 | G50: =Generation!$J$54 -> -419684.4947 | H50: =Generation!$K$54 -> -664953.8496 | I50: =Generation!$L$54 -> -262763.9121 | J50: =Generation!$M$54 -> -324874.8665 | K50: =Generation!$N$54 -> -110712.9373 | L50: =Generation!$O$54 -> -7460.809305 | M50: =Generation!$P$54 -> 0 | N50: =Generation!$Q$54 -> 0 | O50: 0
A51: 51
A52: 52 | C52: Total Rate Base Deductions | E52: =SUM(E44:E50) -> -426313722.9 | F52: -181214079.8 | G52: -57534556.4 | H52: -90972541.15 | I52: -35946877.86 | J52: =SUM(J44:J50) -> -44437164.13 | K52: -15168452.88 | L52: -1040050.623 | M52: 0 | N52: 0 | O52: =ROUND(SUM(F52:N52)-E52,0) -> 0
A53: 53
A54: 54 | C54: Total Rate Base | E54: =E41+E52 -> 491409919.2 | F54: =F41+F52 -> 208150854.9 | G54: 66313774.48 | H54: 105254728.7 | I54: 41594279.91 | J54: =J41+J52 -> 51431481.78 | K54: 17503180.06 | L54: 1161619.386 | M54: 0 | N54: 0 | O54: =ROUND(SUM(F54:N54)-E54,0) -> 0
A55: 55
A56: 56
A57: 57 | C57: Return On Rate Base | D57: =ActualROR -> 0.04602925444 | E57: =$D$57*E54 -> 22619232.21 | F57: =$D$57*F54 -> 9581028.663 | G57: 3052373.599 | H57: 4844796.689 | I57: 1914553.693 | J57: =$D$57*J54 -> 2367352.761 | K57: 805658.3286 | L57: 53468.47427 | M57: 0 | N57: 0 | O57: =ROUND(SUM(F57:N57)-E57,0) -> 0
A58: 58 | C58: Total Operating Expenses | E58: =E25 -> 197552281.2 | F58: 83809237.25 | G58: 26666479.99 | H58: 42246704.91 | I58: 16692152.69 | J58: =J25 -> 20625146.64 | K58: 7037906.166 | L58: 474653.5206 | M58: 0 | N58: 0 | O58: =ROUND(SUM(F58:N58)-E58,0) -> 0
A59: 59 | C59: Revenue Credits | E59: ='Function Summary'!$F$59 -> -21489306.89 | F59: =Generation!I$99 -> -9163034.567 | G59: =Generation!J$99 -> -2900748.222 | H59: =Generation!K$99 -> -4568942.283 | I59: =Generation!L$99 -> -1805129.841 | J59: =Generation!M$99 -> -2231740.362 | K59: =Generation!N$99 -> -765545.4224 | L59: =Generation!O$99 -> -54166.19184 | M59: =Generation!P$99 -> 0 | N59: =Generation!Q$99 -> 0 | O59: =ROUND(SUM(F59:N59)-E59,0) -> 0
A60: 60
A61: 61 | C61: Total Revenue Requirements | E61: =E57+E58+E59 -> 198682206.5 | F61: =F57+F58+F59 -> 84227231.35 | G61: 26818105.36 | H61: 42522559.32 | I61: 16801576.54 | J61: =J57+J58+J59 -> 20760759.04 | K61: 7078019.072 | L61: 473955.803 | M61: 0 | N61: 0 | O61: =ROUND(SUM(F61:N61)-E61,0) -> 0
A62: 62 | O62: =ROUND(SUM(F62:N62)-E62,0) -> 0
A63: 63
A64: 64 | C64: Return On Rate Base @ Target ROR | D64: =TargetROR -> 0.07799999713 | E64: =$D64*E54 -> 38329972.29 | F64: =$D64*F54 -> 16235766.09 | G64: 5172474.219 | H64: 8209868.536 | I64: 3244353.713 | J64: =$D64*J54 -> 4011655.431 | K64: 1365247.994 | L64: 90606.30875 | M64: 0 | N64: 0 | O64: =ROUND(SUM(F64:N64)-E64,0) -> 0
A65: 65 | C65: Total Operating Expenses Adjusted for Taxes | E65: =E58+((E64-E57)*(1/Net_to_Gross_Factor))-(E64-E57) -> 207230174.2 | F65: =F58+((F64-F57)*(1/Net_to_Gross_Factor))-(F64-F57) -> 87908588.2 | G65: 27972472.38 | H65: 44319605.7 | I65: 17511316.03 | J65: =J58+((J64-J57)*(1/Net_to_Gross_Factor))-(J64-J57) -> 21638045.16 | K65: 7382616.149 | L65: 497530.6091 | M65: 0 | N65: 0 | O65: =ROUND(SUM(F65:N65)-E65,0) -> 0
A66: 66 | C66: Revenue Credits | E66: =E59 -> -21489306.89 | F66: =F59 -> -9163034.567 | G66: -2900748.222 | H66: -4568942.283 | I66: -1805129.841 | J66: =J59 -> -2231740.362 | K66: -765545.4224 | L66: -54166.19184 | M66: 0 | N66: 0 | O66: =ROUND(SUM(F66:N66)-E66,0) -> 0
A67: 67
A68: 68 | C68: Total Target Revenue Requirements | E68: =SUM(E64:E66) -> 224070839.6 | F68: =SUM(F64:F66) -> 94981319.71 | G68: 30244198.38 | H68: 47960531.95 | I68: 18950539.9 | J68: =SUM(J64:J66) -> 23417960.23 | K68: 7982318.721 | L68: 533970.726 | M68: 0 | N68: 0 | O68: =ROUND(SUM(F68:N68)-E68,0) -> 0
C69: Generation Demand Summary
C70: =Inputs!$C$3 -> PacifiCorp
C71: ="Cost Of Service By Rate Schedule - "&C69 -> Cost Of Service By Rate Schedule - Generation Demand Summary
C72: =Inputs!$C$4 -> State of Washington
C73: =+Method&" - "&IF(PeakMethod=1,"(Coincident Peaks)",IF(PeakMethod=2,"(200 Top Hours)","(100 Summer, 100 Winter Hours)"))&" - "&TEXT(Demand,"0%")&"D"&" / "&TEXT(Engy,"0%")&"E" -> WCA Method - (100 Summer, 100 Winter Hours) - 38%D / 62%E
C74: =Inputs!$C$5 -> 12 Months Ending June 2012
C77: A | D77: B | E77: C | F77: D | G77: E | H77: F | I77: G | J77: H | K77: I | L77: J | M77: L | N77: M
E78: ='Hot Sheet'!$H$10 -> Washington | G78: ='Hot Sheet'!$J$10 -> Small General | H78: ='Hot Sheet'!$K$10 -> Large General | I78: ='Hot Sheet'!$L$10 -> Large General | J78: ='Hot Sheet'!M$10 -> Large General | K78: ='Hot Sheet'!$N$10 -> Agricultural | L78: ='Hot Sheet'!$O$10 -> Street & Area | O78: Chk Total
E79: ='Hot Sheet'!$H$11 -> Jurisdiction | F79: ='Hot Sheet'!$I$11 -> Residential | G79: ='Hot Sheet'!$J$11 -> Service | H79: ='Hot Sheet'!$K$11 -> Service <1,000 kW | I79: ='Hot Sheet'!$L$11 -> Service >1,000 kW | J79: ='Hot Sheet'!M$11 -> Dedicated Facilities | K79: ='Hot Sheet'!$N$11 -> Pumping | L79: ='Hot Sheet'!$O$11 -> Lighting | M79: ='Hot Sheet'!P$11 -> - | N79: ='Hot Sheet'!Q$11 -> -
C80: DESCRIPTION | E80: ='Hot Sheet'!$H$12 -> Normalized | F80: ='Hot Sheet'!$I$12 -> Schedule 16 | G80: ='Hot Sheet'!$J$12 -> Schedule 24 | H80: ='Hot Sheet'!$K$12 -> Schedule 36 | I80: ='Hot Sheet'!$L$12 -> Schedule 48T | J80: ='Hot Sheet'!M$12 -> Schedule 48T | K80: ='Hot Sheet'!$N$12 -> Schedule 40 | L80: ='Hot Sheet'!$O$12 -> Sch. 15,51-54,57 | M80: ='Hot Sheet'!P$12 -> - | N80: ='Hot Sheet'!Q$12 -> - | O80: =ROUND(SUM(O83:O136),0) -> 0
A81: 13
A82: =A81+1 -> 14 | C82: Operating Expenses
A83: =A82+1 -> 15 | C83: Operation & Maintenance Expenses | E83: ='Func Study'!$N$13 -> 60951647.67 | F83: 26282629.43 | G83: 8230151.201 | H83: 12998189.29 | I83: 5054480.653 | J83: 6141501.472 | K83: 2115614.356 | L83: 129081.2659 | M83: 0 | N83: 0 | O83: =ROUND(SUM(F83:N83)-E83,0) -> 0
A84: 16 | C84: Depreciation Expense | E84: ='Func Study'!$N$14 -> 8799673.014 | F84: 4042037.295 | G84: 1189217.867 | H84: 1853572.118 | I84: 674114.7809 | J84: 758996.8591 | K84: 272962.79 | L84: 8771.303238 | M84: 0 | N84: 0 | O84: 0
A85: 17 | C85: Amortization Expense | E85: ='Func Study'!$N$15 -> 1466992.123 | F85: 629629.4024 | G85: 198196.4671 | H85: 310040.0855 | I85: 122397.6108 | J85: 150587.5038 | K85: 52231.75991 | L85: 3909.293845 | M85: 0 | N85: 0 | O85: 0
A86: 18 | C86: Taxes Other Than Income | E86: ='Func Study'!$N$16 -> 3842992.646 | F86: 1627810.456 | G86: 518596.2629 | H86: 823127.7647 | I86: 325281.4108 | J86: 402211.674 | K86: 136880.8191 | L86: 9084.258543 | M86: 0 | N86: 0 | O86: 0
A87: 19 | C87: Income Taxes - Federal | E87: ='Func Study'!$N$17 -> -4535194.394 | F87: -1921012.485 | G87: -612006.0798 | H87: -971389.9472 | I87: -383871.2603 | J87: -474658.2409 | K87: -161535.8603 | L87: -10720.51971 | M87: 0 | N87: 0 | O87: 0
A88: 20 | C88: Income Taxes - State | E88: ='Func Study'!$N$18 -> 0 | F88: 0 | G88: 0 | H88: 0 | I88: 0 | J88: 0 | K88: 0 | L88: 0 | M88: 0 | N88: 0 | O88: 0
A89: 21 | C89: Income Taxes Deferred | E89: ='Func Study'!$N$19 -> 4868014.845 | F89: 2061988.194 | G89: 656918.8491 | H89: 1042676.515 | I89: 412042.0938 | J89: 509491.5813 | K89: 173390.3551 | L89: 11507.25737 | M89: 0 | N89: 0 | O89: 0
A90: 22 | C90: Investment Tax Credit Adj | E90: ='Func Study'!$N$20 -> 0 | F90: 0 | G90: 0 | H90: 0 | I90: 0 | J90: 0 | K90: 0 | L90: 0 | M90: 0 | N90: 0 | O90: 0
A91: 23 | C91: Misc Revenues & Expense | E91: ='Func Study'!$N$21 -> -324259.0616 | F91: -149423.5335 | G91: -43824.10532 | H91: -68258.90301 | I91: -24732.82803 | J91: -27719.7239 | K91: -9995.891612 | L91: -304.0761835 | M91: 0 | N91: 0 | O91: 0
A92: 24
A93: 25 | C93: Total Operating Expenses | E93: =SUM(E83:E91) -> 75069866.84 | F93: =SUM(F83:F91) -> 32573658.75 | G93: 10137250.46 | H93: 15987956.93 | I93: 6179712.461 | J93: =SUM(J83:J91) -> 7460411.125 | K93: 2579548.328 | L93: 151328.783 | M93: 0 | N93: 0 | O93: =ROUND(SUM(F93:N93)-E93,0) -> 0
A94: 26
A95: 27
A96: 28 | C96: Rate Base :
A97: 29 | C97: Electric Plant In Service | E97: ='Func Study'!$N$29 -> 335573969.1 | F97: 153460743.6 | G97: 45346868.8 | H97: 70747401.42 | I97: 25860541.54 | J97: 29298234 | K97: 10498428.35 | L97: 361751.3539 | M97: 0 | N97: 0 | O97: =ROUND(SUM(F97:N97)-E97,0) -> 0
A98: 30 | C98: Plant Held For Future Use | E98: ='Func Study'!$N$30 -> 16627.00387 | F98: 7661.977612 | G98: 2247.16486 | H98: 3500.105868 | I98: 1268.223085 | J98: 1421.381886 | K98: 512.55847 | L98: 15.59208818 | M98: 0 | N98: 0 | O98: 0
A99: 31 | C99: Electric Plant Acquisition Adj | E99: ='Func Study'!$N$31 -> 0 | F99: 0 | G99: 0 | H99: 0 | I99: 0 | J99: 0 | K99: 0 | L99: 0 | M99: 0 | N99: 0 | O99: 0
A100: 32 | C100: Nuclear Fuel | E100: ='Func Study'!$N$32 -> 0 | F100: 0 | G100: 0 | H100: 0 | I100: 0 | J100: 0 | K100: 0 | L100: 0 | M100: 0 | N100: 0 | O100: 0
A101: 33 | C101: Prepayments | E101: ='Func Study'!$N$33 -> -2.651002417e-08 | F101: -1.295802868e-08 | G101: -3.5869065e-09 | H101: -4.749598711e-09 | I101: -1.869784329e-09 | J101: -2.302452066e-09 | K101: -8.937444272e-10 | L101: -1.495094581e-10 | M101: 0 | N101: 0 | O101: 0
A102: 34 | C102: Fuel Stock | E102: ='Func Study'!$N$34 -> -5.766400136e-08 | F102: -2.657245352e-08 | G102: -7.793377482e-09 | H102: -1.213869385e-08 | I102: -4.398316032e-09 | J102: -4.92948505e-09 | K102: -1.777600616e-09 | L102: -5.407481714e-11 | M102: 0 | N102: 0 | O102: 0
A103: 35 | C103: Materials & Supplies | E103: ='Func Study'!$N$35 -> 4.325748724e-05 | F103: 1.835224486e-05 | G103: 5.837629642e-06 | H103: 9.249302269e-06 | I103: 3.655120984e-06 | J103: 4.519301533e-06 | K103: 1.540078193e-06 | L103: 1.03809761e-07 | M103: 0 | N103: 0 | O103: 0
A104: 36 | C104: Misc Deferred Debits | E104: ='Func Study'!$N$36 -> 5590308.242 | F104: 2371828.153 | G104: 754416.7857 | H104: 1195308.267 | I104: 472339.3608 | J104: 583988.8193 | K104: 199015.4494 | L104: 13411.40749 | M104: 0 | N104: 0 | O104: 0
A105: 37 | C105: Cash Working Capital | E105: ='Func Study'!$N$37 -> 7554079.652 | F105: 3204139.48 | G105: 1019716.555 | H105: 1615759.87 | I105: 638397.6411 | J105: 788788.9637 | K105: 269151.2754 | L105: 18125.86678 | M105: 0 | N105: 0 | O105: 0
A106: 38 | C106: Weatherization Loans | E106: ='Func Study'!$N$38 -> 0 | F106: 0 | G106: 0 | H106: 0 | I106: 0 | J106: 0 | K106: 0 | L106: 0 | M106: 0 | N106: 0 | O106: 0
A107: 39 | C107: Miscellaneous Rate Base | E107: ='Func Study'!$N$39 -> 0 | F107: 0 | G107: 0 | H107: 0 | I107: 0 | J107: 0 | K107: 0 | L107: 0 | M107: 0 | N107: 0 | O107: 0
A108: 40
A109: 41 | C109: Total Rate Base Additions | E109: =SUM(E97:E107) -> 348734984 | F109: 159044373.2 | G109: 47123249.31 | H109: 73561969.67 | I109: 26972546.77 | J109: =SUM(J97:J107) -> 30672433.16 | K109: 10967107.64 | L109: 393304.2202 | M109: 0 | N109: 0 | O109: =ROUND(SUM(F109:N109)-E109,0) -> 0
A110: 42
A111: 43 | C111: Rate Base Deductions :
A112: 44 | C112: Accum Provision For Depreciation | E112: ='Func Study'!$N$44 -> -104952782.5 | F112: -48261226.21 | G112: -14183964.57 | H112: -22102625.69 | I112: -8028341.817 | J112: -9025329.182 | K112: -3248770.911 | L112: -102524.1251 | M112: 0 | N112: 0 | O112: =ROUND(SUM(F112:N112)-E112,0) -> 0
A113: 45 | C113: Accum Provision For Amortization | E113: ='Func Study'!$N$45 -> -8527177.26 | F113: -3627463.666 | G113: -1151430.408 | H113: -1819513.041 | I113: -718430.8348 | J113: -885520.0569 | K113: -303900.398 | L113: -20918.85583 | M113: 0 | N113: 0 | O113: 0
A114: 46 | C114: Accum Deferred Income Taxes | E114: ='Func Study'!$N$46 -> -47236284.83 | F114: -20162202.89 | G114: -6375105.597 | H114: -10034804.87 | I114: -3964918.229 | J114: -4901961.022 | K114: -1677915.618 | L114: -119376.6055 | M114: 0 | N114: 0 | O114: 0
A115: 47 | C115: Unamortized ITC | E115: ='Func Study'!$N$47 -> -101205.6084 | F115: -42935.31767 | G115: -13657.47527 | H115: -21641.22366 | I115: -8551.901766 | J115: -10574.44234 | K115: -3602.68829 | L115: -242.5593739 | M115: 0 | N115: 0 | O115: 0
A116: 48 | C116: Customer Advance For Construction | E116: ='Func Study'!$N$48 -> 0 | F116: 0 | G116: 0 | H116: 0 | I116: 0 | J116: 0 | K116: 0 | L116: 0 | M116: 0 | N116: 0 | O116: 0
A117: 49 | C117: Customer Service Deposits | E117: ='Func Study'!$N$49 -> 0 | F117: 0 | G117: 0 | H117: 0 | I117: 0 | J117: 0 | K117: 0 | L117: 0 | M117: 0 | N117: 0 | O117: 0
A118: 50 | C118: Misc Rate Base Deductions | E118: ='Func Study'!$N$50 -> -1181764.482 | F118: -539708.4864 | G118: -159690.539 | H118: -249210.9946 | I118: -91233.44538 | J118: -103552.3606 | K118: -37065.82498 | L118: -1302.83127 | M118: 0 | N118: 0 | O118: 0
A119: 51
A120: 52 | C120: Total Rate Base Deductions | E120: =SUM(E112:E118) -> -161999214.7 | F120: -72633536.57 | G120: -21883848.59 | H120: -34227795.82 | I120: -12811476.23 | J120: =SUM(J112:J118) -> -14926937.06 | K120: -5271255.44 | L120: -244364.9771 | M120: 0 | N120: 0 | O120: =ROUND(SUM(F120:N120)-E120,0) -> 0
A121: 53
A122: 54 | C122: Total Rate Base | E122: =E109+E120 -> 186735769.3 | F122: =F109+F120 -> 86410836.67 | G122: 25239400.71 | H122: 39334173.85 | I122: 14161070.54 | J122: =J109+J120 -> 15745496.1 | K122: 5695852.197 | L122: 148939.2431 | M122: 0 | N122: 0 | O122: =ROUND(SUM(F122:N122)-E122,0) -> 0
A123: 55
A124: 56
A125: 57 | C125: Return On Rate Base | D125: =ActualROR -> 0.04602925444 | E125: =$D$57*E122 -> 8595308.239 | F125: =$D$57*F122 -> 3977426.387 | G125: 1161750.797 | H125: 1810522.696 | I125: 651823.519 | J125: =$D$57*J122 -> 724753.4462 | K125: 262175.83 | L125: 6855.562319 | M125: 0 | N125: 0 | O125: =ROUND(SUM(F125:N125)-E125,0) -> 0
A126: 58 | C126: Total Operating Expenses | E126: =E93 -> 75069866.84 | F126: 32573658.75 | G126: 10137250.46 | H126: 15987956.93 | I126: 6179712.461 | J126: =J93 -> 7460411.125 | K126: 2579548.328 | L126: 151328.783 | M126: 0 | N126: 0 | O126: =ROUND(SUM(F126:N126)-E126,0) -> 0
A127: 59 | C127: Revenue Credits | E127: ='Func Study'!$N$79 -> -8165936.618 | F127: -3539811.627 | G127: -1102602.088 | H127: -1730955.939 | I127: -672937.3839 | J127: -818010.9902 | K127: -283349.2676 | L127: -18269.32231 | M127: 0 | N127: 0 | O127: =ROUND(SUM(F127:N127)-E127,0) -> 0
A128: 60
A129: 61 | C129: Total Revenue Requirements | E129: =E125+E126+E127 -> 75499238.46 | F129: =F125+F126+F127 -> 33011273.51 | G129: 10196399.17 | H129: 16067523.68 | I129: 6158598.596 | J129: =J125+J126+J127 -> 7367153.581 | K129: 2558374.89 | L129: 139915.023 | M129: 0 | N129: 0 | O129: =ROUND(SUM(F129:N129)-E129,0) -> 0
A130: 62 | O130: =ROUND(SUM(F130:N130)-E130,0) -> 0
A131: 63
A132: 64 | C132: Return On Rate Base @ Target ROR | D132: =TargetROR -> 0.07799999713 | E132: =$D132*E122 -> 14565389.47 | F132: =$D132*F122 -> 6740045.012 | G132: 1968673.183 | H132: 3068065.447 | I132: 1104563.461 | J132: =$D132*J122 -> 1228148.65 | K132: 444276.455 | L132: 11617.26054 | M132: 0 | N132: 0 | O132: =ROUND(SUM(F132:N132)-E132,0) -> 0
A133: 65 | C133: Total Operating Expenses Adjusted for Taxes | E133: =E126+((E132-E125)*(1/Net_to_Gross_Factor))-(E132-E125) -> 78747466.21 | F133: =F126+((F132-F125)*(1/Net_to_Gross_Factor))-(F132-F125) -> 34275445.4 | G133: 10634318.62 | H133: 16762609.44 | I133: 6458602.49 | J133: =J126+((J132-J125)*(1/Net_to_Gross_Factor))-(J132-J125) -> 7770505.044 | K133: 2691723.208 | L133: 154262.0125 | M133: 0 | N133: 0 | O133: =ROUND(SUM(F133:N133)-E133,0) -> 0
A134: 66 | C134: Revenue Credits | E134: =E127 -> -8165936.618 | F134: =F127 -> -3539811.627 | G134: -1102602.088 | H134: -1730955.939 | I134: -672937.3839 | J134: =J127 -> -818010.9902 | K134: -283349.2676 | L134: -18269.32231 | M134: 0 | N134: 0 | O134: =ROUND(SUM(F134:N134)-E134,0) -> 0
A135: 67
A136: 68 | C136: Total Target Revenue Requirements | E136: =SUM(E132:E134) -> 85146919.06 | F136: =SUM(F132:F134) -> 37475678.78 | G136: 11500389.71 | H136: 18099718.95 | I136: 6890228.567 | J136: =SUM(J132:J134) -> 8180642.704 | K136: 2852650.395 | L136: 147609.9507 | M136: 0 | N136: 0 | O136: =ROUND(SUM(F136:N136)-E136,0) -> 0
C137: Generation Energy Summary | J137: =J136/$E$136 -> 0.0960767905 | M137: =M136/$E$136 -> 0 | N137: =N136/$E$136 -> 0
C138: =Inputs!$C$3 -> PacifiCorp
C139: ="Cost Of Service By Rate Schedule - "&C137 -> Cost Of Service By Rate Schedule - Generation Energy Summary
C140: =Inputs!$C$4 -> State of Washington
C141: =+Method&" - "&IF(PeakMethod=1,"(Coincident Peaks)",IF(PeakMethod=2,"(200 Top Hours)","(100 Summer, 100 Winter Hours)"))&" - "&TEXT(Demand,"0%")&"D"&" / "&TEXT(Engy,"0%")&"E" -> WCA Method - (100 Summer, 100 Winter Hours) - 38%D / 62%E
C142: =Inputs!$C$5 -> 12 Months Ending June 2012
C145: A | D145: B | E145: C | F145: D | G145: E | H145: F | I145: G | J145: H | K145: I | L145: J | M145: L | N145: M
E146: ='Hot Sheet'!$H$10 -> Washington | G146: ='Hot Sheet'!$J$10 -> Small General | H146: ='Hot Sheet'!$K$10 -> Large General | I146: ='Hot Sheet'!$L$10 -> Large General | J146: ='Hot Sheet'!M$10 -> Large General | K146: ='Hot Sheet'!$N$10 -> Agricultural | L146: ='Hot Sheet'!$O$10 -> Street & Area | M146: ='Hot Sheet'!P$10 -> 0 | N146: ='Hot Sheet'!Q$10 -> 0 | O146: Chk Total
E147: ='Hot Sheet'!$H$11 -> Jurisdiction | F147: ='Hot Sheet'!$I$11 -> Residential | G147: ='Hot Sheet'!$J$11 -> Service | H147: ='Hot Sheet'!$K$11 -> Service <1,000 kW | I147: ='Hot Sheet'!$L$11 -> Service >1,000 kW | J147: ='Hot Sheet'!M$11 -> Dedicated Facilities | K147: ='Hot Sheet'!$N$11 -> Pumping | L147: ='Hot Sheet'!$O$11 -> Lighting | M147: ='Hot Sheet'!P$11 -> - | N147: ='Hot Sheet'!Q$11 -> -
C148: DESCRIPTION | E148: ='Hot Sheet'!$H$12 -> Normalized | F148: ='Hot Sheet'!$I$12 -> Schedule 16 | G148: ='Hot Sheet'!$J$12 -> Schedule 24 | H148: ='Hot Sheet'!$K$12 -> Schedule 36 | I148: ='Hot Sheet'!$L$12 -> Schedule 48T | J148: ='Hot Sheet'!M$12 -> Schedule 48T | K148: ='Hot Sheet'!$N$12 -> Schedule 40 | L148: ='Hot Sheet'!$O$12 -> Sch. 15,51-54,57 | M148: ='Hot Sheet'!P$12 -> - | N148: ='Hot Sheet'!Q$12 -> - | O148: =ROUND(SUM(O151:O204),0) -> 0
A149: 13
A150: =A149+1 -> 14 | C150: Operating Expenses
A151: =A150+1 -> 15 | C151: Operation & Maintenance Expenses | E151: ='Func Study'!$O$13 -> 99447425.14 | F151: 41752263.69 | G151: 13421935.81 | H151: 21309945.78 | I151: 8500895.308 | J151: 10607199.13 | K151: 3599392.237 | L151: 255793.1807 | M151: 0 | N151: 0 | O151: =ROUND(SUM(F151:N151)-E151,0) -> 0
A152: 16 | C152: Depreciation Expense | E152: ='Func Study'!$O$14 -> 14357361.23 | F152: 5782913.921 | G152: 1935843.325 | H152: 3097817.549 | I152: 1282481.936 | J152: 1660091.41 | K152: 551429.6008 | L152: 46783.49071 | M152: 0 | N152: 0 | O152: 0
A153: 17 | C153: Amortization Expense | E153: ='Func Study'!$O$15 -> 2393513.464 | F153: 1027102.614 | G153: 323372.1537 | H153: 505871.8611 | I153: 199743.5242 | J153: 245792.7653 | K153: 85244.72807 | L153: 6385.818445 | M153: 0 | N153: 0 | O153: 0
A154: 18 | C154: Taxes Other Than Income | E154: ='Func Study'!$O$16 -> 6270145.896 | F154: 2655901.27 | G154: 846130.7447 | H154: 1342997.932 | I154: 530722.3018 | J154: 656240.0997 | K154: 223331.8627 | L154: 14821.68499 | M154: 0 | N154: 0 | O154: 0
A155: 19 | C155: Income Taxes - Federal | E155: ='Func Study'!$O$17 -> -7399527.695 | F155: -3134283.529 | G155: -998536.2354 | H155: -1584899.388 | I155: -626316.2669 | J155: -774442.3931 | K155: -263558.509 | L155: -17491.37427 | M155: 0 | N155: 0 | O155: 0
A156: 20 | C156: Income Taxes - State | E156: ='Func Study'!$O$18 -> 0 | F156: 0 | G156: 0 | H156: 0 | I156: 0 | J156: 0 | K156: 0 | L156: 0 | M156: 0 | N156: 0 | O156: 0
A157: 21 | C157: Income Taxes Deferred | E157: ='Func Study'!$O$19 -> 7942550.537 | F157: 3364296.527 | G157: 1071814.964 | H157: 1701209.05 | I157: 672279.2057 | J157: 831275.7379 | K157: 282900.053 | L157: 18774.99886 | M157: 0 | N157: 0 | O157: 0
A158: 22 | C158: Investment Tax Credit Adj | E158: ='Func Study'!$O$20 -> 0 | F158: 0 | G158: 0 | H158: 0 | I158: 0 | J158: 0 | K158: 0 | L158: 0 | M158: 0 | N158: 0 | O158: 0
A159: 23 | C159: Misc Revenues & Expense | E159: ='Func Study'!$O$21 -> -529054.2584 | F159: -212615.9941 | G159: -71331.24286 | H159: -114194.8046 | I159: -47365.78455 | J159: -61421.23518 | K159: -20382.13523 | L159: -1743.061855 | M159: 0 | N159: 0 | O159: 0
A160: 24
A161: 25 | C161: Total Operating Expenses | E161: =SUM(E151:E159) -> 122482414.3 | F161: =SUM(F151:F159) -> 51235578.5 | G161: 16529229.52 | H161: 26258747.98 | I161: 10512440.22 | J161: =SUM(J151:J159) -> 13164735.52 | K161: 4458357.838 | L161: 323324.7376 | M161: 0 | N161: 0 | O161: =ROUND(SUM(F161:N161)-E161,0) -> 0
A162: 26
A163: 27
A164: 28 | C164: Rate Base :
A165: 29 | C165: Electric Plant In Service | E165: ='Func Study'!$O$29 -> 547515423.3 | F165: 221212027.8 | G165: 73826785.32 | H165: 118072965 | I165: 48753927.12 | J165: 62953267.93 | K165: 20939629.2 | L165: 1756820.857 | M165: 0 | N165: 0 | O165: =ROUND(SUM(F165:N165)-E165,0) -> 0
A166: 30 | C166: Plant Held For Future Use | E166: ='Func Study'!$O$30 -> 27128.26947 | F166: 10902.29195 | G166: 3657.645973 | H166: 5855.557123 | I166: 2428.77124 | J166: 3149.491366 | K166: 1045.132986 | L166: 89.37883205 | M166: 0 | N166: 0 | O166: 0
A167: 31 | C167: Electric Plant Acquisition Adj | E167: ='Func Study'!$O$31 -> 0 | F167: 0 | G167: 0 | H167: 0 | I167: 0 | J167: 0 | K167: 0 | L167: 0 | M167: 0 | N167: 0 | O167: 0
A168: 32 | C168: Nuclear Fuel | E168: ='Func Study'!$O$32 -> 0 | F168: 0 | G168: 0 | H168: 0 | I168: 0 | J168: 0 | K168: 0 | L168: 0 | M168: 0 | N168: 0 | O168: 0
A169: 33 | C169: Prepayments | E169: ='Func Study'!$O$33 -> -4.325319733e-08 | F169: -2.114204679e-08 | G169: -5.852321132e-09 | H169: -7.749345265e-09 | I169: -3.050700748e-09 | J169: -3.756632319e-09 | K169: -1.458214592e-09 | L169: -2.439364843e-10 | M169: 0 | N169: 0 | O169: 0
A170: 34 | C170: Fuel Stock | E170: ='Func Study'!$O$34 -> -9.408337064e-08 | F170: -3.781016609e-08 | G170: -1.268505764e-08 | H170: -2.030761865e-08 | I170: -8.423205357e-09 | J170: -1.092273003e-08 | K170: -3.624618747e-09 | L170: -3.099741321e-10 | M170: 0 | N170: 0 | O170: 0
A171: 35 | C171: Materials & Supplies | E171: ='Func Study'!$O$35 -> 7.05780055e-05 | F171: 2.994531133e-05 | G171: 9.524565572e-06 | H171: 1.50907698e-05 | I171: 5.963129308e-06 | J171: 7.3724676e-06 | K171: 2.51247504e-06 | L171: 1.692868401e-07 | M171: 0 | N171: 0 | O171: 0
A172: 36 | C172: Misc Deferred Debits | E172: ='Func Study'!$O$36 -> 9121029.237 | F172: 3869824.881 | G172: 1230890.545 | H172: 1950239.803 | I172: 770658.9571 | J172: 952823.863 | K172: 324709.4174 | L172: 21881.77011 | M172: 0 | N172: 0 | O172: 0
A173: 37 | C173: Cash Working Capital | E173: ='Func Study'!$O$37 -> 12325077.33 | F173: 5227806.519 | G173: 1663748.063 | H173: 2636239.788 | I173: 1041596.151 | J173: 1286971.467 | K173: 439141.5546 | L173: 29573.78264 | M173: 0 | N173: 0 | O173: 0
A174: 38 | C174: Weatherization Loans | E174: ='Func Study'!$O$38 -> 0 | F174: 0 | G174: 0 | H174: 0 | I174: 0 | J174: 0 | K174: 0 | L174: 0 | M174: 0 | N174: 0 | O174: 0
A175: 39 | C175: Miscellaneous Rate Base | E175: ='Func Study'!$O$39 -> 0 | F175: 0 | G175: 0 | H175: 0 | I175: 0 | J175: 0 | K175: 0 | L175: 0 | M175: 0 | N175: 0 | O175: 0
A176: 40
A177: 41 | C177: Total Rate Base Additions | E177: =SUM(E165:E175) -> 568988658.1 | F177: =SUM(F165:F175) -> 230320561.5 | G177: 76725081.57 | H177: 122665300.2 | I177: 50568611 | J177: =SUM(J165:J175) -> 65196212.75 | K177: 21704525.31 | L177: 1808365.788 | M177: 0 | N177: 0 | O177: =ROUND(SUM(F177:N177)-E177,0) -> 0
A178: 42
A179: 43 | C179: Rate Base Deductions :
A180: 44 | C180: Accum Provision For Depreciation | E180: ='Func Study'!$O$44 -> -171238750.4 | F180: -68919942.51 | G180: -23088314.43 | H180: -36952082.6 | I180: -15307783.22 | J180: -19826884.37 | K180: -6583671.176 | L180: -560072.1098 | M180: 0 | N180: 0 | O180: =ROUND(SUM(F180:N180)-E180,0) -> 0
A181: 45 | C181: Accum Provision For Amortization | E181: ='Func Study'!$O$45 -> -13912762.9 | F181: -5914575.439 | G181: -1878628.096 | H181: -2969034.145 | I181: -1173057.735 | J181: -1446830.754 | K181: -496349.284 | L181: -34287.44674 | M181: 0 | N181: 0 | O181: 0
A182: 46 | C182: Accum Deferred Income Taxes | E182: ='Func Study'!$O$46 -> -77069727.88 | F182: -32896225.76 | G182: -10401488.08 | H182: -16372576.37 | I182: -6469077.11 | J182: -7997936.404 | K182: -2737651.798 | L182: -194772.3564 | M182: 0 | N182: 0 | O182: 0
A183: 47 | C183: Unamortized ITC | E183: ='Func Study'!$O$47 -> -165124.94 | F183: -70052.36041 | G183: -22283.24913 | H183: -35309.36492 | I183: -13953.10288 | J183: -17253.0375 | K183: -5878.070368 | L183: -395.7547679 | M183: 0 | N183: 0 | O183: 0
A184: 48 | C184: Customer Advance For Construction | E184: ='Func Study'!$O$48 -> 0 | F184: 0 | G184: 0 | H184: 0 | I184: 0 | J184: 0 | K184: 0 | L184: 0 | M184: 0 | N184: 0 | O184: 0
A185: 49 | C185: Customer Service Deposits | E185: ='Func Study'!$O$49 -> 0 | F185: 0 | G185: 0 | H185: 0 | I185: 0 | J185: 0 | K185: 0 | L185: 0 | M185: 0 | N185: 0 | O185: 0
A186: 50 | C186: Misc Rate Base Deductions | E186: ='Func Study'!$O$50 -> -1928142.05 | F186: -779747.176 | G186: -259993.9557 | H186: -415742.855 | I186: -171530.4667 | J186: -221322.5059 | K186: -73647.11233 | L186: -6157.978035 | M186: 0 | N186: 0 | O186: 0
A187: 51
A188: 52 | C188: Total Rate Base Deductions | E188: =SUM(E180:E186) -> -264314508.2 | F188: =SUM(F180:F186) -> -108580543.3 | G188: -35650707.81 | H188: -56744745.33 | I188: -23135401.63 | J188: =SUM(J180:J186) -> -29510227.07 | K188: -9897197.441 | L188: -795685.6457 | M188: 0 | N188: 0 | O188: =ROUND(SUM(F188:N188)-E188,0) -> 0
A189: 53
A190: 54 | C190: Total Rate Base | E190: =E177+E188 -> 304674149.9 | F190: =F177+F188 -> 121740018.2 | G190: 41074373.77 | H190: 65920554.86 | I190: 27433209.37 | J190: =J177+J188 -> 35685985.68 | K190: 11807327.86 | L190: 1012680.143 | M190: 0 | N190: 0 | O190: =ROUND(SUM(F190:N190)-E190,0) -> 0
A191: 55
A192: 56
A193: 57 | C193: Return On Rate Base | D193: =ActualROR -> 0.04602925444 | E193: =$D$57*E190 -> 14023923.97 | F193: =$D$57*F190 -> 5603602.275 | G193: 1890622.801 | H193: 3034273.992 | I193: 1262730.174 | J193: =$D$57*J190 -> 1642599.315 | K193: 543482.4985 | L193: 46612.91195 | M193: 0 | N193: 0 | O193: =ROUND(SUM(F193:N193)-E193,0) -> 0
A194: 58 | C194: Total Operating Expenses | E194: =E161 -> 122482414.3 | F194: =F161 -> 51235578.5 | G194: 16529229.52 | H194: 26258747.98 | I194: 10512440.22 | J194: =J161 -> 13164735.52 | K194: 4458357.838 | L194: 323324.7376 | M194: 0 | N194: 0 | O194: =ROUND(SUM(F194:N194)-E194,0) -> 0
A195: 59 | C195: Revenue Credits | E195: ='Func Study'!$O$79 -> -13323370.27 | F195: -5623222.94 | G195: -1798146.134 | H195: -2837986.344 | I195: -1132192.457 | J195: -1413729.372 | K195: -482196.1548 | L195: -35896.86954 | M195: 0 | N195: 0 | O195: =ROUND(SUM(F195:N195)-E195,0) -> 0
A196: 60
A197: 61 | C197: Total Revenue Requirements | E197: =E193+E194+E195 -> 123182968 | F197: =F193+F194+F195 -> 51215957.83 | G197: 16621706.19 | H197: 26455035.63 | I197: 10642977.94 | J197: =J193+J194+J195 -> 13393605.46 | K197: 4519644.181 | L197: 334040.78 | M197: 0 | N197: 0 | O197: =ROUND(SUM(F197:N197)-E197,0) -> 0
A198: 62 | O198: =ROUND(SUM(F198:N198)-E198,0) -> 0
A199: 63
A200: 64 | C200: Return On Rate Base @ Target ROR | D200: =TargetROR -> 0.07799999713 | E200: =$D200*E190 -> 23764582.82 | F200: =$D200*F190 -> 9495721.073 | G200: 3203801.036 | H200: 5141803.089 | I200: 2139790.252 | J200: =$D200*J190 -> 2783506.781 | K200: 920971.5395 | L200: 78989.04821 | M200: 0 | N200: 0 | O200: =ROUND(SUM(F200:N200)-E200,0) -> 0
A201: 65 | C201: Total Operating Expenses Adjusted for Taxes | E201: =E194+((E200-E193)*(1/Net_to_Gross_Factor))-(E200-E193) -> 128482708 | F201: =F194+((F200-F193)*(1/Net_to_Gross_Factor))-(F200-F193) -> 53633142.8 | G201: 17338153.77 | H201: 27556996.26 | I201: 11052713.54 | J201: =J194+((J200-J193)*(1/Net_to_Gross_Factor))-(J200-J193) -> 13867540.12 | K201: 4690892.941 | L201: 343268.5966 | M201: 0 | N201: 0 | O201: =ROUND(SUM(F201:N201)-E201,0) -> 0
A202: 66 | C202: Revenue Credits | E202: =E195 -> -13323370.27 | F202: =F195 -> -5623222.94 | G202: -1798146.134 | H202: -2837986.344 | I202: -1132192.457 | J202: =J195 -> -1413729.372 | K202: -482196.1548 | L202: -35896.86954 | M202: 0 | N202: 0 | O202: =ROUND(SUM(F202:N202)-E202,0) -> 0
A203: 67
A204: 68 | C204: Total Target Revenue Requirements | E204: =SUM(E200:E202) -> 138923920.6 | F204: =SUM(F200:F202) -> 57505640.93 | G204: 18743808.67 | H204: 29860813 | I204: 12060311.34 | J204: =SUM(J200:J202) -> 15237317.53 | K204: 5129668.326 | L204: 386360.7753 | M204: 0 | N204: 0 | O204: =ROUND(SUM(F204:N204)-E204,0) -> 0
C206: Check | E206: =E68-E136-E204 -> 0 | F206: =F68-F136-F204 -> 0 | G206: =G68-G136-G204 -> 0 | H206: 0 | I206: 0 | J206: =J68-J136-J204 -> 0 | K206: 0 | L206: 0 | M206: 0 | N206: 0 | O206: 0

Sheet Transmission Summary
C1: Transmission Summary
C2: =Inputs!$C$3 -> PacifiCorp
C3: Cost Of Service By Rate Schedule - Transmission Function
C4: =Inputs!$C$4 -> State of Washington
C5: =+Method&" - "&IF(PeakMethod=1,"(Coincident Peaks)",IF(PeakMethod=2,"(200 Top Hours)","(100 Summer, 100 Winter Hours)"))&" - "&TEXT(Demand,"0%")&"D"&" / "&TEXT(Engy,"0%")&"E" -> WCA Method - (100 Summer, 100 Winter Hours) - 38%D / 62%E
C6: =Inputs!$C$5 -> 12 Months Ending June 2012
C9: A | D9: B | E9: C | F9: D | G9: E | H9: F | I9: G | J9: H | K9: I | L9: J | M9: K | N9: L
E10: ='Hot Sheet'!$H$10 -> Washington | G10: ='Hot Sheet'!$J$10 -> Small General | H10: ='Hot Sheet'!$K$10 -> Large General | I10: ='Hot Sheet'!$L$10 -> Large General | J10: ='Hot Sheet'!M$10 -> Large General | K10: ='Hot Sheet'!$N$10 -> Agricultural | L10: ='Hot Sheet'!O$10 -> Street & Area | O10: Chk Total
E11: ='Hot Sheet'!$H$11 -> Jurisdiction | F11: ='Hot Sheet'!$I$11 -> Residential | G11: ='Hot Sheet'!$J$11 -> Service | H11: ='Hot Sheet'!$K$11 -> Service <1,000 kW | I11: ='Hot Sheet'!$L$11 -> Service >1,000 kW | J11: ='Hot Sheet'!M$11 -> Dedicated Facilities | K11: ='Hot Sheet'!$N$11 -> Pumping | L11: ='Hot Sheet'!O$11 -> Lighting | M11: ='Hot Sheet'!P$11 -> - | N11: ='Hot Sheet'!Q$11 -> -
C12: DESCRIPTION | E12: ='Hot Sheet'!$H$12 -> Normalized | F12: ='Hot Sheet'!$I$12 -> Schedule 16 | G12: ='Hot Sheet'!$J$12 -> Schedule 24 | H12: ='Hot Sheet'!$K$12 -> Schedule 36 | I12: ='Hot Sheet'!$L$12 -> Schedule 48T | J12: ='Hot Sheet'!M$12 -> Schedule 48T | K12: ='Hot Sheet'!$N$12 -> Schedule 40 | L12: ='Hot Sheet'!O$12 -> Sch. 15,51-54,57 | M12: ='Hot Sheet'!P$12 -> - | N12: ='Hot Sheet'!Q$12 -> - | O12: =ROUND(SUM(O15:O68),0) -> 0
A14: 14 | C14: Operating Expenses
A15: =A14+1 -> 15 | C15: Operation & Maintenance Expenses | E15: ='Function Summary'!$G15 -> 32671390.56 | F15: =Transmission!$I$17 -> 13881299.44 | G15: =Transmission!$J$17 -> 4414119.527 | H15: =Transmission!$K$17 -> 6976144.847 | I15: =Transmission!$L$17 -> 2755133.252 | J15: =Transmission!$M$17 -> 3399020.84 | K15: =Transmission!$N$17 -> 1165522.92 | L15: =Transmission!$O$17 -> 80149.74329 | M15: =Transmission!$P$17 -> 0 | N15: =Transmission!$Q$17 -> 0 | O15: =ROUND(SUM(F15:N15)-E15,0) -> 0
A16: =A15+1 -> 16 | C16: Depreciation Expense | E16: ='Function Summary'!$G16 -> 5516357.651 | F16: =Transmission!$I$18 -> 2340452.764 | G16: =Transmission!$J$18 -> 744437.0914 | H16: =Transmission!$K$18 -> 1179496.303 | I16: =Transmission!$L$18 -> 466091.0873 | J16: =Transmission!$M$18 -> 576263.6069 | K16: =Transmission!$N$18 -> 196382.802 | L16: =Transmission!$O$18 -> 13233.99661 | M16: =Transmission!$P$18 -> 0 | N16: =Transmission!$Q$18 -> 0 | O16: 0
A17: 17 | C17: Amortization Expense | E17: ='Function Summary'!$G17 -> 808907.7505 | F17: =Transmission!$I$19 -> 343199.3537 | G17: =Transmission!$J$19 -> 109162.7793 | H17: =Transmission!$K$19 -> 172958.9996 | I17: =Transmission!$L$19 -> 68346.67308 | J17: =Transmission!$M$19 -> 84502.15295 | K17: =Transmission!$N$19 -> 28797.18479 | L17: =Transmission!$O$19 -> 1940.607028 | M17: =Transmission!$P$19 -> 0 | N17: =Transmission!$Q$19 -> 0 | O17: 0
A18: 18 | C18: Taxes Other Than Income | E18: ='Function Summary'!$G18 -> 4248894.659 | F18: =Transmission!$I$20 -> 1802073.192 | G18: =Transmission!$J$20 -> 573598.6843 | H18: =Transmission!$K$20 -> 908634.0908 | I18: =Transmission!$L$20 -> 359074.3879 | J18: =Transmission!$M$20 -> 444118.1913 | K18: =Transmission!$N$20 -> 151240.3097 | L18: =Transmission!$O$20 -> 10155.80323 | M18: =Transmission!$P$20 -> 0 | N18: =Transmission!$Q$20 -> 0 | O18: 0
A19: 19 | C19: Income Taxes - Federal | E19: ='Function Summary'!$G19 -> -368427.971 | F19: =Transmission!$I$21 -> -156260.4449 | G19: =Transmission!$J$21 -> -49737.59444 | H19: =Transmission!$K$21 -> -78789.0125 | I19: =Transmission!$L$21 -> -31135.87386 | J19: =Transmission!$M$21 -> -38510.14845 | K19: =Transmission!$N$21 -> -13114.27204 | L19: =Transmission!$O$21 -> -880.6247926 | M19: =Transmission!$P$21 -> 0 | N19: =Transmission!$Q$21 -> 0 | O19: 0
A20: 20 | C20: Income Taxes - State | E20: ='Function Summary'!$G20 -> 0 | F20: =Transmission!$I$22 -> 0 | G20: =Transmission!$J$22 -> 0 | H20: =Transmission!$K$22 -> 0 | I20: =Transmission!$L$22 -> 0 | J20: =Transmission!$M$22 -> 0 | K20: =Transmission!$N$22 -> 0 | L20: =Transmission!$O$22 -> 0 | M20: =Transmission!$P$22 -> 0 | N20: =Transmission!$Q$22 -> 0 | O20: 0
A21: 21 | C21: Income Taxes Deferred | E21: ='Function Summary'!$G21 -> 2686209.424 | F21: =Transmission!$I$23 -> 1139295.365 | G21: =Transmission!$J$23 -> 362636.9479 | H21: =Transmission!$K$23 -> 574450.9226 | I21: =Transmission!$L$23 -> 227011.7482 | J21: =Transmission!$M$23 -> 280777.606 | K21: =Transmission!$N$23 -> 95616.19614 | L21: =Transmission!$O$23 -> 6420.637962 | M21: =Transmission!$P$23 -> 0 | N21: =Transmission!$Q$23 -> 0 | O21: 0
A22: 22 | C22: Investment Tax Credit Adj | E22: ='Function Summary'!$G22 -> 0 | F22: =Transmission!$I$24 -> 0 | G22: =Transmission!$J$24 -> 0 | H22: =Transmission!$K$24 -> 0 | I22: =Transmission!$L$24 -> 0 | J22: =Transmission!$M$24 -> 0 | K22: =Transmission!$N$24 -> 0 | L22: =Transmission!$O$24 -> 0 | M22: =Transmission!$P$24 -> 0 | N22: =Transmission!$Q$24 -> 0 | O22: 0
A23: 23 | C23: Misc Revenues & Expense | E23: ='Function Summary'!$G23 -> 516.4751828 | F23: =Transmission!$I$25 -> 219.1275196 | G23: =Transmission!$J$25 -> 69.69875907 | H23: =Transmission!$K$25 -> 110.4316665 | I23: =Transmission!$L$25 -> 43.63830171 | J23: =Transmission!$M$25 -> 53.95332764 | K23: =Transmission!$N$25 -> 18.38656048 | L23: =Transmission!$O$25 -> 1.239047801 | M23: =Transmission!$P$25 -> 0 | N23: =Transmission!$Q$25 -> 0 | O23: 0
A24: 24
A25: 25 | C25: Total Operating Expenses | E25: =SUM(E15:E23) -> 45563848.55 | F25: =SUM(F15:F23) -> 19350278.79 | G25: 6154287.134 | H25: 9733006.582 | I25: 3844564.913 | J25: =SUM(J15:J23) -> 4746226.202 | K25: 1624463.527 | L25: 111021.4024 | M25: 0 | N25: 0 | O25: =ROUND(SUM(F25:N25)-E25,0) -> 0
A26: 26
A27: 27
A28: 28 | C28: Rate Base :
A29: 29 | C29: Electric Plant In Service | E29: ='Function Summary'!$G29 -> 303513053.3 | F29: =Transmission!$I$33 -> 128773007.4 | G29: =Transmission!$J$33 -> 40959341.08 | H29: =Transmission!$K$33 -> 64896539.85 | I29: =Transmission!L$33 -> 25644589.77 | J29: =Transmission!$M$33 -> 31706342.82 | K29: =Transmission!$N$33 -> 10805090.54 | L29: =Transmission!O$33 -> 728141.8231 | M29: =Transmission!$P$33 -> 0 | N29: =Transmission!$Q$33 -> 0 | O29: =ROUND(SUM(F29:N29)-E29,0) -> 0
A30: 30 | C30: Plant Held For Future Use | E30: ='Function Summary'!$G30 -> 0 | F30: =Transmission!$I$34 -> 0 | G30: =Transmission!$J$34 -> 0 | H30: =Transmission!$K$34 -> 0 | I30: =Transmission!$L$34 -> 0 | J30: =Transmission!$M$34 -> 0 | K30: =Transmission!$N$34 -> 0 | L30: =Transmission!$O$34 -> 0 | M30: =Transmission!$P$34 -> 0 | N30: =Transmission!Q34 -> 0 | O30: 0
A31: =A30+1 -> 31 | C31: Electric Plant Acquisition Adj | E31: ='Function Summary'!$G31 -> 0 | F31: =Transmission!$I$35 -> 0 | G31: =Transmission!$J$35 -> 0 | H31: =Transmission!$K$35 -> 0 | I31: =Transmission!$L$35 -> 0 | J31: =Transmission!$M$35 -> 0 | K31: =Transmission!$N$35 -> 0 | L31: =Transmission!$O$35 -> 0 | M31: =Transmission!$P$35 -> 0 | N31: =Transmission!$Q$35 -> 0 | O31: 0
A32: 32 | C32: Nuclear Fuel | E32: ='Function Summary'!$G32 -> 0 | F32: =Transmission!$I$36 -> 0 | G32: =Transmission!$J$36 -> 0 | H32: =Transmission!$K$36 -> 0 | I32: =Transmission!$L$36 -> 0 | J32: =Transmission!$M$36 -> 0 | K32: =Transmission!$N$36 -> 0 | L32: =Transmission!$O$36 -> 0 | M32: =Transmission!$P$36 -> 0 | N32: =Transmission!$Q$36 -> 0 | O32: 0
A33: 33 | C33: Prepayments | E33: ='Function Summary'!$G33 -> -2.740341034e-08 | F33: =Transmission!$I$37 -> -1.352366231e-08 | G33: =Transmission!$J$37 -> -3.708490387e-09 | H33: =Transmission!$K$37 -> -4.840400132e-09 | I33: =Transmission!$L$37 -> -1.904894008e-09 | J33: =Transmission!$M$37 -> -2.344845922e-09 | K33: =Transmission!$N$37 -> -9.200930914e-10 | L33: =Transmission!$O$37 -> -1.610244839e-10 | M33: =Transmission!$P$37 -> 0 | N33: =Transmission!$Q$37 -> 0 | O33: 0
A34: 34 | C34: Fuel Stock | E34: ='Function Summary'!$G34 -> 0 | F34: =Transmission!$I$38 -> 0 | G34: =Transmission!$J$38 -> 0 | H34: =Transmission!$K$38 -> 0 | I34: =Transmission!$L$38 -> 0 | J34: =Transmission!$M$38 -> 0 | K34: =Transmission!$N$38 -> 0 | L34: =Transmission!$O$38 -> 0 | M34: =Transmission!$P$38 -> 0 | N34: =Transmission!$Q$38 -> 0 | O34: 0
A35: 35 | C35: Materials & Supplies | E35: ='Function Summary'!$G35 -> 8.838735256e-07 | F35: =Transmission!$I$39 -> 3.750054596e-07 | G35: =Transmission!$J$39 -> 1.192794736e-07 | H35: =Transmission!$K$39 -> 1.889880282e-07 | I35: =Transmission!$L$39 -> 7.468072208e-08 | J35: =Transmission!$M$39 -> 9.233341603e-08 | K35: =Transmission!$N$39 -> 3.146597277e-08 | L35: =Transmission!$O$39 -> 2.120453382e-09 | M35: =Transmission!$P$39 -> 0 | N35: =Transmission!$Q$39 -> 0 | O35: 0
A36: 36 | C36: Misc Deferred Debits | E36: ='Function Summary'!$G36 -> 55395.80267 | F36: =Transmission!$I$40 -> 23503.0554 | G36: =Transmission!$J$40 -> 7475.710029 | H36: =Transmission!$K$40 -> 11844.61715 | I36: =Transmission!$L$40 -> 4680.532252 | J36: =Transmission!$M$40 -> 5786.895461 | K36: =Transmission!$N$40 -> 1972.095291 | L36: =Transmission!$O$40 -> 132.8970873 | M36: =Transmission!$P$40 -> 0 | N36: =Transmission!$Q$40 -> 0 | O36: 0
A37: 37 | C37: Cash Working Capital | E37: ='Function Summary'!$G37 -> 4582113.839 | F37: =Transmission!$I$41 -> 1946831.56 | G37: =Transmission!$J$41 -> 619073.6857 | H37: =Transmission!$K$41 -> 978393.9189 | I37: =Transmission!$L$41 -> 386403.3328 | J37: =Transmission!$M$41 -> 476707.6075 | K37: =Transmission!$N$41 -> 163462.8526 | L37: =Transmission!$O$41 -> 11240.88206 | M37: =Transmission!$P$41 -> 0 | N37: =Transmission!$Q$41 -> 0 | O37: 0
A38: 38 | C38: Weatherization Loans | E38: ='Function Summary'!$G38 -> 0 | F38: =Transmission!$I$42 -> 0 | G38: =Transmission!$J$42 -> 0 | H38: =Transmission!$K$42 -> 0 | I38: =Transmission!$L$42 -> 0 | J38: =Transmission!$M$42 -> 0 | K38: =Transmission!$N$42 -> 0 | L38: =Transmission!$O$42 -> 0 | M38: =Transmission!$P$42 -> 0 | N38: =Transmission!$Q$42 -> 0 | O38: 0
A39: 39 | C39: Miscellaneous Rate Base | E39: ='Function Summary'!$G39 -> 0 | F39: =Transmission!$I$43 -> 0 | G39: =Transmission!$J$43 -> 0 | H39: =Transmission!$K$43 -> 0 | I39: =Transmission!$L$43 -> 0 | J39: =Transmission!$M$43 -> 0 | K39: =Transmission!$N$43 -> 0 | L39: =Transmission!$O$43 -> 0 | M39: =Transmission!$P$43 -> 0 | N39: =Transmission!$Q$43 -> 0 | O39: 0
A40: 40
A41: 41 | C41: Total Rate Base Additions | E41: =SUM(E29:E39) -> 308150562.9 | F41: 130743342 | G41: 41585890.48 | H41: 65886778.38 | I41: 26035673.64 | J41: =SUM(J29:J39) -> 32188837.32 | K41: 10970525.48 | L41: 739515.6023 | M41: 0 | N41: 0 | O41: =ROUND(SUM(F41:N41)-E41,0) -> 0
A42: 42
A43: 43 | C43: Rate Base Deductions :
A44: 44 | C44: Accum Provision For Depreciation | E44: ='Function Summary'!$G44 -> -114462702.4 | F44: =Transmission!$I$48 -> -48563665.58 | G44: =Transmission!$J$48 -> -15446837.68 | H44: =Transmission!$K$48 -> -24474180.75 | I44: =Transmission!$L$48 -> -9671244.83 | J44: =Transmission!$M$48 -> -11957290.28 | K44: =Transmission!$N$48 -> -4074881.95 | L44: =Transmission!$O$48 -> -274601.3059 | M44: =Transmission!$P$48 -> 0 | N44: =Transmission!$Q$48 -> 0 | O44: =ROUND(SUM(F44:N44)-E44,0) -> 0
A45: 45 | C45: Accum Provision For Amortization | E45: ='Function Summary'!$G45 -> -6435065.1 | F45: =Transmission!$I$49 -> -2760391.19 | G45: =Transmission!$J$49 -> -870918.9554 | H45: =Transmission!$K$49 -> -1362483.324 | I45: =Transmission!$L$49 -> -537327.4299 | J45: =Transmission!$M$49 -> -655519.2852 | K45: =Transmission!$N$49 -> -231047.8122 | L45: =Transmission!$O$49 -> -17377.1036 | M45: =Transmission!$P$49 -> 0 | N45: =Transmission!$Q$49 -> 0 | O45: 0
A46: 46 | C46: Accum Deferred Income Taxes | E46: ='Function Summary'!$G46 -> -46442324.71 | F46: =Transmission!$I$50 -> -19696649.94 | G46: =Transmission!$J$50 -> -6266794.508 | H46: =Transmission!$K$50 -> -9933623.057 | I46: =Transmission!$L$50 -> -3925654.553 | J46: =Transmission!$M$50 -> -4855825.964 | K46: =Transmission!$N$50 -> -1652852.535 | L46: =Transmission!$O$50 -> -110924.1526 | M46: =Transmission!$P$50 -> 0 | N46: =Transmission!$Q$50 -> 0 | O46: 0
A47: =A46+1 -> 47 | C47: Unamortized ITC | E47: ='Function Summary'!$G47 -> -103068.5295 | F47: =Transmission!$I$51 -> -43712.38376 | G47: =Transmission!$J$51 -> -13907.77263 | H47: =Transmission!$K$51 -> -22045.49275 | I47: =Transmission!$L$51 -> -8712.127357 | J47: =Transmission!$M$51 -> -10776.4385 | K47: =Transmission!$N$51 -> -3668.142792 | L47: =Transmission!$O$51 -> -246.1717346 | M47: =Transmission!$P$51 -> 0 | N47: =Transmission!$Q$51 -> 0 | O47: 0
A48: 48 | C48: Customer Advance For Construction | E48: ='Function Summary'!$G48 -> 18276.84174 | F48: =Transmission!$I$52 -> 6731.604345 | G48: =Transmission!$J$52 -> 10459.12623 | H48: =Transmission!$K$52 -> 0 | I48: =Transmission!$L$52 -> 0 | J48: =Transmission!$M$52 -> 0 | K48: =Transmission!$N$52 -> 1086.111168 | L48: =Transmission!$O$52 -> 0 | M48: =Transmission!$P$52 -> 0 | N48: =Transmission!$Q$52 -> 0 | O48: 0
A49: 49 | C49: Customer Service Deposits | E49: ='Function Summary'!$G49 -> 0 | F49: =Transmission!$I$53 -> 0 | G49: =Transmission!$J$53 -> 0 | H49: =Transmission!$K$53 -> 0 | I49: =Transmission!$L$53 -> 0 | J49: =Transmission!$M$53 -> 0 | K49: =Transmission!$N$53 -> 0 | L49: =Transmission!$O$53 -> 0 | M49: =Transmission!$P$53 -> 0 | N49: =Transmission!$Q$53 -> 0 | O49: 0
A50: 50 | C50: Misc Rate Base Deductions | E50: ='Function Summary'!$G50 -> -135637.7092 | F50: =Transmission!$I$54 -> -57547.69205 | G50: =Transmission!$J$54 -> -18304.42261 | H50: =Transmission!$K$54 -> -29001.77737 | I50: =Transmission!$L$54 -> -11460.37501 | J50: =Transmission!$M$54 -> -14169.32702 | K50: =Transmission!$N$54 -> -4828.713995 | L50: =Transmission!$O$54 -> -325.4011246 | M50: =Transmission!$P$54 -> 0 | N50: =Transmission!$Q$54 -> 0 | O50: 0
A51: 51
A52: 52 | C52: Total Rate Base Deductions | E52: =SUM(E44:E50) -> -167560521.6 | F52: -71115235.18 | G52: -22606304.22 | H52: -35821334.41 | I52: -14154399.31 | J52: =SUM(J44:J50) -> -17493581.3 | K52: -5966193.043 | L52: -403474.135 | M52: 0 | N52: 0 | O52: =ROUND(SUM(F52:N52)-E52,0) -> 0
A53: 53
A54: 54 | C54: Total Rate Base | E54: =E41+E52 -> 140590041.3 | F54: =F41+F52 -> 59628106.8 | G54: 18979586.26 | H54: 30065443.98 | I54: 11881274.32 | J54: =J41+J52 -> 14695256.03 | K54: 5004332.442 | L54: 336041.4673 | M54: 0 | N54: 0 | O54: =ROUND(SUM(F54:N54)-E54,0) -> 0
A55: 55
A56: 56
A57: 57 | C57: Return On Rate Base | D57: =ActualROR -> 0.04602925444 | E57: =$D$57*E54 -> 6471254.783 | F57: =$D$57*F54 -> 2744637.3 | G57: 873616.2053 | H57: 1383889.971 | I57: 546886.1989 | J57: =$D$57*J54 -> 676411.6788 | K57: 230345.6913 | L57: 15467.7382 | M57: 0 | N57: 0 | O57: =ROUND(SUM(F57:N57)-E57,0) -> 0
A58: 58 | C58: Total Operating Expenses | E58: =E25 -> 45563848.55 | F58: 19350278.79 | G58: 6154287.134 | H58: 9733006.582 | I58: 3844564.913 | J58: =J25 -> 4746226.202 | K58: 1624463.527 | L58: 111021.4024 | M58: 0 | N58: 0 | O58: =ROUND(SUM(F58:N58)-E58,0) -> 0
A59: 59 | C59: Revenue Credits | E59: ='Function Summary'!$G$59 -> -3517284.723 | F59: =Transmission!$I$99 -> -1511563.232 | G59: =Transmission!$J99 -> -474978.5042 | H59: =Transmission!$K99 -> -741147.3069 | I59: =Transmission!$L99 -> -292729.341 | J59: =Transmission!$M99 -> -361889.085 | K59: =Transmission!$N99 -> -125436.6452 | L59: =Transmission!$O99 -> -9540.608643 | M59: =Transmission!$P99 -> 0 | N59: =Transmission!$Q99 -> 0 | O59: =ROUND(SUM(F59:N59)-E59,0) -> 0
A60: 60
A61: 61 | C61: Total Revenue Requirements | E61: =E57+E58+E59 -> 48517818.61 | F61: =F57+F58+F59 -> 20583352.86 | G61: 6552924.836 | H61: 10375749.25 | I61: 4098721.771 | J61: =J57+J58+J59 -> 5060748.796 | K61: 1729372.573 | L61: 116948.5319 | M61: 0 | N61: 0 | O61: =ROUND(SUM(F61:N61)-E61,0) -> 0
A62: 62 | O62: =ROUND(SUM(F62:N62)-E62,0) -> 0
A63: 63
A64: 64 | C64: Return On Rate Base @ Target ROR | D64: =TargetROR -> 0.07799999713 | E64: =$D64*E54 -> 10966022.82 | F64: =$D64*F54 -> 4650992.159 | G64: 1480407.674 | H64: 2345104.544 | I64: 926739.3631 | J64: =$D64*J54 -> 1146229.928 | K64: 390337.9161 | L64: 26211.23349 | M64: 0 | N64: 0 | O64: =ROUND(SUM(F64:N64)-E64,0) -> 0
A65: 65 | C65: Total Operating Expenses Adjusted for Taxes | E65: =E58+((E64-E57)*(1/Net_to_Gross_Factor))-(E64-E57) -> 48332647.74 | F65: =F58+((F64-F57)*(1/Net_to_Gross_Factor))-(F64-F57) -> 20524602.75 | G65: 6528073.66 | H65: 10325119.48 | I65: 4078556.328 | J65: =J58+((J64-J57)*(1/Net_to_Gross_Factor))-(J64-J57) -> 5035636.551 | K65: 1723019.523 | L65: 117639.4483 | M65: 0 | N65: 0 | O65: =ROUND(SUM(F65:N65)-E65,0) -> 0
A66: 66 | C66: Revenue Credits | E66: =E59 -> -3517284.723 | F66: =F59 -> -1511563.232 | G66: -474978.5042 | H66: -741147.3069 | I66: -292729.341 | J66: =J59 -> -361889.085 | K66: -125436.6452 | L66: -9540.608643 | M66: 0 | N66: 0 | O66: =ROUND(SUM(F66:N66)-E66,0) -> 0
A67: 67
A68: 68 | C68: Total Target Revenue Requirements | E68: =SUM(E64:E66) -> 55781385.84 | F68: =SUM(F64:F66) -> 23664031.68 | G68: 7533502.83 | H68: 11929076.72 | I68: 4712566.35 | J68: =SUM(J64:J66) -> 5819977.394 | K68: 1987920.794 | L68: 134310.0731 | M68: 0 | N68: 0 | O68: =ROUND(SUM(F68:N68)-E68,0) -> 0
C69: Transmission Demand Summary
C70: =Inputs!$C$3 -> PacifiCorp
C71: ="Cost Of Service By Rate Schedule - "&C69 -> Cost Of Service By Rate Schedule - Transmission Demand Summary
C72: =Inputs!$C$4 -> State of Washington
C73: =+Method&" - "&IF(PeakMethod=1,"(Coincident Peaks)",IF(PeakMethod=2,"(200 Top Hours)","(100 Summer, 100 Winter Hours)"))&" - "&TEXT(Demand,"0%")&"D"&" / "&TEXT(Engy,"0%")&"E" -> WCA Method - (100 Summer, 100 Winter Hours) - 38%D / 62%E
C74: =Inputs!$C$5 -> 12 Months Ending June 2012
C77: A | D77: B | E77: C | F77: D | G77: E | H77: F | I77: G | J77: H | K77: I | L77: J | M77: L | N77: M
E78: ='Hot Sheet'!$H$10 -> Washington | G78: ='Hot Sheet'!$J$10 -> Small General | H78: ='Hot Sheet'!$K$10 -> Large General | I78: ='Hot Sheet'!$L$10 -> Large General | J78: ='Hot Sheet'!$M$10 -> Large General | K78: ='Hot Sheet'!$N$10 -> Agricultural | L78: ='Hot Sheet'!$O$10 -> Street & Area | O78: Chk Total
E79: ='Hot Sheet'!$H$11 -> Jurisdiction | F79: ='Hot Sheet'!$I$11 -> Residential | G79: ='Hot Sheet'!$J$11 -> Service | H79: ='Hot Sheet'!$K$11 -> Service <1,000 kW | I79: ='Hot Sheet'!$L$11 -> Service >1,000 kW | J79: ='Hot Sheet'!$M$11 -> Dedicated Facilities | K79: ='Hot Sheet'!$N$11 -> Pumping | L79: ='Hot Sheet'!$O$11 -> Lighting | M79: ='Hot Sheet'!P$11 -> - | N79: ='Hot Sheet'!Q$11 -> -
C80: DESCRIPTION | E80: ='Hot Sheet'!$H$12 -> Normalized | F80: ='Hot Sheet'!$I$12 -> Schedule 16 | G80: ='Hot Sheet'!$J$12 -> Schedule 24 | H80: ='Hot Sheet'!$K$12 -> Schedule 36 | I80: ='Hot Sheet'!$L$12 -> Schedule 48T | J80: ='Hot Sheet'!$M$12 -> Schedule 48T | K80: ='Hot Sheet'!$N$12 -> Schedule 40 | L80: ='Hot Sheet'!$O$12 -> Sch. 15,51-54,57 | M80: ='Hot Sheet'!P$12 -> - | N80: ='Hot Sheet'!Q$12 -> - | O80: =ROUND(SUM(O83:O136),0) -> 0
A81: 13
A82: =A81+1 -> 14 | C82: Operating Expenses
A83: =A82+1 -> 15 | C83: Operation & Maintenance Expenses | E83: ='Func Study'!$Q$13 -> 12415128.41 | F83: 5274893.785 | G83: 1677365.42 | H83: 2650935.042 | I83: 1046950.636 | J83: 1291627.919 | K83: 442898.7095 | L83: 30456.90245 | M83: 0 | N83: 0 | O83: =ROUND(SUM(F83:N83)-E83,0) -> 0
A84: 16 | C84: Depreciation Expense | E84: ='Func Study'!$Q$14 -> 2096215.907 | F84: 889372.0504 | G84: 282886.0947 | H84: 448208.595 | I84: 177114.6132 | J84: 218980.1706 | K84: 74625.46478 | L84: 5028.918711 | M84: 0 | N84: 0 | O84: 0
A85: 17 | C85: Amortization Expense | E85: ='Func Study'!$Q$15 -> 307384.9452 | F85: 131710.8262 | G85: 41488.96879 | H85: 65607.083 | I85: 25680.48349 | J85: 31438.1881 | K85: 10773.75637 | L85: 685.6391917 | M85: 0 | N85: 0 | O85: 0
A86: 18 | C86: Taxes Other Than Income | E86: ='Func Study'!$Q$16 -> 1614579.971 | F86: 684787.813 | G86: 217967.5 | H86: 345280.9545 | I86: 136448.2674 | J86: 168764.9127 | K86: 57471.31768 | L86: 3859.205228 | M86: 0 | N86: 0 | O86: 0
A87: 19 | C87: Income Taxes - Federal | E87: ='Func Study'!$Q$17 -> -140002.629 | F87: -59378.96906 | G87: -18900.28589 | H87: -29939.82475 | I87: -11831.63207 | J87: -14633.85641 | K87: -4983.423375 | L87: -334.6374212 | M87: 0 | N87: 0 | O87: 0
A88: 20 | C88: Income Taxes - State | E88: ='Func Study'!$Q$18 -> 0 | F88: 0 | G88: 0 | H88: 0 | I88: 0 | J88: 0 | K88: 0 | L88: 0 | M88: 0 | N88: 0 | O88: 0
A89: 21 | C89: Income Taxes Deferred | E89: ='Func Study'!$Q$19 -> 1020759.581 | F89: 432932.2386 | G89: 137802.0402 | H89: 218291.3506 | I89: 86264.46431 | J89: 106695.4903 | K89: 36334.15453 | L89: 2439.842425 | M89: 0 | N89: 0 | O89: 0
A90: 22 | C90: Investment Tax Credit Adj | E90: ='Func Study'!$Q$20 -> 0 | F90: 0 | G90: 0 | H90: 0 | I90: 0 | J90: 0 | K90: 0 | L90: 0 | M90: 0 | N90: 0 | O90: 0
A91: 23 | C91: Misc Revenues & Expense | E91: ='Func Study'!$Q$21 -> 196.2605695 | F91: 90.43987126 | G91: 26.52491444 | H91: 41.31428466 | I91: 14.96975563 | J91: 16.77759989 | K91: 6.050098863 | L91: 0.18404471 | M91: 0 | N91: 0 | O91: 0
A92: 24
A93: 25 | C93: Total Operating Expenses | E93: =SUM(E83:E91) -> 17314262.45 | F93: =SUM(F83:F91) -> 7354408.185 | G93: 2338636.263 | H93: 3698424.515 | I93: 1460641.802 | J93: =SUM(J83:J91) -> 1802889.602 | K93: 617126.0296 | L93: 42136.05463 | M93: 0 | N93: 0 | O93: =ROUND(SUM(F93:N93)-E93,0) -> 0
A94: 26
A95: 27
A96: 28 | C96: Rate Base :
A97: 29 | C97: Electric Plant In Service | E97: ='Func Study'!$Q$29 -> 115334951.5 | F97: 52738679.27 | G97: 15585445.47 | H97: 24315945.86 | I97: 8889239.887 | J97: 10072212.41 | K97: 3608898.823 | L97: 124529.7422 | M97: 0 | N97: 0 | O97: =ROUND(SUM(F97:N97)-E97,0) -> 0
A98: 30 | C98: Plant Held For Future Use | E98: ='Func Study'!$Q$30 -> 0 | F98: 0 | G98: 0 | H98: 0 | I98: 0 | J98: 0 | K98: 0 | L98: 0 | M98: 0 | N98: 0 | O98: 0
A99: 31 | C99: Electric Plant Acquisition Adj | E99: ='Func Study'!$Q$31 -> 0 | F99: 0 | G99: 0 | H99: 0 | I99: 0 | J99: 0 | K99: 0 | L99: 0 | M99: 0 | N99: 0 | O99: 0
A100: 32 | C100: Nuclear Fuel | E100: ='Func Study'!$Q$32 -> 0 | F100: 0 | G100: 0 | H100: 0 | I100: 0 | J100: 0 | K100: 0 | L100: 0 | M100: 0 | N100: 0 | O100: 0
A101: 33 | C101: Prepayments | E101: ='Func Study'!$Q$33 -> -1.041329593e-08 | F101: -5.138991678e-09 | G101: -1.409226347e-09 | H101: -1.83935205e-09 | I101: -7.238597231e-10 | J101: -8.910414505e-10 | K101: -3.496353747e-10 | L101: -6.118930387e-11 | M101: 0 | N101: 0 | O101: 0
A102: 34 | C102: Fuel Stock | E102: ='Func Study'!$Q$34 -> 0 | F102: 0 | G102: 0 | H102: 0 | I102: 0 | J102: 0 | K102: 0 | L102: 0 | M102: 0 | N102: 0 | O102: 0
A103: 35 | C103: Materials & Supplies | E103: ='Func Study'!$Q$35 -> 3.358719397e-07 | F103: 1.424956573e-07 | G103: 4.532616471e-08 | H103: 7.181603215e-08 | I103: 2.83801176e-08 | J103: 3.509003109e-08 | K103: 1.195790794e-08 | L103: 8.060289213e-10 | M103: 0 | N103: 0 | O103: 0
A104: 36 | C104: Misc Deferred Debits | E104: ='Func Study'!$Q$36 -> 21050.40501 | F104: 8931.161051 | G104: 2840.769811 | H104: 4500.954516 | I104: 1778.602256 | J104: 2199.020275 | K104: 749.3962107 | L104: 50.50089319 | M104: 0 | N104: 0 | O104: 0
A105: 37 | C105: Cash Working Capital | E105: ='Func Study'!$Q$37 -> 1741203.259 | F105: 739795.9927 | G105: 235248.0006 | H105: 371789.6892 | I105: 146833.2665 | J105: 181148.8909 | K105: 62115.884 | L105: 4271.535182 | M105: 0 | N105: 0 | O105: 0
A106: 38 | C106: Weatherization Loans | E106: ='Func Study'!$Q$38 -> 0 | F106: 0 | G106: 0 | H106: 0 | I106: 0 | J106: 0 | K106: 0 | L106: 0 | M106: 0 | N106: 0 | O106: 0
A107: 39 | C107: Miscellaneous Rate Base | E107: ='Func Study'!$Q$39 -> 0 | F107: 0 | G107: 0 | H107: 0 | I107: 0 | J107: 0 | K107: 0 | L107: 0 | M107: 0 | N107: 0 | O107: 0
A108: 40
A109: 41 | C109: Total Rate Base Additions | E109: =SUM(E97:E107) -> 117097205.1 | F109: =SUM(F97:F107) -> 53487406.42 | G109: 15823534.25 | H109: 24692236.5 | I109: 9037851.756 | J109: =SUM(J97:J107) -> 10255560.32 | K109: 3671764.103 | L109: 128851.7783 | M109: 0 | N109: 0 | O109: =ROUND(SUM(F109:N109)-E109,0) -> 0
A110: 42
A111: 43 | C111: Rate Base Deductions :
A112: 44 | C112: Accum Provision For Depreciation | E112: ='Func Study'!$Q$44 -> -43495826.91 | F112: -18454192.92 | G112: -5869798.32 | H112: -9300188.686 | I112: -3675073.035 | J112: -4543770.307 | K112: -1548455.141 | L112: -104348.4963 | M112: 0 | N112: 0 | O112: =ROUND(SUM(F112:N112)-E112,0) -> 0
A113: 45 | C113: Accum Provision For Amortization | E113: ='Func Study'!$Q$45 -> -2445324.738 | F113: -1048948.652 | G113: -330949.2031 | H113: -517743.6632 | I113: -204184.4234 | J113: -249097.3284 | K113: -87798.16862 | L113: -6603.299366 | M113: 0 | N113: 0 | O113: 0
A114: 46 | C114: Accum Deferred Income Taxes | E114: ='Func Study'!$Q$46 -> -17648083.39 | F114: -7484726.978 | G114: -2381381.913 | H114: -3774776.762 | I114: -1491748.73 | J114: -1845213.866 | K114: -628083.9633 | L114: -42151.17797 | M114: 0 | N114: 0 | O114: 0
A115: 47 | C115: Unamortized ITC | E115: ='Func Study'!$Q$47 -> -39166.04122 | F115: -16610.70583 | G115: -5284.953601 | H115: -8377.287246 | I115: -3310.608395 | J115: -4095.046629 | K115: -1393.894261 | L115: -93.54525917 | M115: 0 | N115: 0 | O115: 0
A116: 48 | C116: Customer Advance For Construction | E116: ='Func Study'!$Q$48 -> 6945.199862 | F116: 2558.009651 | G116: 3974.467966 | H116: 0 | I116: 0 | J116: 0 | K116: 412.722244 | L116: 0 | M116: 0 | N116: 0 | O116: 0
A117: 49 | C117: Customer Service Deposits | E117: ='Func Study'!$Q$49 -> 0 | F117: 0 | G117: 0 | H117: 0 | I117: 0 | J117: 0 | K117: 0 | L117: 0 | M117: 0 | N117: 0 | O117: 0
A118: 50 | C118: Misc Rate Base Deductions | E118: ='Func Study'!$Q$50 -> -51542.32949 | F118: -21868.12298 | G118: -6955.680591 | H118: -11020.6754 | I118: -4354.942503 | J118: -5384.344268 | K118: -1834.911318 | L118: -123.6524273 | M118: 0 | N118: 0 | O118: 0
A119: 51
A120: 52 | C120: Total Rate Base Deductions | E120: =SUM(E112:E118) -> -63672998.21 | F120: =SUM(F112:F118) -> -27023789.37 | G120: -8590395.602 | H120: -13612107.07 | I120: -5378671.74 | J120: =SUM(J112:J118) -> -6647560.893 | K120: -2267153.356 | L120: -153320.1713 | M120: 0 | N120: 0 | O120: =ROUND(SUM(F120:N120)-E120,0) -> 0
A121: 53
A122: 54 | C122: Total Rate Base | E122: =E109+E120 -> 53424206.93 | F122: =F109+F120 -> 26463617.05 | G122: 7233138.643 | H122: 11080129.43 | I122: 3659180.016 | J122: =J109+J120 -> 3607999.431 | K122: 1404610.747 | L122: -24468.39297 | M122: 0 | N122: 0 | O122: =ROUND(SUM(F122:N122)-E122,0) -> 0
A123: 55
A124: 56
A125: 57 | C125: Return On Rate Base | D125: =ActualROR -> 0.04602925444 | E125: =$D$57*E122 -> 2459076.414 | F125: =$D$57*F122 -> 1218100.563 | G125: 332935.979 | H125: 510010.0967 | I125: 168429.328 | J125: =$D$57*J122 -> 166073.5238 | K125: 64653.18547 | L125: -1126.261886 | M125: 0 | N125: 0 | O125: =ROUND(SUM(F125:N125)-E125,0) -> 0
A126: 58 | C126: Total Operating Expenses | E126: =E93 -> 17314262.45 | F126: =F93 -> 7354408.185 | G126: 2338636.263 | H126: 3698424.515 | I126: 1460641.802 | J126: =J93 -> 1802889.602 | K126: 617126.0296 | L126: 42136.05463 | M126: 0 | N126: 0 | O126: =ROUND(SUM(F126:N126)-E126,0) -> 0
A127: 59 | C127: Revenue Credits | E127: ='Func Study'!$Q$79 -> -1336568.195 | F127: -621857.0829 | G127: -180752.5026 | H127: -277335.7013 | I127: -100563.0524 | J127: -112866.6518 | K127: -41465.87709 | L127: -1727.326707 | M127: 0 | N127: 0 | O127: =ROUND(SUM(F127:N127)-E127,0) -> 0
A128: 60
A129: 61 | C129: Total Revenue Requirements | E129: =E125+E126+E127 -> 18436770.67 | F129: =F125+F126+F127 -> 7950651.664 | G129: 2490819.739 | H129: 3931098.91 | I129: 1528508.077 | J129: =J125+J126+J127 -> 1856096.474 | K129: 640313.338 | L129: 39282.46604 | M129: 0 | N129: 0 | O129: =ROUND(SUM(F129:N129)-E129,0) -> 0
A130: 62 | O130: =ROUND(SUM(F130:N130)-E130,0) -> 0
A131: 63
A132: 64 | C132: Return On Rate Base @ Target ROR | D132: =TargetROR -> 0.07799999713 | E132: =$D132*E122 -> 4167087.987 | F132: =$D132*F122 -> 2064162.054 | G132: 564184.7934 | H132: 864250.0635 | I132: 285416.0308 | J132: =$D132*J122 -> 281423.9453 | K132: 109559.6342 | L132: -1908.534582 | M132: 0 | N132: 0 | O132: =ROUND(SUM(F132:N132)-E132,0) -> 0
A133: 65 | C133: Total Operating Expenses Adjusted for Taxes | E133: =E126+((E132-E125)*(1/Net_to_Gross_Factor))-(E132-E125) -> 18366405.97 | F133: =F126+((F132-F125)*(1/Net_to_Gross_Factor))-(F132-F125) -> 7875586.22 | G133: 2481086.669 | H133: 3916638.074 | I133: 1532706.185 | J133: =J126+((J132-J125)*(1/Net_to_Gross_Factor))-(J132-J125) -> 1873946.028 | K133: 644788.6227 | L133: 41654.17081 | M133: 0 | N133: 0 | O133: =ROUND(SUM(F133:N133)-E133,0) -> 0
A134: 66 | C134: Revenue Credits | E134: =E127 -> -1336568.195 | F134: =F127 -> -621857.0829 | G134: -180752.5026 | H134: -277335.7013 | I134: -100563.0524 | J134: =J127 -> -112866.6518 | K134: -41465.87709 | L134: -1727.326707 | M134: 0 | N134: 0 | O134: =ROUND(SUM(F134:N134)-E134,0) -> 0
A135: 67
A136: 68 | C136: Total Target Revenue Requirements | E136: =SUM(E132:E134) -> 21196925.76 | F136: =SUM(F132:F134) -> 9317891.191 | G136: 2864518.96 | H136: 4503552.437 | I136: 1717559.164 | J136: =SUM(J132:J134) -> 2042503.322 | K136: 712882.3798 | L136: 38018.30952 | M136: 0 | N136: 0 | O136: =ROUND(SUM(F136:N136)-E136,0) -> 0
C137: Transmission Energy Summary
C138: =Inputs!$C$3 -> PacifiCorp
C139: ="Cost Of Service By Rate Schedule - "&C137 -> Cost Of Service By Rate Schedule - Transmission Energy Summary
C140: =Inputs!$C$4 -> State of Washington
C141: =+Method&" - "&IF(PeakMethod=1,"(Coincident Peaks)",IF(PeakMethod=2,"(200 Top Hours)","(100 Summer, 100 Winter Hours)"))&" - "&TEXT(Demand,"0%")&"D"&" / "&TEXT(Engy,"0%")&"E" -> WCA Method - (100 Summer, 100 Winter Hours) - 38%D / 62%E
C142: =Inputs!$C$5 -> 12 Months Ending June 2012
C145: A | D145: B | E145: C | F145: D | G145: E | H145: F | I145: G | J145: H | K145: I | L145: J | M145: L | N145: M
E146: ='Hot Sheet'!$H$10 -> Washington | G146: ='Hot Sheet'!$J$10 -> Small General | H146: ='Hot Sheet'!$K$10 -> Large General | I146: ='Hot Sheet'!$L$10 -> Large General | J146: ='Hot Sheet'!M$10 -> Large General | K146: ='Hot Sheet'!$N$10 -> Agricultural | L146: ='Hot Sheet'!$O$10 -> Street & Area | O146: Chk Total
E147: ='Hot Sheet'!$H$11 -> Jurisdiction | F147: ='Hot Sheet'!$I$11 -> Residential | G147: ='Hot Sheet'!$J$11 -> Service | H147: ='Hot Sheet'!$K$11 -> Service <1,000 kW | I147: ='Hot Sheet'!$L$11 -> Service >1,000 kW | J147: ='Hot Sheet'!M$11 -> Dedicated Facilities | K147: ='Hot Sheet'!$N$11 -> Pumping | L147: ='Hot Sheet'!$O$11 -> Lighting | M147: ='Hot Sheet'!P$11 -> - | N147: ='Hot Sheet'!Q$11 -> -
C148: DESCRIPTION | E148: ='Hot Sheet'!$H$12 -> Normalized | F148: ='Hot Sheet'!$I$12 -> Schedule 16 | G148: ='Hot Sheet'!$J$12 -> Schedule 24 | H148: ='Hot Sheet'!$K$12 -> Schedule 36 | I148: ='Hot Sheet'!$L$12 -> Schedule 48T | J148: ='Hot Sheet'!M$12 -> Schedule 48T | K148: ='Hot Sheet'!$N$12 -> Schedule 40 | L148: ='Hot Sheet'!$O$12 -> Sch. 15,51-54,57 | M148: ='Hot Sheet'!P$12 -> - | N148: ='Hot Sheet'!Q$12 -> - | O148: =ROUND(SUM(O151:O204),0) -> 0
A149: 13
A150: =A149+1 -> 14 | C150: Operating Expenses
A151: =A150+1 -> 15 | C151: Operation & Maintenance Expenses | E151: ='Func Study'!$R$13 -> 20256262.15 | F151: 8606405.65 | G151: 2736754.107 | H151: 4325209.805 | I151: 1708182.616 | J151: 2107392.921 | K151: 722624.2103 | L151: 49692.84084 | M151: 0 | N151: 0 | O151: =ROUND(SUM(F151:N151)-E151,0) -> 0
A152: 16 | C152: Depreciation Expense | E152: ='Func Study'!$R$14 -> 3420141.744 | F152: 1451080.714 | G152: 461550.9967 | H152: 731287.7077 | I152: 288976.4741 | J152: 357283.4363 | K152: 121757.3373 | L152: 8205.077897 | M152: 0 | N152: 0 | O152: 0
A153: 17 | C153: Amortization Expense | E153: ='Func Study'!$R$15 -> 501522.8053 | F153: 211488.5274 | G153: 67673.81055 | H153: 107351.9166 | I153: 42666.18959 | J153: 53063.96486 | K153: 18023.42842 | L153: 1254.967836 | M153: 0 | N153: 0 | O153: 0
A154: 18 | C154: Taxes Other Than Income | E154: ='Func Study'!$R$16 -> 2634314.689 | F154: 1117285.379 | G154: 355631.1842 | H154: 563353.1363 | I154: 222626.1205 | J154: 275353.2786 | K154: 93768.99201 | L154: 6296.598004 | M154: 0 | N154: 0 | O154: 0
A155: 19 | C155: Income Taxes - Federal | E155: ='Func Study'!$R$17 -> -228425.342 | F155: -96881.47583 | G155: -30837.30855 | H155: -48849.18775 | I155: -19304.24179 | J155: -23876.29204 | K155: -8130.848664 | L155: -545.9873714 | M155: 0 | N155: 0 | O155: 0
A156: 20 | C156: Income Taxes - State | E156: ='Func Study'!$R$18 -> 0 | F156: 0 | G156: 0 | H156: 0 | I156: 0 | J156: 0 | K156: 0 | L156: 0 | M156: 0 | N156: 0 | O156: 0
A157: 21 | C157: Income Taxes Deferred | E157: ='Func Study'!$R$19 -> 1665449.843 | F157: 706363.1262 | G157: 224834.9077 | H157: 356159.572 | I157: 140747.2839 | J157: 174082.1157 | K157: 59282.04161 | L157: 3980.795536 | M157: 0 | N157: 0 | O157: 0
A158: 22 | C158: Investment Tax Credit Adj | E158: ='Func Study'!$R$20 -> 0 | F158: 0 | G158: 0 | H158: 0 | I158: 0 | J158: 0 | K158: 0 | L158: 0 | M158: 0 | N158: 0 | O158: 0
A159: 23 | C159: Misc Revenues & Expense | E159: ='Func Study'!$R$21 -> 320.2146133 | F159: 128.6876483 | G159: 43.17384463 | H159: 69.11738186 | I159: 28.66854608 | J159: 37.17572775 | K159: 12.33646162 | L159: 1.055003091 | M159: 0 | N159: 0 | O159: 0
A160: 24
A161: 25 | C161: Total Operating Expenses | E161: =SUM(E151:E159) -> 28249586.1 | F161: =SUM(F151:F159) -> 11995870.61 | G161: 3815650.871 | H161: 6034582.068 | I161: 2383923.111 | J161: =SUM(J151:J159) -> 2943336.6 | K161: 1007337.497 | L161: 68885.34775 | M161: 0 | N161: 0 | O161: =ROUND(SUM(F161:N161)-E161,0) -> 0
A162: 26
A163: 27
A164: 28 | C164: Rate Base :
A165: 29 | C165: Electric Plant In Service | E165: ='Func Study'!$R$29 -> 188178101.8 | F165: 76034328.1 | G165: 25373895.61 | H165: 40580593.99 | I165: 16755349.89 | J165: 21634130.41 | K165: 7196191.714 | L165: 603612.0809 | M165: 0 | N165: 0 | O165: =ROUND(SUM(F165:N165)-E165,0) -> 0
A166: 30 | C166: Plant Held For Future Use | E166: ='Func Study'!$R$30 -> 0 | F166: 0 | G166: 0 | H166: 0 | I166: 0 | J166: 0 | K166: 0 | L166: 0 | M166: 0 | N166: 0 | O166: 0
A167: 31 | C167: Electric Plant Acquisition Adj | E167: ='Func Study'!$R$31 -> 0 | F167: 0 | G167: 0 | H167: 0 | I167: 0 | J167: 0 | K167: 0 | L167: 0 | M167: 0 | N167: 0 | O167: 0
A168: 32 | C168: Nuclear Fuel | E168: ='Func Study'!$R$32 -> 0 | F168: 0 | G168: 0 | H168: 0 | I168: 0 | J168: 0 | K168: 0 | L168: 0 | M168: 0 | N168: 0 | O168: 0
A169: 33 | C169: Prepayments | E169: ='Func Study'!$R$33 -> -1.699011441e-08 | F169: -8.384670633e-09 | G169: -2.29926404e-09 | H169: -3.001048082e-09 | I169: -1.181034285e-09 | J169: -1.453804472e-09 | K169: -5.704577167e-10 | L169: -9.983517999e-11 | M169: 0 | N169: 0 | O169: 0
A170: 34 | C170: Fuel Stock | E170: ='Func Study'!$R$34 -> 0 | F170: 0 | G170: 0 | H170: 0 | I170: 0 | J170: 0 | K170: 0 | L170: 0 | M170: 0 | N170: 0 | O170: 0
A171: 35 | C171: Materials & Supplies | E171: ='Func Study'!$R$35 -> 5.480015859e-07 | F171: 2.325098023e-07 | G171: 7.395330885e-08 | H171: 1.171719961e-07 | I171: 4.630060448e-08 | J171: 5.724338494e-08 | K171: 1.950806483e-08 | L171: 1.314424461e-09 | M171: 0 | N171: 0 | O171: 0
A172: 36 | C172: Misc Deferred Debits | E172: ='Func Study'!$R$36 -> 34345.39765 | F172: 14571.89435 | G172: 4634.940218 | H172: 7343.662632 | I172: 2901.929996 | J172: 3587.875186 | K172: 1222.699081 | L172: 82.39619415 | M172: 0 | N172: 0 | O172: 0
A173: 37 | C173: Cash Working Capital | E173: ='Func Study'!$R$37 -> 2840910.58 | F173: 1207035.567 | G173: 383825.6851 | H173: 606604.2297 | I173: 239570.0664 | J173: 295558.7167 | K173: 101346.9686 | L173: 6969.346875 | M173: 0 | N173: 0 | O173: 0
A174: 38 | C174: Weatherization Loans | E174: ='Func Study'!$R$38 -> 0 | F174: 0 | G174: 0 | H174: 0 | I174: 0 | J174: 0 | K174: 0 | L174: 0 | M174: 0 | N174: 0 | O174: 0
A175: 39 | C175: Miscellaneous Rate Base | E175: ='Func Study'!$R$39 -> 0 | F175: 0 | G175: 0 | H175: 0 | I175: 0 | J175: 0 | K175: 0 | L175: 0 | M175: 0 | N175: 0 | O175: 0
A176: 40
A177: 41 | C177: Total Rate Base Additions | E177: =SUM(E165:E175) -> 191053357.8 | F177: =SUM(F165:F175) -> 77255935.56 | G177: 25762356.23 | H177: 41194541.88 | I177: 16997821.88 | J177: =SUM(J165:J175) -> 21933277 | K177: 7298761.381 | L177: 610663.824 | M177: 0 | N177: 0 | O177: =ROUND(SUM(F177:N177)-E177,0) -> 0
A178: 42
A179: 43 | C179: Rate Base Deductions :
A180: 44 | C180: Accum Provision For Depreciation | E180: ='Func Study'!$R$44 -> -70966875.48 | F180: -30109472.66 | G180: -9577039.364 | H180: -15173992.07 | I180: -5996171.795 | J180: -7413519.975 | K180: -2526426.809 | L180: -170252.8097 | M180: 0 | N180: 0 | O180: =ROUND(SUM(F180:N180)-E180,0) -> 0
A181: 45 | C181: Accum Provision For Amortization | E181: ='Func Study'!$R$45 -> -3989740.362 | F181: -1711442.538 | G181: -539969.7524 | H181: -844739.661 | I181: -333143.0065 | J181: -406421.9568 | K181: -143249.6435 | L181: -10773.80423 | M181: 0 | N181: 0 | O181: 0
A182: 46 | C182: Accum Deferred Income Taxes | E182: ='Func Study'!$R$46 -> -28794241.32 | F182: -12211922.96 | G182: -3885412.595 | H182: -6158846.295 | I182: -2433905.823 | J182: -3010612.097 | K182: -1024768.572 | L182: -68772.97459 | M182: 0 | N182: 0 | O182: 0
A183: 47 | C183: Unamortized ITC | E183: ='Func Study'!$R$47 -> -63902.4883 | F183: -27101.67793 | G183: -8622.819033 | H183: -13668.20551 | I183: -5401.518961 | J183: -6681.391869 | K183: -2274.248531 | L183: -152.6264755 | M183: 0 | N183: 0 | O183: 0
A184: 48 | C184: Customer Advance For Construction | E184: ='Func Study'!$R$48 -> 11331.64188 | F184: 4173.594694 | G184: 6484.658261 | H184: 0 | I184: 0 | J184: 0 | K184: 673.3889245 | L184: 0 | M184: 0 | N184: 0 | O184: 0
A185: 49 | C185: Customer Service Deposits | E185: ='Func Study'!$R$49 -> 0 | F185: 0 | G185: 0 | H185: 0 | I185: 0 | J185: 0 | K185: 0 | L185: 0 | M185: 0 | N185: 0 | O185: 0
A186: 50 | C186: Misc Rate Base Deductions | E186: ='Func Study'!$R$50 -> -84095.37969 | F186: -35679.56907 | G186: -11348.74202 | H186: -17981.10197 | I186: -7105.432504 | J186: -8784.982753 | K186: -2993.802677 | L186: -201.7486972 | M186: 0 | N186: 0 | O186: 0
A187: 51
A188: 52 | C188: Total Rate Base Deductions | E188: =SUM(E180:E186) -> -103887523.4 | F188: =SUM(F180:F186) -> -44091445.81 | G188: -14015908.61 | H188: -22209227.33 | I188: -8775727.575 | J188: =SUM(J180:J186) -> -10846020.4 | K188: -3699039.687 | L188: -250153.9637 | M188: 0 | N188: 0 | O188: =ROUND(SUM(F188:N188)-E188,0) -> 0
A189: 53
A190: 54 | C190: Total Rate Base | E190: =E177+E188 -> 87165834.37 | F190: =F177+F188 -> 33164489.74 | G190: 11746447.62 | H190: 18985314.55 | I190: 8222094.308 | J190: =J177+J188 -> 11087256.6 | K190: 3599721.695 | L190: 360509.8603 | M190: 0 | N190: 0 | O190: =ROUND(SUM(F190:N190)-E190,0) -> 0
A191: 55
A192: 56
A193: 57 | C193: Return On Rate Base | D193: =ActualROR -> 0.04602925444 | E193: =$D$57*E190 -> 4012178.369 | F193: =$D$57*F190 -> 1526536.737 | G193: 540680.2263 | H193: 873879.8741 | I193: 378456.8709 | J193: =$D$57*J190 -> 510338.155 | K193: 165692.5058 | L193: 16594.00009 | M193: 0 | N193: 0 | O193: =ROUND(SUM(F193:N193)-E193,0) -> 0
A194: 58 | C194: Total Operating Expenses | E194: =E161 -> 28249586.1 | F194: =F161 -> 11995870.61 | G194: 3815650.871 | H194: 6034582.068 | I194: 2383923.111 | J194: =J161 -> 2943336.6 | K194: 1007337.497 | L194: 68885.34775 | M194: 0 | N194: 0 | O194: =ROUND(SUM(F194:N194)-E194,0) -> 0
A195: 59 | C195: Revenue Credits | E195: ='Func Study'!$R$79 -> -2180716.528 | F195: -889706.1495 | G195: -294226.0016 | H195: -463811.6056 | I195: -192166.2886 | J195: -249022.4332 | K195: -83970.76807 | L195: -7813.281936 | M195: 0 | N195: 0 | O195: =ROUND(SUM(F195:N195)-E195,0) -> 0
A196: 60
A197: 61 | C197: Total Revenue Requirements | E197: =E193+E194+E195 -> 30081047.94 | F197: =F193+F194+F195 -> 12632701.2 | G197: 4062105.096 | H197: 6444650.336 | I197: 2570213.693 | J197: =J193+J194+J195 -> 3204652.322 | K197: 1089059.235 | L197: 77666.0659 | M197: 0 | N197: 0 | O197: =ROUND(SUM(F197:N197)-E197,0) -> 0
A198: 62 | O198: =ROUND(SUM(F198:N198)-E198,0) -> 0
A199: 63
A200: 64 | C200: Return On Rate Base @ Target ROR | D200: =TargetROR -> 0.07799999713 | E200: =$D200*E190 -> 6798934.831 | F200: =$D200*F190 -> 2586830.105 | G200: 916222.8806 | H200: 1480854.48 | I200: 641323.3324 | J200: =$D200*J190 -> 864805.9827 | K200: 280778.2818 | L200: 28119.76807 | M200: 0 | N200: 0 | O200: =ROUND(SUM(F200:N200)-E200,0) -> 0
A201: 65 | C201: Total Operating Expenses Adjusted for Taxes | E201: =E194+((E200-E193)*(1/Net_to_Gross_Factor))-(E200-E193) -> 29966241.77 | F201: =F194+((F200-F193)*(1/Net_to_Gross_Factor))-(F200-F193) -> 12649016.53 | G201: 4046986.991 | H201: 6408481.407 | I201: 2545850.143 | J201: =J194+((J200-J193)*(1/Net_to_Gross_Factor))-(J200-J193) -> 3161690.523 | K201: 1078230.901 | L201: 75985.27744 | M201: 0 | N201: 0 | O201: =ROUND(SUM(F201:N201)-E201,0) -> 0
A202: 66 | C202: Revenue Credits | E202: =E195 -> -2180716.528 | F202: =F195 -> -889706.1495 | G202: -294226.0016 | H202: -463811.6056 | I202: -192166.2886 | J202: =J195 -> -249022.4332 | K202: -83970.76807 | L202: -7813.281936 | M202: 0 | N202: 0 | O202: =ROUND(SUM(F202:N202)-E202,0) -> 0
A203: 67
A204: 68 | C204: Total Target Revenue Requirements | E204: =SUM(E200:E202) -> 34584460.08 | F204: =SUM(F200:F202) -> 14346140.49 | G204: 4668983.87 | H204: 7425524.282 | I204: 2995007.186 | J204: =SUM(J200:J202) -> 3777474.073 | K204: 1275038.415 | L204: 96291.76357 | M204: 0 | N204: 0 | O204: =ROUND(SUM(F204:N204)-E204,0) -> 0
C207: Check | E207: =E68-E136-E204 -> 0 | F207: =F68-F136-F204 -> 0 | G207: 0 | H207: 0 | I207: 0 | J207: =J68-J136-J204 -> 0 | K207: 0 | L207: 0 | M207: 0 | N207: 0 | O207: 0

Sheet Distribution Summary
C1: Distribution Summary
C2: =Inputs!$C$3 -> PacifiCorp
C3: Cost Of Service By Rate Schedule - Distribution Function
C4: =Inputs!$C$4 -> State of Washington
C5: =+Method&" - "&IF(PeakMethod=1,"(Coincident Peaks)",IF(PeakMethod=2,"(200 Top Hours)","(100 Summer, 100 Winter Hours)"))&" - "&TEXT(Demand,"0%")&"D"&" / "&TEXT(Engy,"0%")&"E" -> WCA Method - (100 Summer, 100 Winter Hours) - 38%D / 62%E
C6: =Inputs!$C$5 -> 12 Months Ending June 2012
C9: A | D9: B | E9: C | F9: D | G9: E | H9: F | I9: G | J9: H | K9: I | L9: J | M9: K | N9: L
E10: ='Hot Sheet'!$H$10 -> Washington | G10: ='Hot Sheet'!$J$10 -> Small General | H10: ='Hot Sheet'!$K$10 -> Large General | I10: ='Hot Sheet'!$L$10 -> Large General | J10: ='Hot Sheet'!$M$10 -> Large General | K10: ='Hot Sheet'!$N$10 -> Agricultural | L10: ='Hot Sheet'!$O$10 -> Street & Area | O10: Chk Total
E11: ='Hot Sheet'!$H$11 -> Jurisdiction | F11: ='Hot Sheet'!$I$11 -> Residential | G11: ='Hot Sheet'!$J$11 -> Service | H11: ='Hot Sheet'!$K$11 -> Service <1,000 kW | I11: ='Hot Sheet'!$L$11 -> Service >1,000 kW | J11: ='Hot Sheet'!$M$11 -> Dedicated Facilities | K11: ='Hot Sheet'!$N$11 -> Pumping | L11: ='Hot Sheet'!$O$11 -> Lighting
C12: DESCRIPTION | E12: ='Hot Sheet'!$H$12 -> Normalized | F12: ='Hot Sheet'!$I$12 -> Schedule 16 | G12: ='Hot Sheet'!$J$12 -> Schedule 24 | H12: ='Hot Sheet'!$K$12 -> Schedule 36 | I12: ='Hot Sheet'!$L$12 -> Schedule 48T | J12: ='Hot Sheet'!$M$12 -> Schedule 48T | K12: ='Hot Sheet'!$N$12 -> Schedule 40 | L12: ='Hot Sheet'!$O$12 -> Sch. 15,51-54,57 | O12: =ROUND(SUM(O15:O68),0) -> 0
A14: 14 | C14: Operating Expenses
A15: =A14+1 -> 15 | C15: Operation & Maintenance Expenses | E15: ='Function Summary'!$H15 -> 14391948.89 | F15: =Distribution!$I$17 -> 8095957.804 | G15: =Distribution!$J$17 -> 2121176.193 | H15: =Distribution!$K$17 -> 2082397.438 | I15: =Distribution!$L$17 -> 756115.6726 | J15: =Distribution!$M$17 -> 303947.1071 | K15: =Distribution!$N$17 -> 724912.8877 | L15: =Distribution!$O$17 -> 307441.79 | M15: =Distribution!$P$17 -> 0 | N15: =Distribution!$Q$17 -> 0 | O15: =ROUND(SUM(F15:N15)-E15,0) -> 0
A16: =A15+1 -> 16 | C16: Depreciation Expense | E16: ='Function Summary'!$H16 -> 12516369.43 | F16: =Distribution!$I$18 -> 7447312.097 | G16: =Distribution!$J$18 -> 1878116.884 | H16: =Distribution!$K$18 -> 1733167.869 | I16: =Distribution!$L$18 -> 601693.0296 | J16: =Distribution!$M$18 -> 69327.53322 | K16: =Distribution!$N$18 -> 600055.6404 | L16: =Distribution!$O$18 -> 186696.3797 | M16: =Distribution!$P$18 -> 0 | N16: =Distribution!$Q$18 -> 0 | O16: 0
A17: 17 | C17: Amortization Expense | E17: ='Function Summary'!$H17 -> 442417.0888 | F17: =Distribution!$I$19 -> 244305.5219 | G17: =Distribution!$J$19 -> 64833.43892 | H17: =Distribution!$K$19 -> 69862.17015 | I17: =Distribution!$L$19 -> 25416.81236 | J17: =Distribution!$M$19 -> 13265.24808 | K17: =Distribution!$N$19 -> 19954.06317 | L17: =Distribution!$O$19 -> 4779.834219 | M17: =Distribution!$P$19 -> 0 | N17: =Distribution!$Q$19 -> 0 | O17: 0
A18: 18 | C18: Taxes Other Than Income | E18: ='Function Summary'!$H18 -> 5489522.201 | F18: =Distribution!$I$20 -> 3272001.404 | G18: =Distribution!$J$20 -> 828429.5022 | H18: =Distribution!$K$20 -> 758192.3478 | I18: =Distribution!$L$20 -> 262276.546 | J18: =Distribution!$M$20 -> 43844.82503 | K18: =Distribution!$N$20 -> 260289.3114 | L18: =Distribution!$O$20 -> 64488.26396 | M18: =Distribution!$P$20 -> 0 | N18: =Distribution!$Q$20 -> 0 | O18: 0
A19: 19 | C19: Income Taxes - Federal | E19: ='Function Summary'!$H19 -> 1813833.165 | F19: =Distribution!$I$21 -> 1081125.906 | G19: =Distribution!$J$21 -> 273727.4486 | H19: =Distribution!$K$21 -> 250519.8769 | I19: =Distribution!$L$21 -> 86660.7111 | J19: =Distribution!$M$21 -> 14487.08919 | K19: =Distribution!$N$21 -> 86004.09439 | L19: =Distribution!$O$21 -> 21308.03878 | M19: =Distribution!$P$21 -> 0 | N19: =Distribution!$Q$21 -> 0 | O19: 0
A20: 20 | C20: Income Taxes - State | E20: ='Function Summary'!$H20 -> 0 | F20: =Distribution!$I$22 -> 0 | G20: =Distribution!$J$22 -> 0 | H20: =Distribution!$K$22 -> 0 | I20: =Distribution!$L$22 -> 0 | J20: =Distribution!$M$22 -> 0 | K20: =Distribution!$N$22 -> 0 | L20: =Distribution!$O$22 -> 0 | M20: =Distribution!$P$22 -> 0 | N20: =Distribution!$Q$22 -> 0 | O20: 0
A21: 21 | C21: Income Taxes Deferred | E21: ='Function Summary'!$H21 -> 908708.6078 | F21: =Distribution!$I$23 -> 541631.0805 | G21: =Distribution!$J$23 -> 137134.1607 | H21: =Distribution!$K$23 -> 125507.4463 | I21: =Distribution!$L$23 -> 43415.97433 | J21: =Distribution!$M$23 -> 7257.857506 | K21: =Distribution!$N$23 -> 43087.01725 | L21: =Distribution!$O$23 -> 10675.07124 | M21: =Distribution!$P$23 -> 0 | N21: =Distribution!$Q$23 -> 0 | O21: 0
A22: 22 | C22: Investment Tax Credit Adj | E22: ='Function Summary'!$H22 -> 0 | F22: =Distribution!$I$24 -> 0 | G22: =Distribution!$J$24 -> 0 | H22: =Distribution!$K$24 -> 0 | I22: =Distribution!$L$24 -> 0 | J22: =Distribution!$M$24 -> 0 | K22: =Distribution!$N$24 -> 0 | L22: =Distribution!$O$24 -> 0 | M22: =Distribution!$P$24 -> 0 | N22: =Distribution!$Q$24 -> 0 | O22: 0
A23: 23 | C23: Misc Revenues & Expense | E23: ='Function Summary'!$H23 -> 3674.254873 | F23: =Distribution!$I$25 -> 1558.894567 | G23: =Distribution!$J$25 -> 495.8437766 | H23: =Distribution!$K$25 -> 785.6216569 | I23: =Distribution!$L$25 -> 310.4471387 | J23: =Distribution!$M$25 -> 383.8292402 | K23: =Distribution!$N$25 -> 130.8037863 | L23: =Distribution!$O$25 -> 8.814707023 | M23: =Distribution!$P$25 -> 0 | N23: =Distribution!$Q$25 -> 0 | O23: 0
A24: 24
A25: 25 | C25: Total Operating Expenses | E25: =SUM(E15:E23) -> 35566473.64 | F25: =SUM(F15:F23) -> 20683892.71 | G25: 5303913.471 | H25: 5020432.77 | I25: 1775889.193 | J25: =SUM(J15:J23) -> 452513.4894 | K25: 1734433.818 | L25: 595398.1926 | M25: 0 | N25: 0 | O25: =ROUND(SUM(F25:N25)-E25,0) -> 0
A26: 26
A27: 27
A28: 28 | C28: Rate Base :
A29: 29 | C29: Electric Plant In Service | E29: ='Function Summary'!$H29 -> 458649616.6 | F29: =Distribution!$I$33 -> 271535136.2 | G29: =Distribution!$J$33 -> 68867431.72 | H29: =Distribution!$K$33 -> 64442996.83 | I29: =Distribution!$L$33 -> 22488245.26 | J29: =Distribution!$M$33 -> 3117642.285 | K29: =Distribution!$N$33 -> 22042917.06 | L29: =Distribution!$O$33 -> 6155247.217 | M29: =Distribution!$P$33 -> 0 | N29: =Distribution!$Q$33 -> 0 | O29: =ROUND(SUM(F29:N29)-E29,0) -> 0
A30: 30 | C30: Plant Held For Future Use | E30: ='Function Summary'!$H30 -> 0 | F30: =Distribution!$I$34 -> 0 | G30: =Distribution!$J$34 -> 0 | H30: =Distribution!$K$34 -> 0 | I30: =Distribution!$L$34 -> 0 | J30: =Distribution!$M$34 -> 0 | K30: =Distribution!$N$34 -> 0 | L30: =Distribution!$O$34 -> 0 | M30: =Distribution!$P$34 -> 0 | N30: =Distribution!$Q$34 -> 0 | O30: 0
A31: =A30+1 -> 31 | C31: Electric Plant Acquisition Adj | E31: ='Function Summary'!$H31 -> 0 | F31: =Distribution!$I$35 -> 0 | G31: =Distribution!$J$35 -> 0 | H31: =Distribution!$K$35 -> 0 | I31: =Distribution!$L$35 -> 0 | J31: =Distribution!$M$35 -> 0 | K31: =Distribution!$N$35 -> 0 | L31: =Distribution!$O$35 -> 0 | M31: =Distribution!$P$35 -> 0 | N31: =Distribution!$Q$35 -> 0 | O31: 0
A32: 32 | C32: Nuclear Fuel | E32: ='Function Summary'!$H32 -> 0 | F32: =Distribution!$I$36 -> 0 | G32: =Distribution!$J$36 -> 0 | H32: =Distribution!$K$36 -> 0 | I32: =Distribution!$L$36 -> 0 | J32: =Distribution!$M$36 -> 0 | K32: =Distribution!$N$36 -> 0 | L32: =Distribution!$O$36 -> 0 | M32: =Distribution!$P$36 -> 0 | N32: =Distribution!$Q$36 -> 0 | O32: 0
A33: 33 | C33: Prepayments | E33: ='Function Summary'!$H33 -> -6.406284694e-09 | F33: =Distribution!$I$37 -> -5.169031474e-09 | G33: =Distribution!$J$37 -> -8.779406873e-10 | H33: =Distribution!$K$37 -> -5.331885464e-11 | I33: =Distribution!$L$37 -> -1.093523482e-11 | J33: =Distribution!$M$37 -> -1.88826276e-13 | K33: =Distribution!$N$37 -> -1.563968499e-10 | L33: =Distribution!$O$37 -> -1.384727676e-10 | M33: =Distribution!$P$37 -> 0 | N33: =Distribution!$Q$37 -> 0 | O33: 0
A34: 34 | C34: Fuel Stock | E34: ='Function Summary'!$H34 -> 0 | F34: =Distribution!$I$38 -> 0 | G34: =Distribution!$J$38 -> 0 | H34: =Distribution!$K$38 -> 0 | I34: =Distribution!$L$38 -> 0 | J34: =Distribution!$M$38 -> 0 | K34: =Distribution!$N$38 -> 0 | L34: =Distribution!$O$38 -> 0 | M34: =Distribution!$P$38 -> 0 | N34: =Distribution!$Q$38 -> 0 | O34: 0
A35: 35 | C35: Materials & Supplies | E35: ='Function Summary'!$H35 -> 3.088698838e-05 | F35: =Distribution!$I$39 -> 1.828878719e-05 | G35: =Distribution!$J$39 -> 4.638007078e-06 | H35: =Distribution!$K$39 -> 4.338621407e-06 | I35: =Distribution!$L$39 -> 1.513860409e-06 | J35: =Distribution!$M$39 -> 2.083750236e-07 | K35: =Distribution!$N$39 -> 1.48464448e-06 | L35: =Distribution!$O$39 -> 4.146927882e-07 | M35: =Distribution!$P$39 -> 0 | N35: =Distribution!$Q$39 -> 0 | O35: 0
A36: 36 | C36: Misc Deferred Debits | E36: ='Function Summary'!$H36 -> 0 | F36: =Distribution!$I$40 -> 0 | G36: =Distribution!$J$40 -> 0 | H36: =Distribution!$K$40 -> 0 | I36: =Distribution!$L$40 -> 0 | J36: =Distribution!$M$40 -> 0 | K36: =Distribution!$N$40 -> 0 | L36: =Distribution!$O$40 -> 0 | M36: =Distribution!$P$40 -> 0 | N36: =Distribution!$Q$40 -> 0 | O36: 0
A37: 37 | C37: Cash Working Capital | E37: ='Function Summary'!$H37 -> 2719707.324 | F37: =Distribution!$I$41 -> 1529927.316 | G37: =Distribution!$J$41 -> 400847.6178 | H37: =Distribution!$K$41 -> 393519.4328 | I37: =Distribution!$L$41 -> 142886.3699 | J37: =Distribution!$M$41 -> 57438.16766 | K37: =Distribution!$N$41 -> 136989.8479 | L37: =Distribution!$O$41 -> 58098.57263 | M37: =Distribution!$P$41 -> 0 | N37: =Distribution!$Q$41 -> 0 | O37: 0
A38: 38 | C38: Weatherization Loans | E38: ='Function Summary'!$H38 -> 0 | F38: =Distribution!$I$42 -> 0 | G38: =Distribution!$J$42 -> 0 | H38: =Distribution!$K$42 -> 0 | I38: =Distribution!$L$42 -> 0 | J38: =Distribution!$M$42 -> 0 | K38: =Distribution!$N$42 -> 0 | L38: =Distribution!$O$42 -> 0 | M38: =Distribution!$P$42 -> 0 | N38: =Distribution!$Q$42 -> 0 | O38: 0
A39: 39 | C39: Miscellaneous Rate Base | E39: ='Function Summary'!$H39 -> 0 | F39: =Distribution!$I$43 -> 0 | G39: =Distribution!$J$43 -> 0 | H39: =Distribution!$K$43 -> 0 | I39: =Distribution!$L$43 -> 0 | J39: =Distribution!$M$43 -> 0 | K39: =Distribution!$N$43 -> 0 | L39: =Distribution!$O$43 -> 0 | M39: =Distribution!$P$43 -> 0 | N39: =Distribution!$Q$43 -> 0 | O39: 0
A40: 40
A41: 41 | C41: Total Rate Base Additions | E41: =SUM(E29:E39) -> 461369323.9 | F41: 273065063.5 | G41: 69268279.34 | H41: 64836516.26 | I41: 22631131.63 | J41: =SUM(J29:J39) -> 3175080.453 | K41: 22179906.91 | L41: 6213345.79 | M41: 0 | N41: 0 | O41: =ROUND(SUM(F41:N41)-E41,0) -> 0
A42: 42
A43: 43 | C43: Rate Base Deductions :
A44: 44 | C44: Accum Provision For Depreciation | E44: ='Function Summary'!$H44 -> -198063450.8 | F44: =Distribution!$I$48 -> -116350673 | G44: =Distribution!$J$48 -> -29462287.91 | H44: =Distribution!$K$48 -> -28409924.94 | I44: =Distribution!$L$48 -> -10018328.64 | J44: =Distribution!$M$48 -> -988142.5181 | K44: =Distribution!$N$48 -> -9704093.369 | L44: =Distribution!$O$48 -> -3130000.42 | M44: =Distribution!$P$48 -> 0 | N44: =Distribution!$Q$48 -> 0 | O44: =ROUND(SUM(F44:N44)-E44,0) -> 0
A45: 45 | C45: Accum Provision For Amortization | E45: ='Function Summary'!$H45 -> -7175315.132 | F45: =Distribution!$I$49 -> -4070523.129 | G45: =Distribution!$J$49 -> -1060721.336 | H45: =Distribution!$K$49 -> -1085050.507 | I45: =Distribution!$L$49 -> -389300.3438 | J45: =Distribution!$M$49 -> -154239.9932 | K45: =Distribution!$N$49 -> -330951.9735 | L45: =Distribution!$O$49 -> -84527.84992 | M45: =Distribution!$P$49 -> 0 | N45: =Distribution!$Q$49 -> 0 | O45: 0
A46: 46 | C46: Accum Deferred Income Taxes | E46: ='Function Summary'!$H46 -> -60008268.2 | F46: =Distribution!$I$50 -> -35783886.32 | G46: =Distribution!$J$50 -> -9080018.811 | H46: =Distribution!$K$50 -> -8275805.034 | I46: =Distribution!$L$50 -> -2860747.542 | J46: =Distribution!$M$50 -> -467834.5233 | K46: =Distribution!$N$50 -> -2843520.627 | L46: =Distribution!$O$50 -> -696455.3477 | M46: =Distribution!$P$50 -> 0 | N46: =Distribution!$Q$50 -> 0 | O46: 0
A47: =A46+1 -> 47 | C47: Unamortized ITC | E47: ='Function Summary'!$H47 -> -153928.6955 | F47: =Distribution!$I$51 -> -91790.74851 | G47: =Distribution!$J$51 -> -23291.45306 | H47: =Distribution!$K$51 -> -21228.38595 | I47: =Distribution!$L$51 -> -7338.097403 | J47: =Distribution!$M$51 -> -1199.82692 | K47: =Distribution!$N$51 -> -7293.91036 | L47: =Distribution!$O$51 -> -1786.27328 | M47: =Distribution!$P$51 -> 0 | N47: =Distribution!$Q$51 -> 0 | O47: 0
A48: 48 | C48: Customer Advance For Construction | E48: ='Function Summary'!$H48 -> -162155.8404 | F48: =Distribution!$I$52 -> -59724.15669 | G48: =Distribution!$J$52 -> -92795.48553 | H48: =Distribution!$K$52 -> 0 | I48: =Distribution!$L$52 -> 0 | J48: =Distribution!$M$52 -> 0 | K48: =Distribution!$N$52 -> -9636.19819 | L48: =Distribution!$O$52 -> 0 | M48: =Distribution!$P$52 -> 0 | N48: =Distribution!$Q$52 -> 0 | O48: 0
A49: 49 | C49: Customer Service Deposits | E49: ='Function Summary'!$H49 -> 0 | F49: =Distribution!$I$53 -> 0 | G49: =Distribution!$J$53 -> 0 | H49: =Distribution!$K$53 -> 0 | I49: =Distribution!$L$53 -> 0 | J49: =Distribution!$M$53 -> 0 | K49: =Distribution!$N$53 -> 0 | L49: =Distribution!$O$53 -> 0 | M49: =Distribution!$P$53 -> 0 | N49: =Distribution!$Q$53 -> 0 | O49: 0
A50: 50 | C50: Misc Rate Base Deductions | E50: ='Function Summary'!$H50 -> -202569.4529 | F50: =Distribution!$I$54 -> -119927.5481 | G50: =Distribution!$J$54 -> -30416.32972 | H50: =Distribution!$K$54 -> -28462.21197 | I50: =Distribution!$L$54 -> -9932.269371 | J50: =Distribution!$M$54 -> -1376.953276 | K50: =Distribution!$N$54 -> -9735.583519 | L50: =Distribution!$O$54 -> -2718.556859 | M50: =Distribution!$P$54 -> 0 | N50: =Distribution!$Q$54 -> 0 | O50: 0
A51: 51
A52: 52 | C52: Total Rate Base Deductions | E52: =SUM(E44:E50) -> -265765688.1 | F52: -156476524.9 | G52: -39749531.32 | H52: -37820471.08 | I52: -13285646.89 | J52: =SUM(J44:J50) -> -1612793.815 | K52: -12905231.66 | L52: -3915488.447 | M52: 0 | N52: 0 | O52: =ROUND(SUM(F52:N52)-E52,0) -> 0
A53: 53
A54: 54 | C54: Total Rate Base | E54: =E41+E52 -> 195603635.7 | F54: =F41+F52 -> 116588538.6 | G54: 29518748.02 | H54: 27016045.19 | I54: 9345484.741 | J54: =J41+J52 -> 1562286.638 | K54: 9274675.243 | L54: 2297857.342 | M54: 0 | N54: 0 | O54: =ROUND(SUM(F54:N54)-E54,0) -> 0
A55: 55 | M55: =+M56-M59 -> 0 | N55: 0
A56: 56
A57: 57 | C57: Return On Rate Base | D57: =ActualROR -> 0.04602925444 | E57: =$D$57*E54 -> 9003489.519 | F57: =$D$57*F54 -> 5366483.507 | G57: 1358725.963 | H57: 1243528.418 | I57: 430165.695 | J57: =$D$57*J54 -> 71910.88918 | K57: 426906.3866 | L57: 105768.6603 | M57: 0 | N57: 0 | O57: =ROUND(SUM(F57:N57)-E57,0) -> 0
A58: 58 | C58: Total Operating Expenses | E58: =E25 -> 35566473.64 | F58: 20683892.71 | G58: 5303913.471 | H58: 5020432.77 | I58: 1775889.193 | J58: =J25 -> 452513.4894 | K58: 1734433.818 | L58: 595398.1926 | M58: 0 | N58: 0 | O58: =ROUND(SUM(F58:N58)-E58,0) -> 0
A59: 59 | C59: Revenue Credits | E59: ='Function Summary'!$H$59 -> -1743839.578 | F59: =Distribution!$I$99 -> -592256.4168 | G59: =Distribution!$J$99 -> -303233.7718 | H59: =Distribution!$K$99 -> -391634.3479 | I59: =Distribution!$L$99 -> -111636.9461 | J59: =Distribution!$M$99 -> -74309.73321 | K59: =Distribution!$N$99 -> -263439.6339 | L59: =Distribution!$O$99 -> -7328.728579 | M59: =Distribution!$P$99 -> 0 | N59: =Distribution!$Q$99 -> 0 | O59: =ROUND(SUM(F59:N59)-E59,0) -> 0
A60: 60
A61: 61 | C61: Total Revenue Requirements | E61: =E57+E58+E59 -> 42826123.58 | F61: =F57+F58+F59 -> 25458119.8 | G61: 6359405.662 | H61: 5872326.84 | I61: 2094417.942 | J61: =J57+J58+J59 -> 450114.6454 | K61: 1897900.571 | L61: 693838.1243 | M61: 0 | N61: 0 | O61: =ROUND(SUM(F61:N61)-E61,0) -> 0
A62: 62 | O62: =ROUND(SUM(F62:N62)-E62,0) -> 0
A63: 63
A64: 64 | C64: Return On Rate Base @ Target ROR | D64: =TargetROR -> 0.07799999713 | E64: =$D64*E54 -> 15257083.03 | F64: =$D64*F54 -> 9093905.674 | G64: 2302462.261 | H64: 2107251.447 | I64: 728947.783 | J64: =$D64*J54 -> 121858.3533 | K64: 723424.6423 | L64: 179232.8661 | M64: 0 | N64: 0 | O64: =ROUND(SUM(F64:N64)-E64,0) -> 0
A65: 65 | C65: Total Operating Expenses Adjusted for Taxes | E65: =E58+((E64-E57)*(1/Net_to_Gross_Factor))-(E64-E57) -> 39418717.96 | F65: =F58+((F64-F57)*(1/Net_to_Gross_Factor))-(F64-F57) -> 22980003.07 | G65: 5885259.666 | H65: 5552490.399 | I65: 1959940.427 | J65: =J58+((J64-J57)*(1/Net_to_Gross_Factor))-(J64-J57) -> 483281.3726 | K65: 1917090.52 | L65: 640652.5043 | M65: 0 | N65: 0 | O65: =ROUND(SUM(F65:N65)-E65,0) -> 0
A66: 66 | C66: Revenue Credits | E66: =E59 -> -1743839.578 | F66: =F59 -> -592256.4168 | G66: -303233.7718 | H66: -391634.3479 | I66: -111636.9461 | J66: =J59 -> -74309.73321 | K66: -263439.6339 | L66: -7328.728579 | M66: 0 | N66: 0 | O66: =ROUND(SUM(F66:N66)-E66,0) -> 0
A67: 67
A68: 68 | C68: Total Target Revenue Requirements | E68: =SUM(E64:E66) -> 52931961.41 | F68: =SUM(F64:F66) -> 31481652.33 | G68: 7884488.155 | H68: 7268107.498 | I68: 2577251.264 | J68: =SUM(J64:J66) -> 530829.9927 | K68: 2377075.529 | L68: 812556.6418 | M68: 0 | N68: 0 | O68: =ROUND(SUM(F68:N68)-E68,0) -> 0
C70: =Inputs!$C$3 -> PacifiCorp
C71: Cost Of Service By Rate Schedule - Distribution Substations
C72: =Inputs!$C$4 -> State of Washington
C73: =+Method&" - "&IF(PeakMethod=1,"(Coincident Peaks)",IF(PeakMethod=2,"(200 Top Hours)","(100 Summer, 100 Winter Hours)"))&" - "&TEXT(Demand,"0%")&"D"&" / "&TEXT(Engy,"0%")&"E" -> WCA Method - (100 Summer, 100 Winter Hours) - 38%D / 62%E
C74: =Inputs!$C$5 -> 12 Months Ending June 2012
C77: A | D77: B | E77: C | F77: D | G77: E | H77: F | I77: G | J77: H | K77: I | L77: J | M77: L | N77: M
E78: ='Hot Sheet'!$H$10 -> Washington | G78: ='Hot Sheet'!$J$10 -> Small General | H78: ='Hot Sheet'!$K$10 -> Large General | I78: ='Hot Sheet'!$L$10 -> Large General | J78: ='Hot Sheet'!$M$10 -> Large General | K78: ='Hot Sheet'!$N$10 -> Agricultural | L78: ='Hot Sheet'!$O$10 -> Street & Area
E79: ='Hot Sheet'!$H$11 -> Jurisdiction | F79: ='Hot Sheet'!$I$11 -> Residential | G79: ='Hot Sheet'!$J$11 -> Service | H79: ='Hot Sheet'!$K$11 -> Service <1,000 kW | I79: ='Hot Sheet'!$L$11 -> Service >1,000 kW | J79: ='Hot Sheet'!$M$11 -> Dedicated Facilities | K79: ='Hot Sheet'!$N$11 -> Pumping | L79: ='Hot Sheet'!$O$11 -> Lighting
C80: DESCRIPTION | E80: ='Hot Sheet'!$H$12 -> Normalized | F80: ='Hot Sheet'!$I$12 -> Schedule 16 | G80: ='Hot Sheet'!$J$12 -> Schedule 24 | H80: ='Hot Sheet'!$K$12 -> Schedule 36 | I80: ='Hot Sheet'!$L$12 -> Schedule 48T | J80: ='Hot Sheet'!$M$12 -> Schedule 48T | K80: ='Hot Sheet'!$N$12 -> Schedule 40 | L80: ='Hot Sheet'!$O$12 -> Sch. 15,51-54,57
A81: 13
A82: =A81+1 -> 14 | C82: Operating Expenses
A83: 15 | C83: Operation & Maintenance Expenses | E83: ='Function Summary'!$L15 -> 2499193.049 | F83: 1235075.747 | G83: 334388.3724 | H83: 454937.1153 | I83: 172397.5985 | J83: 129664.2432 | K83: 156656.0745 | L83: 16073.89737 | M83: 0 | N83: 0 | O83: =ROUND(SUM(F83:N83)-E83,0) -> 0
A84: 16 | C84: Depreciation Expense | E84: ='Function Summary'!$L16 -> 1177339.819 | F84: 579892.0931 | G84: 156928.8885 | H84: 219328.8582 | I84: 83236.80026 | J84: 55923.81762 | K84: 76413.28981 | L84: 5616.071794 | M84: 0 | N84: 0 | O84: 0
A85: 17 | C85: Amortization Expense | E85: ='Function Summary'!$L17 -> 51974.97264 | F85: 28700.90948 | G85: 7616.605007 | H85: 8207.378226 | I85: 2985.956375 | J85: 1558.395739 | K85: 2344.194909 | L85: 561.5329042 | M85: 0 | N85: 0 | O85: 0
A86: 18 | C86: Taxes Other Than Income | E86: ='Function Summary'!$L18 -> 644906.7484 | F86: 384393.3423 | G86: 97323.54784 | H86: 89072.11662 | I86: 30812.13779 | J86: 5150.871516 | K86: 30578.67831 | L86: 7576.053999 | M86: 0 | N86: 0 | O86: 0
A87: 19 | C87: Income Taxes - Federal | E87: ='Function Summary'!$L19 -> 269774.2867 | F87: 160797.5727 | G87: 40711.91806 | H87: 37260.21907 | I87: 12889.18516 | J87: 2154.687779 | K87: 12791.52552 | L87: 3169.178441 | M87: 0 | N87: 0 | O87: 0
A88: 20 | C88: Income Taxes - State | E88: ='Function Summary'!$L20 -> 0 | F88: 0 | G88: 0 | H88: 0 | I88: 0 | J88: 0 | K88: 0 | L88: 0 | M88: 0 | N88: 0 | O88: 0
A89: 21 | C89: Income Taxes Deferred | E89: ='Function Summary'!$L21 -> 106179.3855 | F89: 63287.6753 | G89: 16023.64145 | H89: 14665.10102 | I89: 5073.002982 | J89: 848.0549691 | K89: 5034.565511 | L89: 1247.344303 | M89: 0 | N89: 0 | O89: 0
A90: 22 | C90: Investment Tax Credit Adj | E90: ='Function Summary'!$L22 -> 0 | F90: 0 | G90: 0 | H90: 0 | I90: 0 | J90: 0 | K90: 0 | L90: 0 | M90: 0 | N90: 0 | O90: 0
A91: 23 | C91: Misc Revenues & Expense | E91: ='Function Summary'!$L23 -> 431.6499098 | F91: 183.138275 | G91: 58.25151734 | H91: 92.29450026 | I91: 36.47119867 | J91: 45.09209694 | K91: 15.36677354 | L91: 1.035548056 | M91: 0 | N91: 0 | O91: 0
A92: 24
A93: 25 | C93: Total Operating Expenses | E93: =SUM(E83:E91) -> 4749799.911 | F93: 2452330.478 | G93: 653051.2247 | H93: 823563.083 | I93: 307431.1523 | J93: =SUM(J83:J91) -> 195345.1629 | K93: 283833.6954 | L93: 34245.11436 | M93: 0 | N93: 0 | O93: =ROUND(SUM(F93:N93)-E93,0) -> 0
A94: 26
A95: 27
A96: 28 | C96: Rate Base :
A97: 29 | C97: Electric Plant In Service | E97: ='Function Summary'!$L29 -> 54262544.63 | F97: 26729019.36 | G97: 7233355.056 | H97: 10106055.37 | I97: 3837881.78 | J97: 2581888.966 | K97: 3521441.559 | L97: 252902.5385 | M97: 0 | N97: 0 | O97: =ROUND(SUM(F97:N97)-E97,0) -> 0
A98: 30 | C98: Plant Held For Future Use | E98: ='Function Summary'!$L30 -> 0 | F98: 0 | G98: 0 | H98: 0 | I98: 0 | J98: 0 | K98: 0 | L98: 0 | M98: 0 | N98: 0 | O98: 0
A99: 31 | C99: Electric Plant Acquisition Adj | E99: ='Function Summary'!$L31 -> 0 | F99: 0 | G99: 0 | H99: 0 | I99: 0 | J99: 0 | K99: 0 | L99: 0 | M99: 0 | N99: 0 | O99: 0
A100: 32 | C100: Nuclear Fuel | E100: ='Function Summary'!$L32 -> 0 | F100: 0 | G100: 0 | H100: 0 | I100: 0 | J100: 0 | K100: 0 | L100: 0 | M100: 0 | N100: 0 | O100: 0
A101: 33 | C101: Prepayments | E101: ='Function Summary'!$L33 -> -7.526076187e-10 | F101: -6.072556332e-10 | G101: -1.031401009e-10 | H101: -6.263876511e-12 | I101: -1.284666765e-12 | J101: -2.218323111e-14 | K101: -1.837343584e-11 | L101: -1.626772222e-11 | M101: 0 | N101: 0 | O101: 0
A102: 34 | C102: Fuel Stock | E102: ='Function Summary'!$L34 -> 0 | F102: 0 | G102: 0 | H102: 0 | I102: 0 | J102: 0 | K102: 0 | L102: 0 | M102: 0 | N102: 0 | O102: 0
A103: 35 | C103: Materials & Supplies | E103: ='Function Summary'!$L35 -> 3.628590342e-06 | F103: 2.14855899e-06 | G103: 5.448711116e-07 | H103: 5.096994094e-07 | I103: 1.778476812e-07 | J103: 2.447980972e-08 | K103: 1.744154062e-07 | L103: 4.871793351e-08 | M103: 0 | N103: 0 | O103: 0
A104: 36 | C104: Misc Deferred Debits | E104: ='Function Summary'!$L36 -> 0 | F104: 0 | G104: 0 | H104: 0 | I104: 0 | J104: 0 | K104: 0 | L104: 0 | M104: 0 | N104: 0 | O104: 0
A105: 37 | C105: Cash Working Capital | E105: ='Function Summary'!$L37 -> 319510.0672 | F105: 179735.2145 | G105: 47091.40875 | H105: 46230.49667 | I105: 16786.23035 | J105: 6747.811664 | K105: 16093.50945 | L105: 6825.395761 | M105: 0 | N105: 0 | O105: 0
A106: 38 | C106: Weatherization Loans | E106: ='Function Summary'!$L38 -> 0 | F106: 0 | G106: 0 | H106: 0 | I106: 0 | J106: 0 | K106: 0 | L106: 0 | M106: 0 | N106: 0 | O106: 0
A107: 39 | C107: Miscellaneous Rate Base | E107: ='Function Summary'!$L39 -> 0 | F107: 0 | G107: 0 | H107: 0 | I107: 0 | J107: 0 | K107: 0 | L107: 0 | M107: 0 | N107: 0 | O107: 0
A108: 40
A109: 41 | C109: Total Rate Base Additions | E109: =SUM(E97:E107) -> 54582054.7 | F109: 26908754.58 | G109: 7280446.465 | H109: 10152285.86 | I109: 3854668.01 | J109: =SUM(J97:J107) -> 2588636.777 | K109: 3537535.068 | L109: 259727.9343 | M109: 0 | N109: 0 | O109: =ROUND(SUM(F109:N109)-E109,0) -> 0
A110: 42
A111: 43 | C111: Rate Base Deductions :
A112: 44 | C112: Accum Provision For Depreciation | E112: ='Function Summary'!$L44 -> -17535884.91 | F112: -8611348.908 | G112: -2333024.718 | H112: -3278934.256 | I112: -1245505.657 | J112: -843091.3874 | K112: -1142601.665 | L112: -81378.32417 | M112: 0 | N112: 0 | O112: =ROUND(SUM(F112:N112)-E112,0) -> 0
A113: 45 | C113: Accum Provision For Amortization | E113: ='Function Summary'!$L45 -> -842952.9896 | F113: -478203.3371 | G113: -124613.0943 | H113: -127471.275 | I113: -45734.83987 | J113: -18120.04923 | K113: -38880.09799 | L113: -9930.296089 | M113: 0 | N113: 0 | O113: 0
A114: =A113+1 -> 46 | C114: Accum Deferred Income Taxes | E114: ='Function Summary'!$L46 -> -7049846.211 | F114: -4203932.308 | G114: -1066731.552 | H114: -972252.3641 | I114: -336084.603 | J114: -54963.00077 | K114: -334060.7521 | L114: -81821.63137 | M114: 0 | N114: 0 | O114: 0
A115: 47 | C115: Unamortized ITC | E115: ='Function Summary'!$L47 -> -18083.4781 | F115: -10783.53835 | G115: -2736.270063 | H115: -2493.901811 | I115: -862.0765819 | J115: -140.9551595 | K115: -856.8855068 | L115: -209.8506301 | M115: 0 | N115: 0 | O115: 0
A116: 48 | C116: Customer Advance For Construction | E116: ='Function Summary'!$L48 -> -19049.99961 | F116: -7016.36869 | G116: -10901.57443 | H116: 0 | I116: 0 | J116: 0 | K116: -1132.056491 | L116: 0 | M116: 0 | N116: 0 | O116: 0
A117: 49 | C117: Customer Service Deposits | E117: ='Function Summary'!$L49 -> 0 | F117: 0 | G117: 0 | H117: 0 | I117: 0 | J117: 0 | K117: 0 | L117: 0 | M117: 0 | N117: 0 | O117: 0
A118: 50 | C118: Misc Rate Base Deductions | E118: ='Function Summary'!$L50 -> -23797.77372 | F118: -14089.03768 | G118: -3573.297562 | H118: -3343.728635 | I118: -1166.838809 | J118: -161.763889 | K118: -1143.732238 | L118: -319.374911 | M118: 0 | N118: 0 | O118: 0
A119: 51
A120: 52 | C120: Total Rate Base Deductions | E120: =SUM(E112:E118) -> -25489615.37 | F120: -13325373.5 | G120: -3541580.507 | H120: -4384495.525 | I120: -1629354.015 | J120: =SUM(J112:J118) -> -916477.1565 | K120: -1518675.19 | L120: -173659.4772 | M120: 0 | N120: 0 | O120: =ROUND(SUM(F120:N120)-E120,0) -> 0
A121: 53
A122: 54 | C122: Total Rate Base | E122: =E109+E120 -> 29092439.33 | F122: 13583381.08 | G122: 3738865.958 | H122: 5767790.337 | I122: 2225313.995 | J122: =J109+J120 -> 1672159.621 | K122: 2018859.879 | L122: 86068.4571 | M122: 0 | N122: 0 | O122: =ROUND(SUM(F122:N122)-E122,0) -> 0
A123: 55
A124: 56
A125: 57 | C125: Return On Rate Base | D125: =ActualROR -> 0.04602925444 | E125: =$D$125*E122 -> 1339103.292 | F125: 625232.904 | G125: 172097.2125 | H125: 265487.089 | I125: 102429.5441 | J125: =$D$125*J122 -> 76968.26066 | K125: 92926.61503 | L125: 3961.666911 | M125: 0 | N125: 0 | O125: =ROUND(SUM(F125:N125)-E125,0) -> 0
A126: 58 | C126: Total Operating Expenses | E126: =E93 -> 4749799.911 | F126: 2452330.478 | G126: 653051.2247 | H126: 823563.083 | I126: 307431.1523 | J126: =J93 -> 195345.1629 | K126: 283833.6954 | L126: 34245.11436 | M126: 0 | N126: 0 | O126: =ROUND(SUM(F126:N126)-E126,0) -> 0
A127: 59 | C127: Revenue Credits | E127: ='Function Summary'!$L59 -> -223133.9387 | F127: -70310.72701 | G127: -40400.38406 | H127: -51779.48153 | I127: -14135.59805 | J127: -8744.400795 | K127: -36845.07395 | L127: -918.2732671 | M127: 0 | N127: 0 | O127: =ROUND(SUM(F127:N127)-E127,0) -> 0
A128: 60
A129: 61 | C129: Total Revenue Requirements | E129: =E125+E126+E127 -> 5865769.265 | F129: 3007252.655 | G129: 784748.0532 | H129: 1037270.69 | I129: 395725.0983 | J129: =J125+J126+J127 -> 263569.0227 | K129: 339915.2364 | L129: 37288.50801 | M129: 0 | N129: 0 | O129: =ROUND(SUM(F129:N129)-E129,0) -> 0
A130: 62
A131: 63
A132: 64 | C132: Return On Rate Base @ Target ROR | D132: =TargetROR -> 0.07799999713 | E132: =$D132*E122 -> 2269210.184 | F132: 1059503.685 | G132: 291631.534 | H132: 449887.6297 | I132: 173574.4852 | J132: =$D132*J122 -> 130428.4456 | K132: 157471.0647 | L132: 6713.339407 | M132: 0 | N132: 0 | O132: =ROUND(SUM(F132:N132)-E132,0) -> 0
A133: 65 | C133: Total Operating Expenses Adjusted for Taxes | E133: =E126+((E132-E125)*(1/Net_to_Gross_Factor))-(E132-E125) -> 5322750.326 | F133: =F126+((F132-F125)*(1/Net_to_Gross_Factor))-(F132-F125) -> 2719843.413 | G133: 726684.954 | H133: 937154.722 | I133: 351256.7855 | J133: =J126+((J132-J125)*(1/Net_to_Gross_Factor))-(J132-J125) -> 228276.8994 | K133: 323593.3935 | L133: 35940.15814 | M133: 0 | N133: 0 | O133: =ROUND(SUM(F133:N133)-E133,0) -> 0
A134: 66 | C134: Revenue Credits | E134: =E127 -> -223133.9387 | F134: -70310.72701 | G134: -40400.38406 | H134: -51779.48153 | I134: -14135.59805 | J134: =J127 -> -8744.400795 | K134: -36845.07395 | L134: -918.2732671 | M134: 0 | N134: 0 | O134: =ROUND(SUM(F134:N134)-E134,0) -> 0
A135: 67
A136: 68 | C136: Total Target Revenue Requirements | E136: =SUM(E132:E134) -> 7368826.571 | F136: 3709036.372 | G136: 977916.1039 | H136: 1335262.87 | I136: 510695.6727 | J136: =SUM(J132:J134) -> 349960.9443 | K136: 444219.3842 | L136: 41735.22428 | M136: 0 | N136: 0 | O136: =ROUND(SUM(F136:N136)-E136,0) -> 0
C138: =Inputs!$C$3 -> PacifiCorp
C139: Cost Of Service By Rate Schedule - Distribution Poles & Wires
C140: =Inputs!$C$4 -> State of Washington
C141: =+Method&" - "&IF(PeakMethod=1,"(Coincident Peaks)",IF(PeakMethod=2,"(200 Top Hours)","(100 Summer, 100 Winter Hours)"))&" - "&TEXT(Demand,"0%")&"D"&" / "&TEXT(Engy,"0%")&"E" -> WCA Method - (100 Summer, 100 Winter Hours) - 38%D / 62%E
C142: =Inputs!$C$5 -> 12 Months Ending June 2012
C145: A | D145: B | E145: C | F145: D | G145: E | H145: F | I145: G | J145: H | K145: I | L145: J | M145: L | N145: M
E146: ='Hot Sheet'!$H$10 -> Washington | G146: ='Hot Sheet'!$J$10 -> Small General | H146: ='Hot Sheet'!$K$10 -> Large General | I146: ='Hot Sheet'!$L$10 -> Large General | J146: ='Hot Sheet'!$M$10 -> Large General | K146: ='Hot Sheet'!$N$10 -> Agricultural | L146: ='Hot Sheet'!$O$10 -> Street & Area | O146: Chk Total
E147: ='Hot Sheet'!$H$11 -> Jurisdiction | F147: ='Hot Sheet'!$I$11 -> Residential | G147: ='Hot Sheet'!$J$11 -> Service | H147: ='Hot Sheet'!$K$11 -> Service <1,000 kW | I147: ='Hot Sheet'!$L$11 -> Service >1,000 kW | J147: ='Hot Sheet'!$M$11 -> Dedicated Facilities | K147: ='Hot Sheet'!$N$11 -> Pumping | L147: ='Hot Sheet'!$O$11 -> Lighting
C148: DESCRIPTION | E148: ='Hot Sheet'!$H$12 -> Normalized | F148: ='Hot Sheet'!$I$12 -> Schedule 16 | G148: ='Hot Sheet'!$J$12 -> Schedule 24 | H148: ='Hot Sheet'!$K$12 -> Schedule 36 | I148: ='Hot Sheet'!$L$12 -> Schedule 48T | J148: ='Hot Sheet'!$M$12 -> Schedule 48T | K148: ='Hot Sheet'!$N$12 -> Schedule 40 | L148: ='Hot Sheet'!$O$12 -> Sch. 15,51-54,57 | O148: =ROUND(SUM(O151:O204),0) -> 0
A149: 13
A150: =A149+1 -> 14 | C150: Operating Expenses
A151: 15 | C151: Operation & Maintenance Expenses | E151: ='Function Summary'!$M15 -> 9273227.578 | F151: 5269978.312 | G151: 1387586.931 | H151: 1314270.857 | I151: 487413.6816 | J151: 127723.2513 | K151: 431647.6701 | L151: 254606.8764 | M151: 0 | N151: 0 | O151: =ROUND(SUM(F151:N151)-E151,0) -> 0
A152: 16 | C152: Depreciation Expense | E152: ='Function Summary'!$M16 -> 6315400.812 | F152: 3637464.444 | G152: 931941.2687 | H152: 909369.897 | I152: 345143.8289 | J152: 5939.818817 | K152: 316827.3967 | L152: 168714.1575 | M152: 0 | N152: 0 | O152: 0
A153: 17 | C153: Amortization Expense | E153: ='Function Summary'!$M17 -> 212916.0274 | F153: 117573.5805 | G153: 31201.5033 | H153: 33621.61207 | I153: 12232.002 | J153: 6383.984695 | K153: 9603.019338 | L153: 2300.325505 | M153: 0 | N153: 0 | O153: 0
A154: 18 | C154: Taxes Other Than Income | E154: ='Function Summary'!$M18 -> 2641867.344 | F154: 1574671.409 | G154: 398686.9473 | H154: 364884.8717 | I154: 126222.2497 | J154: 21100.59987 | K154: 125265.8804 | L154: 31035.38566 | M154: 0 | N154: 0 | O154: 0
A155: 19 | C155: Income Taxes - Federal | E155: ='Function Summary'!$M19 -> 755073.5852 | F155: 450057.7174 | G155: 113948.9397 | H155: 104287.9496 | I155: 36075.65188 | J155: 6030.774267 | K155: 35802.31145 | L155: 8870.24096 | M155: 0 | N155: 0 | O155: 0
A156: 20 | C156: Income Taxes - State | E156: ='Function Summary'!$M20 -> 0 | F156: 0 | G156: 0 | H156: 0 | I156: 0 | J156: 0 | K156: 0 | L156: 0 | M156: 0 | N156: 0 | O156: 0
A157: 21 | C157: Income Taxes Deferred | E157: ='Function Summary'!$M21 -> 426922.375 | F157: 254464.8804 | G157: 64427.29943 | H157: 58964.92736 | I157: 20397.35369 | J157: 3409.829881 | K157: 20242.80564 | L157: 5015.278526 | M157: 0 | N157: 0 | O157: 0
A158: 22 | C158: Investment Tax Credit Adj | E158: ='Function Summary'!$M22 -> 0 | F158: 0 | G158: 0 | H158: 0 | I158: 0 | J158: 0 | K158: 0 | L158: 0 | M158: 0 | N158: 0 | O158: 0
A159: 23 | C159: Misc Revenues & Expense | E159: ='Function Summary'!$M23 -> 1768.25844 | F159: 750.2278885 | G159: 238.6279594 | H159: 378.0854005 | I159: 149.4046527 | J159: 184.720254 | K159: 62.950151 | L159: 4.242133609 | M159: 0 | N159: 0 | O159: 0
A160: 24
A161: 25 | C161: Total Operating Expenses | E161: =SUM(E151:E159) -> 19627175.98 | F161: 11304960.57 | G161: 2928031.517 | H161: 2785778.2 | I161: 1027634.172 | J161: =SUM(J151:J159) -> 170772.979 | K161: 939452.0338 | L161: 470546.5066 | M161: 0 | N161: 0 | O161: =ROUND(SUM(F161:N161)-E161,0) -> 0
A162: 26
A163: 27
A164: 28 | C164: Rate Base :
A165: 29 | C165: Electric Plant In Service | E165: ='Function Summary'!$M29 -> 222287090.3 | F165: 127292910.2 | G165: 32714217.43 | H165: 32744188.63 | I165: 12411915.72 | J165: 292121.9499 | K165: 11404884.78 | L165: 5426851.605 | M165: 0 | N165: 0 | O165: =ROUND(SUM(F165:N165)-E165,0) -> 0
A166: 30 | C166: Plant Held For Future Use | E166: ='Function Summary'!$M30 -> 0 | F166: 0 | G166: 0 | H166: 0 | I166: 0 | J166: 0 | K166: 0 | L166: 0 | M166: 0 | N166: 0 | O166: 0
A167: 31 | C167: Electric Plant Acquisition Adj | E167: ='Function Summary'!$M31 -> 0 | F167: 0 | G167: 0 | H167: 0 | I167: 0 | J167: 0 | K167: 0 | L167: 0 | M167: 0 | N167: 0 | O167: 0
A168: 32 | C168: Nuclear Fuel | E168: ='Function Summary'!$M32 -> 0 | F168: 0 | G168: 0 | H168: 0 | I168: 0 | J168: 0 | K168: 0 | L168: 0 | M168: 0 | N168: 0 | O168: 0
A169: 33 | C169: Prepayments | E169: ='Function Summary'!$M33 -> -3.083065103e-09 | F169: -2.48762915e-09 | G169: -4.225145189e-10 | H169: -2.566003665e-11 | I169: -5.262651048e-12 | J169: -9.087384184e-14 | K169: -7.526697505e-11 | L169: -6.664089685e-11 | M169: 0 | N169: 0 | O169: 0
A170: 34 | C170: Fuel Stock | E170: ='Function Summary'!$M34 -> 0 | F170: 0 | G170: 0 | H170: 0 | I170: 0 | J170: 0 | K170: 0 | L170: 0 | M170: 0 | N170: 0 | O170: 0
A171: 35 | C171: Materials & Supplies | E171: ='Function Summary'!$M35 -> 1.486455887e-05 | F171: 8.801594722e-06 | G171: 2.232070295e-06 | H171: 2.087989044e-06 | I171: 7.285549146e-07 | J171: 1.002818005e-07 | K171: 7.144945636e-07 | L171: 1.99573532e-07 | M171: 0 | N171: 0 | O171: 0
A172: 36 | C172: Misc Deferred Debits | E172: ='Function Summary'!$M36 -> 0 | F172: 0 | G172: 0 | H172: 0 | I172: 0 | J172: 0 | K172: 0 | L172: 0 | M172: 0 | N172: 0 | O172: 0
A173: 37 | C173: Cash Working Capital | E173: ='Function Summary'!$M37 -> 1308876.383 | F173: 736287.2151 | G173: 192910.456 | H173: 189383.7206 | I173: 68764.97091 | J173: 27642.48214 | K173: 65927.23236 | L173: 27960.30622 | M173: 0 | N173: 0 | O173: 0
A174: 38 | C174: Weatherization Loans | E174: ='Function Summary'!$M38 -> 0 | F174: 0 | G174: 0 | H174: 0 | I174: 0 | J174: 0 | K174: 0 | L174: 0 | M174: 0 | N174: 0 | O174: 0
A175: 39 | C175: Miscellaneous Rate Base | E175: ='Function Summary'!$M39 -> 0 | F175: 0 | G175: 0 | H175: 0 | I175: 0 | J175: 0 | K175: 0 | L175: 0 | M175: 0 | N175: 0 | O175: 0
A176: 40
A177: 41 | C177: Total Rate Base Additions | E177: =SUM(E165:E175) -> 223595966.7 | F177: 128029197.4 | G177: 32907127.89 | H177: 32933572.35 | I177: 12480680.7 | J177: =SUM(J165:J175) -> 319764.432 | K177: 11470812.01 | L177: 5454811.911 | M177: 0 | N177: 0 | O177: =ROUND(SUM(F177:N177)-E177,0) -> 0
A178: 42
A179: 43 | C179: Rate Base Deductions :
A180: 44 | C180: Accum Provision For Depreciation | E180: ='Function Summary'!$M44 -> -109584944.3 | F180: -62389406.36 | G180: -16065163.89 | H180: -16296873.24 | I180: -6197746.127 | J180: -84740.03937 | K180: -5680458.715 | L180: -2870555.884 | M180: 0 | N180: 0 | O180: =ROUND(SUM(F180:N180)-E180,0) -> 0
A181: 45 | C181: Accum Provision For Amortization | E181: ='Function Summary'!$M45 -> -3453165.874 | F181: -1958965.049 | G181: -510478.8642 | H181: -522187.4318 | I181: -187353.2572 | J181: -74228.97409 | K181: -159272.7343 | L181: -40679.56339 | M181: 0 | N181: 0 | O181: 0
A182: =A181+1 -> 46 | C182: Accum Deferred Income Taxes | E182: ='Function Summary'!$M46 -> -28881170.91 | F182: -17222242.69 | G182: -4370083.742 | H182: -3983041.843 | I182: -1376846.708 | J182: -225184.4565 | K182: -1368555.419 | L182: -335216.0534 | M182: 0 | N182: 0 | O182: 0
A183: 47 | C183: Unamortized ITC | E183: ='Function Summary'!$M47 -> -74079.16008 | F183: -44174.87936 | G183: -11209.15937 | H183: -10216.29525 | I183: -3531.505873 | J183: -577.4243077 | K183: -3510.240579 | L183: -859.6553349 | M183: 0 | N183: 0 | O183: 0
A184: 48 | C184: Customer Advance For Construction | E184: ='Function Summary'!$M48 -> -78038.5257 | F184: -28742.62885 | G184: -44658.41541 | H184: 0 | I184: 0 | J184: 0 | K184: -4637.481439 | L184: 0 | M184: 0 | N184: 0 | O184: 0
A185: 49 | C185: Customer Service Deposits | E185: ='Function Summary'!$M49 -> 0 | F185: 0 | G185: 0 | H185: 0 | I185: 0 | J185: 0 | K185: 0 | L185: 0 | M185: 0 | N185: 0 | O185: 0
A186: 50 | C186: Misc Rate Base Deductions | E186: ='Function Summary'!$M50 -> -97487.83278 | F186: -57715.89247 | G186: -14638.05141 | H186: -13697.61986 | I186: -4779.967571 | J186: -662.667489 | K186: -4685.311258 | L186: -1308.322715 | M186: 0 | N186: 0 | O186: 0
A187: 51
A188: 52 | C188: Total Rate Base Deductions | E188: =SUM(E180:E186) -> -142168886.6 | F188: -81701247.5 | G188: -21016232.12 | H188: -20826016.43 | I188: -7770257.566 | J188: =SUM(J180:J186) -> -385393.5618 | K188: -7221119.901 | L188: -3248619.479 | M188: 0 | N188: 0 | O188: =ROUND(SUM(F188:N188)-E188,0) -> 0
A189: 53
A190: 54 | C190: Total Rate Base | E190: =E177+E188 -> 81427080.16 | F190: 46327949.94 | G190: 11890895.76 | H190: 12107555.92 | I190: 4710423.129 | J190: =J177+J188 -> -65629.12981 | K190: 4249692.109 | L190: 2206192.432 | M190: 0 | N190: 0 | O190: =ROUND(SUM(F190:N190)-E190,0) -> 0
A191: 55
A192: 56
A193: 57 | C193: Return On Rate Base | D193: =ActualROR -> 0.04602925444 | E193: =$D$193*E190 -> 3748027.791 | F193: 2132440.996 | G193: 547329.0666 | H193: 557301.772 | I193: 216817.2647 | J193: =$D$193*J190 -> -3020.859915 | K193: 195610.1594 | L193: 101549.3928 | M193: 0 | N193: 0 | O193: =ROUND(SUM(F193:N193)-E193,0) -> 0
A194: 58 | C194: Total Operating Expenses | E194: =E161 -> 19627175.98 | F194: 11304960.57 | G194: 2928031.517 | H194: 2785778.2 | I194: 1027634.172 | J194: =J161 -> 170772.979 | K194: 939452.0338 | L194: 470546.5066 | M194: 0 | N194: 0 | O194: =ROUND(SUM(F194:N194)-E194,0) -> 0
A195: 59 | C195: Revenue Credits | E195: ='Function Summary'!$M59 -> -801255.43 | F195: -283503.9476 | G195: -136003.0205 | H195: -176480.2613 | I195: -51604.38053 | J195: -35731.8343 | K195: -114524.1048 | L195: -3407.880906 | M195: 0 | N195: 0 | O195: =ROUND(SUM(F195:N195)-E195,0) -> 0
A196: 60
A197: 61 | C197: Total Revenue Requirements | E197: =E193+E194+E195 -> 22573948.34 | F197: 13153897.62 | G197: 3339357.563 | H197: 3166599.71 | I197: 1192847.057 | J197: =J193+J194+J195 -> 132020.2848 | K197: 1020538.088 | L197: 568688.0185 | M197: 0 | N197: 0 | O197: =ROUND(SUM(F197:N197)-E197,0) -> 0
A198: 62
A199: 63
A200: 64 | C200: Return On Rate Base @ Target ROR | D200: =TargetROR -> 0.07799999713 | E200: =$D200*E190 -> 6351312.019 | F200: 3613579.962 | G200: 927489.8354 | H200: 944389.3268 | I200: 367412.9905 | J200: =$D200*J190 -> -5119.071936 | K200: 331475.9723 | L200: 172083.0033 | M200: 0 | N200: 0 | O200: =ROUND(SUM(F200:N200)-E200,0) -> 0
A201: 65 | C201: Total Operating Expenses Adjusted for Taxes | E201: =E194+((E200-E193)*(1/Net_to_Gross_Factor))-(E200-E193) -> 21230811.85 | F201: =F194+((F200-F193)*(1/Net_to_Gross_Factor))-(F200-F193) -> 12217349.45 | G201: 3162212.418 | H201: 3024226.035 | I201: 1120401.879 | J201: =J194+((J200-J193)*(1/Net_to_Gross_Factor))-(J200-J193) -> 169480.4701 | K201: 1023146.042 | L201: 513995.5572 | M201: 0 | N201: 0 | O201: =ROUND(SUM(F201:N201)-E201,0) -> 0
A202: 66 | C202: Revenue Credits | E202: =E195 -> -801255.43 | F202: -283503.9476 | G202: -136003.0205 | H202: -176480.2613 | I202: -51604.38053 | J202: =J195 -> -35731.8343 | K202: -114524.1048 | L202: -3407.880906 | M202: 0 | N202: 0 | O202: =ROUND(SUM(F202:N202)-E202,0) -> 0
A203: 67
A204: 68 | C204: Total Target Revenue Requirements | E204: =SUM(E200:E202) -> 26780868.44 | F204: 15547425.47 | G204: 3953699.233 | H204: 3792135.101 | I204: 1436210.489 | J204: =SUM(J200:J202) -> 128629.5639 | K204: 1240097.909 | L204: 682670.6797 | M204: 0 | N204: 0 | O204: =ROUND(SUM(F204:N204)-E204,0) -> 0
C206: =Inputs!$C$3 -> PacifiCorp
C207: Cost Of Service By Rate Schedule - Distribution Transformers
C208: =Inputs!$C$4 -> State of Washington
C209: =+Method&" - "&IF(PeakMethod=1,"(Coincident Peaks)",IF(PeakMethod=2,"(200 Top Hours)","(100 Summer, 100 Winter Hours)"))&" - "&TEXT(Demand,"0%")&"D"&" / "&TEXT(Engy,"0%")&"E" -> WCA Method - (100 Summer, 100 Winter Hours) - 38%D / 62%E
C210: =Inputs!$C$5 -> 12 Months Ending June 2012
... 191 more rows

Sheet Retail Summary
C1: Retail Summary
C2: =Inputs!$C$3 -> PacifiCorp
C3: Cost Of Service By Rate Schedule - Retail Services Function
C4: =Inputs!$C$4 -> State of Washington
C5: =+Method&" - "&IF(PeakMethod=1,"(Coincident Peaks)",IF(PeakMethod=2,"(200 Top Hours)","(100 Summer, 100 Winter Hours)"))&" - "&TEXT(Demand,"0%")&"D"&" / "&TEXT(Engy,"0%")&"E" -> WCA Method - (100 Summer, 100 Winter Hours) - 38%D / 62%E
C6: =Inputs!$C$5 -> 12 Months Ending June 2012
C9: A | D9: B | E9: C | F9: D | G9: E | H9: F | I9: G | J9: H | K9: I | L9: J | M9: K | N9: L
E10: ='Hot Sheet'!$H$10 -> Washington | G10: ='Hot Sheet'!$J$10 -> Small General | H10: ='Hot Sheet'!$K$10 -> Large General | I10: ='Hot Sheet'!$L$10 -> Large General | J10: ='Hot Sheet'!$M$10 -> Large General | K10: ='Hot Sheet'!$N$10 -> Agricultural | L10: ='Hot Sheet'!$O$10 -> Street & Area | O10: Chk Total
E11: ='Hot Sheet'!$H$11 -> Jurisdiction | F11: ='Hot Sheet'!$I$11 -> Residential | G11: ='Hot Sheet'!$J$11 -> Service | H11: ='Hot Sheet'!$K$11 -> Service <1,000 kW | I11: ='Hot Sheet'!$L$11 -> Service >1,000 kW | J11: ='Hot Sheet'!$M$11 -> Dedicated Facilities | K11: ='Hot Sheet'!$N$11 -> Pumping | L11: ='Hot Sheet'!$O$11 -> Lighting
C12: DESCRIPTION | E12: ='Hot Sheet'!$H$12 -> Normalized | F12: ='Hot Sheet'!$I$12 -> Schedule 16 | G12: ='Hot Sheet'!$J$12 -> Schedule 24 | H12: ='Hot Sheet'!$K$12 -> Schedule 36 | I12: ='Hot Sheet'!$L$12 -> Schedule 48T | J12: ='Hot Sheet'!$M$12 -> Schedule 48T | K12: ='Hot Sheet'!$N$12 -> Schedule 40 | L12: ='Hot Sheet'!$O$12 -> Sch. 15,51-54,57 | O12: =ROUND(SUM(O15:O68),0) -> 0
A14: 14 | C14: Operating Expenses
A15: =A14+1 -> 15 | C15: Operation & Maintenance Expenses | E15: ='Function Summary'!$I15 -> 8378177.356 | F15: =Retail!$I$17 -> 6863966.147 | G15: =Retail!$J$17 -> 933712.5025 | H15: =Retail!$K$17 -> 178952.8303 | I15: =Retail!$L$17 -> 60632.96942 | J15: =Retail!$M$17 -> 51198.25922 | K15: =Retail!$N$17 -> 178992.5886 | L15: =Retail!$O$17 -> 110722.0594 | M15: =Retail!$P$17 -> 0 | N15: =Retail!$Q$17 -> 0 | O15: =ROUND(SUM(F15:N15)-E15,0) -> 0
A16: 16 | C16: Depreciation Expense | E16: ='Function Summary'!$I16 -> 120344.2141 | F16: =Retail!$I$18 -> 97101.99595 | G16: =Retail!$J$18 -> 16492.4113 | H16: =Retail!$K$18 -> 1001.61263 | I16: =Retail!$L$18 -> 205.4220665 | J16: =Retail!$M$18 -> 3.547165148 | K16: =Retail!$N$18 -> 2937.967464 | L16: =Retail!$O$18 -> 2601.257545 | M16: =Retail!$P$18 -> 0 | N16: =Retail!$Q$18 -> 0 | O16: 0
A17: 17 | C17: Amortization Expense | E17: ='Function Summary'!$I17 -> 435831.733 | F17: =Retail!$I$19 -> 351659.043 | G17: =Retail!$J$19 -> 59727.97487 | H17: =Retail!$K$19 -> 3627.383097 | I17: =Retail!$L$19 -> 743.9448243 | J17: =Retail!$M$19 -> 12.84621072 | K17: =Retail!$N$19 -> 10639.97518 | L17: =Retail!$O$19 -> 9420.565766 | M17: =Retail!$P$19 -> 0 | N17: =Retail!$Q$19 -> 0 | O17: 0
A18: 18 | C18: Taxes Other Than Income | E18: ='Function Summary'!$I18 -> 131221.0196 | F18: =Retail!$I$20 -> 119187.6742 | G18: =Retail!$J$20 -> 8083.81639 | H18: =Retail!$K$20 -> 5288.584432 | I18: =Retail!$L$20 -> -352.2258692 | J18: =Retail!$M$20 -> -72.5532871 | K18: =Retail!$N$20 -> 2027.825506 | L18: =Retail!$O$20 -> -2942.101829 | M18: =Retail!$P$20 -> 0 | N18: =Retail!$Q$20 -> 0 | O18: 0
A19: 19 | C19: Income Taxes - Federal | E19: ='Function Summary'!$I19 -> 181641.4115 | F19: =Retail!$I$21 -> 164984.371 | G19: =Retail!$J$21 -> 11189.94369 | H19: =Retail!$K$21 -> 7320.671218 | I19: =Retail!$L$21 -> -487.5652107 | J19: =Retail!$M$21 -> -100.4311773 | K19: =Retail!$N$21 -> 2806.997601 | L19: =Retail!$O$21 -> -4072.57565 | M19: =Retail!$P$21 -> 0 | N19: =Retail!$Q$21 -> 0 | O19: 0
A20: 20 | C20: Income Taxes - State | E20: ='Function Summary'!$I20 -> 0 | F20: =Retail!$I$22 -> 0 | G20: =Retail!$J$22 -> 0 | H20: =Retail!$K$22 -> 0 | I20: =Retail!$L$22 -> 0 | J20: =Retail!$M$22 -> 0 | K20: =Retail!$N$22 -> 0 | L20: =Retail!$O$22 -> 0 | M20: =Retail!$P$22 -> 0 | N20: =Retail!$Q$22 -> 0 | O20: 0
A21: 21 | C21: Income Taxes Deferred | E21: ='Function Summary'!$I21 -> 9186.324475 | F21: =Retail!$I$23 -> 8343.912069 | G21: =Retail!$J$23 -> 565.9197025 | H21: =Retail!$K$23 -> 370.2352928 | I21: =Retail!$L$23 -> -24.65810076 | J21: =Retail!$M$23 -> -5.079201786 | K21: =Retail!$N$23 -> 141.9609689 | L21: =Retail!$O$23 -> -205.9662555 | M21: =Retail!$P$23 -> 0 | N21: =Retail!$Q$23 -> 0 | O21: 0
A22: 22 | C22: Investment Tax Credit Adj | E22: ='Function Summary'!$I22 -> 0 | F22: =Retail!$I$24 -> 0 | G22: =Retail!$J$24 -> 0 | H22: =Retail!$K$24 -> 0 | I22: =Retail!$L$24 -> 0 | J22: =Retail!$M$24 -> 0 | K22: =Retail!$N$24 -> 0 | L22: =Retail!$O$24 -> 0 | M22: =Retail!$P$24 -> 0 | N22: =Retail!$Q$24 -> 0 | O22: 0
A23: 23 | C23: Misc Revenues & Expense | E23: ='Function Summary'!$I23 -> 6775.287273 | F23: =Retail!$I$25 -> 5853.085041 | G23: =Retail!$J$25 -> 264.4754706 | H23: =Retail!$K$25 -> 344.2408804 | I23: =Retail!$L$25 -> 129.5562971 | J23: =Retail!$M$25 -> 140.7248461 | K23: =Retail!$N$25 -> 43.20473747 | L23: =Retail!$O$25 -> 0 | M23: =Retail!$P$25 -> 0 | N23: =Retail!$Q$25 -> 0 | O23: 0
A24: 24
A25: 25 | C25: Total Operating Expenses | E25: =SUM(E15:E23) -> 9263177.346 | F25: =SUM(F15:F23) -> 7611096.228 | G25: 1030037.044 | H25: 196905.5579 | I25: 60847.44342 | J25: =SUM(J15:J23) -> 51177.31378 | K25: 197590.52 | L25: 115523.239 | M25: 0 | N25: 0 | O25: =ROUND(SUM(F25:N25)-E25,0) -> 0
A26: 26
A27: 27
A28: 28 | C28: Rate Base :
A29: 29 | C29: Electric Plant In Service | E29: ='Function Summary'!$I29 -> 10252496.87 | F29: =Retail!$I$33 -> 8272420.215 | G29: =Retail!$J$33 -> 1405039.673 | H29: =Retail!$K$33 -> 85330.48661 | I29: =Retail!$L$33 -> 17500.543 | J29: =Retail!$M$33 -> 302.1940011 | K29: =Retail!$N$33 -> 250294.5609 | L29: =Retail!$O$33 -> 221609.1985 | M29: =Retail!$P$33 -> 0 | N29: =Retail!$Q$33 -> 0 | O29: =ROUND(SUM(F29:N29)-E29,0) -> 0
A30: 30 | C30: Plant Held For Future Use | E30: ='Function Summary'!$I30 -> 0 | F30: =Retail!$I$34 -> 0 | G30: =Retail!$J$34 -> 0 | H30: =Retail!$K$34 -> 0 | I30: =Retail!$L$34 -> 0 | J30: =Retail!$M$34 -> 0 | K30: =Retail!$N$34 -> 0 | L30: =Retail!$O$34 -> 0 | M30: =Retail!$P$34 -> 0 | N30: =Retail!$Q$34 -> 0 | O30: 0
A31: =A30+1 -> 31 | C31: Electric Plant Acquisition Adj | E31: ='Function Summary'!$I31 -> 0 | F31: =Retail!$I$35 -> 0 | G31: =Retail!$J$35 -> 0 | H31: =Retail!$K$35 -> 0 | I31: =Retail!$L$35 -> 0 | J31: =Retail!$M$35 -> 0 | K31: =Retail!$N$35 -> 0 | L31: =Retail!$O$35 -> 0 | M31: =Retail!$P$35 -> 0 | N31: =Retail!$Q$35 -> 0 | O31: 0
A32: 32 | C32: Nuclear Fuel | E32: ='Function Summary'!$I32 -> 0 | F32: =Retail!$I$36 -> 0 | G32: =Retail!$J$36 -> 0 | H32: =Retail!$K$36 -> 0 | I32: =Retail!$L$36 -> 0 | J32: =Retail!$M$36 -> 0 | K32: =Retail!$N$36 -> 0 | L32: =Retail!$O$36 -> 0 | M32: =Retail!$P$36 -> 0 | N32: =Retail!$Q$36 -> 0 | O32: 0
A33: 33 | C33: Prepayments | E33: ='Function Summary'!$I33 -> -1.531352235e-10 | F33: =Retail!$I$37 -> -1.235600395e-10 | G33: =Retail!$J$37 -> -2.098621117e-11 | H33: =Retail!$K$37 -> -1.274528859e-12 | I33: =Retail!$L$37 -> -2.61394819e-13 | J33: =Retail!$M$37 -> -4.513685446e-15 | K33: =Retail!$N$37 -> -3.738495512e-12 | L33: =Retail!$O$37 -> -3.310039943e-12 | M33: =Retail!$P$37 -> 0 | N33: =Retail!$Q$37 -> 0 | O33: 0
A34: 34 | C34: Fuel Stock | E34: ='Function Summary'!$I34 -> 0 | F34: =Retail!$I$38 -> 0 | G34: =Retail!$J$38 -> 0 | H34: =Retail!$K$38 -> 0 | I34: =Retail!$L$38 -> 0 | J34: =Retail!$M$38 -> 0 | K34: =Retail!$N$38 -> 0 | L34: =Retail!$O$38 -> 0 | M34: =Retail!$P$38 -> 0 | N34: =Retail!$Q$38 -> 0 | O34: 0
A35: 35 | C35: Materials & Supplies | E35: ='Function Summary'!$I35 -> 0 | F35: =Retail!$I$39 -> 0 | G35: =Retail!$J$39 -> 0 | H35: =Retail!$K$39 -> 0 | I35: =Retail!$L$39 -> 0 | J35: =Retail!$M$39 -> 0 | K35: =Retail!$N$39 -> 0 | L35: =Retail!$O$39 -> 0 | M35: =Retail!$P$39 -> 0 | N35: =Retail!$Q$39 -> 0 | O35: 0
A36: 36 | C36: Misc Deferred Debits | E36: ='Function Summary'!$I36 -> 0 | F36: =Retail!$I$40 -> 0 | G36: =Retail!$J$40 -> 0 | H36: =Retail!$K$40 -> 0 | I36: =Retail!$L$40 -> 0 | J36: =Retail!$M$40 -> 0 | K36: =Retail!$N$40 -> 0 | L36: =Retail!$O$40 -> 0 | M36: =Retail!$P$40 -> 0 | N36: =Retail!$Q$40 -> 0 | O36: 0
A37: 37 | C37: Cash Working Capital | E37: ='Function Summary'!$I37 -> 1089502.331 | F37: =Retail!$I$41 -> 892593.556 | G37: =Retail!$J$41 -> 121420.4361 | H37: =Retail!$K$41 -> 23271.11465 | I37: =Retail!$L$41 -> 7884.741361 | J37: =Retail!$M$41 -> 6657.846977 | K37: =Retail!$N$41 -> 23276.28483 | L37: =Retail!$O$41 -> 14398.35142 | M37: =Retail!$P$41 -> 0 | N37: =Retail!$Q$41 -> 0 | O37: 0
A38: 38 | C38: Weatherization Loans | E38: ='Function Summary'!$I38 -> 0 | F38: =Retail!$I$42 -> 0 | G38: =Retail!$J$42 -> 0 | H38: =Retail!$K$42 -> 0 | I38: =Retail!$L$42 -> 0 | J38: =Retail!$M$42 -> 0 | K38: =Retail!$N$42 -> 0 | L38: =Retail!$O$42 -> 0 | M38: =Retail!$P$42 -> 0 | N38: =Retail!$Q$42 -> 0 | O38: 0
A39: 39 | C39: Miscellaneous Rate Base | E39: ='Function Summary'!$I39 -> 0 | F39: =Retail!$I$43 -> 0 | G39: =Retail!$J$43 -> 0 | H39: =Retail!$K$43 -> 0 | I39: =Retail!$L$43 -> 0 | J39: =Retail!$M$43 -> 0 | K39: =Retail!$N$43 -> 0 | L39: =Retail!$O$43 -> 0 | M39: =Retail!$P$43 -> 0 | N39: =Retail!$Q$43 -> 0 | O39: 0
A40: 40
A41: 41 | C41: Total Rate Base Additions | E41: =SUM(E29:E39) -> 11341999.2 | F41: =SUM(F29:F39) -> 9165013.771 | G41: 1526460.109 | H41: 108601.6013 | I41: 25385.28436 | J41: =SUM(J29:J39) -> 6960.040978 | K41: 273570.8457 | L41: 236007.55 | M41: 0 | N41: 0 | O41: =ROUND(SUM(F41:N41)-E41,0) -> 0
A42: 42
A43: 43 | C43: Rate Base Deductions :
A44: 44 | C44: Accum Provision For Depreciation | E44: ='Function Summary'!$I44 -> -608529.9448 | F44: =Retail!$I$48 -> -491003.8482 | G44: =Retail!$J$48 -> -83395.16951 | H44: =Retail!$K$48 -> -5064.732715 | I44: =Retail!$L$48 -> -1038.732769 | J44: =Retail!$M$48 -> -17.93651841 | K44: =Retail!$N$48 -> -14856.0626 | L44: =Retail!$O$48 -> -13153.46252 | M44: =Retail!$P$48 -> 0 | N44: =Retail!$Q$48 -> 0 | O44: =ROUND(SUM(F44:N44)-E44,0) -> 0
A45: 45 | C45: Accum Provision For Amortization | E45: ='Function Summary'!$I45 -> -7415520.268 | F45: =Retail!$I$49 -> -5911231.178 | G45: =Retail!$J$49 -> -1016707.118 | H45: =Retail!$K$49 -> -101456.6741 | I45: =Retail!$L$49 -> -28313.45461 | J45: =Retail!$M$49 -> -16812.40505 | K45: =Retail!$N$49 -> -184179.4913 | L45: =Retail!$O$49 -> -156819.9473 | M45: =Retail!$P$49 -> 0 | N45: =Retail!$Q$49 -> 0 | O45: 0
A46: 46 | C46: Accum Deferred Income Taxes | E46: ='Function Summary'!$I46 -> -1437324.541 | F46: =Retail!$I$50 -> -1206193.637 | G46: =Retail!$J$50 -> -196603.059 | H46: =Retail!$K$50 -> 13575.77931 | I46: =Retail!$L$50 -> 7606.669927 | J46: =Retail!$M$50 -> 10620.0384 | K46: =Retail!$N$50 -> -33056.22652 | L46: =Retail!$O$50 -> -33274.10581 | M46: =Retail!$P$50 -> 0 | N46: =Retail!$Q$50 -> 0 | O46: 0
A47: =A46+1 -> 47 | C47: Unamortized ITC | E47: ='Function Summary'!$I47 -> 0 | F47: =Retail!$I$51 -> 0 | G47: =Retail!$J$51 -> 0 | H47: =Retail!$K$51 -> 0 | I47: =Retail!$L$51 -> 0 | J47: =Retail!$M$51 -> 0 | K47: =Retail!$N$51 -> 0 | L47: =Retail!$O$51 -> 0 | M47: =Retail!$P$51 -> 0 | N47: =Retail!$Q$51 -> 0 | O47: 0
A48: 48 | C48: Customer Advance For Construction | E48: ='Function Summary'!$I48 -> 0 | F48: =Retail!$I$52 -> 0 | G48: =Retail!$J$52 -> 0 | H48: =Retail!$K$52 -> 0 | I48: =Retail!$L$52 -> 0 | J48: =Retail!$M$52 -> 0 | K48: =Retail!$N$52 -> 0 | L48: =Retail!$O$52 -> 0 | M48: =Retail!$P$52 -> 0 | N48: =Retail!$Q$52 -> 0 | O48: 0
A49: 49 | C49: Customer Service Deposits | E49: ='Function Summary'!$I49 -> -3236612.086 | F49: =Retail!$I$53 -> -2788224.775 | G49: =Retail!$J$53 -> -313289.8175 | H49: =Retail!$K$53 -> -70306.17488 | I49: =Retail!$L$53 -> 0 | J49: =Retail!$M$53 -> 0 | K49: =Retail!$N$53 -> -62433.83552 | L49: =Retail!$O$53 -> -2357.483613 | M49: =Retail!$P$53 -> 0 | N49: =Retail!$Q$53 -> 0 | O49: 0
A50: 50 | C50: Misc Rate Base Deductions | E50: ='Function Summary'!$I50 -> 0 | F50: =Retail!$I$54 -> 0 | G50: =Retail!$J$54 -> 0 | H50: =Retail!$K$54 -> 0 | I50: =Retail!$L$54 -> 0 | J50: =Retail!$M$54 -> 0 | K50: =Retail!$N$54 -> 0 | L50: =Retail!$O$54 -> 0 | M50: =Retail!$P$54 -> 0 | N50: =Retail!$Q$54 -> 0 | O50: 0
A51: 51
A52: 52 | C52: Total Rate Base Deductions | E52: =SUM(E44:E50) -> -12697986.84 | F52: =SUM(F44:F50) -> -10396653.44 | G52: -1609995.164 | H52: -163251.8024 | I52: -21745.51746 | J52: =SUM(J44:J50) -> -6210.303164 | K52: -294525.616 | L52: -205604.9992 | M52: 0 | N52: 0 | O52: =ROUND(SUM(F52:N52)-E52,0) -> 0
A53: 53
A54: 54 | C54: Total Rate Base | E54: =E41+E52 -> -1355987.638 | F54: =F41+F52 -> -1231639.667 | G54: -83535.05501 | H54: -54650.20111 | I54: 3639.766905 | J54: =J41+J52 -> 749.737814 | K54: -20954.77025 | L54: 30402.55076 | M54: 0 | N54: 0 | O54: =ROUND(SUM(F54:N54)-E54,0) -> 0
A55: 55
A56: 56
A57: 57 | C57: Return On Rate Base | D57: =ActualROR -> 0.04602925444 | E57: =$D$57*E54 -> -62415.09999 | F57: =$D$57*F54 -> -56691.45559 | G57: -3845.056302 | H57: -2515.508012 | I57: 167.535757 | J57: =$D$57*J54 -> 34.5098726 | K57: -964.5324516 | L57: 1399.406745 | M57: 0 | N57: 0 | O57: =ROUND(SUM(F57:N57)-E57,0) -> 0
A58: 58 | C58: Total Operating Expenses | E58: =E25 -> 9263177.346 | F58: =F25 -> 7611096.228 | G58: 1030037.044 | H58: 196905.5579 | I58: 60847.44342 | J58: =J25 -> 51177.31378 | K58: 197590.52 | L58: 115523.239 | M58: 0 | N58: 0 | O58: =ROUND(SUM(F58:N58)-E58,0) -> 0
A59: 59 | C59: Revenue Credits | E59: ='Function Summary'!$I$59 -> -849947.5974 | F59: =Retail!$I$99 -> -647173.7788 | G59: =Retail!$J$99 -> -75535.74384 | H59: =Retail!$K$99 -> -72502.58735 | I59: =Retail!$L$99 -> -18366.38818 | J59: =Retail!$M$99 -> -10340.44893 | K59: =Retail!$N$99 -> -12445.61463 | L59: =Retail!$O$99 -> -13583.03573 | M59: =Retail!$P$99 -> 0 | N59: =Retail!$Q$99 -> 0 | O59: =ROUND(SUM(F59:N59)-E59,0) -> 0
A60: 60
A61: 61 | C61: Total Revenue Requirements | E61: =E57+E58+E59 -> 8350814.649 | F61: =F57+F58+F59 -> 6907230.994 | G61: 950656.2438 | H61: 121887.4625 | I61: 42648.591 | J61: =J57+J58+J59 -> 40871.37473 | K61: 184180.3729 | L61: 103339.61 | M61: 0 | N61: 0 | O61: =ROUND(SUM(F61:N61)-E61,0) -> 0
A62: 62 | O62: =ROUND(SUM(F62:N62)-E62,0) -> 0
A63: 63
A64: 64 | C64: Return On Rate Base @ Target ROR | D64: =TargetROR -> 0.07799999713 | E64: =$D64*E54 -> -105767.0318 | F64: =$D64*F54 -> -96067.89046 | G64: -6515.734051 | H64: -4262.71553 | I64: 283.9018081 | J64: =$D64*J54 -> 58.47954734 | K64: -1634.472019 | L64: 2371.398872 | M64: 0 | N64: 0 | O64: =ROUND(SUM(F64:N64)-E64,0) -> 0
A65: 65 | C65: Total Operating Expenses Adjusted for Taxes | E65: =E58+((E64-E57)*(1/Net_to_Gross_Factor))-(E64-E57) -> 9236472.343 | F65: =F58+((F64-F57)*(1/Net_to_Gross_Factor))-(F64-F57) -> 7586840.151 | G65: 1028391.893 | H65: 195829.2695 | I65: 60919.12548 | J65: =J58+((J64-J57)*(1/Net_to_Gross_Factor))-(J64-J57) -> 51192.07922 | K65: 197177.834 | L65: 116121.9909 | M65: 0 | N65: 0 | O65: =ROUND(SUM(F65:N65)-E65,0) -> 0
A66: 66 | C66: Revenue Credits | E66: =E59 -> -849947.5974 | F66: =F59 -> -647173.7788 | G66: -75535.74384 | H66: -72502.58735 | I66: -18366.38818 | J66: =J59 -> -10340.44893 | K66: -12445.61463 | L66: -13583.03573 | M66: 0 | N66: 0 | O66: =ROUND(SUM(F66:N66)-E66,0) -> 0
A67: 67
A68: 68 | C68: Total Target Revenue Requirements | E68: =SUM(E64:E66) -> 8280757.714 | F68: =SUM(F64:F66) -> 6843598.482 | G68: 946340.4154 | H68: 119063.9666 | I68: 42836.63911 | J68: =SUM(J64:J66) -> 40910.10984 | K68: 183097.7473 | L68: 104910.3541 | M68: 0 | N68: 0 | O68: =ROUND(SUM(F68:N68)-E68,0) -> 0

Sheet Misc Summary
C1: MISC Summary
C2: =Inputs!$C$3 -> PacifiCorp
C3: Cost Of Service By Rate Schedule - Miscellaneous Function
C4: =Inputs!$C$4 -> State of Washington
C5: =+Method&" - "&IF(PeakMethod=1,"(Coincident Peaks)",IF(PeakMethod=2,"(200 Top Hours)","(100 Summer, 100 Winter Hours)"))&" - "&TEXT(Demand,"0%")&"D"&" / "&TEXT(Engy,"0%")&"E" -> WCA Method - (100 Summer, 100 Winter Hours) - 38%D / 62%E
C6: =Inputs!$C$5 -> 12 Months Ending June 2012
C9: A | D9: B | E9: C | F9: D | G9: E | H9: F | I9: G | J9: H | K9: I | L9: J | M9: K | N9: L
E10: ='Hot Sheet'!$H$10 -> Washington | G10: ='Hot Sheet'!$J$10 -> Small General | H10: ='Hot Sheet'!$K$10 -> Large General | I10: ='Hot Sheet'!$L$10 -> Large General | J10: ='Hot Sheet'!$M$10 -> Large General | K10: ='Hot Sheet'!$N$10 -> Agricultural | L10: ='Hot Sheet'!$O$10 -> Street & Area | O10: Chk Total
E11: ='Hot Sheet'!$H$11 -> Jurisdiction | F11: ='Hot Sheet'!$I$11 -> Residential | G11: ='Hot Sheet'!$J$11 -> Service | H11: ='Hot Sheet'!$K$11 -> Service <1,000 kW | I11: ='Hot Sheet'!$L$11 -> Service >1,000 kW | J11: ='Hot Sheet'!$M$11 -> Dedicated Facilities | K11: ='Hot Sheet'!$N$11 -> Pumping | L11: ='Hot Sheet'!$O$11 -> Lighting
C12: DESCRIPTION | E12: ='Hot Sheet'!$H$12 -> Normalized | F12: ='Hot Sheet'!$I$12 -> Schedule 16 | G12: ='Hot Sheet'!$J$12 -> Schedule 24 | H12: ='Hot Sheet'!$K$12 -> Schedule 36 | I12: ='Hot Sheet'!$L$12 -> Schedule 48T | J12: ='Hot Sheet'!$M$12 -> Schedule 48T | K12: ='Hot Sheet'!$N$12 -> Schedule 40 | L12: ='Hot Sheet'!$O$12 -> Sch. 15,51-54,57 | O12: =ROUND(SUM(O15:O68),0) -> 0
A14: 14 | C14: Operating Expenses
A15: =A14+1 -> 15 | C15: Operation & Maintenance Expenses | E15: ='Function Summary'!$J15 -> 1685420.531 | F15: =Misc!$I$17 -> 746643.3057 | G15: =Misc!$J$17 -> 251938.5415 | H15: =Misc!$K$17 -> 341089.8204 | I15: =Misc!$L$17 -> 128166.7533 | J15: =Misc!$M$17 -> 139030.4987 | K15: =Misc!$N$17 -> 69276.58788 | L15: =Misc!$O$17 -> 9275.023721 | M15: =Misc!$P$17 -> 0 | N15: =Misc!$Q$17 -> 0 | O15: =ROUND(SUM(F15:N15)-E15,0) -> 0
A16: 16 | C16: Depreciation Expense | E16: ='Function Summary'!$J16 -> 0 | F16: =Misc!$I$18 -> 0 | G16: =Misc!$J$18 -> 0 | H16: =Misc!$K$18 -> 0 | I16: =Misc!$L$18 -> 0 | J16: =Misc!$M$18 -> 0 | K16: =Misc!$N$18 -> 0 | L16: =Misc!$O$18 -> 0 | M16: =Misc!$P$18 -> 0 | N16: =Misc!$Q$18 -> 0 | O16: 0
A17: 17 | C17: Amortization Expense | E17: ='Function Summary'!$J17 -> 0 | F17: =Misc!$I$19 -> 0 | G17: =Misc!$J$19 -> 0 | H17: =Misc!$K$19 -> 0 | I17: =Misc!$L$19 -> 0 | J17: =Misc!$M$19 -> 0 | K17: =Misc!$N$19 -> 0 | L17: =Misc!$O$19 -> 0 | M17: =Misc!$P$19 -> 0 | N17: =Misc!$Q$19 -> 0 | O17: 0
A18: 18 | C18: Taxes Other Than Income | E18: ='Function Summary'!$J18 -> 0 | F18: =Misc!$I$20 -> 0 | G18: =Misc!$J$20 -> 0 | H18: =Misc!$K$20 -> 0 | I18: =Misc!$L$20 -> 0 | J18: =Misc!$M$20 -> 0 | K18: =Misc!$N$20 -> 0 | L18: =Misc!$O$20 -> 0 | M18: =Misc!$P$20 -> 0 | N18: =Misc!$Q$20 -> 0 | O18: 0
A19: 19 | C19: Income Taxes - Federal | E19: ='Function Summary'!$J19 -> 97323.20035 | F19: =Misc!$I$21 -> 41478.53296 | G19: =Misc!$J$21 -> 13278.7377 | H19: =Misc!$K$21 -> 20695.3597 | I19: =Misc!$L$21 -> 8138.842926 | J19: =Misc!$M$21 -> 9947.700357 | K19: =Misc!$N$21 -> 3519.591539 | L19: =Misc!$O$21 -> 264.4351671 | M19: =Misc!$P$21 -> 0 | N19: =Misc!$Q$21 -> 0 | O19: 0
A20: 20 | C20: Income Taxes - State | E20: ='Function Summary'!$J20 -> 0 | F20: =Misc!$I$22 -> 0 | G20: =Misc!$J$22 -> 0 | H20: =Misc!$K$22 -> 0 | I20: =Misc!$L$22 -> 0 | J20: =Misc!$M$22 -> 0 | K20: =Misc!$N$22 -> 0 | L20: =Misc!$O$22 -> 0 | M20: =Misc!$P$22 -> 0 | N20: =Misc!$Q$22 -> 0 | O20: 0
A21: 21 | C21: Income Taxes Deferred | E21: ='Function Summary'!$J21 -> 0 | F21: =Misc!$I$23 -> 0 | G21: =Misc!$J$23 -> 0 | H21: =Misc!$K$23 -> 0 | I21: =Misc!$L$23 -> 0 | J21: =Misc!$M$23 -> 0 | K21: =Misc!$N$23 -> 0 | L21: =Misc!$O$23 -> 0 | M21: =Misc!$P$23 -> 0 | N21: =Misc!$Q$23 -> 0 | O21: 0
A22: 22 | C22: Investment Tax Credit Adj | E22: ='Function Summary'!$J22 -> 0 | F22: =Misc!$I$24 -> 0 | G22: =Misc!$J$24 -> 0 | H22: =Misc!$K$24 -> 0 | I22: =Misc!$L$24 -> 0 | J22: =Misc!$M$24 -> 0 | K22: =Misc!$N$24 -> 0 | L22: =Misc!$O$24 -> 0 | M22: =Misc!$P$24 -> 0 | N22: =Misc!$Q$24 -> 0 | O22: 0
A23: 23 | C23: Misc Revenues & Expense | E23: ='Function Summary'!$J23 -> 0 | F23: =Misc!$I$25 -> 0 | G23: =Misc!$J$25 -> 0 | H23: =Misc!$K$25 -> 0 | I23: =Misc!$L$25 -> 0 | J23: =Misc!$M$25 -> 0 | K23: =Misc!$N$25 -> 0 | L23: =Misc!$O$25 -> 0 | M23: =Misc!$P$25 -> 0 | N23: =Misc!$Q$25 -> 0 | O23: 0
A24: 24
A25: 25 | C25: Total Operating Expenses | E25: =SUM(E15:E23) -> 1782743.732 | F25: =SUM(F15:F23) -> 788121.8386 | G25: 265217.2792 | H25: 361785.1801 | I25: 136305.5962 | J25: =SUM(J15:J23) -> 148978.1991 | K25: 72796.17942 | L25: 9539.458888 | M25: 0 | N25: 0 | O25: =ROUND(SUM(F25:N25)-E25,0) -> 0
A26: 26
A27: 27
A28: 28 | C28: Rate Base :
A29: 29 | C29: Electric Plant In Service | E29: ='Function Summary'!$J29 -> 0 | F29: =Misc!$I$33 -> 0 | G29: =Misc!$J$33 -> 0 | H29: =Misc!$K$33 -> 0 | I29: =Misc!$L$33 -> 0 | J29: =Misc!$M$33 -> 0 | K29: =Misc!$N$33 -> 0 | L29: =Misc!$O$33 -> 0 | M29: =Misc!$P$33 -> 0 | N29: =Misc!$Q$33 -> 0 | O29: =ROUND(SUM(F29:N29)-E29,0) -> 0
A30: 30 | C30: Plant Held For Future Use | E30: ='Function Summary'!$J30 -> 0 | F30: =Misc!$I$34 -> 0 | G30: =Misc!$J$34 -> 0 | H30: =Misc!$K$34 -> 0 | I30: =Misc!$L$34 -> 0 | J30: =Misc!$M$34 -> 0 | K30: =Misc!$N$34 -> 0 | L30: =Misc!$O$34 -> 0 | M30: =Misc!$P$34 -> 0 | N30: =Misc!$Q$34 -> 0 | O30: 0
A31: =A30+1 -> 31 | C31: Electric Plant Acquisition Adj | E31: ='Function Summary'!$J31 -> 0 | F31: =Misc!$I$35 -> 0 | G31: =Misc!$J$35 -> 0 | H31: =Misc!$K$35 -> 0 | I31: =Misc!$L$35 -> 0 | J31: =Misc!$M$35 -> 0 | K31: =Misc!$N$35 -> 0 | L31: =Misc!$O$35 -> 0 | M31: =Misc!$P$35 -> 0 | N31: =Misc!$Q$35 -> 0 | O31: 0
A32: 32 | C32: Nuclear Fuel | E32: ='Function Summary'!$J32 -> 0 | F32: =Misc!$I$36 -> 0 | G32: =Misc!$J$36 -> 0 | H32: =Misc!$K$36 -> 0 | I32: =Misc!$L$36 -> 0 | J32: =Misc!$M$36 -> 0 | K32: =Misc!$N$36 -> 0 | L32: =Misc!$O$36 -> 0 | M32: =Misc!$P$36 -> 0 | N32: =Misc!$Q$36 -> 0 | O32: 0
A33: 33 | C33: Prepayments | E33: ='Function Summary'!$J33 -> 0 | F33: =Misc!$I$37 -> 0 | G33: =Misc!$J$37 -> 0 | H33: =Misc!$K$37 -> 0 | I33: =Misc!$L$37 -> 0 | J33: =Misc!$M$37 -> 0 | K33: =Misc!$N$37 -> 0 | L33: =Misc!$O$37 -> 0 | M33: =Misc!$P$37 -> 0 | N33: =Misc!$Q$37 -> 0 | O33: 0
A34: 34 | C34: Fuel Stock | E34: ='Function Summary'!$J34 -> 0 | F34: =Misc!$I$38 -> 0 | G34: =Misc!$J$38 -> 0 | H34: =Misc!$K$38 -> 0 | I34: =Misc!$L$38 -> 0 | J34: =Misc!$M$38 -> 0 | K34: =Misc!$N$38 -> 0 | L34: =Misc!$O$38 -> 0 | M34: =Misc!$P$38 -> 0 | N34: =Misc!$Q$38 -> 0 | O34: 0
A35: 35 | C35: Materials & Supplies | E35: ='Function Summary'!$J35 -> 0 | F35: =Misc!$I$39 -> 0 | G35: =Misc!$J$39 -> 0 | H35: =Misc!$K$39 -> 0 | I35: =Misc!$L$39 -> 0 | J35: =Misc!$M$39 -> 0 | K35: =Misc!$N$39 -> 0 | L35: =Misc!$O$39 -> 0 | M35: =Misc!$P$39 -> 0 | N35: =Misc!$Q$39 -> 0 | O35: 0
A36: 36 | C36: Misc Deferred Debits | E36: ='Function Summary'!$J36 -> 0 | F36: =Misc!$I$40 -> 0 | G36: =Misc!$J$40 -> 0 | H36: =Misc!$K$40 -> 0 | I36: =Misc!$L$40 -> 0 | J36: =Misc!$M$40 -> 0 | K36: =Misc!$N$40 -> 0 | L36: =Misc!$O$40 -> 0 | M36: =Misc!$P$40 -> 0 | N36: =Misc!$Q$40 -> 0 | O36: 0
A37: 37 | C37: Cash Working Capital | E37: ='Function Summary'!$J37 -> 223483.438 | F37: =Misc!$I$41 -> 99003.42961 | G37: =Misc!$J$41 -> 33406.55367 | H37: =Misc!$K$41 -> 45227.8374 | I37: =Misc!$L$41 -> 16994.65868 | J37: =Misc!$M$41 -> 18435.16989 | K37: =Misc!$N$41 -> 9185.938908 | L37: =Misc!$O$41 -> 1229.849851 | M37: =Misc!$P$41 -> 0 | N37: =Misc!$Q$41 -> 0 | O37: 0
A38: 38 | C38: Weatherization Loans | E38: ='Function Summary'!$J38 -> 1957722.325 | F38: =Misc!$I$42 -> 830612.6828 | G38: =Misc!$J$42 -> 264196.2697 | H38: =Misc!$K$42 -> 418596.1808 | I38: =Misc!$L$42 -> 165412.9382 | J38: =Misc!$M$42 -> 204512.5063 | K38: =Misc!$N$42 -> 69695.08147 | L38: =Misc!$O$42 -> 4696.666216 | M38: =Misc!$P$42 -> 0 | N38: =Misc!$Q$42 -> 0 | O38: 0
A39: 39 | C39: Miscellaneous Rate Base | E39: ='Function Summary'!$J39 -> 0 | F39: =Misc!$I$43 -> 0 | G39: =Misc!$J$43 -> 0 | H39: =Misc!$K$43 -> 0 | I39: =Misc!$L$43 -> 0 | J39: =Misc!$M$43 -> 0 | K39: =Misc!$N$43 -> 0 | L39: =Misc!$O$43 -> 0 | M39: =Misc!$P$43 -> 0 | N39: =Misc!$Q$43 -> 0 | O39: 0
A40: 40
A41: 41 | C41: Total Rate Base Additions | E41: =SUM(E29:E39) -> 2181205.764 | F41: =SUM(F29:F39) -> 929616.1125 | G41: 297602.8234 | H41: 463824.0182 | I41: 182407.5969 | J41: =SUM(J29:J39) -> 222947.6762 | K41: 78881.02038 | L41: 5926.516067 | M41: 0 | N41: 0 | O41: =ROUND(SUM(F41:N41)-E41,0) -> 0
A42: 42
A43: 43 | C43: Rate Base Deductions :
A44: 44 | C44: Accum Provision For Depreciation | E44: ='Function Summary'!$J44 -> 0 | F44: =Misc!$I$48 -> 0 | G44: =Misc!$J$48 -> 0 | H44: =Misc!$K$48 -> 0 | I44: =Misc!$L$48 -> 0 | J44: =Misc!$M$48 -> 0 | K44: =Misc!$N$48 -> 0 | L44: =Misc!$O$48 -> 0 | M44: =Misc!$P$48 -> 0 | N44: =Misc!$Q$48 -> 0 | O44: =ROUND(SUM(F44:N44)-E44,0) -> 0
A45: 45 | C45: Accum Provision For Amortization | E45: ='Function Summary'!$J45 -> 0 | F45: =Misc!$I$49 -> 0 | G45: =Misc!$J$49 -> 0 | H45: =Misc!$K$49 -> 0 | I45: =Misc!$L$49 -> 0 | J45: =Misc!$M$49 -> 0 | K45: =Misc!$N$49 -> 0 | L45: =Misc!$O$49 -> 0 | M45: =Misc!$P$49 -> 0 | N45: =Misc!$Q$49 -> 0 | O45: 0
A46: 46 | C46: Accum Deferred Income Taxes | E46: ='Function Summary'!$J46 -> 0 | F46: =Misc!$I$50 -> 0 | G46: =Misc!$J$50 -> 0 | H46: =Misc!$K$50 -> 0 | I46: =Misc!$L$50 -> 0 | J46: =Misc!$M$50 -> 0 | K46: =Misc!$N$50 -> 0 | L46: =Misc!$O$50 -> 0 | M46: =Misc!$P$50 -> 0 | N46: =Misc!$Q$50 -> 0 | O46: 0
A47: =A46+1 -> 47 | C47: Unamortized ITC | E47: ='Function Summary'!$J47 -> 0 | F47: =Misc!$I$51 -> 0 | G47: =Misc!$J$51 -> 0 | H47: =Misc!$K$51 -> 0 | I47: =Misc!$L$51 -> 0 | J47: =Misc!$M$51 -> 0 | K47: =Misc!$N$51 -> 0 | L47: =Misc!$O$51 -> 0 | M47: =Misc!$P$51 -> 0 | N47: =Misc!$Q$51 -> 0 | O47: 0
A48: 48 | C48: Customer Advance For Construction | E48: ='Function Summary'!$J48 -> 0 | F48: =Misc!$I$52 -> 0 | G48: =Misc!$J$52 -> 0 | H48: =Misc!$K$52 -> 0 | I48: =Misc!$L$52 -> 0 | J48: =Misc!$M$52 -> 0 | K48: =Misc!$N$52 -> 0 | L48: =Misc!$O$52 -> 0 | M48: =Misc!$P$52 -> 0 | N48: =Misc!$Q$52 -> 0 | O48: 0
A49: 49 | C49: Customer Service Deposits | E49: ='Function Summary'!$J49 -> 0 | F49: =Misc!$I$53 -> 0 | G49: =Misc!$J$53 -> 0 | H49: =Misc!$K$53 -> 0 | I49: =Misc!$L$53 -> 0 | J49: =Misc!$M$53 -> 0 | K49: =Misc!$N$53 -> 0 | L49: =Misc!$O$53 -> 0 | M49: =Misc!$P$53 -> 0 | N49: =Misc!$Q$53 -> 0 | O49: 0
A50: 50 | C50: Misc Rate Base Deductions | E50: ='Function Summary'!$J50 -> 0 | F50: =Misc!$I$54 -> 0 | G50: =Misc!$J$54 -> 0 | H50: =Misc!$K$54 -> 0 | I50: =Misc!$L$54 -> 0 | J50: =Misc!$M$54 -> 0 | K50: =Misc!$N$54 -> 0 | L50: =Misc!$O$54 -> 0 | M50: =Misc!$P$54 -> 0 | N50: =Misc!$Q$54 -> 0 | O50: 0
A51: 51
A52: 52 | C52: Total Rate Base Deductions | E52: =SUM(E44:E50) -> 0 | F52: =SUM(F44:F50) -> 0 | G52: 0 | H52: 0 | I52: 0 | J52: =SUM(J44:J50) -> 0 | K52: 0 | L52: 0 | M52: 0 | N52: 0 | O52: =ROUND(SUM(F52:N52)-E52,0) -> 0
A53: 53
A54: 54 | C54: Total Rate Base | E54: =E41+E52 -> 2181205.764 | F54: =F41+F52 -> 929616.1125 | G54: 297602.8234 | H54: 463824.0182 | I54: 182407.5969 | J54: =J41+J52 -> 222947.6762 | K54: 78881.02038 | L54: 5926.516067 | M54: 0 | N54: 0 | O54: =ROUND(SUM(F54:N54)-E54,0) -> 0
A55: 55
A56: 56
A57: 57 | C57: Return On Rate Base | D57: =ActualROR -> 0.04602925444 | E57: =$D$57*E54 -> 100399.2751 | F57: =$D$57*F54 -> 42789.53657 | G57: 13698.43608 | H57: 21349.47375 | I57: 8396.08569 | J57: =$D$57*J54 -> 10262.11531 | K57: 3630.834557 | L57: 272.793116 | M57: 0 | N57: 0 | O57: =ROUND(SUM(F57:N57)-E57,0) -> 0
A58: 58 | C58: Total Operating Expenses | E58: =E25 -> 1782743.732 | F58: =F25 -> 788121.8386 | G58: 265217.2792 | H58: 361785.1801 | I58: 136305.5962 | J58: =J25 -> 148978.1991 | K58: 72796.17942 | L58: 9539.458888 | M58: 0 | N58: 0 | O58: =ROUND(SUM(F58:N58)-E58,0) -> 0
A59: 59 | C59: Revenue Credits | E59: ='Function Summary'!$J$59 -> 2967489.535 | F59: =Misc!$I$99 -> 1259665.292 | G59: =Misc!$J$99 -> 400453.9957 | H59: =Misc!$K$99 -> 634144.9554 | I59: =Misc!$L$99 -> 250590.4914 | J59: =Misc!$M$99 -> 309840.4043 | K59: =Misc!$N$99 -> 105642.0881 | L59: =Misc!$O$99 -> 7152.307674 | M59: =Misc!$P$99 -> 0 | N59: =Misc!$Q$99 -> 0 | O59: =ROUND(SUM(F59:N59)-E59,0) -> 0
A60: 60
A61: 61 | C61: Total Revenue Requirements | E61: =E57+E58+E59 -> 4850632.542 | F61: =F57+F58+F59 -> 2090576.668 | G61: 679369.711 | H61: 1017279.609 | I61: 395292.1733 | J61: =J57+J58+J59 -> 469080.7187 | K61: 182069.1021 | L61: 16964.55968 | M61: 0 | N61: 0 | O61: =ROUND(SUM(F61:N61)-E61,0) -> 0
A62: 62 | O62: =ROUND(SUM(F62:N62)-E62,0) -> 0
A63: 63
A64: 64 | C64: Return On Rate Base @ Target ROR | D64: =TargetROR -> 0.07799999713 | E64: =$D64*E54 -> 170134.0433 | F64: =$D64*F54 -> 72510.0541 | G64: 23213.01937 | H64: 36178.27209 | I64: 14227.79203 | J64: =$D64*J54 -> 17389.9181 | K64: 6152.719363 | L64: 462.2682362 | M64: 0 | N64: 0 | O64: =ROUND(SUM(F64:N64)-E64,0) -> 0
A65: 65 | C65: Total Operating Expenses Adjusted for Taxes | E65: =E58+((E64-E57)*(1/Net_to_Gross_Factor))-(E64-E57) -> 1825700.691 | F65: =F58+((F64-F57)*(1/Net_to_Gross_Factor))-(F64-F57) -> 806429.8234 | G65: 271078.3093 | H65: 370919.7928 | I65: 139897.956 | J65: =J58+((J64-J57)*(1/Net_to_Gross_Factor))-(J64-J57) -> 153368.9606 | K65: 74349.67285 | L65: 9656.176493 | M65: 0 | N65: 0 | O65: =ROUND(SUM(F65:N65)-E65,0) -> 0
A66: 66 | C66: Revenue Credits | E66: =E59 -> 2967489.535 | F66: =F59 -> 1259665.292 | G66: 400453.9957 | H66: 634144.9554 | I66: 250590.4914 | J66: =J59 -> 309840.4043 | K66: 105642.0881 | L66: 7152.307674 | M66: 0 | N66: 0 | O66: =ROUND(SUM(F66:N66)-E66,0) -> 0
A67: 67
A68: 68 | C68: Total Target Revenue Requirements | E68: =SUM(E64:E66) -> 4963324.27 | F68: =SUM(F64:F66) -> 2138605.17 | G68: 694745.3243 | H68: 1041243.02 | I68: 404716.2394 | J68: =SUM(J64:J66) -> 480599.283 | K68: 186144.4804 | L68: 17270.7524 | M68: 0 | N68: 0 | O68: =ROUND(SUM(F68:N68)-E68,0) -> 0

Sheet G+T+D+R+M
A1: 1 | E1: Results of Operations - Gen+Tran+Dist+Rtl+Misc - TOTAL Unbundled
A2: 2 | B2: =Inputs!$C$3 -> PacifiCorp
A3: 3 | B3: Cost Of Service By Rate Schedule
A4: 4 | B4: =Inputs!$C$4 -> State of Washington
A5: 5 | B5: =+Method&" - "&IF(PeakMethod=1,"(Coincident Peaks)",IF(PeakMethod=2,"(200 Top Hours)","(100 Summer, 100 Winter Hours)"))&" - "&TEXT(Demand,"0%")&"D"&" / "&TEXT(Engy,"0%")&"E" -> WCA Method - (100 Summer, 100 Winter Hours) - 38%D / 62%E
A6: 6 | B6: =Inputs!$C$5 -> 12 Months Ending June 2012
A7: 7
A8: 8
A9: 9 | C9: A | E9: B | F9: C | H9: D | I9: E | J9: F | K9: G | L9: H | M9: I | N9: J | O9: K | P9: L | Q9: M
A10: 10 | H10: ='Hot Sheet'!$H$10 -> Washington | J10: ='Hot Sheet'!$J$10 -> Small General | K10: ='Hot Sheet'!$K$10 -> Large General | L10: ='Hot Sheet'!$L$10 -> Large General | M10: ='Hot Sheet'!$M$10 -> Large General | N10: ='Hot Sheet'!$N$10 -> Agricultural | O10: ='Hot Sheet'!$O$10 -> Street & Area | R10: Chk Total
A11: 11 | F11: COS | H11: ='Hot Sheet'!$H$11 -> Jurisdiction | I11: ='Hot Sheet'!$I$11 -> Residential | J11: ='Hot Sheet'!$J$11 -> Service | K11: ='Hot Sheet'!$K$11 -> Service <1,000 kW | L11: ='Hot Sheet'!$L$11 -> Service >1,000 kW | M11: ='Hot Sheet'!$M$11 -> Dedicated Facilities | N11: ='Hot Sheet'!$N$11 -> Pumping | O11: ='Hot Sheet'!$O$11 -> Lighting
A12: 12 | E12: DESCRIPTION | F12: Factor | H12: ='Hot Sheet'!$H$12 -> Normalized | I12: ='Hot Sheet'!$I$12 -> Schedule 16 | J12: ='Hot Sheet'!$J$12 -> Schedule 24 | K12: ='Hot Sheet'!$K$12 -> Schedule 36 | L12: ='Hot Sheet'!$L$12 -> Schedule 48T | M12: ='Hot Sheet'!$M$12 -> Schedule 48T | N12: ='Hot Sheet'!$N$12 -> Schedule 40 | O12: ='Hot Sheet'!$O$12 -> Sch. 15,51-54,57 | R12: =ROUND(SUM(R14:R1328),0) -> 0
A13: 13
A14: 14 | E14: Operating Revenues | H14: =SUM(I14:Q14) -> 327860485.1 | I14: =I186 -> 145225650 | J14: =J186 -> 48615379.58 | K14: 66437492.11 | L14: 25046773.6 | M14: =M186 -> 27426673.61 | N14: 13360573.23 | O14: 1747942.991 | P14: 0 | Q14: 0 | R14: =ROUND(SUM(I14:Q14)-H14,0) -> 0
A15: 15
A16: 16 | E16: Operating Expenses
A17: 17 | E17: Operation & Maintenance Expenses | H17: =SUM(I17:Q17) -> 217526010.2 | I17: =+Distribution!I17+Transmission!I17+Generation!I17+Retail!I17+Misc!I17 -> 97622759.81 | J17: =+Distribution!J17+Transmission!J17+Generation!J17+Retail!J17+Misc!J17 -> 29373033.78 | K17: =+Distribution!K17+Transmission!K17+Generation!K17+Retail!K17+Misc!K17 -> 43886720.01 | L17: =+Distribution!L17+Transmission!L17+Generation!L17+Retail!L17+Misc!L17 -> 17255424.61 | M17: =+Distribution!M17+Transmission!M17+Generation!M17+Retail!M17+Misc!M17 -> 20641897.31 | N17: =+Distribution!N17+Transmission!N17+Generation!N17+Retail!N17+Misc!N17 -> 7853711.577 | O17: =+Distribution!O17+Transmission!O17+Generation!O17+Retail!O17+Misc!O17 -> 892463.063 | P17: =+Distribution!P17+Transmission!P17+Generation!P17+Retail!P17+Misc!P17 -> 0 | Q17: =+Distribution!Q17+Transmission!Q17+Generation!Q17+Retail!Q17+Misc!Q17 -> 0 | R17: =ROUND(SUM(I17:Q17)-H17,0) -> 0
A18: 18 | E18: Depreciation Expense | H18: 41310105.54 | I18: =+Distribution!I18+Transmission!I18+Generation!I18+Retail!I18+Misc!I18 -> 19709818.07 | J18: =+Distribution!J18+Transmission!J18+Generation!J18+Retail!J18+Misc!J18 -> 5764107.579 | K18: =+Distribution!K18+Transmission!K18+Generation!K18+Retail!K18+Misc!K18 -> 7865055.452 | L18: =+Distribution!L18+Transmission!L18+Generation!L18+Retail!L18+Misc!L18 -> 3024586.256 | M18: =+Distribution!M18+Transmission!M18+Generation!M18+Retail!M18+Misc!M18 -> 3064682.956 | N18: =+Distribution!N18+Transmission!N18+Generation!N18+Retail!N18+Misc!N18 -> 1623768.801 | O18: =+Distribution!O18+Transmission!O18+Generation!O18+Retail!O18+Misc!O18 -> 258086.4278 | P18: =+Distribution!P18+Transmission!P18+Generation!P18+Retail!P18+Misc!P18 -> 0 | Q18: =+Distribution!Q18+Transmission!Q18+Generation!Q18+Retail!Q18+Misc!Q18 -> 0 | R18: 0
A19: 19 | E19: Amortization Expense | H19: 5547662.16 | I19: =+Distribution!I19+Transmission!I19+Generation!I19+Retail!I19+Misc!I19 -> 2595895.935 | J19: =+Distribution!J19+Transmission!J19+Generation!J19+Retail!J19+Misc!J19 -> 755292.8139 | K19: =+Distribution!K19+Transmission!K19+Generation!K19+Retail!K19+Misc!K19 -> 1062360.499 | L19: =+Distribution!L19+Transmission!L19+Generation!L19+Retail!L19+Misc!L19 -> 416648.5653 | M19: =+Distribution!M19+Transmission!M19+Generation!M19+Retail!M19+Misc!M19 -> 494160.5163 | N19: =+Distribution!N19+Transmission!N19+Generation!N19+Retail!N19+Misc!N19 -> 196867.7111 | O19: =+Distribution!O19+Transmission!O19+Generation!O19+Retail!O19+Misc!O19 -> 26436.1193 | P19: =+Distribution!P19+Transmission!P19+Generation!P19+Retail!P19+Misc!P19 -> 0 | Q19: =+Distribution!Q19+Transmission!Q19+Generation!Q19+Retail!Q19+Misc!Q19 -> 0 | R19: 0
A20: 20 | E20: Taxes Other Than Income | H20: 19982776.42 | I20: =+Distribution!I20+Transmission!I20+Generation!I20+Retail!I20+Misc!I20 -> 9476973.997 | J20: =+Distribution!J20+Transmission!J20+Generation!J20+Retail!J20+Misc!J20 -> 2774839.01 | K20: =+Distribution!K20+Transmission!K20+Generation!K20+Retail!K20+Misc!K20 -> 3838240.719 | L20: =+Distribution!L20+Transmission!L20+Generation!L20+Retail!L20+Misc!L20 -> 1477002.421 | M20: =+Distribution!M20+Transmission!M20+Generation!M20+Retail!M20+Misc!M20 -> 1546342.237 | N20: =+Distribution!N20+Transmission!N20+Generation!N20+Retail!N20+Misc!N20 -> 773770.1284 | O20: =+Distribution!O20+Transmission!O20+Generation!O20+Retail!O20+Misc!O20 -> 95607.9089 | P20: =+Distribution!P20+Transmission!P20+Generation!P20+Retail!P20+Misc!P20 -> 0 | Q20: =+Distribution!Q20+Transmission!Q20+Generation!Q20+Retail!Q20+Misc!Q20 -> 0 | R20: 0
A21: 21 | E21: Income Taxes - Federal | H21: -10210352.28 | I21: =+Distribution!I21+Transmission!I21+Generation!I21+Retail!I21+Misc!I21 -> -3923967.649 | J21: =+Distribution!J21+Transmission!J21+Generation!J21+Retail!J21+Misc!J21 -> -1362083.78 | K21: =+Distribution!K21+Transmission!K21+Generation!K21+Retail!K21+Misc!K21 -> -2356542.439 | L21: =+Distribution!L21+Transmission!L21+Generation!L21+Retail!L21+Misc!L21 -> -947011.4123 | M21: =+Distribution!M21+Transmission!M21+Generation!M21+Retail!M21+Misc!M21 -> -1263276.424 | N21: =+Distribution!N21+Transmission!N21+Generation!N21+Retail!N21+Misc!N21 -> -345877.9578 | O21: =+Distribution!O21+Transmission!O21+Generation!O21+Retail!O21+Misc!O21 -> -11592.62047 | P21: =+Distribution!P21+Transmission!P21+Generation!P21+Retail!P21+Misc!P21 -> 0 | Q21: =+Distribution!Q21+Transmission!Q21+Generation!Q21+Retail!Q21+Misc!Q21 -> 0 | R21: 0
A22: 22 | E22: Income Taxes - State | H22: 0 | I22: =+Distribution!I22+Transmission!I22+Generation!I22+Retail!I22+Misc!I22 -> 0 | J22: =+Distribution!J22+Transmission!J22+Generation!J22+Retail!J22+Misc!J22 -> 0 | K22: =+Distribution!K22+Transmission!K22+Generation!K22+Retail!K22+Misc!K22 -> 0 | L22: =+Distribution!L22+Transmission!L22+Generation!L22+Retail!L22+Misc!L22 -> 0 | M22: =+Distribution!M22+Transmission!M22+Generation!M22+Retail!M22+Misc!M22 -> 0 | N22: =+Distribution!N22+Transmission!N22+Generation!N22+Retail!N22+Misc!N22 -> 0 | O22: =+Distribution!O22+Transmission!O22+Generation!O22+Retail!O22+Misc!O22 -> 0 | P22: =+Distribution!P22+Transmission!P22+Generation!P22+Retail!P22+Misc!P22 -> 0 | Q22: =+Distribution!Q22+Transmission!Q22+Generation!Q22+Retail!Q22+Misc!Q22 -> 0 | R22: 0
A23: 23 | E23: Income Taxes Deferred | H23: 16414669.74 | I23: =+Distribution!I23+Transmission!I23+Generation!I23+Retail!I23+Misc!I23 -> 7115555.078 | J23: =+Distribution!J23+Transmission!J23+Generation!J23+Retail!J23+Misc!J23 -> 2229070.842 | K23: =+Distribution!K23+Transmission!K23+Generation!K23+Retail!K23+Misc!K23 -> 3444214.169 | L23: =+Distribution!L23+Transmission!L23+Generation!L23+Retail!L23+Misc!L23 -> 1354724.364 | M23: =+Distribution!M23+Transmission!M23+Generation!M23+Retail!M23+Misc!M23 -> 1628797.704 | N23: =+Distribution!N23+Transmission!N23+Generation!N23+Retail!N23+Misc!N23 -> 595135.5824 | O23: =+Distribution!O23+Transmission!O23+Generation!O23+Retail!O23+Misc!O23 -> 47171.99918 | P23: =+Distribution!P23+Transmission!P23+Generation!P23+Retail!P23+Misc!P23 -> 0 | Q23: =+Distribution!Q23+Transmission!Q23+Generation!Q23+Retail!Q23+Misc!Q23 -> 0 | R23: 0
A24: 24 | E24: Investment Tax Credit Adj | H24: 0 | I24: =+Distribution!I24+Transmission!I24+Generation!I24+Retail!I24+Misc!I24 -> 0 | J24: =+Distribution!J24+Transmission!J24+Generation!J24+Retail!J24+Misc!J24 -> 0 | K24: =+Distribution!K24+Transmission!K24+Generation!K24+Retail!K24+Misc!K24 -> 0 | L24: =+Distribution!L24+Transmission!L24+Generation!L24+Retail!L24+Misc!L24 -> 0 | M24: =+Distribution!M24+Transmission!M24+Generation!M24+Retail!M24+Misc!M24 -> 0 | N24: =+Distribution!N24+Transmission!N24+Generation!N24+Retail!N24+Misc!N24 -> 0 | O24: =+Distribution!O24+Transmission!O24+Generation!O24+Retail!O24+Misc!O24 -> 0 | P24: =+Distribution!P24+Transmission!P24+Generation!P24+Retail!P24+Misc!P24 -> 0 | Q24: =+Distribution!Q24+Transmission!Q24+Generation!Q24+Retail!Q24+Misc!Q24 -> 0 | R24: 0
A25: 25 | E25: Misc Revenues & Expense | H25: -842347.3027 | I25: =+Distribution!I25+Transmission!I25+Generation!I25+Retail!I25+Misc!I25 -> -354408.4205 | J25: =+Distribution!J25+Transmission!J25+Generation!J25+Retail!J25+Misc!J25 -> -114325.3302 | K25: =+Distribution!K25+Transmission!K25+Generation!K25+Retail!K25+Misc!K25 -> -181213.4134 | L25: =+Distribution!L25+Transmission!L25+Generation!L25+Retail!L25+Misc!L25 -> -71614.97084 | M25: =+Distribution!M25+Transmission!M25+Generation!M25+Retail!M25+Misc!M25 -> -88562.45166 | N25: =+Distribution!N25+Transmission!N25+Generation!N25+Retail!N25+Misc!N25 -> -30185.63176 | O25: =+Distribution!O25+Transmission!O25+Generation!O25+Retail!O25+Misc!O25 -> -2037.084284 | P25: =+Distribution!P25+Transmission!P25+Generation!P25+Retail!P25+Misc!P25 -> 0 | Q25: =+Distribution!Q25+Transmission!Q25+Generation!Q25+Retail!Q25+Misc!Q25 -> 0 | R25: 0
A26: 26
A27: 27 | E27: Total Operating Expenses | H27: =SUM(H17:H25) -> 289728524.4 | I27: =+Distribution!I27+Transmission!I27+Generation!I27+Retail!I27+Misc!I27 -> 132242626.8 | J27: =+Distribution!J27+Transmission!J27+Generation!J27+Retail!J27+Misc!J27 -> 39419934.91 | K27: =+Distribution!K27+Transmission!K27+Generation!K27+Retail!K27+Misc!K27 -> 57558835 | L27: =+Distribution!L27+Transmission!L27+Generation!L27+Retail!L27+Misc!L27 -> 22509759.83 | M27: =+Distribution!M27+Transmission!M27+Generation!M27+Retail!M27+Misc!M27 -> 26024041.85 | N27: =+Distribution!N27+Transmission!N27+Generation!N27+Retail!N27+Misc!N27 -> 10667190.21 | O27: =+Distribution!O27+Transmission!O27+Generation!O27+Retail!O27+Misc!O27 -> 1306135.814 | P27: =+Distribution!P27+Transmission!P27+Generation!P27+Retail!P27+Misc!P27 -> 0 | Q27: =+Distribution!Q27+Transmission!Q27+Generation!Q27+Retail!Q27+Misc!Q27 -> 0 | R27: =ROUND(SUM(I27:Q27)-H27,0) -> 0
A28: 28
A29: 29 | E29: Operating Revenue For Return | H29: =H14-H27 -> 38131960.68 | I29: =I14-I27 -> 12983023.18 | J29: 9195444.663 | K29: 8878657.113 | L29: 2537013.764 | M29: =M14-M27 -> 1402631.765 | N29: 2693383.018 | O29: 441807.1776 | P29: 0 | Q29: 0 | R29: =ROUND(SUM(I29:Q29)-H29,0) -> 0
A30: 30
A31: 31
A32: 32 | E32: Rate Base :
A33: 33 | E33: Electric Plant In Service | H33: =SUM(I33:Q33) -> 1655504559 | I33: =+Distribution!I33+Transmission!I33+Generation!I33+Retail!I33+Misc!I33 -> 783253335.2 | J33: =+Distribution!J33+Transmission!J33+Generation!J33+Retail!J33+Misc!J33 -> 230405466.6 | K33: =+Distribution!K33+Transmission!K33+Generation!K33+Retail!K33+Misc!K33 -> 318245233.6 | L33: =+Distribution!L33+Transmission!L33+Generation!L33+Retail!L33+Misc!L33 -> 122764804.2 | M33: =+Distribution!M33+Transmission!M33+Generation!M33+Retail!M33+Misc!M33 -> 127075789.2 | N33: =+Distribution!N33+Transmission!N33+Generation!N33+Retail!N33+Misc!N33 -> 64536359.71 | O33: =+Distribution!O33+Transmission!O33+Generation!O33+Retail!O33+Misc!O33 -> 9223570.449 | P33: =+Distribution!P33+Transmission!P33+Generation!P33+Retail!P33+Misc!P33 -> 0 | Q33: =+Distribution!Q33+Transmission!Q33+Generation!Q33+Retail!Q33+Misc!Q33 -> 0 | R33: =ROUND(SUM(I33:Q33)-H33,0) -> 0
A34: 34 | E34: Plant Held For Future Use | H34: 43755.27334 | I34: =+Distribution!I34+Transmission!I34+Generation!I34+Retail!I34+Misc!I34 -> 18564.26956 | J34: =+Distribution!J34+Transmission!J34+Generation!J34+Retail!J34+Misc!J34 -> 5904.810833 | K34: =+Distribution!K34+Transmission!K34+Generation!K34+Retail!K34+Misc!K34 -> 9355.662991 | L34: =+Distribution!L34+Transmission!L34+Generation!L34+Retail!L34+Misc!L34 -> 3696.994324 | M34: =+Distribution!M34+Transmission!M34+Generation!M34+Retail!M34+Misc!M34 -> 4570.873252 | N34: =+Distribution!N34+Transmission!N34+Generation!N34+Retail!N34+Misc!N34 -> 1557.691456 | O34: =+Distribution!O34+Transmission!O34+Generation!O34+Retail!O34+Misc!O34 -> 104.9709202 | P34: =+Distribution!P34+Transmission!P34+Generation!P34+Retail!P34+Misc!P34 -> 0 | Q34: =+Distribution!Q34+Transmission!Q34+Generation!Q34+Retail!Q34+Misc!Q34 -> 0 | R34: 0
A35: 35 | E35: Electric Plant Acquisition Adj | H35: 0 | I35: =+Distribution!I35+Transmission!I35+Generation!I35+Retail!I35+Misc!I35 -> 0 | J35: =+Distribution!J35+Transmission!J35+Generation!J35+Retail!J35+Misc!J35 -> 0 | K35: =+Distribution!K35+Transmission!K35+Generation!K35+Retail!K35+Misc!K35 -> 0 | L35: =+Distribution!L35+Transmission!L35+Generation!L35+Retail!L35+Misc!L35 -> 0 | M35: =+Distribution!M35+Transmission!M35+Generation!M35+Retail!M35+Misc!M35 -> 0 | N35: =+Distribution!N35+Transmission!N35+Generation!N35+Retail!N35+Misc!N35 -> 0 | O35: =+Distribution!O35+Transmission!O35+Generation!O35+Retail!O35+Misc!O35 -> 0 | P35: =+Distribution!P35+Transmission!P35+Generation!P35+Retail!P35+Misc!P35 -> 0 | Q35: =+Distribution!Q35+Transmission!Q35+Generation!Q35+Retail!Q35+Misc!Q35 -> 0 | R35: 0
A36: 36 | E36: Nuclear Fuel | H36: 0 | I36: =+Distribution!I36+Transmission!I36+Generation!I36+Retail!I36+Misc!I36 -> 0 | J36: =+Distribution!J36+Transmission!J36+Generation!J36+Retail!J36+Misc!J36 -> 0 | K36: =+Distribution!K36+Transmission!K36+Generation!K36+Retail!K36+Misc!K36 -> 0 | L36: =+Distribution!L36+Transmission!L36+Generation!L36+Retail!L36+Misc!L36 -> 0 | M36: =+Distribution!M36+Transmission!M36+Generation!M36+Retail!M36+Misc!M36 -> 0 | N36: =+Distribution!N36+Transmission!N36+Generation!N36+Retail!N36+Misc!N36 -> 0 | O36: =+Distribution!O36+Transmission!O36+Generation!O36+Retail!O36+Misc!O36 -> 0 | P36: =+Distribution!P36+Transmission!P36+Generation!P36+Retail!P36+Misc!P36 -> 0 | Q36: =+Distribution!Q36+Transmission!Q36+Generation!Q36+Retail!Q36+Misc!Q36 -> 0 | R36: 0
A37: 37 | E37: Prepayments | H37: -1.037260517e-07 | I37: =+Distribution!I37+Transmission!I37+Generation!I37+Retail!I37+Misc!I37 -> -5.291632929e-08 | J37: =+Distribution!J37+Transmission!J37+Generation!J37+Retail!J37+Misc!J37 -> -1.404664492e-08 | K37: =+Distribution!K37+Transmission!K37+Generation!K37+Retail!K37+Misc!K37 -> -1.739393749e-08 | L37: =+Distribution!L37+Transmission!L37+Generation!L37+Retail!L37+Misc!L37 -> -6.836575715e-09 | M37: =+Distribution!M37+Transmission!M37+Generation!M37+Retail!M37+Misc!M37 -> -8.404123647e-09 | N37: =+Distribution!N37+Transmission!N37+Generation!N37+Retail!N37+Misc!N37 -> -3.432187456e-09 | O37: =+Distribution!O37+Transmission!O37+Generation!O37+Retail!O37+Misc!O37 -> -6.962532338e-10 | P37: =+Distribution!P37+Transmission!P37+Generation!P37+Retail!P37+Misc!P37 -> 0 | Q37: =+Distribution!Q37+Transmission!Q37+Generation!Q37+Retail!Q37+Misc!Q37 -> 0 | R37: 0
A38: 38 | E38: Fuel Stock | H38: -1.51747372e-07 | I38: =+Distribution!I38+Transmission!I38+Generation!I38+Retail!I38+Misc!I38 -> -6.43826196e-08 | J38: =+Distribution!J38+Transmission!J38+Generation!J38+Retail!J38+Misc!J38 -> -2.047843512e-08 | K38: =+Distribution!K38+Transmission!K38+Generation!K38+Retail!K38+Misc!K38 -> -3.24463125e-08 | L38: =+Distribution!L38+Transmission!L38+Generation!L38+Retail!L38+Misc!L38 -> -1.282152139e-08 | M38: =+Distribution!M38+Transmission!M38+Generation!M38+Retail!M38+Misc!M38 -> -1.585221508e-08 | N38: =+Distribution!N38+Transmission!N38+Generation!N38+Retail!N38+Misc!N38 -> -5.402219363e-09 | O38: =+Distribution!O38+Transmission!O38+Generation!O38+Retail!O38+Misc!O38 -> -3.640489492e-10 | P38: =+Distribution!P38+Transmission!P38+Generation!P38+Retail!P38+Misc!P38 -> 0 | Q38: =+Distribution!Q38+Transmission!Q38+Generation!Q38+Retail!Q38+Misc!Q38 -> 0 | R38: 0
A39: 39 | E39: Materials & Supplies | H39: 0.0001456063546 | I39: =+Distribution!I39+Transmission!I39+Generation!I39+Retail!I39+Misc!I39 -> 6.696134884e-05 | J39: =+Distribution!J39+Transmission!J39+Generation!J39+Retail!J39+Misc!J39 -> 2.011948177e-05 | K39: =+Distribution!K39+Transmission!K39+Generation!K39+Retail!K39+Misc!K39 -> 2.88676815e-05 | L39: =+Distribution!L39+Transmission!L39+Generation!L39+Retail!L39+Misc!L39 -> 1.120679142e-05 | M39: =+Distribution!M39+Transmission!M39+Generation!M39+Retail!M39+Misc!M39 -> 1.219247757e-05 | N39: =+Distribution!N39+Transmission!N39+Generation!N39+Retail!N39+Misc!N39 -> 5.568663686e-06 | O39: =+Distribution!O39+Transmission!O39+Generation!O39+Retail!O39+Misc!O39 -> 6.899098426e-07 | P39: =+Distribution!P39+Transmission!P39+Generation!P39+Retail!P39+Misc!P39 -> 0 | Q39: =+Distribution!Q39+Transmission!Q39+Generation!Q39+Retail!Q39+Misc!Q39 -> 0 | R39: 0
A40: 40 | E40: Misc Deferred Debits | H40: 14766733.28 | I40: =+Distribution!I40+Transmission!I40+Generation!I40+Retail!I40+Misc!I40 -> 6265156.089 | J40: =+Distribution!J40+Transmission!J40+Generation!J40+Retail!J40+Misc!J40 -> 1992783.041 | K40: =+Distribution!K40+Transmission!K40+Generation!K40+Retail!K40+Misc!K40 -> 3157392.687 | L40: =+Distribution!L40+Transmission!L40+Generation!L40+Retail!L40+Misc!L40 -> 1247678.85 | M40: =+Distribution!M40+Transmission!M40+Generation!M40+Retail!M40+Misc!M40 -> 1542599.578 | N40: =+Distribution!N40+Transmission!N40+Generation!N40+Retail!N40+Misc!N40 -> 525696.9621 | O40: =+Distribution!O40+Transmission!O40+Generation!O40+Retail!O40+Misc!O40 -> 35426.07469 | P40: =+Distribution!P40+Transmission!P40+Generation!P40+Retail!P40+Misc!P40 -> 0 | Q40: =+Distribution!Q40+Transmission!Q40+Generation!Q40+Retail!Q40+Misc!Q40 -> 0 | R40: 0
A41: 41 | E41: Cash Working Capital | H41: 28493963.91 | I41: =+Distribution!I41+Transmission!I41+Generation!I41+Retail!I41+Misc!I41 -> 12900301.86 | J41: =+Distribution!J41+Transmission!J41+Generation!J41+Retail!J41+Misc!J41 -> 3858212.911 | K41: =+Distribution!K41+Transmission!K41+Generation!K41+Retail!K41+Misc!K41 -> 5692411.962 | L41: =+Distribution!L41+Transmission!L41+Generation!L41+Retail!L41+Misc!L41 -> 2234162.895 | M41: =+Distribution!M41+Transmission!M41+Generation!M41+Retail!M41+Misc!M41 -> 2634999.223 | N41: =+Distribution!N41+Transmission!N41+Generation!N41+Retail!N41+Misc!N41 -> 1041207.754 | O41: =+Distribution!O41+Transmission!O41+Generation!O41+Retail!O41+Misc!O41 -> 132667.3054 | P41: =+Distribution!P41+Transmission!P41+Generation!P41+Retail!P41+Misc!P41 -> 0 | Q41: =+Distribution!Q41+Transmission!Q41+Generation!Q41+Retail!Q41+Misc!Q41 -> 0 | R41: 0
A42: 42 | E42: Weatherization Loans | H42: 1957722.325 | I42: =+Distribution!I42+Transmission!I42+Generation!I42+Retail!I42+Misc!I42 -> 830612.6828 | J42: =+Distribution!J42+Transmission!J42+Generation!J42+Retail!J42+Misc!J42 -> 264196.2697 | K42: =+Distribution!K42+Transmission!K42+Generation!K42+Retail!K42+Misc!K42 -> 418596.1808 | L42: =+Distribution!L42+Transmission!L42+Generation!L42+Retail!L42+Misc!L42 -> 165412.9382 | M42: =+Distribution!M42+Transmission!M42+Generation!M42+Retail!M42+Misc!M42 -> 204512.5063 | N42: =+Distribution!N42+Transmission!N42+Generation!N42+Retail!N42+Misc!N42 -> 69695.08147 | O42: =+Distribution!O42+Transmission!O42+Generation!O42+Retail!O42+Misc!O42 -> 4696.666216 | P42: =+Distribution!P42+Transmission!P42+Generation!P42+Retail!P42+Misc!P42 -> 0 | Q42: =+Distribution!Q42+Transmission!Q42+Generation!Q42+Retail!Q42+Misc!Q42 -> 0 | R42: 0
A43: 43 | E43: Miscellaneous Rate Base | H43: 0 | I43: =+Distribution!I43+Transmission!I43+Generation!I43+Retail!I43+Misc!I43 -> 0 | J43: =+Distribution!J43+Transmission!J43+Generation!J43+Retail!J43+Misc!J43 -> 0 | K43: =+Distribution!K43+Transmission!K43+Generation!K43+Retail!K43+Misc!K43 -> 0 | L43: =+Distribution!L43+Transmission!L43+Generation!L43+Retail!L43+Misc!L43 -> 0 | M43: =+Distribution!M43+Transmission!M43+Generation!M43+Retail!M43+Misc!M43 -> 0 | N43: =+Distribution!N43+Transmission!N43+Generation!N43+Retail!N43+Misc!N43 -> 0 | O43: =+Distribution!O43+Transmission!O43+Generation!O43+Retail!O43+Misc!O43 -> 0 | P43: =+Distribution!P43+Transmission!P43+Generation!P43+Retail!P43+Misc!P43 -> 0 | Q43: =+Distribution!Q43+Transmission!Q43+Generation!Q43+Retail!Q43+Misc!Q43 -> 0 | R43: 0
A44: 44
A45: 45 | E45: Total Rate Base Additions | H45: =SUM(I45:Q45) -> 1700766734 | I45: =+Distribution!I45+Transmission!I45+Generation!I45+Retail!I45+Misc!I45 -> 803267970.1 | J45: =+Distribution!J45+Transmission!J45+Generation!J45+Retail!J45+Misc!J45 -> 236526563.6 | K45: =+Distribution!K45+Transmission!K45+Generation!K45+Retail!K45+Misc!K45 -> 327522990.1 | L45: =+Distribution!L45+Transmission!L45+Generation!L45+Retail!L45+Misc!L45 -> 126415755.9 | M45: =+Distribution!M45+Transmission!M45+Generation!M45+Retail!M45+Misc!M45 -> 131462471.4 | N45: =+Distribution!N45+Transmission!N45+Generation!N45+Retail!N45+Misc!N45 -> 66174517.2 | O45: =+Distribution!O45+Transmission!O45+Generation!O45+Retail!O45+Misc!O45 -> 9396465.466 | P45: =+Distribution!P45+Transmission!P45+Generation!P45+Retail!P45+Misc!P45 -> 0 | Q45: =+Distribution!Q45+Transmission!Q45+Generation!Q45+Retail!Q45+Misc!Q45 -> 0 | R45: =ROUND(SUM(I45:Q45)-H45,0) -> 0
A46: 46
A47: 47 | E47: Rate Base Deductions :
A48: 48 | E48: Accum Provision For Depreciation | H48: =SUM(I48:Q48) -> -589326216.1 | I48: =+Distribution!I48+Transmission!I48+Generation!I48+Retail!I48+Misc!I48 -> -282586511.2 | J48: =+Distribution!J48+Transmission!J48+Generation!J48+Retail!J48+Misc!J48 -> -82264799.76 | K48: =+Distribution!K48+Transmission!K48+Generation!K48+Retail!K48+Misc!K48 -> -111943878.7 | L48: =+Distribution!L48+Transmission!L48+Generation!L48+Retail!L48+Misc!L48 -> -43026737.24 | M48: =+Distribution!M48+Transmission!M48+Generation!M48+Retail!M48+Misc!M48 -> -41797664.29 | N48: =+Distribution!N48+Transmission!N48+Generation!N48+Retail!N48+Misc!N48 -> -23626273.47 | O48: =+Distribution!O48+Transmission!O48+Generation!O48+Retail!O48+Misc!O48 -> -4080351.423 | P48: =+Distribution!P48+Transmission!P48+Generation!P48+Retail!P48+Misc!P48 -> 0 | Q48: =+Distribution!Q48+Transmission!Q48+Generation!Q48+Retail!Q48+Misc!Q48 -> 0 | R48: =ROUND(SUM(I48:Q48)-H48,0) -> 0
A49: 49 | E49: Accum Provision For Amortization | H49: -43465840.66 | I49: =+Distribution!I49+Transmission!I49+Generation!I49+Retail!I49+Misc!I49 -> -22284184.6 | J49: =+Distribution!J49+Transmission!J49+Generation!J49+Retail!J49+Misc!J49 -> -5978405.913 | K49: =+Distribution!K49+Transmission!K49+Generation!K49+Retail!K49+Misc!K49 -> -7337537.69 | L49: =+Distribution!L49+Transmission!L49+Generation!L49+Retail!L49+Misc!L49 -> -2846429.798 | M49: =+Distribution!M49+Transmission!M49+Generation!M49+Retail!M49+Misc!M49 -> -3158922.494 | N49: =+Distribution!N49+Transmission!N49+Generation!N49+Retail!N49+Misc!N49 -> -1546428.959 | O49: =+Distribution!O49+Transmission!O49+Generation!O49+Retail!O49+Misc!O49 -> -313931.2033 | P49: =+Distribution!P49+Transmission!P49+Generation!P49+Retail!P49+Misc!P49 -> 0 | Q49: =+Distribution!Q49+Transmission!Q49+Generation!Q49+Retail!Q49+Misc!Q49 -> 0 | R49: 0
A50: 50 | E50: Accum Deferred Income Taxes | H50: -232193930.2 | I50: =+Distribution!I50+Transmission!I50+Generation!I50+Retail!I50+Misc!I50 -> -109745158.5 | J50: =+Distribution!J50+Transmission!J50+Generation!J50+Retail!J50+Misc!J50 -> -32320010.05 | K50: =+Distribution!K50+Transmission!K50+Generation!K50+Retail!K50+Misc!K50 -> -44603233.55 | L50: =+Distribution!L50+Transmission!L50+Generation!L50+Retail!L50+Misc!L50 -> -17212790.76 | M50: =+Distribution!M50+Transmission!M50+Generation!M50+Retail!M50+Misc!M50 -> -18212937.87 | N50: =+Distribution!N50+Transmission!N50+Generation!N50+Retail!N50+Misc!N50 -> -8944996.805 | O50: =+Distribution!O50+Transmission!O50+Generation!O50+Retail!O50+Misc!O50 -> -1154802.568 | P50: =+Distribution!P50+Transmission!P50+Generation!P50+Retail!P50+Misc!P50 -> 0 | Q50: =+Distribution!Q50+Transmission!Q50+Generation!Q50+Retail!Q50+Misc!Q50 -> 0 | R50: 0
A51: 51 | E51: Unamortized ITC | H51: -523327.7734 | I51: =+Distribution!I51+Transmission!I51+Generation!I51+Retail!I51+Misc!I51 -> -248490.8104 | J51: =+Distribution!J51+Transmission!J51+Generation!J51+Retail!J51+Misc!J51 -> -73139.9501 | K51: =+Distribution!K51+Transmission!K51+Generation!K51+Retail!K51+Misc!K51 -> -100224.4673 | L51: =+Distribution!L51+Transmission!L51+Generation!L51+Retail!L51+Misc!L51 -> -38555.22941 | M51: =+Distribution!M51+Transmission!M51+Generation!M51+Retail!M51+Misc!M51 -> -39803.74526 | N51: =+Distribution!N51+Transmission!N51+Generation!N51+Retail!N51+Misc!N51 -> -20442.81181 | O51: =+Distribution!O51+Transmission!O51+Generation!O51+Retail!O51+Misc!O51 -> -2670.759157 | P51: =+Distribution!P51+Transmission!P51+Generation!P51+Retail!P51+Misc!P51 -> 0 | Q51: =+Distribution!Q51+Transmission!Q51+Generation!Q51+Retail!Q51+Misc!Q51 -> 0 | R51: 0
A52: 52 | E52: Customer Advance For Construction | H52: -143878.9987 | I52: =+Distribution!I52+Transmission!I52+Generation!I52+Retail!I52+Misc!I52 -> -52992.55235 | J52: =+Distribution!J52+Transmission!J52+Generation!J52+Retail!J52+Misc!J52 -> -82336.35931 | K52: =+Distribution!K52+Transmission!K52+Generation!K52+Retail!K52+Misc!K52 -> 0 | L52: =+Distribution!L52+Transmission!L52+Generation!L52+Retail!L52+Misc!L52 -> 0 | M52: =+Distribution!M52+Transmission!M52+Generation!M52+Retail!M52+Misc!M52 -> 0 | N52: =+Distribution!N52+Transmission!N52+Generation!N52+Retail!N52+Misc!N52 -> -8550.087022 | O52: =+Distribution!O52+Transmission!O52+Generation!O52+Retail!O52+Misc!O52 -> 0 | P52: =+Distribution!P52+Transmission!P52+Generation!P52+Retail!P52+Misc!P52 -> 0 | Q52: =+Distribution!Q52+Transmission!Q52+Generation!Q52+Retail!Q52+Misc!Q52 -> 0 | R52: 0
